Workbook

Sheet Information
A1: PR16 non-household price review
A3: Introduction
A5: The PR14 final determinations set the non-household default tariff price caps for a period of two years, with the intention that we would review the allocations of retail non-household costs and margins ahead of market opening in April 2017.
A6: Our draft method statement explains that we are considering whether we should:
B7: (a) adjust the overall level of allowed costs and margins in the NHH price controls;
B8: (b) adopt a simpler form of control; and/or
B9: (c) allow companies to reallocate costs/margins as envisaged at PR14 but with a high evidential bar to avoid any inappropriate reallocations by companies
A10: Our initial conclusions on the overall level of costs and margins allowed at PR14 is that they are reasonable. We will consider further evidence we receive on these matters and if necessary make adjustments later in the review process but for the purposes of completing these data tables companies should assume the same overall NHH cost and margin allocations as in the PR14 FDs.
A11: Bearing the above in mind these data tables have been designed primarily to allow Ofwat to capture companies' proposals for rebalancing costs and margins between default tariff caps in a structured and consistent format. Nonetheless, if companies consider that their existing allocations remain robust they do not need to resubmit data tables. In addition companies should note that what we have said in the draft methodology statement in relation to the advantages of avoiding any incentives on companies to skew the allocations of costs and margins. Therefore we would expect any proposals for change would need to be supported by evidence that shows that reallocations better reflect underlying cost drivers and there would be no overall detriment to competition.
A12: We have also consulted on an option for simplifying the default tariff caps by using gross margin bands. If we decide to pursue this option we envisage issuing further guidance in May on the implications for data tables. We would expect any associated information request to be based around the existing data tables and sheet R4aPR16 – but adapted to show any appropriate recalculation of the default tariff caps that would apply to those customers using less than 1ml of water per year.
A13: Companies wishing to complete and return this spreadsheet together with the supporting evidence set out in the accompanying statement of method will need to do so no later than 20 July 2016.
A14: Further detail is provided in the "Draft statement of method and data table requirements - Review of Non-Household Retail Price Controls"
A16: Sections & tables
A18: The workbook contains four sections :
B20: Data capture tables | D20: Data table R4 used at PR14 has been simplified to produce table R4a which requests less information about each default tariff price cap.
D23: Worksheet "R4a PR14" is pre-populated with the information used in the PR14 final determinations (or the CMA determination for Bristol Water). It is provided for clarity as the wholesale charge allocated to each tariff band was calculated within the financial model based on company inputs. Companies should not make changes to this worksheet.
D25: Worksheet "R4a PR16" is provided as the means for companies to make changes to cost and margin allocations and also to the structure of default tariff bands where necessary. It is similarly pre-populated with PR14 data which can be overwritten as required for the years 2017/18, 2018/19 and 2019/20 using the pale yellow highlighted cells. Further guidance and data validation is included in the worksheet. This is the only worksheet where company input is required - all other worksheets are protected to avoid inadvertent changes.
D27: Please review the validation checks in column M and rectify any outstanding issues prior to submission.
B29: Calculations | D29: The two calculation sheets evaluate the aggregate costs and margins at PR14 and for PR16 based on the company inputs supplied in the data table in worksheet "R4a PR16"
B32: Source data | D32: These sheets are for Ofwat use only and are included to facilitate pre-population of the workbook with company specific data
B34: Output summary | D34: The output summary sheet compares the aggregate costs and margins from PR14 with those at PR16 based on the company inputs. It highlights changes in aggregate customer numbers, costs and margins in the form of a variance table and waterfall charts showing the drivers of movements between PR14 and PR16 for each of the three years 2017/18, 2018/19 and 2019/20.
D38: Companies should review the output summary sheet and provide separate supporting evidence and justification for proposed changes to customers numbers and changes to wholesale charges, retail costs and margins on either an aggregate or per customer basis.
A40: Queries and submission
A42: Companies wishing to complete and return this spreadsheet together with the supporting evidence set out in the accompanying statement of method will need to do so no later than 20 July 2016.
A44: Please review the validation checks on data sheet "R4a PR16" and rectify any outstanding issues prior to submission and ensure that the submission includes evidence and justification for any proposed variances highlighted on the output summary sheet.
A46: Submissions and all queries should be sent to:
A47: NHHRetailPriceReview@ofwat.gsi.gov.uk

Sheet Output Summary
A1: Output Summary | T1: =Lists!E29 -> Sutton & East Surrey Water
A3: Overview | B3: Units | D3: Final Determination at PR14 | J3: Current Proposal PR16 | P3: Change
D4: 2015-16 | E4: 2016-17 | F4: 2017-18 | G4: 2018-19 | H4: 2019-20 | J4: 2015-16 | K4: 2016-17 | L4: 2017-18 | M4: 2018-19 | N4: 2019-20 | P4: 2015-16 | Q4: 2016-17 | R4: 2017-18 | S4: 2018-19 | T4: 2019-20
A6: Number of tariff bands | B6: number | D6: ='PR14 FD Calculations'!I$67 -> 10 | E6: ='PR14 FD Calculations'!J$67 -> 10 | F6: ='PR14 FD Calculations'!K$67 -> 10 | G6: ='PR14 FD Calculations'!L$67 -> 10 | H6: ='PR14 FD Calculations'!M$67 -> 10 | J6: ='PR16 Calculations'!I$67 -> 10 | K6: ='PR16 Calculations'!J$67 -> 10 | L6: ='PR16 Calculations'!K$67 -> 10 | M6: ='PR16 Calculations'!L$67 -> 10 | N6: ='PR16 Calculations'!M$67 -> 10 | P6: =J6-D6 -> 0 | Q6: =K6-E6 -> 0 | R6: =L6-F6 -> 0 | S6: =M6-G6 -> 0 | T6: =N6-H6 -> 0
A7: Number of customers | B7: number | D7: ='PR14 FD Calculations'!I$131 -> 15299 | E7: ='PR14 FD Calculations'!J$131 -> 15299 | F7: ='PR14 FD Calculations'!K$131 -> 15299 | G7: ='PR14 FD Calculations'!L$131 -> 15299 | H7: ='PR14 FD Calculations'!M$131 -> 15299 | J7: ='PR16 Calculations'!I$131 -> 15299 | K7: ='PR16 Calculations'!J$131 -> 15299 | L7: ='PR16 Calculations'!K$131 -> 15299 | M7: ='PR16 Calculations'!L$131 -> 15299 | N7: ='PR16 Calculations'!M$131 -> 15299 | P7: =J7-D7 -> 0 | Q7: =K7-E7 -> 0 | R7: =L7-F7 -> 0 | S7: =M7-G7 -> 0 | T7: =N7-H7 -> 0
A9: Retail net margin | B9: £m | D9: ='PR14 FD Calculations'!I$770 -> 0.259312882 | E9: ='PR14 FD Calculations'!J$770 -> 0.2707214428 | F9: ='PR14 FD Calculations'!K$770 -> 0.2825249391 | G9: ='PR14 FD Calculations'!L$770 -> 0.2957193104 | H9: ='PR14 FD Calculations'!M$770 -> 0.3097585582 | J9: ='PR16 Calculations'!I$571 -> 0.259312882 | K9: ='PR16 Calculations'!J$571 -> 0.2707214428 | L9: ='PR16 Calculations'!K$571 -> 0.2825249391 | M9: ='PR16 Calculations'!L$571 -> 0.2957193104 | N9: ='PR16 Calculations'!M$571 -> 0.3097585582 | P9: =J9-D9 -> 0 | Q9: 0 | R9: 0 | S9: 0 | T9: 0
A10: Retail costs | B10: £m | D10: ='PR14 FD Calculations'!I$319 -> 0.4905657009 | E10: ='PR14 FD Calculations'!J$319 -> 0.4954735883 | F10: ='PR14 FD Calculations'!K$319 -> 0.5004473947 | G10: ='PR14 FD Calculations'!L$319 -> 0.5035284823 | H10: ='PR14 FD Calculations'!M$319 -> 0.5051950953 | J10: ='PR16 Calculations'!I$319 -> 0.4905657009 | K10: ='PR16 Calculations'!J$319 -> 0.4954735883 | L10: ='PR16 Calculations'!K$319 -> 0.5004473947 | M10: ='PR16 Calculations'!L$319 -> 0.5035284823 | N10: ='PR16 Calculations'!M$319 -> 0.5051950953 | P10: =J10-D10 -> 0 | Q10: =K10-E10 -> 0 | R10: =L10-F10 -> 0 | S10: =M10-G10 -> 0 | T10: =N10-H10 -> 0
A11: Retail gross margin | B11: £m | D11: =D9 + D10 -> 0.7498785829 | E11: =E9 + E10 -> 0.7661950311 | F11: 0.7829723338 | G11: 0.7992477926 | H11: 0.8149536535 | J11: =J9+J10 -> 0.7498785829 | K11: =K9+K10 -> 0.7661950311 | L11: 0.7829723338 | M11: 0.7992477926 | N11: 0.8149536535 | P11: =J11-D11 -> 0 | Q11: 0 | R11: 0 | S11: 0 | T11: 0
A12: Wholesale charge | B12: £m | D12: ='PR14 FD Calculations'!I$520 -> 9.627045269 | E12: ='PR14 FD Calculations'!J$520 -> 10.06455865 | F12: ='PR14 FD Calculations'!K$520 -> 10.51802523 | G12: ='PR14 FD Calculations'!L$520 -> 11.0280194 | H12: ='PR14 FD Calculations'!M$520 -> 11.57426402 | J12: ='PR16 Calculations'!I446 -> 9.627045269 | K12: ='PR16 Calculations'!J446 -> 10.06455865 | L12: ='PR16 Calculations'!K446 -> 10.51802523 | M12: ='PR16 Calculations'!L446 -> 11.0280194 | N12: ='PR16 Calculations'!M446 -> 11.57426402 | P12: 0 | Q12: 0 | R12: 0 | S12: 0 | T12: 0
A13: Total retail revenue | B13: £m | D13: =D11 + D12 -> 10.37692385 | E13: =E11+E12 -> 10.83075368 | F13: =F11+F12 -> 11.30099756 | G13: =G11+G12 -> 11.82726719 | H13: =H11+H12 -> 12.38921768 | J13: =J11+J12 -> 10.37692385 | K13: =K11+K12 -> 10.83075368 | L13: =L11+L12 -> 11.30099756 | M13: =M11+M12 -> 11.82726719 | N13: =N11+N12 -> 12.38921768 | P13: 0 | Q13: 0 | R13: 0 | S13: 0 | T13: 0
A15: Retail margin as % of total retail revenue | B15: % | D15: =D9 / D13 -> 0.0249893789 | E15: =E9 / E13 -> 0.02499562365 | F15: 0.025 | G15: 0.02500318169 | H15: 0.02500226942 | J15: =J9/J13 -> 0.0249893789 | K15: =K9/K13 -> 0.02499562365 | L15: =L9/L13 -> 0.025 | M15: =M9/M13 -> 0.02500318169 | N15: =N9/N13 -> 0.02500226942 | P15: 0 | Q15: =K15-E15 -> 0 | R15: =L15-F15 -> 0 | S15: =M15-G15 -> 0 | T15: =N15-H15 -> 0
A16: Retail gross margin as % of wholesale charge | B16: % | D16: =( D9 + D10 ) / D12 -> 0.07789291126 | E16: =( E9 + E10 ) / E12 -> 0.07612803085 | F16: 0.07444100168 | G16: 0.07247428246 | H16: 0.07041084012 | J16: =(J9+J10)/J12 -> 0.07789291126 | K16: =(K9+K10)/K12 -> 0.07612803085 | L16: =(L9+L10)/L12 -> 0.07444100168 | M16: =(M9+M10)/M12 -> 0.07247428246 | N16: =(N9+N10)/N12 -> 0.07041084012 | P16: 0 | Q16: 0 | R16: 0 | S16: 0 | T16: 0
A17: Retail cost per customer | B17: £ | D17: =D10 * 1000000 / D7 -> 32.06521347 | E17: =E10 * 1000000 / E7 -> 32.3860114 | F17: 32.71111803 | G17: 32.91250946 | H17: 33.02144554 | J17: =J10 * 1000000 / J7 -> 32.06521347 | K17: =K10 * 1000000 / K7 -> 32.3860114 | L17: =L10 * 1000000 / L7 -> 32.71111803 | M17: =M10 * 1000000 / M7 -> 32.91250946 | N17: =N10 * 1000000 / N7 -> 33.02144554 | P17: =J17-D17 -> 0 | Q17: 0 | R17: 0 | S17: 0 | T17: 0
A18: Wholesale charge per customer | B18: £ | D18: =D12 * 1000000 / D7 -> 629.2597731 | E18: =E12 * 1000000 / E7 -> 657.8572878 | F18: 687.4975639 | G18: 720.8326947 | H18: 756.5372914 | J18: =J12 * 1000000 / J7 -> 629.2597731 | K18: =K12 * 1000000 / K7 -> 657.8572878 | L18: =L12 * 1000000 / L7 -> 687.4975639 | M18: =M12 * 1000000 / M7 -> 720.8326947 | N18: =N12 * 1000000 / N7 -> 756.5372914 | P18: 0 | Q18: 0 | R18: 0 | S18: 0 | T18: 0
D22: ="Retail revenue movement in 2017/18 - current proposal vs PR14 FD" -> Retail revenue movement in 2017/18 - current proposal vs PR14 FD | V22: ="Data for waterfall chart"& " - "&D22 -> Data for waterfall chart - Retail revenue movement in 2017/18 - current proposal vs PR14 FD
W23: Values | X23: Cumulative | Y23: Ends | Z23: NegBlank | AA23: NegGain | AB23: NegLoss | AC23: PosBlank | AD23: PosLoss | AE23: PosGain | AF23: Label Y | AG23: Y Label
V24: FD Income | W24: =F13 -> 11.30099756 | X24: =SUM(W$24:W24) -> 11.30099756 | Y24: =X24 -> 11.30099756 | AF24: =MAX(0,Y24) -> 11.30099756 | AG24: =IF(ISBLANK(W24),IF(AF24<0,CHAR(10),"")&TEXT(Y24,IF(LEN($AI$25)>0,$AI$25,$AI$27))&IF(AF24>=0,CHAR(10),""),TEXT(W24,IF(LEN($AI$25)>0,$AI$25,$AI$27))&CHAR(10)) -> 11.301 | AI24: Custom
V25: Customer numbers | W25: =R7 * ( F17 + F18 ) / (1 - F15 ) / 1000000 -> 0 | X25: =SUM(W$24:W25) -> 11.30099756 | Y25: =IF(LEN(W25)=0,OFFSET(X25,-1,0),0) -> 0 | Z25: =IF(AND(X25<0,OFFSET(X25,-1,0)<0,Y25=0),MAX(OFFSET(X25,-1,0,2,1)),0) -> 0 | AA25: =IF(AND(OFFSET(X25,-1,0)<0,W25>0),MAX(-W25,OFFSET(X25,-1,0)),0) -> 0 | AB25: =IF(AND(X25<0,W25<0),MAX(W25,X25),0) -> 0 | AC25: =IF(AND(X25>0,OFFSET(X25,-1,0)>0,Y25=0),MIN(OFFSET(X25,-1,0,2,1)),0) -> 11.30099756 | AD25: =IF(AND(OFFSET(X25,-1,0)>0,W25<0),MIN(-W25,OFFSET(X25,-1,0)),0) -> 0 | AE25: =IF(AND(X25>0,W25>0),MIN(W25,X25),0) -> 0 | AF25: =MAX(IF(Y25>0,0,OFFSET(X25,-1,0)),X25) -> 11.30099756 | AG25: - | AI25: #,##0.000_);(#,##0.000);"- ";" "@" "
V26: Retail cost per customer | W26: =R17 * L7 / (1 - F15) / 1000000 -> 0 | X26: =SUM(W$24:W26) -> 11.30099756 | Y26: =IF(LEN(W26)=0,OFFSET(X26,-1,0),0) -> 0 | Z26: =IF(AND(X26<0,OFFSET(X26,-1,0)<0,Y26=0),MAX(OFFSET(X26,-1,0,2,1)),0) -> 0 | AA26: =IF(AND(OFFSET(X26,-1,0)<0,W26>0),MAX(-W26,OFFSET(X26,-1,0)),0) -> 0 | AB26: =IF(AND(X26<0,W26<0),MAX(W26,X26),0) -> 0 | AC26: =IF(AND(X26>0,OFFSET(X26,-1,0)>0,Y26=0),MIN(OFFSET(X26,-1,0,2,1)),0) -> 11.30099756 | AD26: =IF(AND(OFFSET(X26,-1,0)>0,W26<0),MIN(-W26,OFFSET(X26,-1,0)),0) -> 0 | AE26: =IF(AND(X26>0,W26>0),MIN(W26,X26),0) -> 0 | AF26: =MAX(IF(Y26>0,0,OFFSET(X26,-1,0)),X26) -> 11.30099756 | AG26: - | AI26: Default
V27: Wholesale charge per customer | W27: =R18 * L7 / (1 - F15) / 1000000 -> 0 | X27: =SUM(W$24:W27) -> 11.30099756 | Y27: =IF(LEN(W27)=0,OFFSET(X27,-1,0),0) -> 0 | Z27: =IF(AND(X27<0,OFFSET(X27,-1,0)<0,Y27=0),MAX(OFFSET(X27,-1,0,2,1)),0) -> 0 | AA27: =IF(AND(OFFSET(X27,-1,0)<0,W27>0),MAX(-W27,OFFSET(X27,-1,0)),0) -> 0 | AB27: =IF(AND(X27<0,W27<0),MAX(W27,X27),0) -> 0 | AC27: =IF(AND(X27>0,OFFSET(X27,-1,0)>0,Y27=0),MIN(OFFSET(X27,-1,0,2,1)),0) -> 11.30099756 | AD27: =IF(AND(OFFSET(X27,-1,0)>0,W27<0),MIN(-W27,OFFSET(X27,-1,0)),0) -> 0 | AE27: =IF(AND(X27>0,W27>0),MIN(W27,X27),0) -> 0 | AF27: =MAX(IF(Y27>0,0,OFFSET(X27,-1,0)),X27) -> 11.30099756 | AG27: - | AI27: _(* #,##0_);_(* (#,##0);_(* "-"_);@_)
V28: Margin % | W28: =( L10 + L12 ) / ( 1 - L15 ) - ( L10 + L12 ) / ( 1 - F15 ) -> 0 | X28: =SUM(W$24:W28) -> 11.30099756 | Y28: =IF(LEN(W28)=0,OFFSET(X28,-1,0),0) -> 0 | Z28: =IF(AND(X28<0,OFFSET(X28,-1,0)<0,Y28=0),MAX(OFFSET(X28,-1,0,2,1)),0) -> 0 | AA28: =IF(AND(OFFSET(X28,-1,0)<0,W28>0),MAX(-W28,OFFSET(X28,-1,0)),0) -> 0 | AB28: =IF(AND(X28<0,W28<0),MAX(W28,X28),0) -> 0 | AC28: =IF(AND(X28>0,OFFSET(X28,-1,0)>0,Y28=0),MIN(OFFSET(X28,-1,0,2,1)),0) -> 11.30099756 | AD28: =IF(AND(OFFSET(X28,-1,0)>0,W28<0),MIN(-W28,OFFSET(X28,-1,0)),0) -> 0 | AE28: =IF(AND(X28>0,W28>0),MIN(W28,X28),0) -> 0 | AF28: =MAX(IF(Y28>0,0,OFFSET(X28,-1,0)),X28) -> 11.30099756 | AG28: - | AI28: =CELL("format",W24) -> ,3
V29: Proposed income | X29: =SUM(W$24:W29) -> 11.30099756 | Y29: =IF(LEN(W29)=0,OFFSET(X29,-1,0),0) -> 11.30099756 | Z29: =IF(AND(X29<0,OFFSET(X29,-1,0)<0,Y29=0),MAX(OFFSET(X29,-1,0,2,1)),0) -> 0 | AA29: =IF(AND(OFFSET(X29,-1,0)<0,W29>0),MAX(-W29,OFFSET(X29,-1,0)),0) -> 0 | AB29: =IF(AND(X29<0,W29<0),MAX(W29,X29),0) -> 0 | AC29: =IF(AND(X29>0,OFFSET(X29,-1,0)>0,Y29=0),MIN(OFFSET(X29,-1,0,2,1)),0) -> 0 | AD29: =IF(AND(OFFSET(X29,-1,0)>0,W29<0),MIN(-W29,OFFSET(X29,-1,0)),0) -> 0 | AE29: =IF(AND(X29>0,W29>0),MIN(W29,X29),0) -> 0 | AF29: =MAX(IF(Y29>0,0,OFFSET(X29,-1,0)),X29) -> 11.30099756 | AG29: 11.301
D43: ="Retail revenue movement in 2018/19 - current proposal vs PR14 FD" -> Retail revenue movement in 2018/19 - current proposal vs PR14 FD | V43: ="Data for waterfall chart"& " - "&D43 -> Data for waterfall chart - Retail revenue movement in 2018/19 - current proposal vs PR14 FD
W44: Values | X44: Cumulative | Y44: Ends | Z44: NegBlank | AA44: NegGain | AB44: NegLoss | AC44: PosBlank | AD44: PosLoss | AE44: PosGain | AF44: Label Y | AG44: Y Label
V45: FD Income | W45: =G13 -> 11.82726719 | X45: =SUM(W$45:W45) -> 11.82726719 | Y45: =X45 -> 11.82726719 | AF45: =MAX(0,Y45) -> 11.82726719 | AG45: =IF(ISBLANK(W45),IF(AF45<0,CHAR(10),"")&TEXT(Y45,IF(LEN($AI$25)>0,$AI$25,$AI$27))&IF(AF45>=0,CHAR(10),""),TEXT(W45,IF(LEN($AI$25)>0,$AI$25,$AI$27))&CHAR(10)) -> 11.827 | AI45: Custom
V46: Customer numbers | W46: =S7 * ( G17 + G18 ) / (1 - G15 ) / 1000000 -> 0 | X46: =SUM(W$45:W46) -> 11.82726719 | Y46: =IF(LEN(W46)=0,OFFSET(X46,-1,0),0) -> 0 | Z46: =IF(AND(X46<0,OFFSET(X46,-1,0)<0,Y46=0),MAX(OFFSET(X46,-1,0,2,1)),0) -> 0 | AA46: =IF(AND(OFFSET(X46,-1,0)<0,W46>0),MAX(-W46,OFFSET(X46,-1,0)),0) -> 0 | AB46: =IF(AND(X46<0,W46<0),MAX(W46,X46),0) -> 0 | AC46: =IF(AND(X46>0,OFFSET(X46,-1,0)>0,Y46=0),MIN(OFFSET(X46,-1,0,2,1)),0) -> 11.82726719 | AD46: =IF(AND(OFFSET(X46,-1,0)>0,W46<0),MIN(-W46,OFFSET(X46,-1,0)),0) -> 0 | AE46: =IF(AND(X46>0,W46>0),MIN(W46,X46),0) -> 0 | AF46: =MAX(IF(Y46>0,0,OFFSET(X46,-1,0)),X46) -> 11.82726719 | AG46: - | AI46: #,##0.000_);(#,##0.000);"- ";" "@" "
V47: Retail cost per customer | W47: =S17 * M7 / (1 - G15) / 1000000 -> 0 | X47: =SUM(W$45:W47) -> 11.82726719 | Y47: =IF(LEN(W47)=0,OFFSET(X47,-1,0),0) -> 0 | Z47: =IF(AND(X47<0,OFFSET(X47,-1,0)<0,Y47=0),MAX(OFFSET(X47,-1,0,2,1)),0) -> 0 | AA47: =IF(AND(OFFSET(X47,-1,0)<0,W47>0),MAX(-W47,OFFSET(X47,-1,0)),0) -> 0 | AB47: =IF(AND(X47<0,W47<0),MAX(W47,X47),0) -> 0 | AC47: =IF(AND(X47>0,OFFSET(X47,-1,0)>0,Y47=0),MIN(OFFSET(X47,-1,0,2,1)),0) -> 11.82726719 | AD47: =IF(AND(OFFSET(X47,-1,0)>0,W47<0),MIN(-W47,OFFSET(X47,-1,0)),0) -> 0 | AE47: =IF(AND(X47>0,W47>0),MIN(W47,X47),0) -> 0 | AF47: =MAX(IF(Y47>0,0,OFFSET(X47,-1,0)),X47) -> 11.82726719 | AG47: - | AI47: Default
V48: Wholesale charge per customer | W48: =S18 * M7 / (1 - G15) / 1000000 -> 0 | X48: =SUM(W$45:W48) -> 11.82726719 | Y48: =IF(LEN(W48)=0,OFFSET(X48,-1,0),0) -> 0 | Z48: =IF(AND(X48<0,OFFSET(X48,-1,0)<0,Y48=0),MAX(OFFSET(X48,-1,0,2,1)),0) -> 0 | AA48: =IF(AND(OFFSET(X48,-1,0)<0,W48>0),MAX(-W48,OFFSET(X48,-1,0)),0) -> 0 | AB48: =IF(AND(X48<0,W48<0),MAX(W48,X48),0) -> 0 | AC48: =IF(AND(X48>0,OFFSET(X48,-1,0)>0,Y48=0),MIN(OFFSET(X48,-1,0,2,1)),0) -> 11.82726719 | AD48: =IF(AND(OFFSET(X48,-1,0)>0,W48<0),MIN(-W48,OFFSET(X48,-1,0)),0) -> 0 | AE48: =IF(AND(X48>0,W48>0),MIN(W48,X48),0) -> 0 | AF48: =MAX(IF(Y48>0,0,OFFSET(X48,-1,0)),X48) -> 11.82726719 | AG48: - | AI48: _(* #,##0_);_(* (#,##0);_(* "-"_);@_)
V49: Margin % | W49: =( M10 + M12 ) / ( 1 - M15 ) - ( M10 + M12 ) / ( 1 - G15 ) -> 0 | X49: =SUM(W$45:W49) -> 11.82726719 | Y49: =IF(LEN(W49)=0,OFFSET(X49,-1,0),0) -> 0 | Z49: =IF(AND(X49<0,OFFSET(X49,-1,0)<0,Y49=0),MAX(OFFSET(X49,-1,0,2,1)),0) -> 0 | AA49: =IF(AND(OFFSET(X49,-1,0)<0,W49>0),MAX(-W49,OFFSET(X49,-1,0)),0) -> 0 | AB49: =IF(AND(X49<0,W49<0),MAX(W49,X49),0) -> 0 | AC49: =IF(AND(X49>0,OFFSET(X49,-1,0)>0,Y49=0),MIN(OFFSET(X49,-1,0,2,1)),0) -> 11.82726719 | AD49: =IF(AND(OFFSET(X49,-1,0)>0,W49<0),MIN(-W49,OFFSET(X49,-1,0)),0) -> 0 | AE49: =IF(AND(X49>0,W49>0),MIN(W49,X49),0) -> 0 | AF49: =MAX(IF(Y49>0,0,OFFSET(X49,-1,0)),X49) -> 11.82726719 | AG49: - | AI49: =CELL("format",W45) -> ,3
V50: Proposed income | X50: =SUM(W$45:W50) -> 11.82726719 | Y50: =IF(LEN(W50)=0,OFFSET(X50,-1,0),0) -> 11.82726719 | Z50: =IF(AND(X50<0,OFFSET(X50,-1,0)<0,Y50=0),MAX(OFFSET(X50,-1,0,2,1)),0) -> 0 | AA50: =IF(AND(OFFSET(X50,-1,0)<0,W50>0),MAX(-W50,OFFSET(X50,-1,0)),0) -> 0 | AB50: =IF(AND(X50<0,W50<0),MAX(W50,X50),0) -> 0 | AC50: =IF(AND(X50>0,OFFSET(X50,-1,0)>0,Y50=0),MIN(OFFSET(X50,-1,0,2,1)),0) -> 0 | AD50: =IF(AND(OFFSET(X50,-1,0)>0,W50<0),MIN(-W50,OFFSET(X50,-1,0)),0) -> 0 | AE50: =IF(AND(X50>0,W50>0),MIN(W50,X50),0) -> 0 | AF50: =MAX(IF(Y50>0,0,OFFSET(X50,-1,0)),X50) -> 11.82726719 | AG50: 11.827
D64: ="Retail revenue movement in 2019/20 - current proposal vs PR14 FD" -> Retail revenue movement in 2019/20 - current proposal vs PR14 FD | V64: ="Data for waterfall chart"& " - "&D64 -> Data for waterfall chart - Retail revenue movement in 2019/20 - current proposal vs PR14 FD
W65: Values | X65: Cumulative | Y65: Ends | Z65: NegBlank | AA65: NegGain | AB65: NegLoss | AC65: PosBlank | AD65: PosLoss | AE65: PosGain | AF65: Label Y | AG65: Y Label
V66: FD Income | W66: =H13 -> 12.38921768 | X66: =SUM(W$66:W66) -> 12.38921768 | Y66: =X66 -> 12.38921768 | AF66: =MAX(0,Y66) -> 12.38921768 | AG66: =IF(ISBLANK(W66),IF(AF66<0,CHAR(10),"")&TEXT(Y66,IF(LEN($AI$67)>0,$AI$67,$AI$69))&IF(AF66>=0,CHAR(10),""),TEXT(W66,IF(LEN($AI$25)>0,$AI$67,$AI$69))&CHAR(10)) -> 12.389 | AI66: Custom
V67: Customer numbers | W67: =T7 * ( H17 + H18 ) / (1 - H15 ) / 1000000 -> 0 | X67: =SUM(W$66:W67) -> 12.38921768 | Y67: =IF(LEN(W67)=0,OFFSET(X67,-1,0),0) -> 0 | Z67: =IF(AND(X67<0,OFFSET(X67,-1,0)<0,Y67=0),MAX(OFFSET(X67,-1,0,2,1)),0) -> 0 | AA67: =IF(AND(OFFSET(X67,-1,0)<0,W67>0),MAX(-W67,OFFSET(X67,-1,0)),0) -> 0 | AB67: =IF(AND(X67<0,W67<0),MAX(W67,X67),0) -> 0 | AC67: =IF(AND(X67>0,OFFSET(X67,-1,0)>0,Y67=0),MIN(OFFSET(X67,-1,0,2,1)),0) -> 12.38921768 | AD67: =IF(AND(OFFSET(X67,-1,0)>0,W67<0),MIN(-W67,OFFSET(X67,-1,0)),0) -> 0 | AE67: =IF(AND(X67>0,W67>0),MIN(W67,X67),0) -> 0 | AF67: =MAX(IF(Y67>0,0,OFFSET(X67,-1,0)),X67) -> 12.38921768 | AG67: =IF(ISBLANK(W67),IF(AF67<0,CHAR(10),"")&TEXT(Y67,IF(LEN($AI$67)>0,$AI$67,$AI$69))&IF(AF67>=0,CHAR(10),""),TEXT(W67,IF(LEN($AI$25)>0,$AI$67,$AI$69))&CHAR(10)) -> - | AI67: #,##0.000_);(#,##0.000);"- ";" "@" "
V68: Retail cost per customer | W68: =T17 * N7 / (1 - H15) / 1000000 -> 0 | X68: =SUM(W$66:W68) -> 12.38921768 | Y68: =IF(LEN(W68)=0,OFFSET(X68,-1,0),0) -> 0 | Z68: =IF(AND(X68<0,OFFSET(X68,-1,0)<0,Y68=0),MAX(OFFSET(X68,-1,0,2,1)),0) -> 0 | AA68: =IF(AND(OFFSET(X68,-1,0)<0,W68>0),MAX(-W68,OFFSET(X68,-1,0)),0) -> 0 | AB68: =IF(AND(X68<0,W68<0),MAX(W68,X68),0) -> 0 | AC68: =IF(AND(X68>0,OFFSET(X68,-1,0)>0,Y68=0),MIN(OFFSET(X68,-1,0,2,1)),0) -> 12.38921768 | AD68: =IF(AND(OFFSET(X68,-1,0)>0,W68<0),MIN(-W68,OFFSET(X68,-1,0)),0) -> 0 | AE68: =IF(AND(X68>0,W68>0),MIN(W68,X68),0) -> 0 | AF68: =MAX(IF(Y68>0,0,OFFSET(X68,-1,0)),X68) -> 12.38921768 | AG68: - | AI68: Default
V69: Wholesale charge per customer | W69: =T18 * N7 / (1 - H15) / 1000000 -> 0 | X69: =SUM(W$66:W69) -> 12.38921768 | Y69: =IF(LEN(W69)=0,OFFSET(X69,-1,0),0) -> 0 | Z69: =IF(AND(X69<0,OFFSET(X69,-1,0)<0,Y69=0),MAX(OFFSET(X69,-1,0,2,1)),0) -> 0 | AA69: =IF(AND(OFFSET(X69,-1,0)<0,W69>0),MAX(-W69,OFFSET(X69,-1,0)),0) -> 0 | AB69: =IF(AND(X69<0,W69<0),MAX(W69,X69),0) -> 0 | AC69: =IF(AND(X69>0,OFFSET(X69,-1,0)>0,Y69=0),MIN(OFFSET(X69,-1,0,2,1)),0) -> 12.38921768 | AD69: =IF(AND(OFFSET(X69,-1,0)>0,W69<0),MIN(-W69,OFFSET(X69,-1,0)),0) -> 0 | AE69: =IF(AND(X69>0,W69>0),MIN(W69,X69),0) -> 0 | AF69: =MAX(IF(Y69>0,0,OFFSET(X69,-1,0)),X69) -> 12.38921768 | AG69: - | AI69: _(* #,##0_);_(* (#,##0);_(* "-"_);@_)
V70: Margin % | W70: =( N10 + N12 ) / ( 1 - N15 ) - ( N10 + N12 ) / ( 1 - H15 ) -> 0 | X70: =SUM(W$66:W70) -> 12.38921768 | Y70: =IF(LEN(W70)=0,OFFSET(X70,-1,0),0) -> 0 | Z70: =IF(AND(X70<0,OFFSET(X70,-1,0)<0,Y70=0),MAX(OFFSET(X70,-1,0,2,1)),0) -> 0 | AA70: =IF(AND(OFFSET(X70,-1,0)<0,W70>0),MAX(-W70,OFFSET(X70,-1,0)),0) -> 0 | AB70: =IF(AND(X70<0,W70<0),MAX(W70,X70),0) -> 0 | AC70: =IF(AND(X70>0,OFFSET(X70,-1,0)>0,Y70=0),MIN(OFFSET(X70,-1,0,2,1)),0) -> 12.38921768 | AD70: =IF(AND(OFFSET(X70,-1,0)>0,W70<0),MIN(-W70,OFFSET(X70,-1,0)),0) -> 0 | AE70: =IF(AND(X70>0,W70>0),MIN(W70,X70),0) -> 0 | AF70: =MAX(IF(Y70>0,0,OFFSET(X70,-1,0)),X70) -> 12.38921768 | AG70: - | AI70: =CELL("format",W66) -> ,3
V71: Proposed income | X71: =SUM(W$66:W71) -> 12.38921768 | Y71: =IF(LEN(W71)=0,OFFSET(X71,-1,0),0) -> 12.38921768 | Z71: =IF(AND(X71<0,OFFSET(X71,-1,0)<0,Y71=0),MAX(OFFSET(X71,-1,0,2,1)),0) -> 0 | AA71: =IF(AND(OFFSET(X71,-1,0)<0,W71>0),MAX(-W71,OFFSET(X71,-1,0)),0) -> 0 | AB71: =IF(AND(X71<0,W71<0),MAX(W71,X71),0) -> 0 | AC71: =IF(AND(X71>0,OFFSET(X71,-1,0)>0,Y71=0),MIN(OFFSET(X71,-1,0,2,1)),0) -> 0 | AD71: =IF(AND(OFFSET(X71,-1,0)>0,W71<0),MIN(-W71,OFFSET(X71,-1,0)),0) -> 0 | AE71: =IF(AND(X71>0,W71>0),MIN(W71,X71),0) -> 0 | AF71: =MAX(IF(Y71>0,0,OFFSET(X71,-1,0)),X71) -> 12.38921768 | AG71: 12.389

Sheet Data capture tables ->

Sheet R4a PR14
B1: R4a PR14 - Information on default tariff price caps set at FD | K1: =Lists!E29 -> Sutton & East Surrey Water | M1: Data validation
B3: Table guidance and line definitions below table
B5: Line description | D5: Item reference | E5: Units | F5: DPs | G5: 2015-16 | H5: 2016-17 | I5: 2017-18 | J5: 2018-19 | K5: 2019-20 | M5: Validation description
B7: A | C7: Company level assumptions adopted at FD
B8: 1 | C8: Wholesale charge to retail (household and non-household) | D8: C00277_A001 | E8: £m | F8: 3 | G8: =IF($M$8="BRL",INDEX('Bristol CMA'!J:J,MATCH($D8,'Bristol CMA'!$B:$B,0)),INDEX(F_Inputs!F:F,MATCH($D8,F_Inputs!$B:$B,0))) -> 53.21347484 | H8: =IF($M$8="BRL",INDEX('Bristol CMA'!K:K,MATCH($D8,'Bristol CMA'!$B:$B,0)),INDEX(F_Inputs!G:G,MATCH($D8,F_Inputs!$B:$B,0))) -> 55.2649729 | I8: =IF($M$8="BRL",INDEX('Bristol CMA'!L:L,MATCH($D8,'Bristol CMA'!$B:$B,0)),INDEX(F_Inputs!H:H,MATCH($D8,F_Inputs!$B:$B,0))) -> 57.4264687 | J8: =IF($M$8="BRL",INDEX('Bristol CMA'!M:M,MATCH($D8,'Bristol CMA'!$B:$B,0)),INDEX(F_Inputs!I:I,MATCH($D8,F_Inputs!$B:$B,0))) -> 59.86984581 | K8: =IF($M$8="BRL",INDEX('Bristol CMA'!N:N,MATCH($D8,'Bristol CMA'!$B:$B,0)),INDEX(F_Inputs!J:J,MATCH($D8,F_Inputs!$B:$B,0))) -> 62.51483818 | M8: =Lists!D29 -> SES
B9: =B8+1 -> 2 | C9: Household apportionment of wholesale allowed revenues | D9: C00278_A001 | E9: % | F9: 2 | G9: =IF($M$8="BRL",INDEX('Bristol CMA'!J:J,MATCH($D9,'Bristol CMA'!$B:$B,0)),INDEX(F_Inputs!F:F,MATCH($D9,F_Inputs!$B:$B,0))) -> 0.8190863254 | H9: =IF($M$8="BRL",INDEX('Bristol CMA'!K:K,MATCH($D9,'Bristol CMA'!$B:$B,0)),INDEX(F_Inputs!G:G,MATCH($D9,F_Inputs!$B:$B,0))) -> 0.8178853961 | I9: =IF($M$8="BRL",INDEX('Bristol CMA'!L:L,MATCH($D9,'Bristol CMA'!$B:$B,0)),INDEX(F_Inputs!H:H,MATCH($D9,F_Inputs!$B:$B,0))) -> 0.8168436007 | J9: =IF($M$8="BRL",INDEX('Bristol CMA'!M:M,MATCH($D9,'Bristol CMA'!$B:$B,0)),INDEX(F_Inputs!I:I,MATCH($D9,F_Inputs!$B:$B,0))) -> 0.8158001036 | K9: =IF($M$8="BRL",INDEX('Bristol CMA'!N:N,MATCH($D9,'Bristol CMA'!$B:$B,0)),INDEX(F_Inputs!J:J,MATCH($D9,F_Inputs!$B:$B,0))) -> 0.8148557309
B10: =B9+1 -> 3 | C10: Indicative retail income published at FD | D10: C_ES_000020_A001 | E10: £m | F10: 3 | G10: =IF($M$8="BRL",INDEX('Bristol CMA'!J:J,MATCH($D10,'Bristol CMA'!$B:$B,0)),INDEX(F_Inputs!F:F,MATCH($D10,F_Inputs!$B:$B,0))) -> 0.7498785829 | H10: =IF($M$8="BRL",INDEX('Bristol CMA'!K:K,MATCH($D10,'Bristol CMA'!$B:$B,0)),INDEX(F_Inputs!G:G,MATCH($D10,F_Inputs!$B:$B,0))) -> 0.7661950311 | I10: =IF($M$8="BRL",INDEX('Bristol CMA'!L:L,MATCH($D10,'Bristol CMA'!$B:$B,0)),INDEX(F_Inputs!H:H,MATCH($D10,F_Inputs!$B:$B,0))) -> 0.7829723338 | J10: =IF($M$8="BRL",INDEX('Bristol CMA'!M:M,MATCH($D10,'Bristol CMA'!$B:$B,0)),INDEX(F_Inputs!I:I,MATCH($D10,F_Inputs!$B:$B,0))) -> 0.7992477926 | K10: =IF($M$8="BRL",INDEX('Bristol CMA'!N:N,MATCH($D10,'Bristol CMA'!$B:$B,0)),INDEX(F_Inputs!J:J,MATCH($D10,F_Inputs!$B:$B,0))) -> 0.8149536535
B12: B | C12: Tariff Band 1
B13: =B10+1 -> 4 | C13: Tariff name | G13: =INDEX('Default tariff names PR14'!$B$2:$S$62,MATCH($C12,'Default tariff names PR14'!$A$2:$A$62,0),MATCH($M$8,'Default tariff names PR14'!$B$1:$X$1,0)) -> Northern area unmeasured
B14: =B13+1 -> 5 | C14: Tariff categorisation | G14: =INDEX(Categorisation!$B$4:$S$63,MATCH($C12,Categorisation!$A$4:A$63,0),MATCH($M$8,Categorisation!$B$3:$S$3,0)) -> Water - unmeasured
B15: 6 | C15: Number of customers | D15: CR601M01_R006 | E15: number | F15: 0 | G15: =INDEX(F_Inputs!$B:$J,MATCH($D15,F_Inputs!$B:$B,0),MATCH(G$5,F_Inputs!$B$2:$J$2,0)) -> 921.0258481 | H15: =INDEX(F_Inputs!$B:$J,MATCH($D15,F_Inputs!$B:$B,0),MATCH(H$5,F_Inputs!$B$2:$J$2,0)) -> 921.0258481 | I15: =INDEX(F_Inputs!$B:$J,MATCH($D15,F_Inputs!$B:$B,0),MATCH(I$5,F_Inputs!$B$2:$J$2,0)) -> 921.0258481 | J15: =INDEX(F_Inputs!$B:$J,MATCH($D15,F_Inputs!$B:$B,0),MATCH(J$5,F_Inputs!$B$2:$J$2,0)) -> 921.0258481 | K15: =INDEX(F_Inputs!$B:$J,MATCH($D15,F_Inputs!$B:$B,0),MATCH(K$5,F_Inputs!$B$2:$J$2,0)) -> 921.0258481
B16: 7 | C16: Net margin | D16: R5E00001_A001 | E16: % | F16: 2 | G16: =INDEX(F_Inputs!$B:$J,MATCH($D16,F_Inputs!$B:$B,0),MATCH(G$5,F_Inputs!$B$2:$J$2,0)) -> 0.02270838559 | H16: =INDEX(F_Inputs!$B:$J,MATCH($D16,F_Inputs!$B:$B,0),MATCH(H$5,F_Inputs!$B$2:$J$2,0)) -> 0.02384688226 | I16: =INDEX(F_Inputs!$B:$J,MATCH($D16,F_Inputs!$B:$B,0),MATCH(I$5,F_Inputs!$B$2:$J$2,0)) -> 0.025 | J16: =INDEX(F_Inputs!$B:$J,MATCH($D16,F_Inputs!$B:$B,0),MATCH(J$5,F_Inputs!$B$2:$J$2,0)) -> 0.02612907758 | K16: =INDEX(F_Inputs!$B:$J,MATCH($D16,F_Inputs!$B:$B,0),MATCH(K$5,F_Inputs!$B$2:$J$2,0)) -> 0.02613673318
B17: 8 | C17: Retail cost per customer | D17: CR601C01_R006 | E17: £ | F17: 2 | G17: =INDEX(F_Inputs!$B:$J,MATCH($D17,F_Inputs!$B:$B,0),MATCH(G$5,F_Inputs!$B$2:$J$2,0)) -> 16.75503715 | H17: =INDEX(F_Inputs!$B:$J,MATCH($D17,F_Inputs!$B:$B,0),MATCH(H$5,F_Inputs!$B$2:$J$2,0)) -> 17.17357298 | I17: =INDEX(F_Inputs!$B:$J,MATCH($D17,F_Inputs!$B:$B,0),MATCH(I$5,F_Inputs!$B$2:$J$2,0)) -> 17.58552392 | J17: =INDEX(F_Inputs!$B:$J,MATCH($D17,F_Inputs!$B:$B,0),MATCH(J$5,F_Inputs!$B$2:$J$2,0)) -> 17.89364185 | K17: =INDEX(F_Inputs!$B:$J,MATCH($D17,F_Inputs!$B:$B,0),MATCH(K$5,F_Inputs!$B$2:$J$2,0)) -> 18.11274335
B18: 9 | C18: Projected wholesale charge pre-FD (2012-13 price base) | D18: R4D01D04 | E18: £m | F18: 3 | G18: =INDEX(F_Inputs!$B:$J,MATCH($D18,F_Inputs!$B:$B,0),MATCH(G$5,F_Inputs!$B$2:$J$2,0)) -> 0.1054362973 | H18: =INDEX(F_Inputs!$B:$J,MATCH($D18,F_Inputs!$B:$B,0),MATCH(H$5,F_Inputs!$B$2:$J$2,0)) -> 0.1065817324 | I18: =INDEX(F_Inputs!$B:$J,MATCH($D18,F_Inputs!$B:$B,0),MATCH(I$5,F_Inputs!$B$2:$J$2,0)) -> 0.1099438433 | J18: =INDEX(F_Inputs!$B:$J,MATCH($D18,F_Inputs!$B:$B,0),MATCH(J$5,F_Inputs!$B$2:$J$2,0)) -> 0.1130151408 | K18: =INDEX(F_Inputs!$B:$J,MATCH($D18,F_Inputs!$B:$B,0),MATCH(K$5,F_Inputs!$B$2:$J$2,0)) -> 0.1150035542
B19: 10 | C19: Allocated wholesale charge at FD (Nominal price base) | D19: Calculation | E19: £m | F19: 3 | G19: =VLOOKUP($C12,'PR14 FD Calculations'!$D$460:$M$520,6,FALSE) -> 0.09121588479 | H19: =VLOOKUP($C12,'PR14 FD Calculations'!$D$460:$M$520,7,FALSE) -> 0.09511724201 | I19: =VLOOKUP($C12,'PR14 FD Calculations'!$D$460:$M$520,8,FALSE) -> 0.09937400667 | J19: =VLOOKUP($C12,'PR14 FD Calculations'!$D$460:$M$520,9,FALSE) -> 0.1041079465 | K19: =VLOOKUP($C12,'PR14 FD Calculations'!$D$460:$M$520,10,FALSE) -> 0.1091853393
B21: C | C21: Tariff Band 2
B22: =B19+1 -> 11 | C22: Tariff name | G22: =INDEX('Default tariff names PR14'!$B$2:$S$62,MATCH($C21,'Default tariff names PR14'!$A$2:$A$62,0),MATCH($M$8,'Default tariff names PR14'!$B$1:$X$1,0)) -> Northern area standard user metered
B23: =B22+1 -> 12 | C23: Tariff categorisation | G23: =INDEX(Categorisation!$B$4:$S$63,MATCH($C21,Categorisation!$A$4:A$63,0),MATCH($M$8,Categorisation!$B$3:$S$3,0)) -> Water - metered / assessed
B24: 13 | C24: Number of customers | D24: CR602M01_R006 | E24: number | F24: 0 | G24: =INDEX(F_Inputs!$B:$J,MATCH($D24,F_Inputs!$B:$B,0),MATCH(G$5,F_Inputs!$B$2:$J$2,0)) -> 4722.215064 | H24: =INDEX(F_Inputs!$B:$J,MATCH($D24,F_Inputs!$B:$B,0),MATCH(H$5,F_Inputs!$B$2:$J$2,0)) -> 4722.215064 | I24: =INDEX(F_Inputs!$B:$J,MATCH($D24,F_Inputs!$B:$B,0),MATCH(I$5,F_Inputs!$B$2:$J$2,0)) -> 4722.215064 | J24: =INDEX(F_Inputs!$B:$J,MATCH($D24,F_Inputs!$B:$B,0),MATCH(J$5,F_Inputs!$B$2:$J$2,0)) -> 4722.215064 | K24: =INDEX(F_Inputs!$B:$J,MATCH($D24,F_Inputs!$B:$B,0),MATCH(K$5,F_Inputs!$B$2:$J$2,0)) -> 4722.215064
B25: 14 | C25: Net margin | D25: R5E00002_A001 | E25: % | F25: 2 | G25: =INDEX(F_Inputs!$B:$J,MATCH($D25,F_Inputs!$B:$B,0),MATCH(G$5,F_Inputs!$B$2:$J$2,0)) -> 0.02270838559 | H25: =INDEX(F_Inputs!$B:$J,MATCH($D25,F_Inputs!$B:$B,0),MATCH(H$5,F_Inputs!$B$2:$J$2,0)) -> 0.02384688226 | I25: =INDEX(F_Inputs!$B:$J,MATCH($D25,F_Inputs!$B:$B,0),MATCH(I$5,F_Inputs!$B$2:$J$2,0)) -> 0.025 | J25: =INDEX(F_Inputs!$B:$J,MATCH($D25,F_Inputs!$B:$B,0),MATCH(J$5,F_Inputs!$B$2:$J$2,0)) -> 0.02612907758 | K25: =INDEX(F_Inputs!$B:$J,MATCH($D25,F_Inputs!$B:$B,0),MATCH(K$5,F_Inputs!$B$2:$J$2,0)) -> 0.02613673318
B26: 15 | C26: Retail cost per customer | D26: CR602C01_R006 | E26: £ | F26: 2 | G26: =INDEX(F_Inputs!$B:$J,MATCH($D26,F_Inputs!$B:$B,0),MATCH(G$5,F_Inputs!$B$2:$J$2,0)) -> 31.72960609 | H26: =INDEX(F_Inputs!$B:$J,MATCH($D26,F_Inputs!$B:$B,0),MATCH(H$5,F_Inputs!$B$2:$J$2,0)) -> 32.05266524 | I26: =INDEX(F_Inputs!$B:$J,MATCH($D26,F_Inputs!$B:$B,0),MATCH(I$5,F_Inputs!$B$2:$J$2,0)) -> 32.37979012 | J26: =INDEX(F_Inputs!$B:$J,MATCH($D26,F_Inputs!$B:$B,0),MATCH(J$5,F_Inputs!$B$2:$J$2,0)) -> 32.58361764 | K26: =INDEX(F_Inputs!$B:$J,MATCH($D26,F_Inputs!$B:$B,0),MATCH(K$5,F_Inputs!$B$2:$J$2,0)) -> 32.69504536
B27: 16 | C27: Projected wholesale charge pre-FD (2012-13 price base) | D27: R4D02D04 | E27: £m | F27: 3 | G27: =INDEX(F_Inputs!$B:$J,MATCH($D27,F_Inputs!$B:$B,0),MATCH(G$5,F_Inputs!$B$2:$J$2,0)) -> 2.626771145 | H27: =INDEX(F_Inputs!$B:$J,MATCH($D27,F_Inputs!$B:$B,0),MATCH(H$5,F_Inputs!$B$2:$J$2,0)) -> 2.655403231 | I27: =INDEX(F_Inputs!$B:$J,MATCH($D27,F_Inputs!$B:$B,0),MATCH(I$5,F_Inputs!$B$2:$J$2,0)) -> 2.743157309 | J27: =INDEX(F_Inputs!$B:$J,MATCH($D27,F_Inputs!$B:$B,0),MATCH(J$5,F_Inputs!$B$2:$J$2,0)) -> 2.824123502 | K27: =INDEX(F_Inputs!$B:$J,MATCH($D27,F_Inputs!$B:$B,0),MATCH(K$5,F_Inputs!$B$2:$J$2,0)) -> 2.872183366
B28: 17 | C28: Allocated wholesale charge at FD (Nominal price base) | D28: Calculation | E28: £m | F28: 3 | G28: =VLOOKUP($C21,'PR14 FD Calculations'!$D$460:$M$520,6,FALSE) -> 2.272493063 | H28: =VLOOKUP($C21,'PR14 FD Calculations'!$D$460:$M$520,7,FALSE) -> 2.369774127 | I28: =VLOOKUP($C21,'PR14 FD Calculations'!$D$460:$M$520,8,FALSE) -> 2.479434269 | J28: =VLOOKUP($C21,'PR14 FD Calculations'!$D$460:$M$520,9,FALSE) -> 2.601542557 | K28: =VLOOKUP($C21,'PR14 FD Calculations'!$D$460:$M$520,10,FALSE) -> 2.726874987
B30: D | C30: Tariff Band 3
B31: =B28+1 -> 18 | C31: Tariff name | G31: =INDEX('Default tariff names PR14'!$B$2:$S$62,MATCH($C30,'Default tariff names PR14'!$A$2:$A$62,0),MATCH($M$8,'Default tariff names PR14'!$B$1:$X$1,0)) -> Northern area mid user metered
B32: =B31+1 -> 19 | C32: Tariff categorisation | G32: =INDEX(Categorisation!$B$4:$S$63,MATCH($C30,Categorisation!$A$4:A$63,0),MATCH($M$8,Categorisation!$B$3:$S$3,0)) -> Water - metered / assessed
B33: 20 | C33: Number of customers | D33: CR603M01_R006 | E33: number | F33: 0 | G33: =INDEX(F_Inputs!$B:$J,MATCH($D33,F_Inputs!$B:$B,0),MATCH(G$5,F_Inputs!$B$2:$J$2,0)) -> 21 | H33: =INDEX(F_Inputs!$B:$J,MATCH($D33,F_Inputs!$B:$B,0),MATCH(H$5,F_Inputs!$B$2:$J$2,0)) -> 21 | I33: =INDEX(F_Inputs!$B:$J,MATCH($D33,F_Inputs!$B:$B,0),MATCH(I$5,F_Inputs!$B$2:$J$2,0)) -> 21 | J33: =INDEX(F_Inputs!$B:$J,MATCH($D33,F_Inputs!$B:$B,0),MATCH(J$5,F_Inputs!$B$2:$J$2,0)) -> 21 | K33: =INDEX(F_Inputs!$B:$J,MATCH($D33,F_Inputs!$B:$B,0),MATCH(K$5,F_Inputs!$B$2:$J$2,0)) -> 21
B34: 21 | C34: Net margin | D34: R5E00003_A001 | E34: % | F34: 2 | G34: =INDEX(F_Inputs!$B:$J,MATCH($D34,F_Inputs!$B:$B,0),MATCH(G$5,F_Inputs!$B$2:$J$2,0)) -> 0.035 | H34: =INDEX(F_Inputs!$B:$J,MATCH($D34,F_Inputs!$B:$B,0),MATCH(H$5,F_Inputs!$B$2:$J$2,0)) -> 0.03 | I34: =INDEX(F_Inputs!$B:$J,MATCH($D34,F_Inputs!$B:$B,0),MATCH(I$5,F_Inputs!$B$2:$J$2,0)) -> 0.025 | J34: =INDEX(F_Inputs!$B:$J,MATCH($D34,F_Inputs!$B:$B,0),MATCH(J$5,F_Inputs!$B$2:$J$2,0)) -> 0.02 | K34: =INDEX(F_Inputs!$B:$J,MATCH($D34,F_Inputs!$B:$B,0),MATCH(K$5,F_Inputs!$B$2:$J$2,0)) -> 0.02
B35: 22 | C35: Retail cost per customer | D35: CR603C01_R006 | E35: £ | F35: 2 | G35: =INDEX(F_Inputs!$B:$J,MATCH($D35,F_Inputs!$B:$B,0),MATCH(G$5,F_Inputs!$B$2:$J$2,0)) -> 537.6788151 | H35: =INDEX(F_Inputs!$B:$J,MATCH($D35,F_Inputs!$B:$B,0),MATCH(H$5,F_Inputs!$B$2:$J$2,0)) -> 534.7430756 | I35: =INDEX(F_Inputs!$B:$J,MATCH($D35,F_Inputs!$B:$B,0),MATCH(I$5,F_Inputs!$B$2:$J$2,0)) -> 532.1724158 | J35: =INDEX(F_Inputs!$B:$J,MATCH($D35,F_Inputs!$B:$B,0),MATCH(J$5,F_Inputs!$B$2:$J$2,0)) -> 528.8259518 | K35: =INDEX(F_Inputs!$B:$J,MATCH($D35,F_Inputs!$B:$B,0),MATCH(K$5,F_Inputs!$B$2:$J$2,0)) -> 525.2781113
B36: 23 | C36: Projected wholesale charge pre-FD (2012-13 price base) | D36: R4D03D04 | E36: £m | F36: 3 | G36: =INDEX(F_Inputs!$B:$J,MATCH($D36,F_Inputs!$B:$B,0),MATCH(G$5,F_Inputs!$B$2:$J$2,0)) -> 0.3474476124 | H36: =INDEX(F_Inputs!$B:$J,MATCH($D36,F_Inputs!$B:$B,0),MATCH(H$5,F_Inputs!$B$2:$J$2,0)) -> 0.3567040721 | I36: =INDEX(F_Inputs!$B:$J,MATCH($D36,F_Inputs!$B:$B,0),MATCH(I$5,F_Inputs!$B$2:$J$2,0)) -> 0.3647811507 | J36: =INDEX(F_Inputs!$B:$J,MATCH($D36,F_Inputs!$B:$B,0),MATCH(J$5,F_Inputs!$B$2:$J$2,0)) -> 0.3726375861 | K36: =INDEX(F_Inputs!$B:$J,MATCH($D36,F_Inputs!$B:$B,0),MATCH(K$5,F_Inputs!$B$2:$J$2,0)) -> 0.3809601239
B37: 24 | C37: Allocated wholesale charge at FD (Nominal price base) | D37: Calculation | E37: £m | F37: 3 | G37: =VLOOKUP($C30,'PR14 FD Calculations'!$D$460:$M$520,6,FALSE) -> 0.300586631 | H37: =VLOOKUP($C30,'PR14 FD Calculations'!$D$460:$M$520,7,FALSE) -> 0.3183351105 | I37: =VLOOKUP($C30,'PR14 FD Calculations'!$D$460:$M$520,8,FALSE) -> 0.3297116365 | J37: =VLOOKUP($C30,'PR14 FD Calculations'!$D$460:$M$520,9,FALSE) -> 0.3432684647 | K37: =VLOOKUP($C30,'PR14 FD Calculations'!$D$460:$M$520,10,FALSE) -> 0.361686738
B39: E | C39: Tariff Band 4
B40: =B37+1 -> 25 | C40: Tariff name | G40: =INDEX('Default tariff names PR14'!$B$2:$S$62,MATCH($C39,'Default tariff names PR14'!$A$2:$A$62,0),MATCH($M$8,'Default tariff names PR14'!$B$1:$X$1,0)) -> Northern area high user metered
B41: =B40+1 -> 26 | C41: Tariff categorisation | G41: =INDEX(Categorisation!$B$4:$S$63,MATCH($C39,Categorisation!$A$4:A$63,0),MATCH($M$8,Categorisation!$B$3:$S$3,0)) -> Water - metered / assessed
B42: 27 | C42: Number of customers | D42: CR604M01_R006 | E42: number | F42: 0 | G42: =INDEX(F_Inputs!$B:$J,MATCH($D42,F_Inputs!$B:$B,0),MATCH(G$5,F_Inputs!$B$2:$J$2,0)) -> 1 | H42: =INDEX(F_Inputs!$B:$J,MATCH($D42,F_Inputs!$B:$B,0),MATCH(H$5,F_Inputs!$B$2:$J$2,0)) -> 1 | I42: =INDEX(F_Inputs!$B:$J,MATCH($D42,F_Inputs!$B:$B,0),MATCH(I$5,F_Inputs!$B$2:$J$2,0)) -> 1 | J42: =INDEX(F_Inputs!$B:$J,MATCH($D42,F_Inputs!$B:$B,0),MATCH(J$5,F_Inputs!$B$2:$J$2,0)) -> 1 | K42: =INDEX(F_Inputs!$B:$J,MATCH($D42,F_Inputs!$B:$B,0),MATCH(K$5,F_Inputs!$B$2:$J$2,0)) -> 1
B43: 28 | C43: Net margin | D43: R5E00004_A001 | E43: % | F43: 2 | G43: =INDEX(F_Inputs!$B:$J,MATCH($D43,F_Inputs!$B:$B,0),MATCH(G$5,F_Inputs!$B$2:$J$2,0)) -> 0.035 | H43: =INDEX(F_Inputs!$B:$J,MATCH($D43,F_Inputs!$B:$B,0),MATCH(H$5,F_Inputs!$B$2:$J$2,0)) -> 0.03 | I43: =INDEX(F_Inputs!$B:$J,MATCH($D43,F_Inputs!$B:$B,0),MATCH(I$5,F_Inputs!$B$2:$J$2,0)) -> 0.025 | J43: =INDEX(F_Inputs!$B:$J,MATCH($D43,F_Inputs!$B:$B,0),MATCH(J$5,F_Inputs!$B$2:$J$2,0)) -> 0.02 | K43: =INDEX(F_Inputs!$B:$J,MATCH($D43,F_Inputs!$B:$B,0),MATCH(K$5,F_Inputs!$B$2:$J$2,0)) -> 0.02
B44: 29 | C44: Retail cost per customer | D44: CR604C01_R006 | E44: £ | F44: 2 | G44: =INDEX(F_Inputs!$B:$J,MATCH($D44,F_Inputs!$B:$B,0),MATCH(G$5,F_Inputs!$B$2:$J$2,0)) -> 613.5479166 | H44: =INDEX(F_Inputs!$B:$J,MATCH($D44,F_Inputs!$B:$B,0),MATCH(H$5,F_Inputs!$B$2:$J$2,0)) -> 610.1566148 | I44: =INDEX(F_Inputs!$B:$J,MATCH($D44,F_Inputs!$B:$B,0),MATCH(I$5,F_Inputs!$B$2:$J$2,0)) -> 607.1833622 | J44: =INDEX(F_Inputs!$B:$J,MATCH($D44,F_Inputs!$B:$B,0),MATCH(J$5,F_Inputs!$B$2:$J$2,0)) -> 603.3312885 | K44: =INDEX(F_Inputs!$B:$J,MATCH($D44,F_Inputs!$B:$B,0),MATCH(K$5,F_Inputs!$B$2:$J$2,0)) -> 599.2561258
B45: 30 | C45: Projected wholesale charge pre-FD (2012-13 price base) | D45: R4D04D04 | E45: £m | F45: 3 | G45: =INDEX(F_Inputs!$B:$J,MATCH($D45,F_Inputs!$B:$B,0),MATCH(G$5,F_Inputs!$B$2:$J$2,0)) -> 0.1004773958 | H45: =INDEX(F_Inputs!$B:$J,MATCH($D45,F_Inputs!$B:$B,0),MATCH(H$5,F_Inputs!$B$2:$J$2,0)) -> 0.1015689585 | I45: =INDEX(F_Inputs!$B:$J,MATCH($D45,F_Inputs!$B:$B,0),MATCH(I$5,F_Inputs!$B$2:$J$2,0)) -> 0.104772942 | J45: =INDEX(F_Inputs!$B:$J,MATCH($D45,F_Inputs!$B:$B,0),MATCH(J$5,F_Inputs!$B$2:$J$2,0)) -> 0.1076997896 | K45: =INDEX(F_Inputs!$B:$J,MATCH($D45,F_Inputs!$B:$B,0),MATCH(K$5,F_Inputs!$B$2:$J$2,0)) -> 0.1095946835
B46: 31 | C46: Allocated wholesale charge at FD (Nominal price base) | D46: Calculation | E46: £m | F46: 3 | G46: =VLOOKUP($C39,'PR14 FD Calculations'!$D$460:$M$520,6,FALSE) -> 0.08692580064 | H46: =VLOOKUP($C39,'PR14 FD Calculations'!$D$460:$M$520,7,FALSE) -> 0.09064366843 | I46: =VLOOKUP($C39,'PR14 FD Calculations'!$D$460:$M$520,8,FALSE) -> 0.09470022806 | J46: =VLOOKUP($C39,'PR14 FD Calculations'!$D$460:$M$520,9,FALSE) -> 0.09921152024 | K46: =VLOOKUP($C39,'PR14 FD Calculations'!$D$460:$M$520,10,FALSE) -> 0.1040501121
B48: F | C48: Tariff Band 5
B49: =B46+1 -> 32 | C49: Tariff name | G49: =INDEX('Default tariff names PR14'!$B$2:$S$62,MATCH($C48,'Default tariff names PR14'!$A$2:$A$62,0),MATCH($M$8,'Default tariff names PR14'!$B$1:$X$1,0)) -> Southern area unmeasured
B50: =B49+1 -> 33 | C50: Tariff categorisation | G50: =INDEX(Categorisation!$B$4:$S$63,MATCH($C48,Categorisation!$A$4:A$63,0),MATCH($M$8,Categorisation!$B$3:$S$3,0)) -> Water - unmeasured
B51: 34 | C51: Number of customers | D51: CR605M01_R006 | E51: number | F51: 0 | G51: =INDEX(F_Inputs!$B:$J,MATCH($D51,F_Inputs!$B:$B,0),MATCH(G$5,F_Inputs!$B$2:$J$2,0)) -> 989.9741519 | H51: =INDEX(F_Inputs!$B:$J,MATCH($D51,F_Inputs!$B:$B,0),MATCH(H$5,F_Inputs!$B$2:$J$2,0)) -> 989.9741519 | I51: =INDEX(F_Inputs!$B:$J,MATCH($D51,F_Inputs!$B:$B,0),MATCH(I$5,F_Inputs!$B$2:$J$2,0)) -> 989.9741519 | J51: =INDEX(F_Inputs!$B:$J,MATCH($D51,F_Inputs!$B:$B,0),MATCH(J$5,F_Inputs!$B$2:$J$2,0)) -> 989.9741519 | K51: =INDEX(F_Inputs!$B:$J,MATCH($D51,F_Inputs!$B:$B,0),MATCH(K$5,F_Inputs!$B$2:$J$2,0)) -> 989.9741519
B52: 35 | C52: Net margin | D52: R5E00005_A001 | E52: % | F52: 2 | G52: =INDEX(F_Inputs!$B:$J,MATCH($D52,F_Inputs!$B:$B,0),MATCH(G$5,F_Inputs!$B$2:$J$2,0)) -> 0.02270838559 | H52: =INDEX(F_Inputs!$B:$J,MATCH($D52,F_Inputs!$B:$B,0),MATCH(H$5,F_Inputs!$B$2:$J$2,0)) -> 0.02384688226 | I52: =INDEX(F_Inputs!$B:$J,MATCH($D52,F_Inputs!$B:$B,0),MATCH(I$5,F_Inputs!$B$2:$J$2,0)) -> 0.025 | J52: =INDEX(F_Inputs!$B:$J,MATCH($D52,F_Inputs!$B:$B,0),MATCH(J$5,F_Inputs!$B$2:$J$2,0)) -> 0.02612907758 | K52: =INDEX(F_Inputs!$B:$J,MATCH($D52,F_Inputs!$B:$B,0),MATCH(K$5,F_Inputs!$B$2:$J$2,0)) -> 0.02613673318
B53: 36 | C53: Retail cost per customer | D53: CR605C01_R006 | E53: £ | F53: 2 | G53: =INDEX(F_Inputs!$B:$J,MATCH($D53,F_Inputs!$B:$B,0),MATCH(G$5,F_Inputs!$B$2:$J$2,0)) -> 16.75503715 | H53: =INDEX(F_Inputs!$B:$J,MATCH($D53,F_Inputs!$B:$B,0),MATCH(H$5,F_Inputs!$B$2:$J$2,0)) -> 17.17357298 | I53: =INDEX(F_Inputs!$B:$J,MATCH($D53,F_Inputs!$B:$B,0),MATCH(I$5,F_Inputs!$B$2:$J$2,0)) -> 17.58552392 | J53: =INDEX(F_Inputs!$B:$J,MATCH($D53,F_Inputs!$B:$B,0),MATCH(J$5,F_Inputs!$B$2:$J$2,0)) -> 17.89364185 | K53: =INDEX(F_Inputs!$B:$J,MATCH($D53,F_Inputs!$B:$B,0),MATCH(K$5,F_Inputs!$B$2:$J$2,0)) -> 18.11274335
B54: 37 | C54: Projected wholesale charge pre-FD (2012-13 price base) | D54: R4D05D04 | E54: £m | F54: 3 | G54: =INDEX(F_Inputs!$B:$J,MATCH($D54,F_Inputs!$B:$B,0),MATCH(G$5,F_Inputs!$B$2:$J$2,0)) -> 0.1452695834 | H54: =INDEX(F_Inputs!$B:$J,MATCH($D54,F_Inputs!$B:$B,0),MATCH(H$5,F_Inputs!$B$2:$J$2,0)) -> 0.146847758 | I54: =INDEX(F_Inputs!$B:$J,MATCH($D54,F_Inputs!$B:$B,0),MATCH(I$5,F_Inputs!$B$2:$J$2,0)) -> 0.151480057 | J54: =INDEX(F_Inputs!$B:$J,MATCH($D54,F_Inputs!$B:$B,0),MATCH(J$5,F_Inputs!$B$2:$J$2,0)) -> 0.1557116747 | K54: =INDEX(F_Inputs!$B:$J,MATCH($D54,F_Inputs!$B:$B,0),MATCH(K$5,F_Inputs!$B$2:$J$2,0)) -> 0.1584513004
B55: 38 | C55: Allocated wholesale charge at FD (Nominal price base) | D55: Calculation | E55: £m | F55: 3 | G55: =VLOOKUP($C48,'PR14 FD Calculations'!$D$460:$M$520,6,FALSE) -> 0.1256767729 | H55: =VLOOKUP($C48,'PR14 FD Calculations'!$D$460:$M$520,7,FALSE) -> 0.1310520426 | I55: =VLOOKUP($C48,'PR14 FD Calculations'!$D$460:$M$520,8,FALSE) -> 0.1369169909 | J55: =VLOOKUP($C48,'PR14 FD Calculations'!$D$460:$M$520,9,FALSE) -> 0.1434393886 | K55: =VLOOKUP($C48,'PR14 FD Calculations'!$D$460:$M$520,10,FALSE) -> 0.1504349941
B57: G | C57: Tariff Band 6
B58: =B55+1 -> 39 | C58: Tariff name | G58: =INDEX('Default tariff names PR14'!$B$2:$S$62,MATCH($C57,'Default tariff names PR14'!$A$2:$A$62,0),MATCH($M$8,'Default tariff names PR14'!$B$1:$X$1,0)) -> Southern area standard user metered
B59: =B58+1 -> 40 | C59: Tariff categorisation | G59: =INDEX(Categorisation!$B$4:$S$63,MATCH($C57,Categorisation!$A$4:A$63,0),MATCH($M$8,Categorisation!$B$3:$S$3,0)) -> Water - metered / assessed
B60: 41 | C60: Number of customers | D60: CR606M01_R006 | E60: number | F60: 0 | G60: =INDEX(F_Inputs!$B:$J,MATCH($D60,F_Inputs!$B:$B,0),MATCH(G$5,F_Inputs!$B$2:$J$2,0)) -> 8604.784936 | H60: =INDEX(F_Inputs!$B:$J,MATCH($D60,F_Inputs!$B:$B,0),MATCH(H$5,F_Inputs!$B$2:$J$2,0)) -> 8604.784936 | I60: =INDEX(F_Inputs!$B:$J,MATCH($D60,F_Inputs!$B:$B,0),MATCH(I$5,F_Inputs!$B$2:$J$2,0)) -> 8604.784936 | J60: =INDEX(F_Inputs!$B:$J,MATCH($D60,F_Inputs!$B:$B,0),MATCH(J$5,F_Inputs!$B$2:$J$2,0)) -> 8604.784936 | K60: =INDEX(F_Inputs!$B:$J,MATCH($D60,F_Inputs!$B:$B,0),MATCH(K$5,F_Inputs!$B$2:$J$2,0)) -> 8604.784936
B61: 42 | C61: Net margin | D61: R5E00006_A001 | E61: % | F61: 2 | G61: =INDEX(F_Inputs!$B:$J,MATCH($D61,F_Inputs!$B:$B,0),MATCH(G$5,F_Inputs!$B$2:$J$2,0)) -> 0.02270838559 | H61: =INDEX(F_Inputs!$B:$J,MATCH($D61,F_Inputs!$B:$B,0),MATCH(H$5,F_Inputs!$B$2:$J$2,0)) -> 0.02384688226 | I61: =INDEX(F_Inputs!$B:$J,MATCH($D61,F_Inputs!$B:$B,0),MATCH(I$5,F_Inputs!$B$2:$J$2,0)) -> 0.025 | J61: =INDEX(F_Inputs!$B:$J,MATCH($D61,F_Inputs!$B:$B,0),MATCH(J$5,F_Inputs!$B$2:$J$2,0)) -> 0.02612907758 | K61: =INDEX(F_Inputs!$B:$J,MATCH($D61,F_Inputs!$B:$B,0),MATCH(K$5,F_Inputs!$B$2:$J$2,0)) -> 0.02613673318
B62: 43 | C62: Retail cost per customer | D62: CR606C01_R006 | E62: £ | F62: 2 | G62: =INDEX(F_Inputs!$B:$J,MATCH($D62,F_Inputs!$B:$B,0),MATCH(G$5,F_Inputs!$B$2:$J$2,0)) -> 31.72960609 | H62: =INDEX(F_Inputs!$B:$J,MATCH($D62,F_Inputs!$B:$B,0),MATCH(H$5,F_Inputs!$B$2:$J$2,0)) -> 32.05266524 | I62: =INDEX(F_Inputs!$B:$J,MATCH($D62,F_Inputs!$B:$B,0),MATCH(I$5,F_Inputs!$B$2:$J$2,0)) -> 32.37979012 | J62: =INDEX(F_Inputs!$B:$J,MATCH($D62,F_Inputs!$B:$B,0),MATCH(J$5,F_Inputs!$B$2:$J$2,0)) -> 32.58361764 | K62: =INDEX(F_Inputs!$B:$J,MATCH($D62,F_Inputs!$B:$B,0),MATCH(K$5,F_Inputs!$B$2:$J$2,0)) -> 32.69504536
B63: 44 | C63: Projected wholesale charge pre-FD (2012-13 price base) | D63: R4D06D04 | E63: £m | F63: 3 | G63: =INDEX(F_Inputs!$B:$J,MATCH($D63,F_Inputs!$B:$B,0),MATCH(G$5,F_Inputs!$B$2:$J$2,0)) -> 6.135486481 | H63: =INDEX(F_Inputs!$B:$J,MATCH($D63,F_Inputs!$B:$B,0),MATCH(H$5,F_Inputs!$B$2:$J$2,0)) -> 6.202363939 | I63: =INDEX(F_Inputs!$B:$J,MATCH($D63,F_Inputs!$B:$B,0),MATCH(I$5,F_Inputs!$B$2:$J$2,0)) -> 6.407335719 | J63: =INDEX(F_Inputs!$B:$J,MATCH($D63,F_Inputs!$B:$B,0),MATCH(J$5,F_Inputs!$B$2:$J$2,0)) -> 6.596452684 | K63: =INDEX(F_Inputs!$B:$J,MATCH($D63,F_Inputs!$B:$B,0),MATCH(K$5,F_Inputs!$B$2:$J$2,0)) -> 6.708708617
B64: 45 | C64: Allocated wholesale charge at FD (Nominal price base) | D64: Calculation | E64: £m | F64: 3 | G64: =VLOOKUP($C57,'PR14 FD Calculations'!$D$460:$M$520,6,FALSE) -> 5.307980672 | H64: =VLOOKUP($C57,'PR14 FD Calculations'!$D$460:$M$520,7,FALSE) -> 5.53520513 | I64: =VLOOKUP($C57,'PR14 FD Calculations'!$D$460:$M$520,8,FALSE) -> 5.791344048 | J64: =VLOOKUP($C57,'PR14 FD Calculations'!$D$460:$M$520,9,FALSE) -> 6.076558752 | K64: =VLOOKUP($C57,'PR14 FD Calculations'!$D$460:$M$520,10,FALSE) -> 6.36930425
B66: H | C66: Tariff Band 7
B67: =B64+1 -> 46 | C67: Tariff name | G67: =INDEX('Default tariff names PR14'!$B$2:$S$62,MATCH($C66,'Default tariff names PR14'!$A$2:$A$62,0),MATCH($M$8,'Default tariff names PR14'!$B$1:$X$1,0)) -> Southern area mid user metered
B68: =B67+1 -> 47 | C68: Tariff categorisation | G68: =INDEX(Categorisation!$B$4:$S$63,MATCH($C66,Categorisation!$A$4:A$63,0),MATCH($M$8,Categorisation!$B$3:$S$3,0)) -> Water - metered / assessed
B69: 48 | C69: Number of customers | D69: CR607M01_R006 | E69: number | F69: 0 | G69: =INDEX(F_Inputs!$B:$J,MATCH($D69,F_Inputs!$B:$B,0),MATCH(G$5,F_Inputs!$B$2:$J$2,0)) -> 34 | H69: =INDEX(F_Inputs!$B:$J,MATCH($D69,F_Inputs!$B:$B,0),MATCH(H$5,F_Inputs!$B$2:$J$2,0)) -> 34 | I69: =INDEX(F_Inputs!$B:$J,MATCH($D69,F_Inputs!$B:$B,0),MATCH(I$5,F_Inputs!$B$2:$J$2,0)) -> 34 | J69: =INDEX(F_Inputs!$B:$J,MATCH($D69,F_Inputs!$B:$B,0),MATCH(J$5,F_Inputs!$B$2:$J$2,0)) -> 34 | K69: =INDEX(F_Inputs!$B:$J,MATCH($D69,F_Inputs!$B:$B,0),MATCH(K$5,F_Inputs!$B$2:$J$2,0)) -> 34
B70: 49 | C70: Net margin | D70: R5E00007_A001 | E70: % | F70: 2 | G70: =INDEX(F_Inputs!$B:$J,MATCH($D70,F_Inputs!$B:$B,0),MATCH(G$5,F_Inputs!$B$2:$J$2,0)) -> 0.035 | H70: =INDEX(F_Inputs!$B:$J,MATCH($D70,F_Inputs!$B:$B,0),MATCH(H$5,F_Inputs!$B$2:$J$2,0)) -> 0.03 | I70: =INDEX(F_Inputs!$B:$J,MATCH($D70,F_Inputs!$B:$B,0),MATCH(I$5,F_Inputs!$B$2:$J$2,0)) -> 0.025 | J70: =INDEX(F_Inputs!$B:$J,MATCH($D70,F_Inputs!$B:$B,0),MATCH(J$5,F_Inputs!$B$2:$J$2,0)) -> 0.02 | K70: =INDEX(F_Inputs!$B:$J,MATCH($D70,F_Inputs!$B:$B,0),MATCH(K$5,F_Inputs!$B$2:$J$2,0)) -> 0.02
B71: 50 | C71: Retail cost per customer | D71: CR607C01_R006 | E71: £ | F71: 2 | G71: =INDEX(F_Inputs!$B:$J,MATCH($D71,F_Inputs!$B:$B,0),MATCH(G$5,F_Inputs!$B$2:$J$2,0)) -> 537.6788151 | H71: =INDEX(F_Inputs!$B:$J,MATCH($D71,F_Inputs!$B:$B,0),MATCH(H$5,F_Inputs!$B$2:$J$2,0)) -> 534.7430756 | I71: =INDEX(F_Inputs!$B:$J,MATCH($D71,F_Inputs!$B:$B,0),MATCH(I$5,F_Inputs!$B$2:$J$2,0)) -> 532.1724158 | J71: =INDEX(F_Inputs!$B:$J,MATCH($D71,F_Inputs!$B:$B,0),MATCH(J$5,F_Inputs!$B$2:$J$2,0)) -> 528.8259518 | K71: =INDEX(F_Inputs!$B:$J,MATCH($D71,F_Inputs!$B:$B,0),MATCH(K$5,F_Inputs!$B$2:$J$2,0)) -> 525.2781113
B72: 51 | C72: Projected wholesale charge pre-FD (2012-13 price base) | D72: R4D07D04 | E72: £m | F72: 3 | G72: =INDEX(F_Inputs!$B:$J,MATCH($D72,F_Inputs!$B:$B,0),MATCH(G$5,F_Inputs!$B$2:$J$2,0)) -> 0.7210767 | H72: =INDEX(F_Inputs!$B:$J,MATCH($D72,F_Inputs!$B:$B,0),MATCH(H$5,F_Inputs!$B$2:$J$2,0)) -> 0.7402871283 | I72: =INDEX(F_Inputs!$B:$J,MATCH($D72,F_Inputs!$B:$B,0),MATCH(I$5,F_Inputs!$B$2:$J$2,0)) -> 0.7570499235 | J72: =INDEX(F_Inputs!$B:$J,MATCH($D72,F_Inputs!$B:$B,0),MATCH(J$5,F_Inputs!$B$2:$J$2,0)) -> 0.773354806 | K72: =INDEX(F_Inputs!$B:$J,MATCH($D72,F_Inputs!$B:$B,0),MATCH(K$5,F_Inputs!$B$2:$J$2,0)) -> 0.7906270159
B73: 52 | C73: Allocated wholesale charge at FD (Nominal price base) | D73: Calculation | E73: £m | F73: 3 | G73: =VLOOKUP($C66,'PR14 FD Calculations'!$D$460:$M$520,6,FALSE) -> 0.6238235873 | H73: =VLOOKUP($C66,'PR14 FD Calculations'!$D$460:$M$520,7,FALSE) -> 0.6606579605 | I73: =VLOOKUP($C66,'PR14 FD Calculations'!$D$460:$M$520,8,FALSE) -> 0.6842682763 | J73: =VLOOKUP($C66,'PR14 FD Calculations'!$D$460:$M$520,9,FALSE) -> 0.7124034902 | K73: =VLOOKUP($C66,'PR14 FD Calculations'!$D$460:$M$520,10,FALSE) -> 0.7506279226
B75: I | C75: Tariff Band 8
B76: =B73+1 -> 53 | C76: Tariff name | G76: =INDEX('Default tariff names PR14'!$B$2:$S$62,MATCH($C75,'Default tariff names PR14'!$A$2:$A$62,0),MATCH($M$8,'Default tariff names PR14'!$B$1:$X$1,0)) -> Southern area high user metered
B77: =B76+1 -> 54 | C77: Tariff categorisation | G77: =INDEX(Categorisation!$B$4:$S$63,MATCH($C75,Categorisation!$A$4:A$63,0),MATCH($M$8,Categorisation!$B$3:$S$3,0)) -> Water - metered / assessed
B78: 55 | C78: Number of customers | D78: CR608M01_R006 | E78: number | F78: 0 | G78: =INDEX(F_Inputs!$B:$J,MATCH($D78,F_Inputs!$B:$B,0),MATCH(G$5,F_Inputs!$B$2:$J$2,0)) -> 3 | H78: =INDEX(F_Inputs!$B:$J,MATCH($D78,F_Inputs!$B:$B,0),MATCH(H$5,F_Inputs!$B$2:$J$2,0)) -> 3 | I78: =INDEX(F_Inputs!$B:$J,MATCH($D78,F_Inputs!$B:$B,0),MATCH(I$5,F_Inputs!$B$2:$J$2,0)) -> 3 | J78: =INDEX(F_Inputs!$B:$J,MATCH($D78,F_Inputs!$B:$B,0),MATCH(J$5,F_Inputs!$B$2:$J$2,0)) -> 3 | K78: =INDEX(F_Inputs!$B:$J,MATCH($D78,F_Inputs!$B:$B,0),MATCH(K$5,F_Inputs!$B$2:$J$2,0)) -> 3
B79: 56 | C79: Net margin | D79: R5E00008_A001 | E79: % | F79: 2 | G79: =INDEX(F_Inputs!$B:$J,MATCH($D79,F_Inputs!$B:$B,0),MATCH(G$5,F_Inputs!$B$2:$J$2,0)) -> 0.035 | H79: =INDEX(F_Inputs!$B:$J,MATCH($D79,F_Inputs!$B:$B,0),MATCH(H$5,F_Inputs!$B$2:$J$2,0)) -> 0.03 | I79: =INDEX(F_Inputs!$B:$J,MATCH($D79,F_Inputs!$B:$B,0),MATCH(I$5,F_Inputs!$B$2:$J$2,0)) -> 0.025 | J79: =INDEX(F_Inputs!$B:$J,MATCH($D79,F_Inputs!$B:$B,0),MATCH(J$5,F_Inputs!$B$2:$J$2,0)) -> 0.02 | K79: =INDEX(F_Inputs!$B:$J,MATCH($D79,F_Inputs!$B:$B,0),MATCH(K$5,F_Inputs!$B$2:$J$2,0)) -> 0.02
B80: 57 | C80: Retail cost per customer | D80: CR608C01_R006 | E80: £ | F80: 2 | G80: =INDEX(F_Inputs!$B:$J,MATCH($D80,F_Inputs!$B:$B,0),MATCH(G$5,F_Inputs!$B$2:$J$2,0)) -> 613.5479166 | H80: =INDEX(F_Inputs!$B:$J,MATCH($D80,F_Inputs!$B:$B,0),MATCH(H$5,F_Inputs!$B$2:$J$2,0)) -> 610.1566148 | I80: =INDEX(F_Inputs!$B:$J,MATCH($D80,F_Inputs!$B:$B,0),MATCH(I$5,F_Inputs!$B$2:$J$2,0)) -> 607.1833622 | J80: =INDEX(F_Inputs!$B:$J,MATCH($D80,F_Inputs!$B:$B,0),MATCH(J$5,F_Inputs!$B$2:$J$2,0)) -> 603.3312885 | K80: =INDEX(F_Inputs!$B:$J,MATCH($D80,F_Inputs!$B:$B,0),MATCH(K$5,F_Inputs!$B$2:$J$2,0)) -> 599.2561258
B81: 58 | C81: Projected wholesale charge pre-FD (2012-13 price base) | D81: R4D08D04 | E81: £m | F81: 3 | G81: =INDEX(F_Inputs!$B:$J,MATCH($D81,F_Inputs!$B:$B,0),MATCH(G$5,F_Inputs!$B$2:$J$2,0)) -> 0.3863866685 | H81: =INDEX(F_Inputs!$B:$J,MATCH($D81,F_Inputs!$B:$B,0),MATCH(H$5,F_Inputs!$B$2:$J$2,0)) -> 0.3905842823 | I81: =INDEX(F_Inputs!$B:$J,MATCH($D81,F_Inputs!$B:$B,0),MATCH(I$5,F_Inputs!$B$2:$J$2,0)) -> 0.4029052275 | J81: =INDEX(F_Inputs!$B:$J,MATCH($D81,F_Inputs!$B:$B,0),MATCH(J$5,F_Inputs!$B$2:$J$2,0)) -> 0.4141604445 | K81: =INDEX(F_Inputs!$B:$J,MATCH($D81,F_Inputs!$B:$B,0),MATCH(K$5,F_Inputs!$B$2:$J$2,0)) -> 0.421447275
B82: 59 | C82: Allocated wholesale charge at FD (Nominal price base) | D82: Calculation | E82: £m | F82: 3 | G82: =VLOOKUP($C75,'PR14 FD Calculations'!$D$460:$M$520,6,FALSE) -> 0.3342738957 | H82: =VLOOKUP($C75,'PR14 FD Calculations'!$D$460:$M$520,7,FALSE) -> 0.3485709875 | I82: =VLOOKUP($C75,'PR14 FD Calculations'!$D$460:$M$520,8,FALSE) -> 0.3641705216 | J82: =VLOOKUP($C75,'PR14 FD Calculations'!$D$460:$M$520,9,FALSE) -> 0.3815187335 | K82: =VLOOKUP($C75,'PR14 FD Calculations'!$D$460:$M$520,10,FALSE) -> 0.400125579
B84: J | C84: Tariff Band 9
B85: =B82+1 -> 60 | C85: Tariff name | G85: =INDEX('Default tariff names PR14'!$B$2:$S$62,MATCH($C84,'Default tariff names PR14'!$A$2:$A$62,0),MATCH($M$8,'Default tariff names PR14'!$B$1:$X$1,0)) -> Special agreement 1 metered
B86: =B85+1 -> 61 | C86: Tariff categorisation | G86: =INDEX(Categorisation!$B$4:$S$63,MATCH($C84,Categorisation!$A$4:A$63,0),MATCH($M$8,Categorisation!$B$3:$S$3,0)) -> Water - special agreement
B87: 62 | C87: Number of customers | D87: CR609M01_R006 | E87: number | F87: 0 | G87: =INDEX(F_Inputs!$B:$J,MATCH($D87,F_Inputs!$B:$B,0),MATCH(G$5,F_Inputs!$B$2:$J$2,0)) -> 1 | H87: =INDEX(F_Inputs!$B:$J,MATCH($D87,F_Inputs!$B:$B,0),MATCH(H$5,F_Inputs!$B$2:$J$2,0)) -> 1 | I87: =INDEX(F_Inputs!$B:$J,MATCH($D87,F_Inputs!$B:$B,0),MATCH(I$5,F_Inputs!$B$2:$J$2,0)) -> 1 | J87: =INDEX(F_Inputs!$B:$J,MATCH($D87,F_Inputs!$B:$B,0),MATCH(J$5,F_Inputs!$B$2:$J$2,0)) -> 1 | K87: =INDEX(F_Inputs!$B:$J,MATCH($D87,F_Inputs!$B:$B,0),MATCH(K$5,F_Inputs!$B$2:$J$2,0)) -> 1
B88: 63 | C88: Net margin | D88: R5E00009_A001 | E88: % | F88: 2 | G88: =INDEX(F_Inputs!$B:$J,MATCH($D88,F_Inputs!$B:$B,0),MATCH(G$5,F_Inputs!$B$2:$J$2,0)) -> 0.035 | H88: =INDEX(F_Inputs!$B:$J,MATCH($D88,F_Inputs!$B:$B,0),MATCH(H$5,F_Inputs!$B$2:$J$2,0)) -> 0.03 | I88: =INDEX(F_Inputs!$B:$J,MATCH($D88,F_Inputs!$B:$B,0),MATCH(I$5,F_Inputs!$B$2:$J$2,0)) -> 0.025 | J88: =INDEX(F_Inputs!$B:$J,MATCH($D88,F_Inputs!$B:$B,0),MATCH(J$5,F_Inputs!$B$2:$J$2,0)) -> 0.02 | K88: =INDEX(F_Inputs!$B:$J,MATCH($D88,F_Inputs!$B:$B,0),MATCH(K$5,F_Inputs!$B$2:$J$2,0)) -> 0.02
B89: 64 | C89: Retail cost per customer | D89: CR609C01_R006 | E89: £ | F89: 2 | G89: =INDEX(F_Inputs!$B:$J,MATCH($D89,F_Inputs!$B:$B,0),MATCH(G$5,F_Inputs!$B$2:$J$2,0)) -> 3609.601546 | H89: =INDEX(F_Inputs!$B:$J,MATCH($D89,F_Inputs!$B:$B,0),MATCH(H$5,F_Inputs!$B$2:$J$2,0)) -> 3587.08388 | I89: =INDEX(F_Inputs!$B:$J,MATCH($D89,F_Inputs!$B:$B,0),MATCH(I$5,F_Inputs!$B$2:$J$2,0)) -> 3567.116036 | J89: =INDEX(F_Inputs!$B:$J,MATCH($D89,F_Inputs!$B:$B,0),MATCH(J$5,F_Inputs!$B$2:$J$2,0)) -> 3542.374337 | K89: =INDEX(F_Inputs!$B:$J,MATCH($D89,F_Inputs!$B:$B,0),MATCH(K$5,F_Inputs!$B$2:$J$2,0)) -> 3516.740866
B90: 65 | C90: Projected wholesale charge pre-FD (2012-13 price base) | D90: R4D09D04 | E90: £m | F90: 3 | G90: =INDEX(F_Inputs!$B:$J,MATCH($D90,F_Inputs!$B:$B,0),MATCH(G$5,F_Inputs!$B$2:$J$2,0)) -> 0.5514021764 | H90: =INDEX(F_Inputs!$B:$J,MATCH($D90,F_Inputs!$B:$B,0),MATCH(H$5,F_Inputs!$B$2:$J$2,0)) -> 0.5689091955 | I90: =INDEX(F_Inputs!$B:$J,MATCH($D90,F_Inputs!$B:$B,0),MATCH(I$5,F_Inputs!$B$2:$J$2,0)) -> 0.5866876079 | J90: =INDEX(F_Inputs!$B:$J,MATCH($D90,F_Inputs!$B:$B,0),MATCH(J$5,F_Inputs!$B$2:$J$2,0)) -> 0.6054616114 | K90: =INDEX(F_Inputs!$B:$J,MATCH($D90,F_Inputs!$B:$B,0),MATCH(K$5,F_Inputs!$B$2:$J$2,0)) -> 0.6248363829
B91: 66 | C91: Allocated wholesale charge at FD (Nominal price base) | D91: Calculation | E91: £m | F91: 3 | G91: =VLOOKUP($C84,'PR14 FD Calculations'!$D$460:$M$520,6,FALSE) -> 0.4770334193 | H91: =VLOOKUP($C84,'PR14 FD Calculations'!$D$460:$M$520,7,FALSE) -> 0.5077143374 | I91: =VLOOKUP($C84,'PR14 FD Calculations'!$D$460:$M$520,8,FALSE) -> 0.5302843389 | J91: =VLOOKUP($C84,'PR14 FD Calculations'!$D$460:$M$520,9,FALSE) -> 0.557742658 | K91: =VLOOKUP($C84,'PR14 FD Calculations'!$D$460:$M$520,10,FALSE) -> 0.5932249046
B93: K | C93: Tariff Band 10
B94: =B91+1 -> 67 | C94: Tariff name | G94: =INDEX('Default tariff names PR14'!$B$2:$S$62,MATCH($C93,'Default tariff names PR14'!$A$2:$A$62,0),MATCH($M$8,'Default tariff names PR14'!$B$1:$X$1,0)) -> Special agreement 2 metered
B95: =B94+1 -> 68 | C95: Tariff categorisation | G95: =INDEX(Categorisation!$B$4:$S$63,MATCH($C93,Categorisation!$A$4:A$63,0),MATCH($M$8,Categorisation!$B$3:$S$3,0)) -> Water - special agreement
B96: 69 | C96: Number of customers | D96: CR610M01_R006 | E96: number | F96: 0 | G96: =INDEX(F_Inputs!$B:$J,MATCH($D96,F_Inputs!$B:$B,0),MATCH(G$5,F_Inputs!$B$2:$J$2,0)) -> 1 | H96: =INDEX(F_Inputs!$B:$J,MATCH($D96,F_Inputs!$B:$B,0),MATCH(H$5,F_Inputs!$B$2:$J$2,0)) -> 1 | I96: =INDEX(F_Inputs!$B:$J,MATCH($D96,F_Inputs!$B:$B,0),MATCH(I$5,F_Inputs!$B$2:$J$2,0)) -> 1 | J96: =INDEX(F_Inputs!$B:$J,MATCH($D96,F_Inputs!$B:$B,0),MATCH(J$5,F_Inputs!$B$2:$J$2,0)) -> 1 | K96: =INDEX(F_Inputs!$B:$J,MATCH($D96,F_Inputs!$B:$B,0),MATCH(K$5,F_Inputs!$B$2:$J$2,0)) -> 1
B97: 70 | C97: Net margin | D97: R5E00010_A001 | E97: % | F97: 2 | G97: =INDEX(F_Inputs!$B:$J,MATCH($D97,F_Inputs!$B:$B,0),MATCH(G$5,F_Inputs!$B$2:$J$2,0)) -> 0.02270838559 | H97: =INDEX(F_Inputs!$B:$J,MATCH($D97,F_Inputs!$B:$B,0),MATCH(H$5,F_Inputs!$B$2:$J$2,0)) -> 0.02384688226 | I97: =INDEX(F_Inputs!$B:$J,MATCH($D97,F_Inputs!$B:$B,0),MATCH(I$5,F_Inputs!$B$2:$J$2,0)) -> 0.025 | J97: =INDEX(F_Inputs!$B:$J,MATCH($D97,F_Inputs!$B:$B,0),MATCH(J$5,F_Inputs!$B$2:$J$2,0)) -> 0.02612907758 | K97: =INDEX(F_Inputs!$B:$J,MATCH($D97,F_Inputs!$B:$B,0),MATCH(K$5,F_Inputs!$B$2:$J$2,0)) -> 0.02613673318
B98: 71 | C98: Retail cost per customer | D98: CR610C01_R006 | E98: £ | F98: 2 | G98: =INDEX(F_Inputs!$B:$J,MATCH($D98,F_Inputs!$B:$B,0),MATCH(G$5,F_Inputs!$B$2:$J$2,0)) -> 50.23640858 | H98: =INDEX(F_Inputs!$B:$J,MATCH($D98,F_Inputs!$B:$B,0),MATCH(H$5,F_Inputs!$B$2:$J$2,0)) -> 50.44120428 | I98: =INDEX(F_Inputs!$B:$J,MATCH($D98,F_Inputs!$B:$B,0),MATCH(I$5,F_Inputs!$B$2:$J$2,0)) -> 50.66323798 | J98: =INDEX(F_Inputs!$B:$J,MATCH($D98,F_Inputs!$B:$B,0),MATCH(J$5,F_Inputs!$B$2:$J$2,0)) -> 50.73356625 | K98: =INDEX(F_Inputs!$B:$J,MATCH($D98,F_Inputs!$B:$B,0),MATCH(K$5,F_Inputs!$B$2:$J$2,0)) -> 50.71175202
B99: 72 | C99: Projected wholesale charge pre-FD (2012-13 price base) | D99: R4D10D04 | E99: £m | F99: 3 | G99: =INDEX(F_Inputs!$B:$J,MATCH($D99,F_Inputs!$B:$B,0),MATCH(G$5,F_Inputs!$B$2:$J$2,0)) -> 0.008132372147 | H99: =INDEX(F_Inputs!$B:$J,MATCH($D99,F_Inputs!$B:$B,0),MATCH(H$5,F_Inputs!$B$2:$J$2,0)) -> 0.008390574962 | I99: =INDEX(F_Inputs!$B:$J,MATCH($D99,F_Inputs!$B:$B,0),MATCH(I$5,F_Inputs!$B$2:$J$2,0)) -> 0.00865278043 | J99: =INDEX(F_Inputs!$B:$J,MATCH($D99,F_Inputs!$B:$B,0),MATCH(J$5,F_Inputs!$B$2:$J$2,0)) -> 0.008929669404 | K99: =INDEX(F_Inputs!$B:$J,MATCH($D99,F_Inputs!$B:$B,0),MATCH(K$5,F_Inputs!$B$2:$J$2,0)) -> 0.009215418825
B100: 73 | C100: Allocated wholesale charge at FD (Nominal price base) | D100: Calculation | E100: £m | F100: 3 | G100: =VLOOKUP($C93,'PR14 FD Calculations'!$D$460:$M$520,6,FALSE) -> 0.007035542219 | H100: =VLOOKUP($C93,'PR14 FD Calculations'!$D$460:$M$520,7,FALSE) -> 0.007488040694 | I100: =VLOOKUP($C93,'PR14 FD Calculations'!$D$460:$M$520,8,FALSE) -> 0.007820915063 | J100: =VLOOKUP($C93,'PR14 FD Calculations'!$D$460:$M$520,9,FALSE) -> 0.008225884937 | K100: =VLOOKUP($C93,'PR14 FD Calculations'!$D$460:$M$520,10,FALSE) -> 0.008749195953
B102: L | C102: Tariff Band 11
B103: =B100+1 -> 74 | C103: Tariff name | G103: =INDEX('Default tariff names PR14'!$B$2:$S$62,MATCH($C102,'Default tariff names PR14'!$A$2:$A$62,0),MATCH($M$8,'Default tariff names PR14'!$B$1:$X$1,0)) -> Not used at PR14
B104: =B103+1 -> 75 | C104: Tariff categorisation | G104: =INDEX(Categorisation!$B$4:$S$63,MATCH($C102,Categorisation!$A$4:A$63,0),MATCH($M$8,Categorisation!$B$3:$S$3,0)) -> Not applicable
B105: 76 | C105: Number of customers | D105: CR611M01_R006 | E105: number | F105: 0 | G105: =INDEX(F_Inputs!$B:$J,MATCH($D105,F_Inputs!$B:$B,0),MATCH(G$5,F_Inputs!$B$2:$J$2,0)) -> 0 | H105: =INDEX(F_Inputs!$B:$J,MATCH($D105,F_Inputs!$B:$B,0),MATCH(H$5,F_Inputs!$B$2:$J$2,0)) -> 0 | I105: =INDEX(F_Inputs!$B:$J,MATCH($D105,F_Inputs!$B:$B,0),MATCH(I$5,F_Inputs!$B$2:$J$2,0)) -> 0 | J105: =INDEX(F_Inputs!$B:$J,MATCH($D105,F_Inputs!$B:$B,0),MATCH(J$5,F_Inputs!$B$2:$J$2,0)) -> 0 | K105: =INDEX(F_Inputs!$B:$J,MATCH($D105,F_Inputs!$B:$B,0),MATCH(K$5,F_Inputs!$B$2:$J$2,0)) -> 0
B106: 77 | C106: Net margin | D106: R5E00011_A001 | E106: % | F106: 2 | G106: =INDEX(F_Inputs!$B:$J,MATCH($D106,F_Inputs!$B:$B,0),MATCH(G$5,F_Inputs!$B$2:$J$2,0)) -> 0 | H106: =INDEX(F_Inputs!$B:$J,MATCH($D106,F_Inputs!$B:$B,0),MATCH(H$5,F_Inputs!$B$2:$J$2,0)) -> 0 | I106: =INDEX(F_Inputs!$B:$J,MATCH($D106,F_Inputs!$B:$B,0),MATCH(I$5,F_Inputs!$B$2:$J$2,0)) -> 0 | J106: =INDEX(F_Inputs!$B:$J,MATCH($D106,F_Inputs!$B:$B,0),MATCH(J$5,F_Inputs!$B$2:$J$2,0)) -> 0 | K106: =INDEX(F_Inputs!$B:$J,MATCH($D106,F_Inputs!$B:$B,0),MATCH(K$5,F_Inputs!$B$2:$J$2,0)) -> 0
B107: 78 | C107: Retail cost per customer | D107: CR611C01_R006 | E107: £ | F107: 2 | G107: =INDEX(F_Inputs!$B:$J,MATCH($D107,F_Inputs!$B:$B,0),MATCH(G$5,F_Inputs!$B$2:$J$2,0)) -> 0 | H107: =INDEX(F_Inputs!$B:$J,MATCH($D107,F_Inputs!$B:$B,0),MATCH(H$5,F_Inputs!$B$2:$J$2,0)) -> 0 | I107: =INDEX(F_Inputs!$B:$J,MATCH($D107,F_Inputs!$B:$B,0),MATCH(I$5,F_Inputs!$B$2:$J$2,0)) -> 0 | J107: =INDEX(F_Inputs!$B:$J,MATCH($D107,F_Inputs!$B:$B,0),MATCH(J$5,F_Inputs!$B$2:$J$2,0)) -> 0 | K107: =INDEX(F_Inputs!$B:$J,MATCH($D107,F_Inputs!$B:$B,0),MATCH(K$5,F_Inputs!$B$2:$J$2,0)) -> 0
B108: 79 | C108: Projected wholesale charge pre-FD (2012-13 price base) | D108: R4D11D04 | E108: £m | F108: 3 | G108: =INDEX(F_Inputs!$B:$J,MATCH($D108,F_Inputs!$B:$B,0),MATCH(G$5,F_Inputs!$B$2:$J$2,0)) -> 0 | H108: =INDEX(F_Inputs!$B:$J,MATCH($D108,F_Inputs!$B:$B,0),MATCH(H$5,F_Inputs!$B$2:$J$2,0)) -> 0 | I108: =INDEX(F_Inputs!$B:$J,MATCH($D108,F_Inputs!$B:$B,0),MATCH(I$5,F_Inputs!$B$2:$J$2,0)) -> 0 | J108: =INDEX(F_Inputs!$B:$J,MATCH($D108,F_Inputs!$B:$B,0),MATCH(J$5,F_Inputs!$B$2:$J$2,0)) -> 0 | K108: =INDEX(F_Inputs!$B:$J,MATCH($D108,F_Inputs!$B:$B,0),MATCH(K$5,F_Inputs!$B$2:$J$2,0)) -> 0
B109: 80 | C109: Allocated wholesale charge at FD (Nominal price base) | D109: Calculation | E109: £m | F109: 3 | G109: =VLOOKUP($C102,'PR14 FD Calculations'!$D$460:$M$520,6,FALSE) -> 0 | H109: =VLOOKUP($C102,'PR14 FD Calculations'!$D$460:$M$520,7,FALSE) -> 0 | I109: =VLOOKUP($C102,'PR14 FD Calculations'!$D$460:$M$520,8,FALSE) -> 0 | J109: =VLOOKUP($C102,'PR14 FD Calculations'!$D$460:$M$520,9,FALSE) -> 0 | K109: =VLOOKUP($C102,'PR14 FD Calculations'!$D$460:$M$520,10,FALSE) -> 0
B111: M | C111: Tariff Band 12
B112: =B109+1 -> 81 | C112: Tariff name | G112: =INDEX('Default tariff names PR14'!$B$2:$S$62,MATCH($C111,'Default tariff names PR14'!$A$2:$A$62,0),MATCH($M$8,'Default tariff names PR14'!$B$1:$X$1,0)) -> Not used at PR14
B113: =B112+1 -> 82 | C113: Tariff categorisation | G113: =INDEX(Categorisation!$B$4:$S$63,MATCH($C111,Categorisation!$A$4:A$63,0),MATCH($M$8,Categorisation!$B$3:$S$3,0)) -> Not applicable
B114: 83 | C114: Number of customers | D114: CR612M01_R006 | E114: number | F114: 0 | G114: =INDEX(F_Inputs!$B:$J,MATCH($D114,F_Inputs!$B:$B,0),MATCH(G$5,F_Inputs!$B$2:$J$2,0)) -> 0 | H114: =INDEX(F_Inputs!$B:$J,MATCH($D114,F_Inputs!$B:$B,0),MATCH(H$5,F_Inputs!$B$2:$J$2,0)) -> 0 | I114: =INDEX(F_Inputs!$B:$J,MATCH($D114,F_Inputs!$B:$B,0),MATCH(I$5,F_Inputs!$B$2:$J$2,0)) -> 0 | J114: =INDEX(F_Inputs!$B:$J,MATCH($D114,F_Inputs!$B:$B,0),MATCH(J$5,F_Inputs!$B$2:$J$2,0)) -> 0 | K114: =INDEX(F_Inputs!$B:$J,MATCH($D114,F_Inputs!$B:$B,0),MATCH(K$5,F_Inputs!$B$2:$J$2,0)) -> 0
B115: 84 | C115: Net margin | D115: R5E00012_A001 | E115: % | F115: 2 | G115: =INDEX(F_Inputs!$B:$J,MATCH($D115,F_Inputs!$B:$B,0),MATCH(G$5,F_Inputs!$B$2:$J$2,0)) -> 0 | H115: =INDEX(F_Inputs!$B:$J,MATCH($D115,F_Inputs!$B:$B,0),MATCH(H$5,F_Inputs!$B$2:$J$2,0)) -> 0 | I115: =INDEX(F_Inputs!$B:$J,MATCH($D115,F_Inputs!$B:$B,0),MATCH(I$5,F_Inputs!$B$2:$J$2,0)) -> 0 | J115: =INDEX(F_Inputs!$B:$J,MATCH($D115,F_Inputs!$B:$B,0),MATCH(J$5,F_Inputs!$B$2:$J$2,0)) -> 0 | K115: =INDEX(F_Inputs!$B:$J,MATCH($D115,F_Inputs!$B:$B,0),MATCH(K$5,F_Inputs!$B$2:$J$2,0)) -> 0
B116: 85 | C116: Retail cost per customer | D116: CR612C01_R006 | E116: £ | F116: 2 | G116: =INDEX(F_Inputs!$B:$J,MATCH($D116,F_Inputs!$B:$B,0),MATCH(G$5,F_Inputs!$B$2:$J$2,0)) -> 0 | H116: =INDEX(F_Inputs!$B:$J,MATCH($D116,F_Inputs!$B:$B,0),MATCH(H$5,F_Inputs!$B$2:$J$2,0)) -> 0 | I116: =INDEX(F_Inputs!$B:$J,MATCH($D116,F_Inputs!$B:$B,0),MATCH(I$5,F_Inputs!$B$2:$J$2,0)) -> 0 | J116: =INDEX(F_Inputs!$B:$J,MATCH($D116,F_Inputs!$B:$B,0),MATCH(J$5,F_Inputs!$B$2:$J$2,0)) -> 0 | K116: =INDEX(F_Inputs!$B:$J,MATCH($D116,F_Inputs!$B:$B,0),MATCH(K$5,F_Inputs!$B$2:$J$2,0)) -> 0
B117: 86 | C117: Projected wholesale charge pre-FD (2012-13 price base) | D117: R4D12D04 | E117: £m | F117: 3 | G117: =INDEX(F_Inputs!$B:$J,MATCH($D117,F_Inputs!$B:$B,0),MATCH(G$5,F_Inputs!$B$2:$J$2,0)) -> 0 | H117: =INDEX(F_Inputs!$B:$J,MATCH($D117,F_Inputs!$B:$B,0),MATCH(H$5,F_Inputs!$B$2:$J$2,0)) -> 0 | I117: =INDEX(F_Inputs!$B:$J,MATCH($D117,F_Inputs!$B:$B,0),MATCH(I$5,F_Inputs!$B$2:$J$2,0)) -> 0 | J117: =INDEX(F_Inputs!$B:$J,MATCH($D117,F_Inputs!$B:$B,0),MATCH(J$5,F_Inputs!$B$2:$J$2,0)) -> 0 | K117: =INDEX(F_Inputs!$B:$J,MATCH($D117,F_Inputs!$B:$B,0),MATCH(K$5,F_Inputs!$B$2:$J$2,0)) -> 0
B118: 87 | C118: Allocated wholesale charge at FD (Nominal price base) | D118: Calculation | E118: £m | F118: 3 | G118: =VLOOKUP($C111,'PR14 FD Calculations'!$D$460:$M$520,6,FALSE) -> 0 | H118: =VLOOKUP($C111,'PR14 FD Calculations'!$D$460:$M$520,7,FALSE) -> 0 | I118: =VLOOKUP($C111,'PR14 FD Calculations'!$D$460:$M$520,8,FALSE) -> 0 | J118: =VLOOKUP($C111,'PR14 FD Calculations'!$D$460:$M$520,9,FALSE) -> 0 | K118: =VLOOKUP($C111,'PR14 FD Calculations'!$D$460:$M$520,10,FALSE) -> 0
B120: N | C120: Tariff Band 13
B121: =B118+1 -> 88 | C121: Tariff name | G121: =INDEX('Default tariff names PR14'!$B$2:$S$62,MATCH($C120,'Default tariff names PR14'!$A$2:$A$62,0),MATCH($M$8,'Default tariff names PR14'!$B$1:$X$1,0)) -> Not used at PR14
B122: =B121+1 -> 89 | C122: Tariff categorisation | G122: =INDEX(Categorisation!$B$4:$S$63,MATCH($C120,Categorisation!$A$4:A$63,0),MATCH($M$8,Categorisation!$B$3:$S$3,0)) -> Not applicable
B123: 90 | C123: Number of customers | D123: CR613M01_R006 | E123: number | F123: 0 | G123: =INDEX(F_Inputs!$B:$J,MATCH($D123,F_Inputs!$B:$B,0),MATCH(G$5,F_Inputs!$B$2:$J$2,0)) -> 0 | H123: =INDEX(F_Inputs!$B:$J,MATCH($D123,F_Inputs!$B:$B,0),MATCH(H$5,F_Inputs!$B$2:$J$2,0)) -> 0 | I123: =INDEX(F_Inputs!$B:$J,MATCH($D123,F_Inputs!$B:$B,0),MATCH(I$5,F_Inputs!$B$2:$J$2,0)) -> 0 | J123: =INDEX(F_Inputs!$B:$J,MATCH($D123,F_Inputs!$B:$B,0),MATCH(J$5,F_Inputs!$B$2:$J$2,0)) -> 0 | K123: =INDEX(F_Inputs!$B:$J,MATCH($D123,F_Inputs!$B:$B,0),MATCH(K$5,F_Inputs!$B$2:$J$2,0)) -> 0
B124: 91 | C124: Net margin | D124: R5E00013_A001 | E124: % | F124: 2 | G124: =INDEX(F_Inputs!$B:$J,MATCH($D124,F_Inputs!$B:$B,0),MATCH(G$5,F_Inputs!$B$2:$J$2,0)) -> 0 | H124: =INDEX(F_Inputs!$B:$J,MATCH($D124,F_Inputs!$B:$B,0),MATCH(H$5,F_Inputs!$B$2:$J$2,0)) -> 0 | I124: =INDEX(F_Inputs!$B:$J,MATCH($D124,F_Inputs!$B:$B,0),MATCH(I$5,F_Inputs!$B$2:$J$2,0)) -> 0 | J124: =INDEX(F_Inputs!$B:$J,MATCH($D124,F_Inputs!$B:$B,0),MATCH(J$5,F_Inputs!$B$2:$J$2,0)) -> 0 | K124: =INDEX(F_Inputs!$B:$J,MATCH($D124,F_Inputs!$B:$B,0),MATCH(K$5,F_Inputs!$B$2:$J$2,0)) -> 0
B125: 92 | C125: Retail cost per customer | D125: CR613C01_R006 | E125: £ | F125: 2 | G125: =INDEX(F_Inputs!$B:$J,MATCH($D125,F_Inputs!$B:$B,0),MATCH(G$5,F_Inputs!$B$2:$J$2,0)) -> 0 | H125: =INDEX(F_Inputs!$B:$J,MATCH($D125,F_Inputs!$B:$B,0),MATCH(H$5,F_Inputs!$B$2:$J$2,0)) -> 0 | I125: =INDEX(F_Inputs!$B:$J,MATCH($D125,F_Inputs!$B:$B,0),MATCH(I$5,F_Inputs!$B$2:$J$2,0)) -> 0 | J125: =INDEX(F_Inputs!$B:$J,MATCH($D125,F_Inputs!$B:$B,0),MATCH(J$5,F_Inputs!$B$2:$J$2,0)) -> 0 | K125: =INDEX(F_Inputs!$B:$J,MATCH($D125,F_Inputs!$B:$B,0),MATCH(K$5,F_Inputs!$B$2:$J$2,0)) -> 0
B126: 93 | C126: Projected wholesale charge pre-FD (2012-13 price base) | D126: R4D13D04 | E126: £m | F126: 3 | G126: =INDEX(F_Inputs!$B:$J,MATCH($D126,F_Inputs!$B:$B,0),MATCH(G$5,F_Inputs!$B$2:$J$2,0)) -> 0 | H126: =INDEX(F_Inputs!$B:$J,MATCH($D126,F_Inputs!$B:$B,0),MATCH(H$5,F_Inputs!$B$2:$J$2,0)) -> 0 | I126: =INDEX(F_Inputs!$B:$J,MATCH($D126,F_Inputs!$B:$B,0),MATCH(I$5,F_Inputs!$B$2:$J$2,0)) -> 0 | J126: =INDEX(F_Inputs!$B:$J,MATCH($D126,F_Inputs!$B:$B,0),MATCH(J$5,F_Inputs!$B$2:$J$2,0)) -> 0 | K126: =INDEX(F_Inputs!$B:$J,MATCH($D126,F_Inputs!$B:$B,0),MATCH(K$5,F_Inputs!$B$2:$J$2,0)) -> 0
B127: 94 | C127: Allocated wholesale charge at FD (Nominal price base) | D127: Calculation | E127: £m | F127: 3 | G127: =VLOOKUP($C120,'PR14 FD Calculations'!$D$460:$M$520,6,FALSE) -> 0 | H127: =VLOOKUP($C120,'PR14 FD Calculations'!$D$460:$M$520,7,FALSE) -> 0 | I127: =VLOOKUP($C120,'PR14 FD Calculations'!$D$460:$M$520,8,FALSE) -> 0 | J127: =VLOOKUP($C120,'PR14 FD Calculations'!$D$460:$M$520,9,FALSE) -> 0 | K127: =VLOOKUP($C120,'PR14 FD Calculations'!$D$460:$M$520,10,FALSE) -> 0
B129: O | C129: Tariff Band 14
B130: =B127+1 -> 95 | C130: Tariff name | G130: =INDEX('Default tariff names PR14'!$B$2:$S$62,MATCH($C129,'Default tariff names PR14'!$A$2:$A$62,0),MATCH($M$8,'Default tariff names PR14'!$B$1:$X$1,0)) -> Not used at PR14
B131: =B130+1 -> 96 | C131: Tariff categorisation | G131: =INDEX(Categorisation!$B$4:$S$63,MATCH($C129,Categorisation!$A$4:A$63,0),MATCH($M$8,Categorisation!$B$3:$S$3,0)) -> Not applicable
B132: 97 | C132: Number of customers | D132: CR614M01_R006 | E132: number | F132: 0 | G132: =INDEX(F_Inputs!$B:$J,MATCH($D132,F_Inputs!$B:$B,0),MATCH(G$5,F_Inputs!$B$2:$J$2,0)) -> 0 | H132: =INDEX(F_Inputs!$B:$J,MATCH($D132,F_Inputs!$B:$B,0),MATCH(H$5,F_Inputs!$B$2:$J$2,0)) -> 0 | I132: =INDEX(F_Inputs!$B:$J,MATCH($D132,F_Inputs!$B:$B,0),MATCH(I$5,F_Inputs!$B$2:$J$2,0)) -> 0 | J132: =INDEX(F_Inputs!$B:$J,MATCH($D132,F_Inputs!$B:$B,0),MATCH(J$5,F_Inputs!$B$2:$J$2,0)) -> 0 | K132: =INDEX(F_Inputs!$B:$J,MATCH($D132,F_Inputs!$B:$B,0),MATCH(K$5,F_Inputs!$B$2:$J$2,0)) -> 0
B133: 98 | C133: Net margin | D133: R5E00014_A001 | E133: % | F133: 2 | G133: =INDEX(F_Inputs!$B:$J,MATCH($D133,F_Inputs!$B:$B,0),MATCH(G$5,F_Inputs!$B$2:$J$2,0)) -> 0 | H133: =INDEX(F_Inputs!$B:$J,MATCH($D133,F_Inputs!$B:$B,0),MATCH(H$5,F_Inputs!$B$2:$J$2,0)) -> 0 | I133: =INDEX(F_Inputs!$B:$J,MATCH($D133,F_Inputs!$B:$B,0),MATCH(I$5,F_Inputs!$B$2:$J$2,0)) -> 0 | J133: =INDEX(F_Inputs!$B:$J,MATCH($D133,F_Inputs!$B:$B,0),MATCH(J$5,F_Inputs!$B$2:$J$2,0)) -> 0 | K133: =INDEX(F_Inputs!$B:$J,MATCH($D133,F_Inputs!$B:$B,0),MATCH(K$5,F_Inputs!$B$2:$J$2,0)) -> 0
B134: 99 | C134: Retail cost per customer | D134: CR614C01_R006 | E134: £ | F134: 2 | G134: =INDEX(F_Inputs!$B:$J,MATCH($D134,F_Inputs!$B:$B,0),MATCH(G$5,F_Inputs!$B$2:$J$2,0)) -> 0 | H134: =INDEX(F_Inputs!$B:$J,MATCH($D134,F_Inputs!$B:$B,0),MATCH(H$5,F_Inputs!$B$2:$J$2,0)) -> 0 | I134: =INDEX(F_Inputs!$B:$J,MATCH($D134,F_Inputs!$B:$B,0),MATCH(I$5,F_Inputs!$B$2:$J$2,0)) -> 0 | J134: =INDEX(F_Inputs!$B:$J,MATCH($D134,F_Inputs!$B:$B,0),MATCH(J$5,F_Inputs!$B$2:$J$2,0)) -> 0 | K134: =INDEX(F_Inputs!$B:$J,MATCH($D134,F_Inputs!$B:$B,0),MATCH(K$5,F_Inputs!$B$2:$J$2,0)) -> 0
B135: 100 | C135: Projected wholesale charge pre-FD (2012-13 price base) | D135: R4D14D04 | E135: £m | F135: 3 | G135: =INDEX(F_Inputs!$B:$J,MATCH($D135,F_Inputs!$B:$B,0),MATCH(G$5,F_Inputs!$B$2:$J$2,0)) -> 0 | H135: =INDEX(F_Inputs!$B:$J,MATCH($D135,F_Inputs!$B:$B,0),MATCH(H$5,F_Inputs!$B$2:$J$2,0)) -> 0 | I135: =INDEX(F_Inputs!$B:$J,MATCH($D135,F_Inputs!$B:$B,0),MATCH(I$5,F_Inputs!$B$2:$J$2,0)) -> 0 | J135: =INDEX(F_Inputs!$B:$J,MATCH($D135,F_Inputs!$B:$B,0),MATCH(J$5,F_Inputs!$B$2:$J$2,0)) -> 0 | K135: =INDEX(F_Inputs!$B:$J,MATCH($D135,F_Inputs!$B:$B,0),MATCH(K$5,F_Inputs!$B$2:$J$2,0)) -> 0
B136: 101 | C136: Allocated wholesale charge at FD (Nominal price base) | D136: Calculation | E136: £m | F136: 3 | G136: =VLOOKUP($C129,'PR14 FD Calculations'!$D$460:$M$520,6,FALSE) -> 0 | H136: =VLOOKUP($C129,'PR14 FD Calculations'!$D$460:$M$520,7,FALSE) -> 0 | I136: =VLOOKUP($C129,'PR14 FD Calculations'!$D$460:$M$520,8,FALSE) -> 0 | J136: =VLOOKUP($C129,'PR14 FD Calculations'!$D$460:$M$520,9,FALSE) -> 0 | K136: =VLOOKUP($C129,'PR14 FD Calculations'!$D$460:$M$520,10,FALSE) -> 0
B138: P | C138: Tariff Band 15
B139: =B136+1 -> 102 | C139: Tariff name | G139: =INDEX('Default tariff names PR14'!$B$2:$S$62,MATCH($C138,'Default tariff names PR14'!$A$2:$A$62,0),MATCH($M$8,'Default tariff names PR14'!$B$1:$X$1,0)) -> Not used at PR14
B140: =B139+1 -> 103 | C140: Tariff categorisation | G140: =INDEX(Categorisation!$B$4:$S$63,MATCH($C138,Categorisation!$A$4:A$63,0),MATCH($M$8,Categorisation!$B$3:$S$3,0)) -> Not applicable
B141: 104 | C141: Number of customers | D141: CR615M01_R006 | E141: number | F141: 0 | G141: =INDEX(F_Inputs!$B:$J,MATCH($D141,F_Inputs!$B:$B,0),MATCH(G$5,F_Inputs!$B$2:$J$2,0)) -> 0 | H141: =INDEX(F_Inputs!$B:$J,MATCH($D141,F_Inputs!$B:$B,0),MATCH(H$5,F_Inputs!$B$2:$J$2,0)) -> 0 | I141: =INDEX(F_Inputs!$B:$J,MATCH($D141,F_Inputs!$B:$B,0),MATCH(I$5,F_Inputs!$B$2:$J$2,0)) -> 0 | J141: =INDEX(F_Inputs!$B:$J,MATCH($D141,F_Inputs!$B:$B,0),MATCH(J$5,F_Inputs!$B$2:$J$2,0)) -> 0 | K141: =INDEX(F_Inputs!$B:$J,MATCH($D141,F_Inputs!$B:$B,0),MATCH(K$5,F_Inputs!$B$2:$J$2,0)) -> 0
B142: 105 | C142: Net margin | D142: R5E00015_A001 | E142: % | F142: 2 | G142: =INDEX(F_Inputs!$B:$J,MATCH($D142,F_Inputs!$B:$B,0),MATCH(G$5,F_Inputs!$B$2:$J$2,0)) -> 0 | H142: =INDEX(F_Inputs!$B:$J,MATCH($D142,F_Inputs!$B:$B,0),MATCH(H$5,F_Inputs!$B$2:$J$2,0)) -> 0 | I142: =INDEX(F_Inputs!$B:$J,MATCH($D142,F_Inputs!$B:$B,0),MATCH(I$5,F_Inputs!$B$2:$J$2,0)) -> 0 | J142: =INDEX(F_Inputs!$B:$J,MATCH($D142,F_Inputs!$B:$B,0),MATCH(J$5,F_Inputs!$B$2:$J$2,0)) -> 0 | K142: =INDEX(F_Inputs!$B:$J,MATCH($D142,F_Inputs!$B:$B,0),MATCH(K$5,F_Inputs!$B$2:$J$2,0)) -> 0
B143: 106 | C143: Retail cost per customer | D143: CR615C01_R006 | E143: £ | F143: 2 | G143: =INDEX(F_Inputs!$B:$J,MATCH($D143,F_Inputs!$B:$B,0),MATCH(G$5,F_Inputs!$B$2:$J$2,0)) -> 0 | H143: =INDEX(F_Inputs!$B:$J,MATCH($D143,F_Inputs!$B:$B,0),MATCH(H$5,F_Inputs!$B$2:$J$2,0)) -> 0 | I143: =INDEX(F_Inputs!$B:$J,MATCH($D143,F_Inputs!$B:$B,0),MATCH(I$5,F_Inputs!$B$2:$J$2,0)) -> 0 | J143: =INDEX(F_Inputs!$B:$J,MATCH($D143,F_Inputs!$B:$B,0),MATCH(J$5,F_Inputs!$B$2:$J$2,0)) -> 0 | K143: =INDEX(F_Inputs!$B:$J,MATCH($D143,F_Inputs!$B:$B,0),MATCH(K$5,F_Inputs!$B$2:$J$2,0)) -> 0
B144: 107 | C144: Projected wholesale charge pre-FD (2012-13 price base) | D144: R4D15D04 | E144: £m | F144: 3 | G144: =INDEX(F_Inputs!$B:$J,MATCH($D144,F_Inputs!$B:$B,0),MATCH(G$5,F_Inputs!$B$2:$J$2,0)) -> 0 | H144: =INDEX(F_Inputs!$B:$J,MATCH($D144,F_Inputs!$B:$B,0),MATCH(H$5,F_Inputs!$B$2:$J$2,0)) -> 0 | I144: =INDEX(F_Inputs!$B:$J,MATCH($D144,F_Inputs!$B:$B,0),MATCH(I$5,F_Inputs!$B$2:$J$2,0)) -> 0 | J144: =INDEX(F_Inputs!$B:$J,MATCH($D144,F_Inputs!$B:$B,0),MATCH(J$5,F_Inputs!$B$2:$J$2,0)) -> 0 | K144: =INDEX(F_Inputs!$B:$J,MATCH($D144,F_Inputs!$B:$B,0),MATCH(K$5,F_Inputs!$B$2:$J$2,0)) -> 0
B145: 108 | C145: Allocated wholesale charge at FD (Nominal price base) | D145: Calculation | E145: £m | F145: 3 | G145: =VLOOKUP($C138,'PR14 FD Calculations'!$D$460:$M$520,6,FALSE) -> 0 | H145: =VLOOKUP($C138,'PR14 FD Calculations'!$D$460:$M$520,7,FALSE) -> 0 | I145: =VLOOKUP($C138,'PR14 FD Calculations'!$D$460:$M$520,8,FALSE) -> 0 | J145: =VLOOKUP($C138,'PR14 FD Calculations'!$D$460:$M$520,9,FALSE) -> 0 | K145: =VLOOKUP($C138,'PR14 FD Calculations'!$D$460:$M$520,10,FALSE) -> 0
B147: Q | C147: Tariff Band 16
B148: =B145+1 -> 109 | C148: Tariff name | G148: =INDEX('Default tariff names PR14'!$B$2:$S$62,MATCH($C147,'Default tariff names PR14'!$A$2:$A$62,0),MATCH($M$8,'Default tariff names PR14'!$B$1:$X$1,0)) -> Not used at PR14
B149: =B148+1 -> 110 | C149: Tariff categorisation | G149: =INDEX(Categorisation!$B$4:$S$63,MATCH($C147,Categorisation!$A$4:A$63,0),MATCH($M$8,Categorisation!$B$3:$S$3,0)) -> Not applicable
B150: 111 | C150: Number of customers | D150: CR616M01_R006 | E150: number | F150: 0 | G150: =INDEX(F_Inputs!$B:$J,MATCH($D150,F_Inputs!$B:$B,0),MATCH(G$5,F_Inputs!$B$2:$J$2,0)) -> 0 | H150: =INDEX(F_Inputs!$B:$J,MATCH($D150,F_Inputs!$B:$B,0),MATCH(H$5,F_Inputs!$B$2:$J$2,0)) -> 0 | I150: =INDEX(F_Inputs!$B:$J,MATCH($D150,F_Inputs!$B:$B,0),MATCH(I$5,F_Inputs!$B$2:$J$2,0)) -> 0 | J150: =INDEX(F_Inputs!$B:$J,MATCH($D150,F_Inputs!$B:$B,0),MATCH(J$5,F_Inputs!$B$2:$J$2,0)) -> 0 | K150: =INDEX(F_Inputs!$B:$J,MATCH($D150,F_Inputs!$B:$B,0),MATCH(K$5,F_Inputs!$B$2:$J$2,0)) -> 0
B151: 112 | C151: Net margin | D151: R5E00016_A001 | E151: % | F151: 2 | G151: =INDEX(F_Inputs!$B:$J,MATCH($D151,F_Inputs!$B:$B,0),MATCH(G$5,F_Inputs!$B$2:$J$2,0)) -> 0 | H151: =INDEX(F_Inputs!$B:$J,MATCH($D151,F_Inputs!$B:$B,0),MATCH(H$5,F_Inputs!$B$2:$J$2,0)) -> 0 | I151: =INDEX(F_Inputs!$B:$J,MATCH($D151,F_Inputs!$B:$B,0),MATCH(I$5,F_Inputs!$B$2:$J$2,0)) -> 0 | J151: =INDEX(F_Inputs!$B:$J,MATCH($D151,F_Inputs!$B:$B,0),MATCH(J$5,F_Inputs!$B$2:$J$2,0)) -> 0 | K151: =INDEX(F_Inputs!$B:$J,MATCH($D151,F_Inputs!$B:$B,0),MATCH(K$5,F_Inputs!$B$2:$J$2,0)) -> 0
B152: 113 | C152: Retail cost per customer | D152: CR616C01_R006 | E152: £ | F152: 2 | G152: =INDEX(F_Inputs!$B:$J,MATCH($D152,F_Inputs!$B:$B,0),MATCH(G$5,F_Inputs!$B$2:$J$2,0)) -> 0 | H152: =INDEX(F_Inputs!$B:$J,MATCH($D152,F_Inputs!$B:$B,0),MATCH(H$5,F_Inputs!$B$2:$J$2,0)) -> 0 | I152: =INDEX(F_Inputs!$B:$J,MATCH($D152,F_Inputs!$B:$B,0),MATCH(I$5,F_Inputs!$B$2:$J$2,0)) -> 0 | J152: =INDEX(F_Inputs!$B:$J,MATCH($D152,F_Inputs!$B:$B,0),MATCH(J$5,F_Inputs!$B$2:$J$2,0)) -> 0 | K152: =INDEX(F_Inputs!$B:$J,MATCH($D152,F_Inputs!$B:$B,0),MATCH(K$5,F_Inputs!$B$2:$J$2,0)) -> 0
B153: 114 | C153: Projected wholesale charge pre-FD (2012-13 price base) | D153: R4D16D04 | E153: £m | F153: 3 | G153: =INDEX(F_Inputs!$B:$J,MATCH($D153,F_Inputs!$B:$B,0),MATCH(G$5,F_Inputs!$B$2:$J$2,0)) -> 0 | H153: =INDEX(F_Inputs!$B:$J,MATCH($D153,F_Inputs!$B:$B,0),MATCH(H$5,F_Inputs!$B$2:$J$2,0)) -> 0 | I153: =INDEX(F_Inputs!$B:$J,MATCH($D153,F_Inputs!$B:$B,0),MATCH(I$5,F_Inputs!$B$2:$J$2,0)) -> 0 | J153: =INDEX(F_Inputs!$B:$J,MATCH($D153,F_Inputs!$B:$B,0),MATCH(J$5,F_Inputs!$B$2:$J$2,0)) -> 0 | K153: =INDEX(F_Inputs!$B:$J,MATCH($D153,F_Inputs!$B:$B,0),MATCH(K$5,F_Inputs!$B$2:$J$2,0)) -> 0
B154: 115 | C154: Allocated wholesale charge at FD (Nominal price base) | D154: Calculation | E154: £m | F154: 3 | G154: =VLOOKUP($C147,'PR14 FD Calculations'!$D$460:$M$520,6,FALSE) -> 0 | H154: =VLOOKUP($C147,'PR14 FD Calculations'!$D$460:$M$520,7,FALSE) -> 0 | I154: =VLOOKUP($C147,'PR14 FD Calculations'!$D$460:$M$520,8,FALSE) -> 0 | J154: =VLOOKUP($C147,'PR14 FD Calculations'!$D$460:$M$520,9,FALSE) -> 0 | K154: =VLOOKUP($C147,'PR14 FD Calculations'!$D$460:$M$520,10,FALSE) -> 0
B156: R | C156: Tariff Band 17
B157: =B154+1 -> 116 | C157: Tariff name | G157: =INDEX('Default tariff names PR14'!$B$2:$S$62,MATCH($C156,'Default tariff names PR14'!$A$2:$A$62,0),MATCH($M$8,'Default tariff names PR14'!$B$1:$X$1,0)) -> Not used at PR14
B158: =B157+1 -> 117 | C158: Tariff categorisation | G158: =INDEX(Categorisation!$B$4:$S$63,MATCH($C156,Categorisation!$A$4:A$63,0),MATCH($M$8,Categorisation!$B$3:$S$3,0)) -> Not applicable
B159: 118 | C159: Number of customers | D159: CR617M01_R006 | E159: number | F159: 0 | G159: =INDEX(F_Inputs!$B:$J,MATCH($D159,F_Inputs!$B:$B,0),MATCH(G$5,F_Inputs!$B$2:$J$2,0)) -> 0 | H159: =INDEX(F_Inputs!$B:$J,MATCH($D159,F_Inputs!$B:$B,0),MATCH(H$5,F_Inputs!$B$2:$J$2,0)) -> 0 | I159: =INDEX(F_Inputs!$B:$J,MATCH($D159,F_Inputs!$B:$B,0),MATCH(I$5,F_Inputs!$B$2:$J$2,0)) -> 0 | J159: =INDEX(F_Inputs!$B:$J,MATCH($D159,F_Inputs!$B:$B,0),MATCH(J$5,F_Inputs!$B$2:$J$2,0)) -> 0 | K159: =INDEX(F_Inputs!$B:$J,MATCH($D159,F_Inputs!$B:$B,0),MATCH(K$5,F_Inputs!$B$2:$J$2,0)) -> 0
B160: 119 | C160: Net margin | D160: R5E00017_A001 | E160: % | F160: 2 | G160: =INDEX(F_Inputs!$B:$J,MATCH($D160,F_Inputs!$B:$B,0),MATCH(G$5,F_Inputs!$B$2:$J$2,0)) -> 0 | H160: =INDEX(F_Inputs!$B:$J,MATCH($D160,F_Inputs!$B:$B,0),MATCH(H$5,F_Inputs!$B$2:$J$2,0)) -> 0 | I160: =INDEX(F_Inputs!$B:$J,MATCH($D160,F_Inputs!$B:$B,0),MATCH(I$5,F_Inputs!$B$2:$J$2,0)) -> 0 | J160: =INDEX(F_Inputs!$B:$J,MATCH($D160,F_Inputs!$B:$B,0),MATCH(J$5,F_Inputs!$B$2:$J$2,0)) -> 0 | K160: =INDEX(F_Inputs!$B:$J,MATCH($D160,F_Inputs!$B:$B,0),MATCH(K$5,F_Inputs!$B$2:$J$2,0)) -> 0
B161: 120 | C161: Retail cost per customer | D161: CR617C01_R006 | E161: £ | F161: 2 | G161: =INDEX(F_Inputs!$B:$J,MATCH($D161,F_Inputs!$B:$B,0),MATCH(G$5,F_Inputs!$B$2:$J$2,0)) -> 0 | H161: =INDEX(F_Inputs!$B:$J,MATCH($D161,F_Inputs!$B:$B,0),MATCH(H$5,F_Inputs!$B$2:$J$2,0)) -> 0 | I161: =INDEX(F_Inputs!$B:$J,MATCH($D161,F_Inputs!$B:$B,0),MATCH(I$5,F_Inputs!$B$2:$J$2,0)) -> 0 | J161: =INDEX(F_Inputs!$B:$J,MATCH($D161,F_Inputs!$B:$B,0),MATCH(J$5,F_Inputs!$B$2:$J$2,0)) -> 0 | K161: =INDEX(F_Inputs!$B:$J,MATCH($D161,F_Inputs!$B:$B,0),MATCH(K$5,F_Inputs!$B$2:$J$2,0)) -> 0
B162: 121 | C162: Projected wholesale charge pre-FD (2012-13 price base) | D162: R4D17D04 | E162: £m | F162: 3 | G162: =INDEX(F_Inputs!$B:$J,MATCH($D162,F_Inputs!$B:$B,0),MATCH(G$5,F_Inputs!$B$2:$J$2,0)) -> 0 | H162: =INDEX(F_Inputs!$B:$J,MATCH($D162,F_Inputs!$B:$B,0),MATCH(H$5,F_Inputs!$B$2:$J$2,0)) -> 0 | I162: =INDEX(F_Inputs!$B:$J,MATCH($D162,F_Inputs!$B:$B,0),MATCH(I$5,F_Inputs!$B$2:$J$2,0)) -> 0 | J162: =INDEX(F_Inputs!$B:$J,MATCH($D162,F_Inputs!$B:$B,0),MATCH(J$5,F_Inputs!$B$2:$J$2,0)) -> 0 | K162: =INDEX(F_Inputs!$B:$J,MATCH($D162,F_Inputs!$B:$B,0),MATCH(K$5,F_Inputs!$B$2:$J$2,0)) -> 0
B163: 122 | C163: Allocated wholesale charge at FD (Nominal price base) | D163: Calculation | E163: £m | F163: 3 | G163: =VLOOKUP($C156,'PR14 FD Calculations'!$D$460:$M$520,6,FALSE) -> 0 | H163: =VLOOKUP($C156,'PR14 FD Calculations'!$D$460:$M$520,7,FALSE) -> 0 | I163: =VLOOKUP($C156,'PR14 FD Calculations'!$D$460:$M$520,8,FALSE) -> 0 | J163: =VLOOKUP($C156,'PR14 FD Calculations'!$D$460:$M$520,9,FALSE) -> 0 | K163: =VLOOKUP($C156,'PR14 FD Calculations'!$D$460:$M$520,10,FALSE) -> 0
B165: S | C165: Tariff Band 18
B166: =B163+1 -> 123 | C166: Tariff name | G166: =INDEX('Default tariff names PR14'!$B$2:$S$62,MATCH($C165,'Default tariff names PR14'!$A$2:$A$62,0),MATCH($M$8,'Default tariff names PR14'!$B$1:$X$1,0)) -> Not used at PR14
B167: =B166+1 -> 124 | C167: Tariff categorisation | G167: =INDEX(Categorisation!$B$4:$S$63,MATCH($C165,Categorisation!$A$4:A$63,0),MATCH($M$8,Categorisation!$B$3:$S$3,0)) -> Not applicable
B168: 125 | C168: Number of customers | D168: CR618M01_R006 | E168: number | F168: 0 | G168: =INDEX(F_Inputs!$B:$J,MATCH($D168,F_Inputs!$B:$B,0),MATCH(G$5,F_Inputs!$B$2:$J$2,0)) -> 0 | H168: =INDEX(F_Inputs!$B:$J,MATCH($D168,F_Inputs!$B:$B,0),MATCH(H$5,F_Inputs!$B$2:$J$2,0)) -> 0 | I168: =INDEX(F_Inputs!$B:$J,MATCH($D168,F_Inputs!$B:$B,0),MATCH(I$5,F_Inputs!$B$2:$J$2,0)) -> 0 | J168: =INDEX(F_Inputs!$B:$J,MATCH($D168,F_Inputs!$B:$B,0),MATCH(J$5,F_Inputs!$B$2:$J$2,0)) -> 0 | K168: =INDEX(F_Inputs!$B:$J,MATCH($D168,F_Inputs!$B:$B,0),MATCH(K$5,F_Inputs!$B$2:$J$2,0)) -> 0
B169: 126 | C169: Net margin | D169: R5E00018_A001 | E169: % | F169: 2 | G169: =INDEX(F_Inputs!$B:$J,MATCH($D169,F_Inputs!$B:$B,0),MATCH(G$5,F_Inputs!$B$2:$J$2,0)) -> 0 | H169: =INDEX(F_Inputs!$B:$J,MATCH($D169,F_Inputs!$B:$B,0),MATCH(H$5,F_Inputs!$B$2:$J$2,0)) -> 0 | I169: =INDEX(F_Inputs!$B:$J,MATCH($D169,F_Inputs!$B:$B,0),MATCH(I$5,F_Inputs!$B$2:$J$2,0)) -> 0 | J169: =INDEX(F_Inputs!$B:$J,MATCH($D169,F_Inputs!$B:$B,0),MATCH(J$5,F_Inputs!$B$2:$J$2,0)) -> 0 | K169: =INDEX(F_Inputs!$B:$J,MATCH($D169,F_Inputs!$B:$B,0),MATCH(K$5,F_Inputs!$B$2:$J$2,0)) -> 0
B170: 127 | C170: Retail cost per customer | D170: CR618C01_R006 | E170: £ | F170: 2 | G170: =INDEX(F_Inputs!$B:$J,MATCH($D170,F_Inputs!$B:$B,0),MATCH(G$5,F_Inputs!$B$2:$J$2,0)) -> 0 | H170: =INDEX(F_Inputs!$B:$J,MATCH($D170,F_Inputs!$B:$B,0),MATCH(H$5,F_Inputs!$B$2:$J$2,0)) -> 0 | I170: =INDEX(F_Inputs!$B:$J,MATCH($D170,F_Inputs!$B:$B,0),MATCH(I$5,F_Inputs!$B$2:$J$2,0)) -> 0 | J170: =INDEX(F_Inputs!$B:$J,MATCH($D170,F_Inputs!$B:$B,0),MATCH(J$5,F_Inputs!$B$2:$J$2,0)) -> 0 | K170: =INDEX(F_Inputs!$B:$J,MATCH($D170,F_Inputs!$B:$B,0),MATCH(K$5,F_Inputs!$B$2:$J$2,0)) -> 0
B171: 128 | C171: Projected wholesale charge pre-FD (2012-13 price base) | D171: R4D18D04 | E171: £m | F171: 3 | G171: =INDEX(F_Inputs!$B:$J,MATCH($D171,F_Inputs!$B:$B,0),MATCH(G$5,F_Inputs!$B$2:$J$2,0)) -> 0 | H171: =INDEX(F_Inputs!$B:$J,MATCH($D171,F_Inputs!$B:$B,0),MATCH(H$5,F_Inputs!$B$2:$J$2,0)) -> 0 | I171: =INDEX(F_Inputs!$B:$J,MATCH($D171,F_Inputs!$B:$B,0),MATCH(I$5,F_Inputs!$B$2:$J$2,0)) -> 0 | J171: =INDEX(F_Inputs!$B:$J,MATCH($D171,F_Inputs!$B:$B,0),MATCH(J$5,F_Inputs!$B$2:$J$2,0)) -> 0 | K171: =INDEX(F_Inputs!$B:$J,MATCH($D171,F_Inputs!$B:$B,0),MATCH(K$5,F_Inputs!$B$2:$J$2,0)) -> 0
B172: 129 | C172: Allocated wholesale charge at FD (Nominal price base) | D172: Calculation | E172: £m | F172: 3 | G172: =VLOOKUP($C165,'PR14 FD Calculations'!$D$460:$M$520,6,FALSE) -> 0 | H172: =VLOOKUP($C165,'PR14 FD Calculations'!$D$460:$M$520,7,FALSE) -> 0 | I172: =VLOOKUP($C165,'PR14 FD Calculations'!$D$460:$M$520,8,FALSE) -> 0 | J172: =VLOOKUP($C165,'PR14 FD Calculations'!$D$460:$M$520,9,FALSE) -> 0 | K172: =VLOOKUP($C165,'PR14 FD Calculations'!$D$460:$M$520,10,FALSE) -> 0
B174: T | C174: Tariff Band 19
B175: =B172+1 -> 130 | C175: Tariff name | G175: =INDEX('Default tariff names PR14'!$B$2:$S$62,MATCH($C174,'Default tariff names PR14'!$A$2:$A$62,0),MATCH($M$8,'Default tariff names PR14'!$B$1:$X$1,0)) -> Not used at PR14
B176: =B175+1 -> 131 | C176: Tariff categorisation | G176: =INDEX(Categorisation!$B$4:$S$63,MATCH($C174,Categorisation!$A$4:A$63,0),MATCH($M$8,Categorisation!$B$3:$S$3,0)) -> Not applicable
B177: 132 | C177: Number of customers | D177: CR619M01_R006 | E177: number | F177: 0 | G177: =INDEX(F_Inputs!$B:$J,MATCH($D177,F_Inputs!$B:$B,0),MATCH(G$5,F_Inputs!$B$2:$J$2,0)) -> 0 | H177: =INDEX(F_Inputs!$B:$J,MATCH($D177,F_Inputs!$B:$B,0),MATCH(H$5,F_Inputs!$B$2:$J$2,0)) -> 0 | I177: =INDEX(F_Inputs!$B:$J,MATCH($D177,F_Inputs!$B:$B,0),MATCH(I$5,F_Inputs!$B$2:$J$2,0)) -> 0 | J177: =INDEX(F_Inputs!$B:$J,MATCH($D177,F_Inputs!$B:$B,0),MATCH(J$5,F_Inputs!$B$2:$J$2,0)) -> 0 | K177: =INDEX(F_Inputs!$B:$J,MATCH($D177,F_Inputs!$B:$B,0),MATCH(K$5,F_Inputs!$B$2:$J$2,0)) -> 0
B178: 133 | C178: Net margin | D178: R5E00019_A001 | E178: % | F178: 2 | G178: =INDEX(F_Inputs!$B:$J,MATCH($D178,F_Inputs!$B:$B,0),MATCH(G$5,F_Inputs!$B$2:$J$2,0)) -> 0 | H178: =INDEX(F_Inputs!$B:$J,MATCH($D178,F_Inputs!$B:$B,0),MATCH(H$5,F_Inputs!$B$2:$J$2,0)) -> 0 | I178: =INDEX(F_Inputs!$B:$J,MATCH($D178,F_Inputs!$B:$B,0),MATCH(I$5,F_Inputs!$B$2:$J$2,0)) -> 0 | J178: =INDEX(F_Inputs!$B:$J,MATCH($D178,F_Inputs!$B:$B,0),MATCH(J$5,F_Inputs!$B$2:$J$2,0)) -> 0 | K178: =INDEX(F_Inputs!$B:$J,MATCH($D178,F_Inputs!$B:$B,0),MATCH(K$5,F_Inputs!$B$2:$J$2,0)) -> 0
B179: 134 | C179: Retail cost per customer | D179: CR619C01_R006 | E179: £ | F179: 2 | G179: =INDEX(F_Inputs!$B:$J,MATCH($D179,F_Inputs!$B:$B,0),MATCH(G$5,F_Inputs!$B$2:$J$2,0)) -> 0 | H179: =INDEX(F_Inputs!$B:$J,MATCH($D179,F_Inputs!$B:$B,0),MATCH(H$5,F_Inputs!$B$2:$J$2,0)) -> 0 | I179: =INDEX(F_Inputs!$B:$J,MATCH($D179,F_Inputs!$B:$B,0),MATCH(I$5,F_Inputs!$B$2:$J$2,0)) -> 0 | J179: =INDEX(F_Inputs!$B:$J,MATCH($D179,F_Inputs!$B:$B,0),MATCH(J$5,F_Inputs!$B$2:$J$2,0)) -> 0 | K179: =INDEX(F_Inputs!$B:$J,MATCH($D179,F_Inputs!$B:$B,0),MATCH(K$5,F_Inputs!$B$2:$J$2,0)) -> 0
B180: 135 | C180: Projected wholesale charge pre-FD (2012-13 price base) | D180: R4D19D04 | E180: £m | F180: 3 | G180: =INDEX(F_Inputs!$B:$J,MATCH($D180,F_Inputs!$B:$B,0),MATCH(G$5,F_Inputs!$B$2:$J$2,0)) -> 0 | H180: =INDEX(F_Inputs!$B:$J,MATCH($D180,F_Inputs!$B:$B,0),MATCH(H$5,F_Inputs!$B$2:$J$2,0)) -> 0 | I180: =INDEX(F_Inputs!$B:$J,MATCH($D180,F_Inputs!$B:$B,0),MATCH(I$5,F_Inputs!$B$2:$J$2,0)) -> 0 | J180: =INDEX(F_Inputs!$B:$J,MATCH($D180,F_Inputs!$B:$B,0),MATCH(J$5,F_Inputs!$B$2:$J$2,0)) -> 0 | K180: =INDEX(F_Inputs!$B:$J,MATCH($D180,F_Inputs!$B:$B,0),MATCH(K$5,F_Inputs!$B$2:$J$2,0)) -> 0
B181: 136 | C181: Allocated wholesale charge at FD (Nominal price base) | D181: Calculation | E181: £m | F181: 3 | G181: =VLOOKUP($C174,'PR14 FD Calculations'!$D$460:$M$520,6,FALSE) -> 0 | H181: =VLOOKUP($C174,'PR14 FD Calculations'!$D$460:$M$520,7,FALSE) -> 0 | I181: =VLOOKUP($C174,'PR14 FD Calculations'!$D$460:$M$520,8,FALSE) -> 0 | J181: =VLOOKUP($C174,'PR14 FD Calculations'!$D$460:$M$520,9,FALSE) -> 0 | K181: =VLOOKUP($C174,'PR14 FD Calculations'!$D$460:$M$520,10,FALSE) -> 0
B183: U | C183: Tariff Band 20
B184: =B181+1 -> 137 | C184: Tariff name | G184: =INDEX('Default tariff names PR14'!$B$2:$S$62,MATCH($C183,'Default tariff names PR14'!$A$2:$A$62,0),MATCH($M$8,'Default tariff names PR14'!$B$1:$X$1,0)) -> Not used at PR14
B185: =B184+1 -> 138 | C185: Tariff categorisation | G185: =INDEX(Categorisation!$B$4:$S$63,MATCH($C183,Categorisation!$A$4:A$63,0),MATCH($M$8,Categorisation!$B$3:$S$3,0)) -> Not applicable
B186: 139 | C186: Number of customers | D186: CR620M01_R006 | E186: number | F186: 0 | G186: =INDEX(F_Inputs!$B:$J,MATCH($D186,F_Inputs!$B:$B,0),MATCH(G$5,F_Inputs!$B$2:$J$2,0)) -> 0 | H186: =INDEX(F_Inputs!$B:$J,MATCH($D186,F_Inputs!$B:$B,0),MATCH(H$5,F_Inputs!$B$2:$J$2,0)) -> 0 | I186: =INDEX(F_Inputs!$B:$J,MATCH($D186,F_Inputs!$B:$B,0),MATCH(I$5,F_Inputs!$B$2:$J$2,0)) -> 0 | J186: =INDEX(F_Inputs!$B:$J,MATCH($D186,F_Inputs!$B:$B,0),MATCH(J$5,F_Inputs!$B$2:$J$2,0)) -> 0 | K186: =INDEX(F_Inputs!$B:$J,MATCH($D186,F_Inputs!$B:$B,0),MATCH(K$5,F_Inputs!$B$2:$J$2,0)) -> 0
B187: 140 | C187: Net margin | D187: R5E00020_A001 | E187: % | F187: 2 | G187: =INDEX(F_Inputs!$B:$J,MATCH($D187,F_Inputs!$B:$B,0),MATCH(G$5,F_Inputs!$B$2:$J$2,0)) -> 0 | H187: =INDEX(F_Inputs!$B:$J,MATCH($D187,F_Inputs!$B:$B,0),MATCH(H$5,F_Inputs!$B$2:$J$2,0)) -> 0 | I187: =INDEX(F_Inputs!$B:$J,MATCH($D187,F_Inputs!$B:$B,0),MATCH(I$5,F_Inputs!$B$2:$J$2,0)) -> 0 | J187: =INDEX(F_Inputs!$B:$J,MATCH($D187,F_Inputs!$B:$B,0),MATCH(J$5,F_Inputs!$B$2:$J$2,0)) -> 0 | K187: =INDEX(F_Inputs!$B:$J,MATCH($D187,F_Inputs!$B:$B,0),MATCH(K$5,F_Inputs!$B$2:$J$2,0)) -> 0
B188: 141 | C188: Retail cost per customer | D188: CR620C01_R006 | E188: £ | F188: 2 | G188: =INDEX(F_Inputs!$B:$J,MATCH($D188,F_Inputs!$B:$B,0),MATCH(G$5,F_Inputs!$B$2:$J$2,0)) -> 0 | H188: =INDEX(F_Inputs!$B:$J,MATCH($D188,F_Inputs!$B:$B,0),MATCH(H$5,F_Inputs!$B$2:$J$2,0)) -> 0 | I188: =INDEX(F_Inputs!$B:$J,MATCH($D188,F_Inputs!$B:$B,0),MATCH(I$5,F_Inputs!$B$2:$J$2,0)) -> 0 | J188: =INDEX(F_Inputs!$B:$J,MATCH($D188,F_Inputs!$B:$B,0),MATCH(J$5,F_Inputs!$B$2:$J$2,0)) -> 0 | K188: =INDEX(F_Inputs!$B:$J,MATCH($D188,F_Inputs!$B:$B,0),MATCH(K$5,F_Inputs!$B$2:$J$2,0)) -> 0
B189: 142 | C189: Projected wholesale charge pre-FD (2012-13 price base) | D189: R4D20D04 | E189: £m | F189: 3 | G189: =INDEX(F_Inputs!$B:$J,MATCH($D189,F_Inputs!$B:$B,0),MATCH(G$5,F_Inputs!$B$2:$J$2,0)) -> 0 | H189: =INDEX(F_Inputs!$B:$J,MATCH($D189,F_Inputs!$B:$B,0),MATCH(H$5,F_Inputs!$B$2:$J$2,0)) -> 0 | I189: =INDEX(F_Inputs!$B:$J,MATCH($D189,F_Inputs!$B:$B,0),MATCH(I$5,F_Inputs!$B$2:$J$2,0)) -> 0 | J189: =INDEX(F_Inputs!$B:$J,MATCH($D189,F_Inputs!$B:$B,0),MATCH(J$5,F_Inputs!$B$2:$J$2,0)) -> 0 | K189: =INDEX(F_Inputs!$B:$J,MATCH($D189,F_Inputs!$B:$B,0),MATCH(K$5,F_Inputs!$B$2:$J$2,0)) -> 0
B190: 143 | C190: Allocated wholesale charge at FD (Nominal price base) | D190: Calculation | E190: £m | F190: 3 | G190: =VLOOKUP($C183,'PR14 FD Calculations'!$D$460:$M$520,6,FALSE) -> 0 | H190: =VLOOKUP($C183,'PR14 FD Calculations'!$D$460:$M$520,7,FALSE) -> 0 | I190: =VLOOKUP($C183,'PR14 FD Calculations'!$D$460:$M$520,8,FALSE) -> 0 | J190: =VLOOKUP($C183,'PR14 FD Calculations'!$D$460:$M$520,9,FALSE) -> 0 | K190: =VLOOKUP($C183,'PR14 FD Calculations'!$D$460:$M$520,10,FALSE) -> 0
B192: V | C192: Tariff Band 21
B193: =B190+1 -> 144 | C193: Tariff name | G193: =INDEX('Default tariff names PR14'!$B$2:$S$62,MATCH($C192,'Default tariff names PR14'!$A$2:$A$62,0),MATCH($M$8,'Default tariff names PR14'!$B$1:$X$1,0)) -> Not used at PR14
B194: =B193+1 -> 145 | C194: Tariff categorisation | G194: =INDEX(Categorisation!$B$4:$S$63,MATCH($C192,Categorisation!$A$4:A$63,0),MATCH($M$8,Categorisation!$B$3:$S$3,0)) -> Not applicable
B195: 146 | C195: Number of customers | D195: CR621M01_R006 | E195: number | F195: 0 | G195: =INDEX(F_Inputs!$B:$J,MATCH($D195,F_Inputs!$B:$B,0),MATCH(G$5,F_Inputs!$B$2:$J$2,0)) -> 0 | H195: =INDEX(F_Inputs!$B:$J,MATCH($D195,F_Inputs!$B:$B,0),MATCH(H$5,F_Inputs!$B$2:$J$2,0)) -> 0 | I195: =INDEX(F_Inputs!$B:$J,MATCH($D195,F_Inputs!$B:$B,0),MATCH(I$5,F_Inputs!$B$2:$J$2,0)) -> 0 | J195: =INDEX(F_Inputs!$B:$J,MATCH($D195,F_Inputs!$B:$B,0),MATCH(J$5,F_Inputs!$B$2:$J$2,0)) -> 0 | K195: =INDEX(F_Inputs!$B:$J,MATCH($D195,F_Inputs!$B:$B,0),MATCH(K$5,F_Inputs!$B$2:$J$2,0)) -> 0
B196: 147 | C196: Net margin | D196: R5E00021_A001 | E196: % | F196: 2 | G196: =INDEX(F_Inputs!$B:$J,MATCH($D196,F_Inputs!$B:$B,0),MATCH(G$5,F_Inputs!$B$2:$J$2,0)) -> 0 | H196: =INDEX(F_Inputs!$B:$J,MATCH($D196,F_Inputs!$B:$B,0),MATCH(H$5,F_Inputs!$B$2:$J$2,0)) -> 0 | I196: =INDEX(F_Inputs!$B:$J,MATCH($D196,F_Inputs!$B:$B,0),MATCH(I$5,F_Inputs!$B$2:$J$2,0)) -> 0 | J196: =INDEX(F_Inputs!$B:$J,MATCH($D196,F_Inputs!$B:$B,0),MATCH(J$5,F_Inputs!$B$2:$J$2,0)) -> 0 | K196: =INDEX(F_Inputs!$B:$J,MATCH($D196,F_Inputs!$B:$B,0),MATCH(K$5,F_Inputs!$B$2:$J$2,0)) -> 0
B197: 148 | C197: Retail cost per customer | D197: CR621C01_R006 | E197: £ | F197: 2 | G197: =INDEX(F_Inputs!$B:$J,MATCH($D197,F_Inputs!$B:$B,0),MATCH(G$5,F_Inputs!$B$2:$J$2,0)) -> 0 | H197: =INDEX(F_Inputs!$B:$J,MATCH($D197,F_Inputs!$B:$B,0),MATCH(H$5,F_Inputs!$B$2:$J$2,0)) -> 0 | I197: =INDEX(F_Inputs!$B:$J,MATCH($D197,F_Inputs!$B:$B,0),MATCH(I$5,F_Inputs!$B$2:$J$2,0)) -> 0 | J197: =INDEX(F_Inputs!$B:$J,MATCH($D197,F_Inputs!$B:$B,0),MATCH(J$5,F_Inputs!$B$2:$J$2,0)) -> 0 | K197: =INDEX(F_Inputs!$B:$J,MATCH($D197,F_Inputs!$B:$B,0),MATCH(K$5,F_Inputs!$B$2:$J$2,0)) -> 0
B198: 149 | C198: Projected wholesale charge pre-FD (2012-13 price base) | D198: R4D21D04 | E198: £m | F198: 3 | G198: =INDEX(F_Inputs!$B:$J,MATCH($D198,F_Inputs!$B:$B,0),MATCH(G$5,F_Inputs!$B$2:$J$2,0)) -> 0 | H198: =INDEX(F_Inputs!$B:$J,MATCH($D198,F_Inputs!$B:$B,0),MATCH(H$5,F_Inputs!$B$2:$J$2,0)) -> 0 | I198: =INDEX(F_Inputs!$B:$J,MATCH($D198,F_Inputs!$B:$B,0),MATCH(I$5,F_Inputs!$B$2:$J$2,0)) -> 0 | J198: =INDEX(F_Inputs!$B:$J,MATCH($D198,F_Inputs!$B:$B,0),MATCH(J$5,F_Inputs!$B$2:$J$2,0)) -> 0 | K198: =INDEX(F_Inputs!$B:$J,MATCH($D198,F_Inputs!$B:$B,0),MATCH(K$5,F_Inputs!$B$2:$J$2,0)) -> 0
B199: 150 | C199: Allocated wholesale charge at FD (Nominal price base) | D199: Calculation | E199: £m | F199: 3 | G199: =VLOOKUP($C192,'PR14 FD Calculations'!$D$460:$M$520,6,FALSE) -> 0 | H199: =VLOOKUP($C192,'PR14 FD Calculations'!$D$460:$M$520,7,FALSE) -> 0 | I199: =VLOOKUP($C192,'PR14 FD Calculations'!$D$460:$M$520,8,FALSE) -> 0 | J199: =VLOOKUP($C192,'PR14 FD Calculations'!$D$460:$M$520,9,FALSE) -> 0 | K199: =VLOOKUP($C192,'PR14 FD Calculations'!$D$460:$M$520,10,FALSE) -> 0
B201: W | C201: Tariff Band 22
B202: =B199+1 -> 151 | C202: Tariff name | G202: =INDEX('Default tariff names PR14'!$B$2:$S$62,MATCH($C201,'Default tariff names PR14'!$A$2:$A$62,0),MATCH($M$8,'Default tariff names PR14'!$B$1:$X$1,0)) -> Not used at PR14
B203: =B202+1 -> 152 | C203: Tariff categorisation | G203: =INDEX(Categorisation!$B$4:$S$63,MATCH($C201,Categorisation!$A$4:A$63,0),MATCH($M$8,Categorisation!$B$3:$S$3,0)) -> Not applicable
B204: 153 | C204: Number of customers | D204: CR622M01_R006 | E204: number | F204: 0 | G204: =INDEX(F_Inputs!$B:$J,MATCH($D204,F_Inputs!$B:$B,0),MATCH(G$5,F_Inputs!$B$2:$J$2,0)) -> 0 | H204: =INDEX(F_Inputs!$B:$J,MATCH($D204,F_Inputs!$B:$B,0),MATCH(H$5,F_Inputs!$B$2:$J$2,0)) -> 0 | I204: =INDEX(F_Inputs!$B:$J,MATCH($D204,F_Inputs!$B:$B,0),MATCH(I$5,F_Inputs!$B$2:$J$2,0)) -> 0 | J204: =INDEX(F_Inputs!$B:$J,MATCH($D204,F_Inputs!$B:$B,0),MATCH(J$5,F_Inputs!$B$2:$J$2,0)) -> 0 | K204: =INDEX(F_Inputs!$B:$J,MATCH($D204,F_Inputs!$B:$B,0),MATCH(K$5,F_Inputs!$B$2:$J$2,0)) -> 0
B205: 154 | C205: Net margin | D205: R5E00022_A001 | E205: % | F205: 2 | G205: =INDEX(F_Inputs!$B:$J,MATCH($D205,F_Inputs!$B:$B,0),MATCH(G$5,F_Inputs!$B$2:$J$2,0)) -> 0 | H205: =INDEX(F_Inputs!$B:$J,MATCH($D205,F_Inputs!$B:$B,0),MATCH(H$5,F_Inputs!$B$2:$J$2,0)) -> 0 | I205: =INDEX(F_Inputs!$B:$J,MATCH($D205,F_Inputs!$B:$B,0),MATCH(I$5,F_Inputs!$B$2:$J$2,0)) -> 0 | J205: =INDEX(F_Inputs!$B:$J,MATCH($D205,F_Inputs!$B:$B,0),MATCH(J$5,F_Inputs!$B$2:$J$2,0)) -> 0 | K205: =INDEX(F_Inputs!$B:$J,MATCH($D205,F_Inputs!$B:$B,0),MATCH(K$5,F_Inputs!$B$2:$J$2,0)) -> 0
B206: 155 | C206: Retail cost per customer | D206: CR622C01_R006 | E206: £ | F206: 2 | G206: =INDEX(F_Inputs!$B:$J,MATCH($D206,F_Inputs!$B:$B,0),MATCH(G$5,F_Inputs!$B$2:$J$2,0)) -> 0 | H206: =INDEX(F_Inputs!$B:$J,MATCH($D206,F_Inputs!$B:$B,0),MATCH(H$5,F_Inputs!$B$2:$J$2,0)) -> 0 | I206: =INDEX(F_Inputs!$B:$J,MATCH($D206,F_Inputs!$B:$B,0),MATCH(I$5,F_Inputs!$B$2:$J$2,0)) -> 0 | J206: =INDEX(F_Inputs!$B:$J,MATCH($D206,F_Inputs!$B:$B,0),MATCH(J$5,F_Inputs!$B$2:$J$2,0)) -> 0 | K206: =INDEX(F_Inputs!$B:$J,MATCH($D206,F_Inputs!$B:$B,0),MATCH(K$5,F_Inputs!$B$2:$J$2,0)) -> 0
B207: 156 | C207: Projected wholesale charge pre-FD (2012-13 price base) | D207: R4D22D04 | E207: £m | F207: 3 | G207: =INDEX(F_Inputs!$B:$J,MATCH($D207,F_Inputs!$B:$B,0),MATCH(G$5,F_Inputs!$B$2:$J$2,0)) -> 0 | H207: =INDEX(F_Inputs!$B:$J,MATCH($D207,F_Inputs!$B:$B,0),MATCH(H$5,F_Inputs!$B$2:$J$2,0)) -> 0 | I207: =INDEX(F_Inputs!$B:$J,MATCH($D207,F_Inputs!$B:$B,0),MATCH(I$5,F_Inputs!$B$2:$J$2,0)) -> 0 | J207: =INDEX(F_Inputs!$B:$J,MATCH($D207,F_Inputs!$B:$B,0),MATCH(J$5,F_Inputs!$B$2:$J$2,0)) -> 0 | K207: =INDEX(F_Inputs!$B:$J,MATCH($D207,F_Inputs!$B:$B,0),MATCH(K$5,F_Inputs!$B$2:$J$2,0)) -> 0
B208: 157 | C208: Allocated wholesale charge at FD (Nominal price base) | D208: Calculation | E208: £m | F208: 3 | G208: =VLOOKUP($C201,'PR14 FD Calculations'!$D$460:$M$520,6,FALSE) -> 0 | H208: =VLOOKUP($C201,'PR14 FD Calculations'!$D$460:$M$520,7,FALSE) -> 0 | I208: =VLOOKUP($C201,'PR14 FD Calculations'!$D$460:$M$520,8,FALSE) -> 0 | J208: =VLOOKUP($C201,'PR14 FD Calculations'!$D$460:$M$520,9,FALSE) -> 0 | K208: =VLOOKUP($C201,'PR14 FD Calculations'!$D$460:$M$520,10,FALSE) -> 0
B210: X | C210: Tariff Band 23
B211: =B208+1 -> 158 | C211: Tariff name | G211: =INDEX('Default tariff names PR14'!$B$2:$S$62,MATCH($C210,'Default tariff names PR14'!$A$2:$A$62,0),MATCH($M$8,'Default tariff names PR14'!$B$1:$X$1,0)) -> Not used at PR14
B212: =B211+1 -> 159 | C212: Tariff categorisation | G212: =INDEX(Categorisation!$B$4:$S$63,MATCH($C210,Categorisation!$A$4:A$63,0),MATCH($M$8,Categorisation!$B$3:$S$3,0)) -> Not applicable
B213: 160 | C213: Number of customers | D213: CR623M01_R006 | E213: number | F213: 0 | G213: =INDEX(F_Inputs!$B:$J,MATCH($D213,F_Inputs!$B:$B,0),MATCH(G$5,F_Inputs!$B$2:$J$2,0)) -> 0 | H213: =INDEX(F_Inputs!$B:$J,MATCH($D213,F_Inputs!$B:$B,0),MATCH(H$5,F_Inputs!$B$2:$J$2,0)) -> 0 | I213: =INDEX(F_Inputs!$B:$J,MATCH($D213,F_Inputs!$B:$B,0),MATCH(I$5,F_Inputs!$B$2:$J$2,0)) -> 0 | J213: =INDEX(F_Inputs!$B:$J,MATCH($D213,F_Inputs!$B:$B,0),MATCH(J$5,F_Inputs!$B$2:$J$2,0)) -> 0 | K213: =INDEX(F_Inputs!$B:$J,MATCH($D213,F_Inputs!$B:$B,0),MATCH(K$5,F_Inputs!$B$2:$J$2,0)) -> 0
B214: 161 | C214: Net margin | D214: R5E00023_A001 | E214: % | F214: 2 | G214: =INDEX(F_Inputs!$B:$J,MATCH($D214,F_Inputs!$B:$B,0),MATCH(G$5,F_Inputs!$B$2:$J$2,0)) -> 0 | H214: =INDEX(F_Inputs!$B:$J,MATCH($D214,F_Inputs!$B:$B,0),MATCH(H$5,F_Inputs!$B$2:$J$2,0)) -> 0 | I214: =INDEX(F_Inputs!$B:$J,MATCH($D214,F_Inputs!$B:$B,0),MATCH(I$5,F_Inputs!$B$2:$J$2,0)) -> 0 | J214: =INDEX(F_Inputs!$B:$J,MATCH($D214,F_Inputs!$B:$B,0),MATCH(J$5,F_Inputs!$B$2:$J$2,0)) -> 0 | K214: =INDEX(F_Inputs!$B:$J,MATCH($D214,F_Inputs!$B:$B,0),MATCH(K$5,F_Inputs!$B$2:$J$2,0)) -> 0
B215: 162 | C215: Retail cost per customer | D215: CR623C01_R006 | E215: £ | F215: 2 | G215: =INDEX(F_Inputs!$B:$J,MATCH($D215,F_Inputs!$B:$B,0),MATCH(G$5,F_Inputs!$B$2:$J$2,0)) -> 0 | H215: =INDEX(F_Inputs!$B:$J,MATCH($D215,F_Inputs!$B:$B,0),MATCH(H$5,F_Inputs!$B$2:$J$2,0)) -> 0 | I215: =INDEX(F_Inputs!$B:$J,MATCH($D215,F_Inputs!$B:$B,0),MATCH(I$5,F_Inputs!$B$2:$J$2,0)) -> 0 | J215: =INDEX(F_Inputs!$B:$J,MATCH($D215,F_Inputs!$B:$B,0),MATCH(J$5,F_Inputs!$B$2:$J$2,0)) -> 0 | K215: =INDEX(F_Inputs!$B:$J,MATCH($D215,F_Inputs!$B:$B,0),MATCH(K$5,F_Inputs!$B$2:$J$2,0)) -> 0
B216: 163 | C216: Projected wholesale charge pre-FD (2012-13 price base) | D216: R4D23D04 | E216: £m | F216: 3 | G216: =INDEX(F_Inputs!$B:$J,MATCH($D216,F_Inputs!$B:$B,0),MATCH(G$5,F_Inputs!$B$2:$J$2,0)) -> 0 | H216: =INDEX(F_Inputs!$B:$J,MATCH($D216,F_Inputs!$B:$B,0),MATCH(H$5,F_Inputs!$B$2:$J$2,0)) -> 0 | I216: =INDEX(F_Inputs!$B:$J,MATCH($D216,F_Inputs!$B:$B,0),MATCH(I$5,F_Inputs!$B$2:$J$2,0)) -> 0 | J216: =INDEX(F_Inputs!$B:$J,MATCH($D216,F_Inputs!$B:$B,0),MATCH(J$5,F_Inputs!$B$2:$J$2,0)) -> 0 | K216: =INDEX(F_Inputs!$B:$J,MATCH($D216,F_Inputs!$B:$B,0),MATCH(K$5,F_Inputs!$B$2:$J$2,0)) -> 0
B217: 164 | C217: Allocated wholesale charge at FD (Nominal price base) | D217: Calculation | E217: £m | F217: 3 | G217: =VLOOKUP($C210,'PR14 FD Calculations'!$D$460:$M$520,6,FALSE) -> 0 | H217: =VLOOKUP($C210,'PR14 FD Calculations'!$D$460:$M$520,7,FALSE) -> 0 | I217: =VLOOKUP($C210,'PR14 FD Calculations'!$D$460:$M$520,8,FALSE) -> 0 | J217: =VLOOKUP($C210,'PR14 FD Calculations'!$D$460:$M$520,9,FALSE) -> 0 | K217: =VLOOKUP($C210,'PR14 FD Calculations'!$D$460:$M$520,10,FALSE) -> 0
B219: Y | C219: Tariff Band 24
B220: =B217+1 -> 165 | C220: Tariff name | G220: =INDEX('Default tariff names PR14'!$B$2:$S$62,MATCH($C219,'Default tariff names PR14'!$A$2:$A$62,0),MATCH($M$8,'Default tariff names PR14'!$B$1:$X$1,0)) -> Not used at PR14
B221: =B220+1 -> 166 | C221: Tariff categorisation | G221: =INDEX(Categorisation!$B$4:$S$63,MATCH($C219,Categorisation!$A$4:A$63,0),MATCH($M$8,Categorisation!$B$3:$S$3,0)) -> Not applicable
B222: 167 | C222: Number of customers | D222: CR624M01_R006 | E222: number | F222: 0 | G222: =INDEX(F_Inputs!$B:$J,MATCH($D222,F_Inputs!$B:$B,0),MATCH(G$5,F_Inputs!$B$2:$J$2,0)) -> 0 | H222: =INDEX(F_Inputs!$B:$J,MATCH($D222,F_Inputs!$B:$B,0),MATCH(H$5,F_Inputs!$B$2:$J$2,0)) -> 0 | I222: =INDEX(F_Inputs!$B:$J,MATCH($D222,F_Inputs!$B:$B,0),MATCH(I$5,F_Inputs!$B$2:$J$2,0)) -> 0 | J222: =INDEX(F_Inputs!$B:$J,MATCH($D222,F_Inputs!$B:$B,0),MATCH(J$5,F_Inputs!$B$2:$J$2,0)) -> 0 | K222: =INDEX(F_Inputs!$B:$J,MATCH($D222,F_Inputs!$B:$B,0),MATCH(K$5,F_Inputs!$B$2:$J$2,0)) -> 0
B223: 168 | C223: Net margin | D223: R5E00024_A001 | E223: % | F223: 2 | G223: =INDEX(F_Inputs!$B:$J,MATCH($D223,F_Inputs!$B:$B,0),MATCH(G$5,F_Inputs!$B$2:$J$2,0)) -> 0 | H223: =INDEX(F_Inputs!$B:$J,MATCH($D223,F_Inputs!$B:$B,0),MATCH(H$5,F_Inputs!$B$2:$J$2,0)) -> 0 | I223: =INDEX(F_Inputs!$B:$J,MATCH($D223,F_Inputs!$B:$B,0),MATCH(I$5,F_Inputs!$B$2:$J$2,0)) -> 0 | J223: =INDEX(F_Inputs!$B:$J,MATCH($D223,F_Inputs!$B:$B,0),MATCH(J$5,F_Inputs!$B$2:$J$2,0)) -> 0 | K223: =INDEX(F_Inputs!$B:$J,MATCH($D223,F_Inputs!$B:$B,0),MATCH(K$5,F_Inputs!$B$2:$J$2,0)) -> 0
B224: 169 | C224: Retail cost per customer | D224: CR624C01_R006 | E224: £ | F224: 2 | G224: =INDEX(F_Inputs!$B:$J,MATCH($D224,F_Inputs!$B:$B,0),MATCH(G$5,F_Inputs!$B$2:$J$2,0)) -> 0 | H224: =INDEX(F_Inputs!$B:$J,MATCH($D224,F_Inputs!$B:$B,0),MATCH(H$5,F_Inputs!$B$2:$J$2,0)) -> 0 | I224: =INDEX(F_Inputs!$B:$J,MATCH($D224,F_Inputs!$B:$B,0),MATCH(I$5,F_Inputs!$B$2:$J$2,0)) -> 0 | J224: =INDEX(F_Inputs!$B:$J,MATCH($D224,F_Inputs!$B:$B,0),MATCH(J$5,F_Inputs!$B$2:$J$2,0)) -> 0 | K224: =INDEX(F_Inputs!$B:$J,MATCH($D224,F_Inputs!$B:$B,0),MATCH(K$5,F_Inputs!$B$2:$J$2,0)) -> 0
B225: 170 | C225: Projected wholesale charge pre-FD (2012-13 price base) | D225: R4D24D04 | E225: £m | F225: 3 | G225: =INDEX(F_Inputs!$B:$J,MATCH($D225,F_Inputs!$B:$B,0),MATCH(G$5,F_Inputs!$B$2:$J$2,0)) -> 0 | H225: =INDEX(F_Inputs!$B:$J,MATCH($D225,F_Inputs!$B:$B,0),MATCH(H$5,F_Inputs!$B$2:$J$2,0)) -> 0 | I225: =INDEX(F_Inputs!$B:$J,MATCH($D225,F_Inputs!$B:$B,0),MATCH(I$5,F_Inputs!$B$2:$J$2,0)) -> 0 | J225: =INDEX(F_Inputs!$B:$J,MATCH($D225,F_Inputs!$B:$B,0),MATCH(J$5,F_Inputs!$B$2:$J$2,0)) -> 0 | K225: =INDEX(F_Inputs!$B:$J,MATCH($D225,F_Inputs!$B:$B,0),MATCH(K$5,F_Inputs!$B$2:$J$2,0)) -> 0
B226: 171 | C226: Allocated wholesale charge at FD (Nominal price base) | D226: Calculation | E226: £m | F226: 3 | G226: =VLOOKUP($C219,'PR14 FD Calculations'!$D$460:$M$520,6,FALSE) -> 0 | H226: =VLOOKUP($C219,'PR14 FD Calculations'!$D$460:$M$520,7,FALSE) -> 0 | I226: =VLOOKUP($C219,'PR14 FD Calculations'!$D$460:$M$520,8,FALSE) -> 0 | J226: =VLOOKUP($C219,'PR14 FD Calculations'!$D$460:$M$520,9,FALSE) -> 0 | K226: =VLOOKUP($C219,'PR14 FD Calculations'!$D$460:$M$520,10,FALSE) -> 0
B228: Z | C228: Tariff Band 25
... 306 more rows

Sheet R4a PR16
B1: R4A PR16 - Information on default tariff price caps proposed from 2017 | K1: =Lists!E29 -> Sutton & East Surrey Water | M1: Data validation
B3: Table guidance and line definitions below table
B5: Line description | D5: Item reference | E5: Units | F5: DPs | G5: 2015-16 | H5: 2016-17 | I5: 2017-18 | J5: 2018-19 | K5: 2019-20 | M5: Validation description
B7: A | C7: Company level assumptions adopted at FD
B8: 1 | C8: Wholesale charge to retail (household and non-household) | D8: C00277_A001 | E8: £m | F8: 3 | G8: =IF($O$8="BRL",INDEX('Bristol CMA'!J:J,MATCH($D8,'Bristol CMA'!$B:$B,0)),INDEX(F_Inputs!F:F,MATCH($D8,F_Inputs!$B:$B,0))) -> 53.21347484 | H8: =IF($O$8="BRL",INDEX('Bristol CMA'!K:K,MATCH($D8,'Bristol CMA'!$B:$B,0)),INDEX(F_Inputs!G:G,MATCH($D8,F_Inputs!$B:$B,0))) -> 55.2649729 | I8: =IF($O$8="BRL",INDEX('Bristol CMA'!L:L,MATCH($D8,'Bristol CMA'!$B:$B,0)),INDEX(F_Inputs!H:H,MATCH($D8,F_Inputs!$B:$B,0))) -> 57.4264687 | J8: =IF($O$8="BRL",INDEX('Bristol CMA'!M:M,MATCH($D8,'Bristol CMA'!$B:$B,0)),INDEX(F_Inputs!I:I,MATCH($D8,F_Inputs!$B:$B,0))) -> 59.86984581 | K8: =IF($O$8="BRL",INDEX('Bristol CMA'!N:N,MATCH($D8,'Bristol CMA'!$B:$B,0)),INDEX(F_Inputs!J:J,MATCH($D8,F_Inputs!$B:$B,0))) -> 62.51483818 | O8: =Lists!D29 -> SES
B9: =B8+1 -> 2 | C9: Household apportionment of wholesale allowed revenues | D9: C00278_A001 | E9: % | F9: 2 | G9: =IF($O$8="BRL",INDEX('Bristol CMA'!J:J,MATCH($D9,'Bristol CMA'!$B:$B,0)),INDEX(F_Inputs!F:F,MATCH($D9,F_Inputs!$B:$B,0))) -> 0.8190863254 | H9: =IF($O$8="BRL",INDEX('Bristol CMA'!K:K,MATCH($D9,'Bristol CMA'!$B:$B,0)),INDEX(F_Inputs!G:G,MATCH($D9,F_Inputs!$B:$B,0))) -> 0.8178853961 | I9: =IF($O$8="BRL",INDEX('Bristol CMA'!L:L,MATCH($D9,'Bristol CMA'!$B:$B,0)),INDEX(F_Inputs!H:H,MATCH($D9,F_Inputs!$B:$B,0))) -> 0.8168436007 | J9: =IF($O$8="BRL",INDEX('Bristol CMA'!M:M,MATCH($D9,'Bristol CMA'!$B:$B,0)),INDEX(F_Inputs!I:I,MATCH($D9,F_Inputs!$B:$B,0))) -> 0.8158001036 | K9: =IF($O$8="BRL",INDEX('Bristol CMA'!N:N,MATCH($D9,'Bristol CMA'!$B:$B,0)),INDEX(F_Inputs!J:J,MATCH($D9,F_Inputs!$B:$B,0))) -> 0.8148557309
B10: =B9+1 -> 3 | C10: Indicative retail income published at FD | D10: C_ES_000020_A001 | E10: £m | F10: 3 | G10: =IF($O$8="BRL",INDEX('Bristol CMA'!J:J,MATCH($D10,'Bristol CMA'!$B:$B,0)),INDEX(F_Inputs!F:F,MATCH($D10,F_Inputs!$B:$B,0))) -> 0.7498785829 | H10: =IF($O$8="BRL",INDEX('Bristol CMA'!K:K,MATCH($D10,'Bristol CMA'!$B:$B,0)),INDEX(F_Inputs!G:G,MATCH($D10,F_Inputs!$B:$B,0))) -> 0.7661950311 | I10: =IF($O$8="BRL",INDEX('Bristol CMA'!L:L,MATCH($D10,'Bristol CMA'!$B:$B,0)),INDEX(F_Inputs!H:H,MATCH($D10,F_Inputs!$B:$B,0))) -> 0.7829723338 | J10: =IF($O$8="BRL",INDEX('Bristol CMA'!M:M,MATCH($D10,'Bristol CMA'!$B:$B,0)),INDEX(F_Inputs!I:I,MATCH($D10,F_Inputs!$B:$B,0))) -> 0.7992477926 | K10: =IF($O$8="BRL",INDEX('Bristol CMA'!N:N,MATCH($D10,'Bristol CMA'!$B:$B,0)),INDEX(F_Inputs!J:J,MATCH($D10,F_Inputs!$B:$B,0))) -> 0.8149536535
B12: B | C12: Tariff Band 1
B13: =B10+1 -> 4 | C13: Tariff name | G13: =INDEX('Default tariff names PR14'!$B$2:$S$62, MATCH($C12, 'Default tariff names PR14'!$A$2:$A$62, 0),MATCH($O$8, 'Default tariff names PR14'!$B$1:$X$1, 0) ) -> Northern area unmeasured | I13: =IF(G13="Not used at PR14",O13,G13) -> Northern area unmeasured | M13: =IF(OR(I13=G13, I13="Not used from 2017", G13 = "Not used at PR14" ), 0, "Invalid input") -> 0 | O13: =IF(G13="Not used at PR14",Lists!$D$4,G13) -> Northern area unmeasured
B14: =B13+1 -> 5 | C14: Tariff categorisation | G14: =INDEX(Categorisation!$B$4:$S$63, MATCH($C12, Categorisation!$A$4:$A$63, 0), MATCH($O$8, Categorisation!$B$3:$S$3, 0) ) -> Water - unmeasured | I14: =IF(I13 = G13, G14, "Not applicable" ) -> Water - unmeasured | M14: =IF(OR(I13="Insert new tariff name",I13="Not used from 2017"),IF(I14="Not applicable",0,"Invalid input"),IF(I14="Not applicable","Select category",0)) -> 0 | O14: =Lists!$D$2 -> Not used from 2017
B15: 6 | C15: Number of customers | D15: CR601M01_R006 | E15: number | F15: 0 | G15: =INDEX(F_Inputs!$B:$J,MATCH($D15,F_Inputs!$B:$B,0),MATCH(G$5,F_Inputs!$B$2:$J$2,0)) -> 921.0258481 | H15: =INDEX(F_Inputs!$B:$J,MATCH($D15,F_Inputs!$B:$B,0),MATCH(H$5,F_Inputs!$B$2:$J$2,0)) -> 921.0258481 | I15: =IF(I13=O14,0,INDEX(F_Inputs!$B:$J,MATCH($D15,F_Inputs!$B:$B,0),MATCH(I$5,F_Inputs!$B$2:$J$2,0))) -> 921.0258481 | J15: =IF(I13=O14,0,INDEX(F_Inputs!$B:$J,MATCH($D15,F_Inputs!$B:$B,0),MATCH(J$5,F_Inputs!$B$2:$J$2,0))) -> 921.0258481 | K15: =IF(I13=O14,0,INDEX(F_Inputs!$B:$J,MATCH($D15,F_Inputs!$B:$B,0),MATCH(K$5,F_Inputs!$B$2:$J$2,0))) -> 921.0258481 | M15: =IF(OR(I13=Lists!$D$4,I13=Lists!$D$2), IF(AND(I15=0,J15=0,K15=0),0,"Non zero input"),IF(AND(I15>0,J15>0,K15>0),0,"Zero input")) -> 0
B16: 7 | C16: Net margin | D16: R5E00001_A001 | E16: % | F16: 2 | G16: =INDEX(F_Inputs!$B:$J, MATCH($D16, F_Inputs!$B:$B, 0), MATCH(G$5, F_Inputs!$B$2:$J$2, 0) ) -> 0.02270838559 | H16: =INDEX(F_Inputs!$B:$J, MATCH($D16, F_Inputs!$B:$B, 0), MATCH(H$5, F_Inputs!$B$2:$J$2, 0) ) -> 0.02384688226 | I16: =IF(I13=O14,0,INDEX(F_Inputs!$B:$J,MATCH($D16,F_Inputs!$B:$B,0),MATCH(I$5,F_Inputs!$B$2:$J$2,0))) -> 0.025 | J16: =IF(I13=O14,0,INDEX(F_Inputs!$B:$J,MATCH($D16,F_Inputs!$B:$B,0),MATCH(J$5,F_Inputs!$B$2:$J$2,0))) -> 0.02612907758 | K16: =IF(I13=O14,0,INDEX(F_Inputs!$B:$J,MATCH($D16,F_Inputs!$B:$B,0),MATCH(K$5,F_Inputs!$B$2:$J$2,0))) -> 0.02613673318 | M16: =IF(OR(I13=Lists!$D$4,I13=Lists!$D$2), IF(AND(I16=0,J16=0,K16=0),0,"Non zero input"),IF(AND(I16>0,J16>0,K16>0),0,"Zero input")) -> 0
B17: 8 | C17: Retail cost per customer | D17: CR601C01_R006 | E17: £ | F17: 2 | G17: =INDEX(F_Inputs!$B:$J, MATCH($D17, F_Inputs!$B:$B, 0), MATCH(G$5, F_Inputs!$B$2:$J$2, 0) ) -> 16.75503715 | H17: =INDEX(F_Inputs!$B:$J, MATCH($D17, F_Inputs!$B:$B, 0), MATCH(H$5, F_Inputs!$B$2:$J$2, 0) ) -> 17.17357298 | I17: =IF(I13=O14,0,INDEX(F_Inputs!$B:$J,MATCH($D17,F_Inputs!$B:$B,0),MATCH(I$5,F_Inputs!$B$2:$J$2,0))) -> 17.58552392 | J17: =IF(I13=O14,0,INDEX(F_Inputs!$B:$J,MATCH($D17,F_Inputs!$B:$B,0),MATCH(J$5,F_Inputs!$B$2:$J$2,0))) -> 17.89364185 | K17: =IF(I13=O14,0,INDEX(F_Inputs!$B:$J,MATCH($D17,F_Inputs!$B:$B,0),MATCH(K$5,F_Inputs!$B$2:$J$2,0))) -> 18.11274335 | M17: =IF(OR(I13=Lists!$D$4,I13=Lists!$D$2), IF(AND(I17=0,J17=0,K17=0),0,"Non zero input"),IF(AND(I17>0,J17>0,K17>0),0,"Zero input")) -> 0
B18: =B17+1 -> 9 | C18: Allocated wholesale charge at FD (Nominal price base) | D18: Calculation | E18: £m | F18: 3 | G18: =VLOOKUP($C12,'PR14 FD Calculations'!$D$460:$M$520,6,FALSE) -> 0.09121588479 | H18: =VLOOKUP($C12,'PR14 FD Calculations'!$D$460:$M$520,7,FALSE) -> 0.09511724201 | I18: =VLOOKUP($C12,'PR14 FD Calculations'!$D$460:$M$520,8,FALSE) -> 0.09937400667 | J18: =VLOOKUP($C12,'PR14 FD Calculations'!$D$460:$M$520,9,FALSE) -> 0.1041079465 | K18: =VLOOKUP($C12,'PR14 FD Calculations'!$D$460:$M$520,10,FALSE) -> 0.1091853393
B19: 10 | C19: Allocated wholesale charge at PR16 (Nominal price base) | D19: Calculation / Input | E19: £m | F19: 3 | G19: =VLOOKUP($C12,'PR14 FD Calculations'!$D$460:$M$520,6,FALSE) -> 0.09121588479 | H19: =VLOOKUP($C12,'PR14 FD Calculations'!$D$460:$M$520,7,FALSE) -> 0.09511724201 | I19: =IF( I13 = O14, 0, VLOOKUP( $C12, 'PR14 FD Calculations'!$D$460:$M$520, 8, FALSE ) ) -> 0.09937400667 | J19: =IF( I13 = O14, 0, VLOOKUP( $C12, 'PR14 FD Calculations'!$D$460:$M$520, 9, FALSE ) ) -> 0.1041079465 | K19: =IF( I13 = O14, 0, VLOOKUP( $C12, 'PR14 FD Calculations'!$D$460:$M$520, 10, FALSE ) ) -> 0.1091853393 | M19: =IF(OR(I13=Lists!$D$4,I13=Lists!$D$2), IF(AND(I19=0,J19=0,K19=0),0,"Non zero input"),IF(AND(I19>0,J19>0,K19>0),0,"Zero input")) -> 0
B21: C | C21: Tariff Band 2
B22: =B19+1 -> 11 | C22: Tariff name | G22: =INDEX('Default tariff names PR14'!$B$2:$S$62, MATCH($C21, 'Default tariff names PR14'!$A$2:$A$62, 0),MATCH($O$8, 'Default tariff names PR14'!$B$1:$X$1, 0) ) -> Northern area standard user metered | I22: =IF(G22="Not used at PR14",O22,G22) -> Northern area standard user metered | M22: 0 | O22: =IF(G22="Not used at PR14",Lists!$D$4,G22) -> Northern area standard user metered
B23: =B22+1 -> 12 | C23: Tariff categorisation | G23: =INDEX(Categorisation!$B$4:$S$63, MATCH($C21, Categorisation!$A$4:$A$63, 0), MATCH($O$8, Categorisation!$B$3:$S$3, 0) ) -> Water - metered / assessed | I23: =IF(I22 = G22, G23, "Not applicable" ) -> Water - metered / assessed | M23: =IF(OR(I22="Insert new tariff name",I22="Not used from 2017"),IF(I23="Not applicable",0,"Invalid input"),IF(I23="Not applicable","Select category",0)) -> 0 | O23: =Lists!$D$2 -> Not used from 2017
B24: 13 | C24: Number of customers | D24: CR602M01_R006 | E24: number | F24: 0 | G24: =INDEX(F_Inputs!$B:$J,MATCH($D24,F_Inputs!$B:$B,0),MATCH(G$5,F_Inputs!$B$2:$J$2,0)) -> 4722.215064 | H24: =INDEX(F_Inputs!$B:$J,MATCH($D24,F_Inputs!$B:$B,0),MATCH(H$5,F_Inputs!$B$2:$J$2,0)) -> 4722.215064 | I24: =IF(I22=O23,0,INDEX(F_Inputs!$B:$J,MATCH($D24,F_Inputs!$B:$B,0),MATCH(I$5,F_Inputs!$B$2:$J$2,0))) -> 4722.215064 | J24: =IF(I22=O23,0,INDEX(F_Inputs!$B:$J,MATCH($D24,F_Inputs!$B:$B,0),MATCH(J$5,F_Inputs!$B$2:$J$2,0))) -> 4722.215064 | K24: =IF(I22=O23,0,INDEX(F_Inputs!$B:$J,MATCH($D24,F_Inputs!$B:$B,0),MATCH(K$5,F_Inputs!$B$2:$J$2,0))) -> 4722.215064 | M24: =IF(OR(I22=Lists!$D$4,I22=Lists!$D$2), IF(AND(I24=0,J24=0,K24=0),0,"Non zero input"),IF(AND(I24>0,J24>0,K24>0),0,"Zero input")) -> 0
B25: 14 | C25: Net margin | D25: R5E00002_A001 | E25: % | F25: 2 | G25: =INDEX(F_Inputs!$B:$J, MATCH($D25, F_Inputs!$B:$B, 0), MATCH(G$5, F_Inputs!$B$2:$J$2, 0) ) -> 0.02270838559 | H25: =INDEX(F_Inputs!$B:$J, MATCH($D25, F_Inputs!$B:$B, 0), MATCH(H$5, F_Inputs!$B$2:$J$2, 0) ) -> 0.02384688226 | I25: =IF(I22=O23,0,INDEX(F_Inputs!$B:$J,MATCH($D25,F_Inputs!$B:$B,0),MATCH(I$5,F_Inputs!$B$2:$J$2,0))) -> 0.025 | J25: =IF(I22=O23,0,INDEX(F_Inputs!$B:$J,MATCH($D25,F_Inputs!$B:$B,0),MATCH(J$5,F_Inputs!$B$2:$J$2,0))) -> 0.02612907758 | K25: =IF(I22=O23,0,INDEX(F_Inputs!$B:$J,MATCH($D25,F_Inputs!$B:$B,0),MATCH(K$5,F_Inputs!$B$2:$J$2,0))) -> 0.02613673318 | M25: =IF(OR(I22=Lists!$D$4,I22=Lists!$D$2), IF(AND(I25=0,J25=0,K25=0),0,"Non zero input"),IF(AND(I25>0,J25>0,K25>0),0,"Zero input")) -> 0
B26: 15 | C26: Retail cost per customer | D26: CR602C01_R006 | E26: £ | F26: 2 | G26: =INDEX(F_Inputs!$B:$J, MATCH($D26, F_Inputs!$B:$B, 0), MATCH(G$5, F_Inputs!$B$2:$J$2, 0) ) -> 31.72960609 | H26: =INDEX(F_Inputs!$B:$J, MATCH($D26, F_Inputs!$B:$B, 0), MATCH(H$5, F_Inputs!$B$2:$J$2, 0) ) -> 32.05266524 | I26: =IF(I22=O23,0,INDEX(F_Inputs!$B:$J,MATCH($D26,F_Inputs!$B:$B,0),MATCH(I$5,F_Inputs!$B$2:$J$2,0))) -> 32.37979012 | J26: =IF(I22=O23,0,INDEX(F_Inputs!$B:$J,MATCH($D26,F_Inputs!$B:$B,0),MATCH(J$5,F_Inputs!$B$2:$J$2,0))) -> 32.58361764 | K26: =IF(I22=O23,0,INDEX(F_Inputs!$B:$J,MATCH($D26,F_Inputs!$B:$B,0),MATCH(K$5,F_Inputs!$B$2:$J$2,0))) -> 32.69504536 | M26: =IF(OR(I22=Lists!$D$4,I22=Lists!$D$2), IF(AND(I26=0,J26=0,K26=0),0,"Non zero input"),IF(AND(I26>0,J26>0,K26>0),0,"Zero input")) -> 0
B27: =B26+1 -> 16 | C27: Allocated wholesale charge at FD (Nominal price base) | D27: Calculation | E27: £m | F27: 3 | G27: =VLOOKUP($C21,'PR14 FD Calculations'!$D$460:$M$520,6,FALSE) -> 2.272493063 | H27: =VLOOKUP($C21,'PR14 FD Calculations'!$D$460:$M$520,7,FALSE) -> 2.369774127 | I27: =VLOOKUP($C21,'PR14 FD Calculations'!$D$460:$M$520,8,FALSE) -> 2.479434269 | J27: =VLOOKUP($C21,'PR14 FD Calculations'!$D$460:$M$520,9,FALSE) -> 2.601542557 | K27: =VLOOKUP($C21,'PR14 FD Calculations'!$D$460:$M$520,10,FALSE) -> 2.726874987
B28: 17 | C28: Allocated wholesale charge at PR16 (Nominal price base) | D28: Calculation / Input | E28: £m | F28: 3 | G28: =VLOOKUP($C21,'PR14 FD Calculations'!$D$460:$M$520,6,FALSE) -> 2.272493063 | H28: =VLOOKUP($C21,'PR14 FD Calculations'!$D$460:$M$520,7,FALSE) -> 2.369774127 | I28: =IF( I22 = O23, 0, VLOOKUP( $C21, 'PR14 FD Calculations'!$D$460:$M$520, 8, FALSE ) ) -> 2.479434269 | J28: =IF( I22 = O23, 0, VLOOKUP( $C21, 'PR14 FD Calculations'!$D$460:$M$520, 9, FALSE ) ) -> 2.601542557 | K28: =IF( I22 = O23, 0, VLOOKUP( $C21, 'PR14 FD Calculations'!$D$460:$M$520, 10, FALSE ) ) -> 2.726874987 | M28: =IF(OR(I22=Lists!$D$4,I22=Lists!$D$2), IF(AND(I28=0,J28=0,K28=0),0,"Non zero input"),IF(AND(I28>0,J28>0,K28>0),0,"Zero input")) -> 0
B30: D | C30: Tariff Band 3
B31: =B28+1 -> 18 | C31: Tariff name | G31: =INDEX('Default tariff names PR14'!$B$2:$S$62, MATCH($C30, 'Default tariff names PR14'!$A$2:$A$62, 0),MATCH($O$8, 'Default tariff names PR14'!$B$1:$X$1, 0) ) -> Northern area mid user metered | I31: =IF(G31="Not used at PR14",O31,G31) -> Northern area mid user metered | M31: 0 | O31: =IF(G31="Not used at PR14",Lists!$D$4,G31) -> Northern area mid user metered
B32: =B31+1 -> 19 | C32: Tariff categorisation | G32: =INDEX(Categorisation!$B$4:$S$63, MATCH($C30, Categorisation!$A$4:$A$63, 0), MATCH($O$8, Categorisation!$B$3:$S$3, 0) ) -> Water - metered / assessed | I32: =IF(I31 = G31, G32, "Not applicable" ) -> Water - metered / assessed | M32: =IF(OR(I31="Insert new tariff name",I31="Not used from 2017"),IF(I32="Not applicable",0,"Invalid input"),IF(I32="Not applicable","Select category",0)) -> 0 | O32: =Lists!$D$2 -> Not used from 2017
B33: 20 | C33: Number of customers | D33: CR603M01_R006 | E33: number | F33: 0 | G33: =INDEX(F_Inputs!$B:$J,MATCH($D33,F_Inputs!$B:$B,0),MATCH(G$5,F_Inputs!$B$2:$J$2,0)) -> 21 | H33: =INDEX(F_Inputs!$B:$J,MATCH($D33,F_Inputs!$B:$B,0),MATCH(H$5,F_Inputs!$B$2:$J$2,0)) -> 21 | I33: =IF(I31=O32,0,INDEX(F_Inputs!$B:$J,MATCH($D33,F_Inputs!$B:$B,0),MATCH(I$5,F_Inputs!$B$2:$J$2,0))) -> 21 | J33: =IF(I31=O32,0,INDEX(F_Inputs!$B:$J,MATCH($D33,F_Inputs!$B:$B,0),MATCH(J$5,F_Inputs!$B$2:$J$2,0))) -> 21 | K33: =IF(I31=O32,0,INDEX(F_Inputs!$B:$J,MATCH($D33,F_Inputs!$B:$B,0),MATCH(K$5,F_Inputs!$B$2:$J$2,0))) -> 21 | M33: =IF(OR(I31=Lists!$D$4,I31=Lists!$D$2), IF(AND(I33=0,J33=0,K33=0),0,"Non zero input"),IF(AND(I33>0,J33>0,K33>0),0,"Zero input")) -> 0
B34: 21 | C34: Net margin | D34: R5E00003_A001 | E34: % | F34: 2 | G34: =INDEX(F_Inputs!$B:$J, MATCH($D34, F_Inputs!$B:$B, 0), MATCH(G$5, F_Inputs!$B$2:$J$2, 0) ) -> 0.035 | H34: =INDEX(F_Inputs!$B:$J, MATCH($D34, F_Inputs!$B:$B, 0), MATCH(H$5, F_Inputs!$B$2:$J$2, 0) ) -> 0.03 | I34: =IF(I31=O32,0,INDEX(F_Inputs!$B:$J,MATCH($D34,F_Inputs!$B:$B,0),MATCH(I$5,F_Inputs!$B$2:$J$2,0))) -> 0.025 | J34: =IF(I31=O32,0,INDEX(F_Inputs!$B:$J,MATCH($D34,F_Inputs!$B:$B,0),MATCH(J$5,F_Inputs!$B$2:$J$2,0))) -> 0.02 | K34: =IF(I31=O32,0,INDEX(F_Inputs!$B:$J,MATCH($D34,F_Inputs!$B:$B,0),MATCH(K$5,F_Inputs!$B$2:$J$2,0))) -> 0.02 | M34: =IF(OR(I31=Lists!$D$4,I31=Lists!$D$2), IF(AND(I34=0,J34=0,K34=0),0,"Non zero input"),IF(AND(I34>0,J34>0,K34>0),0,"Zero input")) -> 0
B35: 22 | C35: Retail cost per customer | D35: CR603C01_R006 | E35: £ | F35: 2 | G35: =INDEX(F_Inputs!$B:$J, MATCH($D35, F_Inputs!$B:$B, 0), MATCH(G$5, F_Inputs!$B$2:$J$2, 0) ) -> 537.6788151 | H35: =INDEX(F_Inputs!$B:$J, MATCH($D35, F_Inputs!$B:$B, 0), MATCH(H$5, F_Inputs!$B$2:$J$2, 0) ) -> 534.7430756 | I35: =IF(I31=O32,0,INDEX(F_Inputs!$B:$J,MATCH($D35,F_Inputs!$B:$B,0),MATCH(I$5,F_Inputs!$B$2:$J$2,0))) -> 532.1724158 | J35: =IF(I31=O32,0,INDEX(F_Inputs!$B:$J,MATCH($D35,F_Inputs!$B:$B,0),MATCH(J$5,F_Inputs!$B$2:$J$2,0))) -> 528.8259518 | K35: =IF(I31=O32,0,INDEX(F_Inputs!$B:$J,MATCH($D35,F_Inputs!$B:$B,0),MATCH(K$5,F_Inputs!$B$2:$J$2,0))) -> 525.2781113 | M35: =IF(OR(I31=Lists!$D$4,I31=Lists!$D$2), IF(AND(I35=0,J35=0,K35=0),0,"Non zero input"),IF(AND(I35>0,J35>0,K35>0),0,"Zero input")) -> 0
B36: =B35+1 -> 23 | C36: Allocated wholesale charge at FD (Nominal price base) | D36: Calculation | E36: £m | F36: 3 | G36: =VLOOKUP($C30,'PR14 FD Calculations'!$D$460:$M$520,6,FALSE) -> 0.300586631 | H36: =VLOOKUP($C30,'PR14 FD Calculations'!$D$460:$M$520,7,FALSE) -> 0.3183351105 | I36: =VLOOKUP($C30,'PR14 FD Calculations'!$D$460:$M$520,8,FALSE) -> 0.3297116365 | J36: =VLOOKUP($C30,'PR14 FD Calculations'!$D$460:$M$520,9,FALSE) -> 0.3432684647 | K36: =VLOOKUP($C30,'PR14 FD Calculations'!$D$460:$M$520,10,FALSE) -> 0.361686738
B37: 24 | C37: Allocated wholesale charge at PR16 (Nominal price base) | D37: Calculation / Input | E37: £m | F37: 3 | G37: =VLOOKUP($C30,'PR14 FD Calculations'!$D$460:$M$520,6,FALSE) -> 0.300586631 | H37: =VLOOKUP($C30,'PR14 FD Calculations'!$D$460:$M$520,7,FALSE) -> 0.3183351105 | I37: =IF( I31 = O32, 0, VLOOKUP( $C30, 'PR14 FD Calculations'!$D$460:$M$520, 8, FALSE ) ) -> 0.3297116365 | J37: =IF( I31 = O32, 0, VLOOKUP( $C30, 'PR14 FD Calculations'!$D$460:$M$520, 9, FALSE ) ) -> 0.3432684647 | K37: =IF( I31 = O32, 0, VLOOKUP( $C30, 'PR14 FD Calculations'!$D$460:$M$520, 10, FALSE ) ) -> 0.361686738 | M37: =IF(OR(I31=Lists!$D$4,I31=Lists!$D$2), IF(AND(I37=0,J37=0,K37=0),0,"Non zero input"),IF(AND(I37>0,J37>0,K37>0),0,"Zero input")) -> 0
B39: E | C39: Tariff Band 4
B40: =B37+1 -> 25 | C40: Tariff name | G40: =INDEX('Default tariff names PR14'!$B$2:$S$62, MATCH($C39, 'Default tariff names PR14'!$A$2:$A$62, 0),MATCH($O$8, 'Default tariff names PR14'!$B$1:$X$1, 0) ) -> Northern area high user metered | I40: =IF(G40="Not used at PR14",O40,G40) -> Northern area high user metered | M40: 0 | O40: =IF(G40="Not used at PR14",Lists!$D$4,G40) -> Northern area high user metered
B41: =B40+1 -> 26 | C41: Tariff categorisation | G41: =INDEX(Categorisation!$B$4:$S$63, MATCH($C39, Categorisation!$A$4:$A$63, 0), MATCH($O$8, Categorisation!$B$3:$S$3, 0) ) -> Water - metered / assessed | I41: =IF(I40 = G40, G41, "Not applicable" ) -> Water - metered / assessed | M41: =IF(OR(I40="Insert new tariff name",I40="Not used from 2017"),IF(I41="Not applicable",0,"Invalid input"),IF(I41="Not applicable","Select category",0)) -> 0 | O41: =Lists!$D$2 -> Not used from 2017
B42: 27 | C42: Number of customers | D42: CR604M01_R006 | E42: number | F42: 0 | G42: =INDEX(F_Inputs!$B:$J,MATCH($D42,F_Inputs!$B:$B,0),MATCH(G$5,F_Inputs!$B$2:$J$2,0)) -> 1 | H42: =INDEX(F_Inputs!$B:$J,MATCH($D42,F_Inputs!$B:$B,0),MATCH(H$5,F_Inputs!$B$2:$J$2,0)) -> 1 | I42: =IF(I40=O41,0,INDEX(F_Inputs!$B:$J,MATCH($D42,F_Inputs!$B:$B,0),MATCH(I$5,F_Inputs!$B$2:$J$2,0))) -> 1 | J42: =IF(I40=O41,0,INDEX(F_Inputs!$B:$J,MATCH($D42,F_Inputs!$B:$B,0),MATCH(J$5,F_Inputs!$B$2:$J$2,0))) -> 1 | K42: =IF(I40=O41,0,INDEX(F_Inputs!$B:$J,MATCH($D42,F_Inputs!$B:$B,0),MATCH(K$5,F_Inputs!$B$2:$J$2,0))) -> 1 | M42: =IF(OR(I40=Lists!$D$4,I40=Lists!$D$2), IF(AND(I42=0,J42=0,K42=0),0,"Non zero input"),IF(AND(I42>0,J42>0,K42>0),0,"Zero input")) -> 0
B43: 28 | C43: Net margin | D43: R5E00004_A001 | E43: % | F43: 2 | G43: =INDEX(F_Inputs!$B:$J, MATCH($D43, F_Inputs!$B:$B, 0), MATCH(G$5, F_Inputs!$B$2:$J$2, 0) ) -> 0.035 | H43: =INDEX(F_Inputs!$B:$J, MATCH($D43, F_Inputs!$B:$B, 0), MATCH(H$5, F_Inputs!$B$2:$J$2, 0) ) -> 0.03 | I43: =IF(I40=O41,0,INDEX(F_Inputs!$B:$J,MATCH($D43,F_Inputs!$B:$B,0),MATCH(I$5,F_Inputs!$B$2:$J$2,0))) -> 0.025 | J43: =IF(I40=O41,0,INDEX(F_Inputs!$B:$J,MATCH($D43,F_Inputs!$B:$B,0),MATCH(J$5,F_Inputs!$B$2:$J$2,0))) -> 0.02 | K43: =IF(I40=O41,0,INDEX(F_Inputs!$B:$J,MATCH($D43,F_Inputs!$B:$B,0),MATCH(K$5,F_Inputs!$B$2:$J$2,0))) -> 0.02 | M43: =IF(OR(I40=Lists!$D$4,I40=Lists!$D$2), IF(AND(I43=0,J43=0,K43=0),0,"Non zero input"),IF(AND(I43>0,J43>0,K43>0),0,"Zero input")) -> 0
B44: 29 | C44: Retail cost per customer | D44: CR604C01_R006 | E44: £ | F44: 2 | G44: =INDEX(F_Inputs!$B:$J, MATCH($D44, F_Inputs!$B:$B, 0), MATCH(G$5, F_Inputs!$B$2:$J$2, 0) ) -> 613.5479166 | H44: =INDEX(F_Inputs!$B:$J, MATCH($D44, F_Inputs!$B:$B, 0), MATCH(H$5, F_Inputs!$B$2:$J$2, 0) ) -> 610.1566148 | I44: =IF(I40=O41,0,INDEX(F_Inputs!$B:$J,MATCH($D44,F_Inputs!$B:$B,0),MATCH(I$5,F_Inputs!$B$2:$J$2,0))) -> 607.1833622 | J44: =IF(I40=O41,0,INDEX(F_Inputs!$B:$J,MATCH($D44,F_Inputs!$B:$B,0),MATCH(J$5,F_Inputs!$B$2:$J$2,0))) -> 603.3312885 | K44: =IF(I40=O41,0,INDEX(F_Inputs!$B:$J,MATCH($D44,F_Inputs!$B:$B,0),MATCH(K$5,F_Inputs!$B$2:$J$2,0))) -> 599.2561258 | M44: =IF(OR(I40=Lists!$D$4,I40=Lists!$D$2), IF(AND(I44=0,J44=0,K44=0),0,"Non zero input"),IF(AND(I44>0,J44>0,K44>0),0,"Zero input")) -> 0
B45: =B44+1 -> 30 | C45: Allocated wholesale charge at FD (Nominal price base) | D45: Calculation | E45: £m | F45: 3 | G45: =VLOOKUP($C39,'PR14 FD Calculations'!$D$460:$M$520,6,FALSE) -> 0.08692580064 | H45: =VLOOKUP($C39,'PR14 FD Calculations'!$D$460:$M$520,7,FALSE) -> 0.09064366843 | I45: =VLOOKUP($C39,'PR14 FD Calculations'!$D$460:$M$520,8,FALSE) -> 0.09470022806 | J45: =VLOOKUP($C39,'PR14 FD Calculations'!$D$460:$M$520,9,FALSE) -> 0.09921152024 | K45: =VLOOKUP($C39,'PR14 FD Calculations'!$D$460:$M$520,10,FALSE) -> 0.1040501121
B46: 31 | C46: Allocated wholesale charge at PR16 (Nominal price base) | D46: Calculation / Input | E46: £m | F46: 3 | G46: =VLOOKUP($C39,'PR14 FD Calculations'!$D$460:$M$520,6,FALSE) -> 0.08692580064 | H46: =VLOOKUP($C39,'PR14 FD Calculations'!$D$460:$M$520,7,FALSE) -> 0.09064366843 | I46: =IF( I40 = O41, 0, VLOOKUP( $C39, 'PR14 FD Calculations'!$D$460:$M$520, 8, FALSE ) ) -> 0.09470022806 | J46: =IF( I40 = O41, 0, VLOOKUP( $C39, 'PR14 FD Calculations'!$D$460:$M$520, 9, FALSE ) ) -> 0.09921152024 | K46: =IF( I40 = O41, 0, VLOOKUP( $C39, 'PR14 FD Calculations'!$D$460:$M$520, 10, FALSE ) ) -> 0.1040501121 | M46: =IF(OR(I40=Lists!$D$4,I40=Lists!$D$2), IF(AND(I46=0,J46=0,K46=0),0,"Non zero input"),IF(AND(I46>0,J46>0,K46>0),0,"Zero input")) -> 0
B48: F | C48: Tariff Band 5
B49: =B46+1 -> 32 | C49: Tariff name | G49: =INDEX('Default tariff names PR14'!$B$2:$S$62, MATCH($C48, 'Default tariff names PR14'!$A$2:$A$62, 0),MATCH($O$8, 'Default tariff names PR14'!$B$1:$X$1, 0) ) -> Southern area unmeasured | I49: =IF(G49="Not used at PR14",O49,G49) -> Southern area unmeasured | M49: 0 | O49: =IF(G49="Not used at PR14",Lists!$D$4,G49) -> Southern area unmeasured
B50: =B49+1 -> 33 | C50: Tariff categorisation | G50: =INDEX(Categorisation!$B$4:$S$63, MATCH($C48, Categorisation!$A$4:$A$63, 0), MATCH($O$8, Categorisation!$B$3:$S$3, 0) ) -> Water - unmeasured | I50: =IF(I49 = G49, G50, "Not applicable" ) -> Water - unmeasured | M50: =IF(OR(I49="Insert new tariff name",I49="Not used from 2017"),IF(I50="Not applicable",0,"Invalid input"),IF(I50="Not applicable","Select category",0)) -> 0 | O50: =Lists!$D$2 -> Not used from 2017
B51: 34 | C51: Number of customers | D51: CR605M01_R006 | E51: number | F51: 0 | G51: =INDEX(F_Inputs!$B:$J,MATCH($D51,F_Inputs!$B:$B,0),MATCH(G$5,F_Inputs!$B$2:$J$2,0)) -> 989.9741519 | H51: =INDEX(F_Inputs!$B:$J,MATCH($D51,F_Inputs!$B:$B,0),MATCH(H$5,F_Inputs!$B$2:$J$2,0)) -> 989.9741519 | I51: =IF(I49=O50,0,INDEX(F_Inputs!$B:$J,MATCH($D51,F_Inputs!$B:$B,0),MATCH(I$5,F_Inputs!$B$2:$J$2,0))) -> 989.9741519 | J51: =IF(I49=O50,0,INDEX(F_Inputs!$B:$J,MATCH($D51,F_Inputs!$B:$B,0),MATCH(J$5,F_Inputs!$B$2:$J$2,0))) -> 989.9741519 | K51: =IF(I49=O50,0,INDEX(F_Inputs!$B:$J,MATCH($D51,F_Inputs!$B:$B,0),MATCH(K$5,F_Inputs!$B$2:$J$2,0))) -> 989.9741519 | M51: =IF(OR(I49=Lists!$D$4,I49=Lists!$D$2), IF(AND(I51=0,J51=0,K51=0),0,"Non zero input"),IF(AND(I51>0,J51>0,K51>0),0,"Zero input")) -> 0
B52: 35 | C52: Net margin | D52: R5E00005_A001 | E52: % | F52: 2 | G52: =INDEX(F_Inputs!$B:$J, MATCH($D52, F_Inputs!$B:$B, 0), MATCH(G$5, F_Inputs!$B$2:$J$2, 0) ) -> 0.02270838559 | H52: =INDEX(F_Inputs!$B:$J, MATCH($D52, F_Inputs!$B:$B, 0), MATCH(H$5, F_Inputs!$B$2:$J$2, 0) ) -> 0.02384688226 | I52: =IF(I49=O50,0,INDEX(F_Inputs!$B:$J,MATCH($D52,F_Inputs!$B:$B,0),MATCH(I$5,F_Inputs!$B$2:$J$2,0))) -> 0.025 | J52: =IF(I49=O50,0,INDEX(F_Inputs!$B:$J,MATCH($D52,F_Inputs!$B:$B,0),MATCH(J$5,F_Inputs!$B$2:$J$2,0))) -> 0.02612907758 | K52: =IF(I49=O50,0,INDEX(F_Inputs!$B:$J,MATCH($D52,F_Inputs!$B:$B,0),MATCH(K$5,F_Inputs!$B$2:$J$2,0))) -> 0.02613673318 | M52: =IF(OR(I49=Lists!$D$4,I49=Lists!$D$2), IF(AND(I52=0,J52=0,K52=0),0,"Non zero input"),IF(AND(I52>0,J52>0,K52>0),0,"Zero input")) -> 0
B53: 36 | C53: Retail cost per customer | D53: CR605C01_R006 | E53: £ | F53: 2 | G53: =INDEX(F_Inputs!$B:$J, MATCH($D53, F_Inputs!$B:$B, 0), MATCH(G$5, F_Inputs!$B$2:$J$2, 0) ) -> 16.75503715 | H53: =INDEX(F_Inputs!$B:$J, MATCH($D53, F_Inputs!$B:$B, 0), MATCH(H$5, F_Inputs!$B$2:$J$2, 0) ) -> 17.17357298 | I53: =IF(I49=O50,0,INDEX(F_Inputs!$B:$J,MATCH($D53,F_Inputs!$B:$B,0),MATCH(I$5,F_Inputs!$B$2:$J$2,0))) -> 17.58552392 | J53: =IF(I49=O50,0,INDEX(F_Inputs!$B:$J,MATCH($D53,F_Inputs!$B:$B,0),MATCH(J$5,F_Inputs!$B$2:$J$2,0))) -> 17.89364185 | K53: =IF(I49=O50,0,INDEX(F_Inputs!$B:$J,MATCH($D53,F_Inputs!$B:$B,0),MATCH(K$5,F_Inputs!$B$2:$J$2,0))) -> 18.11274335 | M53: =IF(OR(I49=Lists!$D$4,I49=Lists!$D$2), IF(AND(I53=0,J53=0,K53=0),0,"Non zero input"),IF(AND(I53>0,J53>0,K53>0),0,"Zero input")) -> 0
B54: =B53+1 -> 37 | C54: Allocated wholesale charge at FD (Nominal price base) | D54: Calculation | E54: £m | F54: 3 | G54: =VLOOKUP($C48,'PR14 FD Calculations'!$D$460:$M$520,6,FALSE) -> 0.1256767729 | H54: =VLOOKUP($C48,'PR14 FD Calculations'!$D$460:$M$520,7,FALSE) -> 0.1310520426 | I54: =VLOOKUP($C48,'PR14 FD Calculations'!$D$460:$M$520,8,FALSE) -> 0.1369169909 | J54: =VLOOKUP($C48,'PR14 FD Calculations'!$D$460:$M$520,9,FALSE) -> 0.1434393886 | K54: =VLOOKUP($C48,'PR14 FD Calculations'!$D$460:$M$520,10,FALSE) -> 0.1504349941
B55: 38 | C55: Allocated wholesale charge at PR16 (Nominal price base) | D55: Calculation / Input | E55: £m | F55: 3 | G55: =VLOOKUP($C48,'PR14 FD Calculations'!$D$460:$M$520,6,FALSE) -> 0.1256767729 | H55: =VLOOKUP($C48,'PR14 FD Calculations'!$D$460:$M$520,7,FALSE) -> 0.1310520426 | I55: =IF( I49 = O50, 0, VLOOKUP( $C48, 'PR14 FD Calculations'!$D$460:$M$520, 8, FALSE ) ) -> 0.1369169909 | J55: =IF( I49 = O50, 0, VLOOKUP( $C48, 'PR14 FD Calculations'!$D$460:$M$520, 9, FALSE ) ) -> 0.1434393886 | K55: =IF( I49 = O50, 0, VLOOKUP( $C48, 'PR14 FD Calculations'!$D$460:$M$520, 10, FALSE ) ) -> 0.1504349941 | M55: =IF(OR(I49=Lists!$D$4,I49=Lists!$D$2), IF(AND(I55=0,J55=0,K55=0),0,"Non zero input"),IF(AND(I55>0,J55>0,K55>0),0,"Zero input")) -> 0
B57: G | C57: Tariff Band 6
B58: =B55+1 -> 39 | C58: Tariff name | G58: =INDEX('Default tariff names PR14'!$B$2:$S$62, MATCH($C57, 'Default tariff names PR14'!$A$2:$A$62, 0),MATCH($O$8, 'Default tariff names PR14'!$B$1:$X$1, 0) ) -> Southern area standard user metered | I58: =IF(G58="Not used at PR14",O58,G58) -> Southern area standard user metered | M58: 0 | O58: =IF(G58="Not used at PR14",Lists!$D$4,G58) -> Southern area standard user metered
B59: =B58+1 -> 40 | C59: Tariff categorisation | G59: =INDEX(Categorisation!$B$4:$S$63, MATCH($C57, Categorisation!$A$4:$A$63, 0), MATCH($O$8, Categorisation!$B$3:$S$3, 0) ) -> Water - metered / assessed | I59: =IF(I58 = G58, G59, "Not applicable" ) -> Water - metered / assessed | M59: =IF(OR(I58="Insert new tariff name",I58="Not used from 2017"),IF(I59="Not applicable",0,"Invalid input"),IF(I59="Not applicable","Select category",0)) -> 0 | O59: =Lists!$D$2 -> Not used from 2017
B60: 41 | C60: Number of customers | D60: CR606M01_R006 | E60: number | F60: 0 | G60: =INDEX(F_Inputs!$B:$J,MATCH($D60,F_Inputs!$B:$B,0),MATCH(G$5,F_Inputs!$B$2:$J$2,0)) -> 8604.784936 | H60: =INDEX(F_Inputs!$B:$J,MATCH($D60,F_Inputs!$B:$B,0),MATCH(H$5,F_Inputs!$B$2:$J$2,0)) -> 8604.784936 | I60: =IF(I58=O59,0,INDEX(F_Inputs!$B:$J,MATCH($D60,F_Inputs!$B:$B,0),MATCH(I$5,F_Inputs!$B$2:$J$2,0))) -> 8604.784936 | J60: =IF(I58=O59,0,INDEX(F_Inputs!$B:$J,MATCH($D60,F_Inputs!$B:$B,0),MATCH(J$5,F_Inputs!$B$2:$J$2,0))) -> 8604.784936 | K60: =IF(I58=O59,0,INDEX(F_Inputs!$B:$J,MATCH($D60,F_Inputs!$B:$B,0),MATCH(K$5,F_Inputs!$B$2:$J$2,0))) -> 8604.784936 | M60: =IF(OR(I58=Lists!$D$4,I58=Lists!$D$2), IF(AND(I60=0,J60=0,K60=0),0,"Non zero input"),IF(AND(I60>0,J60>0,K60>0),0,"Zero input")) -> 0
B61: 42 | C61: Net margin | D61: R5E00006_A001 | E61: % | F61: 2 | G61: =INDEX(F_Inputs!$B:$J, MATCH($D61, F_Inputs!$B:$B, 0), MATCH(G$5, F_Inputs!$B$2:$J$2, 0) ) -> 0.02270838559 | H61: =INDEX(F_Inputs!$B:$J, MATCH($D61, F_Inputs!$B:$B, 0), MATCH(H$5, F_Inputs!$B$2:$J$2, 0) ) -> 0.02384688226 | I61: =IF(I58=O59,0,INDEX(F_Inputs!$B:$J,MATCH($D61,F_Inputs!$B:$B,0),MATCH(I$5,F_Inputs!$B$2:$J$2,0))) -> 0.025 | J61: =IF(I58=O59,0,INDEX(F_Inputs!$B:$J,MATCH($D61,F_Inputs!$B:$B,0),MATCH(J$5,F_Inputs!$B$2:$J$2,0))) -> 0.02612907758 | K61: =IF(I58=O59,0,INDEX(F_Inputs!$B:$J,MATCH($D61,F_Inputs!$B:$B,0),MATCH(K$5,F_Inputs!$B$2:$J$2,0))) -> 0.02613673318 | M61: =IF(OR(I58=Lists!$D$4,I58=Lists!$D$2), IF(AND(I61=0,J61=0,K61=0),0,"Non zero input"),IF(AND(I61>0,J61>0,K61>0),0,"Zero input")) -> 0
B62: 43 | C62: Retail cost per customer | D62: CR606C01_R006 | E62: £ | F62: 2 | G62: =INDEX(F_Inputs!$B:$J, MATCH($D62, F_Inputs!$B:$B, 0), MATCH(G$5, F_Inputs!$B$2:$J$2, 0) ) -> 31.72960609 | H62: =INDEX(F_Inputs!$B:$J, MATCH($D62, F_Inputs!$B:$B, 0), MATCH(H$5, F_Inputs!$B$2:$J$2, 0) ) -> 32.05266524 | I62: =IF(I58=O59,0,INDEX(F_Inputs!$B:$J,MATCH($D62,F_Inputs!$B:$B,0),MATCH(I$5,F_Inputs!$B$2:$J$2,0))) -> 32.37979012 | J62: =IF(I58=O59,0,INDEX(F_Inputs!$B:$J,MATCH($D62,F_Inputs!$B:$B,0),MATCH(J$5,F_Inputs!$B$2:$J$2,0))) -> 32.58361764 | K62: =IF(I58=O59,0,INDEX(F_Inputs!$B:$J,MATCH($D62,F_Inputs!$B:$B,0),MATCH(K$5,F_Inputs!$B$2:$J$2,0))) -> 32.69504536 | M62: =IF(OR(I58=Lists!$D$4,I58=Lists!$D$2), IF(AND(I62=0,J62=0,K62=0),0,"Non zero input"),IF(AND(I62>0,J62>0,K62>0),0,"Zero input")) -> 0
B63: =B62+1 -> 44 | C63: Allocated wholesale charge at FD (Nominal price base) | D63: Calculation | E63: £m | F63: 3 | G63: =VLOOKUP($C57,'PR14 FD Calculations'!$D$460:$M$520,6,FALSE) -> 5.307980672 | H63: =VLOOKUP($C57,'PR14 FD Calculations'!$D$460:$M$520,7,FALSE) -> 5.53520513 | I63: =VLOOKUP($C57,'PR14 FD Calculations'!$D$460:$M$520,8,FALSE) -> 5.791344048 | J63: =VLOOKUP($C57,'PR14 FD Calculations'!$D$460:$M$520,9,FALSE) -> 6.076558752 | K63: =VLOOKUP($C57,'PR14 FD Calculations'!$D$460:$M$520,10,FALSE) -> 6.36930425
B64: 45 | C64: Allocated wholesale charge at PR16 (Nominal price base) | D64: Calculation / Input | E64: £m | F64: 3 | G64: =VLOOKUP($C57,'PR14 FD Calculations'!$D$460:$M$520,6,FALSE) -> 5.307980672 | H64: =VLOOKUP($C57,'PR14 FD Calculations'!$D$460:$M$520,7,FALSE) -> 5.53520513 | I64: =IF( I58 = O59, 0, VLOOKUP( $C57, 'PR14 FD Calculations'!$D$460:$M$520, 8, FALSE ) ) -> 5.791344048 | J64: =IF( I58 = O59, 0, VLOOKUP( $C57, 'PR14 FD Calculations'!$D$460:$M$520, 9, FALSE ) ) -> 6.076558752 | K64: =IF( I58 = O59, 0, VLOOKUP( $C57, 'PR14 FD Calculations'!$D$460:$M$520, 10, FALSE ) ) -> 6.36930425 | M64: =IF(OR(I58=Lists!$D$4,I58=Lists!$D$2), IF(AND(I64=0,J64=0,K64=0),0,"Non zero input"),IF(AND(I64>0,J64>0,K64>0),0,"Zero input")) -> 0
B66: H | C66: Tariff Band 7
B67: =B64+1 -> 46 | C67: Tariff name | G67: =INDEX('Default tariff names PR14'!$B$2:$S$62, MATCH($C66, 'Default tariff names PR14'!$A$2:$A$62, 0),MATCH($O$8, 'Default tariff names PR14'!$B$1:$X$1, 0) ) -> Southern area mid user metered | I67: =IF(G67="Not used at PR14",O67,G67) -> Southern area mid user metered | M67: 0 | O67: =IF(G67="Not used at PR14",Lists!$D$4,G67) -> Southern area mid user metered
B68: =B67+1 -> 47 | C68: Tariff categorisation | G68: =INDEX(Categorisation!$B$4:$S$63, MATCH($C66, Categorisation!$A$4:$A$63, 0), MATCH($O$8, Categorisation!$B$3:$S$3, 0) ) -> Water - metered / assessed | I68: =IF(I67 = G67, G68, "Not applicable" ) -> Water - metered / assessed | M68: =IF(OR(I67="Insert new tariff name",I67="Not used from 2017"),IF(I68="Not applicable",0,"Invalid input"),IF(I68="Not applicable","Select category",0)) -> 0 | O68: =Lists!$D$2 -> Not used from 2017
B69: 48 | C69: Number of customers | D69: CR607M01_R006 | E69: number | F69: 0 | G69: =INDEX(F_Inputs!$B:$J,MATCH($D69,F_Inputs!$B:$B,0),MATCH(G$5,F_Inputs!$B$2:$J$2,0)) -> 34 | H69: =INDEX(F_Inputs!$B:$J,MATCH($D69,F_Inputs!$B:$B,0),MATCH(H$5,F_Inputs!$B$2:$J$2,0)) -> 34 | I69: =IF(I67=O68,0,INDEX(F_Inputs!$B:$J,MATCH($D69,F_Inputs!$B:$B,0),MATCH(I$5,F_Inputs!$B$2:$J$2,0))) -> 34 | J69: =IF(I67=O68,0,INDEX(F_Inputs!$B:$J,MATCH($D69,F_Inputs!$B:$B,0),MATCH(J$5,F_Inputs!$B$2:$J$2,0))) -> 34 | K69: =IF(I67=O68,0,INDEX(F_Inputs!$B:$J,MATCH($D69,F_Inputs!$B:$B,0),MATCH(K$5,F_Inputs!$B$2:$J$2,0))) -> 34 | M69: =IF(OR(I67=Lists!$D$4,I67=Lists!$D$2), IF(AND(I69=0,J69=0,K69=0),0,"Non zero input"),IF(AND(I69>0,J69>0,K69>0),0,"Zero input")) -> 0
B70: 49 | C70: Net margin | D70: R5E00007_A001 | E70: % | F70: 2 | G70: =INDEX(F_Inputs!$B:$J, MATCH($D70, F_Inputs!$B:$B, 0), MATCH(G$5, F_Inputs!$B$2:$J$2, 0) ) -> 0.035 | H70: =INDEX(F_Inputs!$B:$J, MATCH($D70, F_Inputs!$B:$B, 0), MATCH(H$5, F_Inputs!$B$2:$J$2, 0) ) -> 0.03 | I70: =IF(I67=O68,0,INDEX(F_Inputs!$B:$J,MATCH($D70,F_Inputs!$B:$B,0),MATCH(I$5,F_Inputs!$B$2:$J$2,0))) -> 0.025 | J70: =IF(I67=O68,0,INDEX(F_Inputs!$B:$J,MATCH($D70,F_Inputs!$B:$B,0),MATCH(J$5,F_Inputs!$B$2:$J$2,0))) -> 0.02 | K70: =IF(I67=O68,0,INDEX(F_Inputs!$B:$J,MATCH($D70,F_Inputs!$B:$B,0),MATCH(K$5,F_Inputs!$B$2:$J$2,0))) -> 0.02 | M70: =IF(OR(I67=Lists!$D$4,I67=Lists!$D$2), IF(AND(I70=0,J70=0,K70=0),0,"Non zero input"),IF(AND(I70>0,J70>0,K70>0),0,"Zero input")) -> 0
B71: 50 | C71: Retail cost per customer | D71: CR607C01_R006 | E71: £ | F71: 2 | G71: =INDEX(F_Inputs!$B:$J, MATCH($D71, F_Inputs!$B:$B, 0), MATCH(G$5, F_Inputs!$B$2:$J$2, 0) ) -> 537.6788151 | H71: =INDEX(F_Inputs!$B:$J, MATCH($D71, F_Inputs!$B:$B, 0), MATCH(H$5, F_Inputs!$B$2:$J$2, 0) ) -> 534.7430756 | I71: =IF(I67=O68,0,INDEX(F_Inputs!$B:$J,MATCH($D71,F_Inputs!$B:$B,0),MATCH(I$5,F_Inputs!$B$2:$J$2,0))) -> 532.1724158 | J71: =IF(I67=O68,0,INDEX(F_Inputs!$B:$J,MATCH($D71,F_Inputs!$B:$B,0),MATCH(J$5,F_Inputs!$B$2:$J$2,0))) -> 528.8259518 | K71: =IF(I67=O68,0,INDEX(F_Inputs!$B:$J,MATCH($D71,F_Inputs!$B:$B,0),MATCH(K$5,F_Inputs!$B$2:$J$2,0))) -> 525.2781113 | M71: =IF(OR(I67=Lists!$D$4,I67=Lists!$D$2), IF(AND(I71=0,J71=0,K71=0),0,"Non zero input"),IF(AND(I71>0,J71>0,K71>0),0,"Zero input")) -> 0
B72: =B71+1 -> 51 | C72: Allocated wholesale charge at FD (Nominal price base) | D72: Calculation | E72: £m | F72: 3 | G72: =VLOOKUP($C66,'PR14 FD Calculations'!$D$460:$M$520,6,FALSE) -> 0.6238235873 | H72: =VLOOKUP($C66,'PR14 FD Calculations'!$D$460:$M$520,7,FALSE) -> 0.6606579605 | I72: =VLOOKUP($C66,'PR14 FD Calculations'!$D$460:$M$520,8,FALSE) -> 0.6842682763 | J72: =VLOOKUP($C66,'PR14 FD Calculations'!$D$460:$M$520,9,FALSE) -> 0.7124034902 | K72: =VLOOKUP($C66,'PR14 FD Calculations'!$D$460:$M$520,10,FALSE) -> 0.7506279226
B73: 52 | C73: Allocated wholesale charge at PR16 (Nominal price base) | D73: Calculation / Input | E73: £m | F73: 3 | G73: =VLOOKUP($C66,'PR14 FD Calculations'!$D$460:$M$520,6,FALSE) -> 0.6238235873 | H73: =VLOOKUP($C66,'PR14 FD Calculations'!$D$460:$M$520,7,FALSE) -> 0.6606579605 | I73: =IF( I67 = O68, 0, VLOOKUP( $C66, 'PR14 FD Calculations'!$D$460:$M$520, 8, FALSE ) ) -> 0.6842682763 | J73: =IF( I67 = O68, 0, VLOOKUP( $C66, 'PR14 FD Calculations'!$D$460:$M$520, 9, FALSE ) ) -> 0.7124034902 | K73: =IF( I67 = O68, 0, VLOOKUP( $C66, 'PR14 FD Calculations'!$D$460:$M$520, 10, FALSE ) ) -> 0.7506279226 | M73: =IF(OR(I67=Lists!$D$4,I67=Lists!$D$2), IF(AND(I73=0,J73=0,K73=0),0,"Non zero input"),IF(AND(I73>0,J73>0,K73>0),0,"Zero input")) -> 0
B75: I | C75: Tariff Band 8
B76: =B73+1 -> 53 | C76: Tariff name | G76: =INDEX('Default tariff names PR14'!$B$2:$S$62, MATCH($C75, 'Default tariff names PR14'!$A$2:$A$62, 0),MATCH($O$8, 'Default tariff names PR14'!$B$1:$X$1, 0) ) -> Southern area high user metered | I76: =IF(G76="Not used at PR14",O76,G76) -> Southern area high user metered | M76: 0 | O76: =IF(G76="Not used at PR14",Lists!$D$4,G76) -> Southern area high user metered
B77: =B76+1 -> 54 | C77: Tariff categorisation | G77: =INDEX(Categorisation!$B$4:$S$63, MATCH($C75, Categorisation!$A$4:$A$63, 0), MATCH($O$8, Categorisation!$B$3:$S$3, 0) ) -> Water - metered / assessed | I77: =IF(I76 = G76, G77, "Not applicable" ) -> Water - metered / assessed | M77: =IF(OR(I76="Insert new tariff name",I76="Not used from 2017"),IF(I77="Not applicable",0,"Invalid input"),IF(I77="Not applicable","Select category",0)) -> 0 | O77: =Lists!$D$2 -> Not used from 2017
B78: 55 | C78: Number of customers | D78: CR608M01_R006 | E78: number | F78: 0 | G78: =INDEX(F_Inputs!$B:$J,MATCH($D78,F_Inputs!$B:$B,0),MATCH(G$5,F_Inputs!$B$2:$J$2,0)) -> 3 | H78: =INDEX(F_Inputs!$B:$J,MATCH($D78,F_Inputs!$B:$B,0),MATCH(H$5,F_Inputs!$B$2:$J$2,0)) -> 3 | I78: =IF(I76=O77,0,INDEX(F_Inputs!$B:$J,MATCH($D78,F_Inputs!$B:$B,0),MATCH(I$5,F_Inputs!$B$2:$J$2,0))) -> 3 | J78: =IF(I76=O77,0,INDEX(F_Inputs!$B:$J,MATCH($D78,F_Inputs!$B:$B,0),MATCH(J$5,F_Inputs!$B$2:$J$2,0))) -> 3 | K78: =IF(I76=O77,0,INDEX(F_Inputs!$B:$J,MATCH($D78,F_Inputs!$B:$B,0),MATCH(K$5,F_Inputs!$B$2:$J$2,0))) -> 3 | M78: =IF(OR(I76=Lists!$D$4,I76=Lists!$D$2), IF(AND(I78=0,J78=0,K78=0),0,"Non zero input"),IF(AND(I78>0,J78>0,K78>0),0,"Zero input")) -> 0
B79: 56 | C79: Net margin | D79: R5E00008_A001 | E79: % | F79: 2 | G79: =INDEX(F_Inputs!$B:$J, MATCH($D79, F_Inputs!$B:$B, 0), MATCH(G$5, F_Inputs!$B$2:$J$2, 0) ) -> 0.035 | H79: =INDEX(F_Inputs!$B:$J, MATCH($D79, F_Inputs!$B:$B, 0), MATCH(H$5, F_Inputs!$B$2:$J$2, 0) ) -> 0.03 | I79: =IF(I76=O77,0,INDEX(F_Inputs!$B:$J,MATCH($D79,F_Inputs!$B:$B,0),MATCH(I$5,F_Inputs!$B$2:$J$2,0))) -> 0.025 | J79: =IF(I76=O77,0,INDEX(F_Inputs!$B:$J,MATCH($D79,F_Inputs!$B:$B,0),MATCH(J$5,F_Inputs!$B$2:$J$2,0))) -> 0.02 | K79: =IF(I76=O77,0,INDEX(F_Inputs!$B:$J,MATCH($D79,F_Inputs!$B:$B,0),MATCH(K$5,F_Inputs!$B$2:$J$2,0))) -> 0.02 | M79: =IF(OR(I76=Lists!$D$4,I76=Lists!$D$2), IF(AND(I79=0,J79=0,K79=0),0,"Non zero input"),IF(AND(I79>0,J79>0,K79>0),0,"Zero input")) -> 0
B80: 57 | C80: Retail cost per customer | D80: CR608C01_R006 | E80: £ | F80: 2 | G80: =INDEX(F_Inputs!$B:$J, MATCH($D80, F_Inputs!$B:$B, 0), MATCH(G$5, F_Inputs!$B$2:$J$2, 0) ) -> 613.5479166 | H80: =INDEX(F_Inputs!$B:$J, MATCH($D80, F_Inputs!$B:$B, 0), MATCH(H$5, F_Inputs!$B$2:$J$2, 0) ) -> 610.1566148 | I80: =IF(I76=O77,0,INDEX(F_Inputs!$B:$J,MATCH($D80,F_Inputs!$B:$B,0),MATCH(I$5,F_Inputs!$B$2:$J$2,0))) -> 607.1833622 | J80: =IF(I76=O77,0,INDEX(F_Inputs!$B:$J,MATCH($D80,F_Inputs!$B:$B,0),MATCH(J$5,F_Inputs!$B$2:$J$2,0))) -> 603.3312885 | K80: =IF(I76=O77,0,INDEX(F_Inputs!$B:$J,MATCH($D80,F_Inputs!$B:$B,0),MATCH(K$5,F_Inputs!$B$2:$J$2,0))) -> 599.2561258 | M80: =IF(OR(I76=Lists!$D$4,I76=Lists!$D$2), IF(AND(I80=0,J80=0,K80=0),0,"Non zero input"),IF(AND(I80>0,J80>0,K80>0),0,"Zero input")) -> 0
B81: =B80+1 -> 58 | C81: Allocated wholesale charge at FD (Nominal price base) | D81: Calculation | E81: £m | F81: 3 | G81: =VLOOKUP($C75,'PR14 FD Calculations'!$D$460:$M$520,6,FALSE) -> 0.3342738957 | H81: =VLOOKUP($C75,'PR14 FD Calculations'!$D$460:$M$520,7,FALSE) -> 0.3485709875 | I81: =VLOOKUP($C75,'PR14 FD Calculations'!$D$460:$M$520,8,FALSE) -> 0.3641705216 | J81: =VLOOKUP($C75,'PR14 FD Calculations'!$D$460:$M$520,9,FALSE) -> 0.3815187335 | K81: =VLOOKUP($C75,'PR14 FD Calculations'!$D$460:$M$520,10,FALSE) -> 0.400125579
B82: 59 | C82: Allocated wholesale charge at PR16 (Nominal price base) | D82: Calculation / Input | E82: £m | F82: 3 | G82: =VLOOKUP($C75,'PR14 FD Calculations'!$D$460:$M$520,6,FALSE) -> 0.3342738957 | H82: =VLOOKUP($C75,'PR14 FD Calculations'!$D$460:$M$520,7,FALSE) -> 0.3485709875 | I82: =IF( I76 = O77, 0, VLOOKUP( $C75, 'PR14 FD Calculations'!$D$460:$M$520, 8, FALSE ) ) -> 0.3641705216 | J82: =IF( I76 = O77, 0, VLOOKUP( $C75, 'PR14 FD Calculations'!$D$460:$M$520, 9, FALSE ) ) -> 0.3815187335 | K82: =IF( I76 = O77, 0, VLOOKUP( $C75, 'PR14 FD Calculations'!$D$460:$M$520, 10, FALSE ) ) -> 0.400125579 | M82: =IF(OR(I76=Lists!$D$4,I76=Lists!$D$2), IF(AND(I82=0,J82=0,K82=0),0,"Non zero input"),IF(AND(I82>0,J82>0,K82>0),0,"Zero input")) -> 0
B84: J | C84: Tariff Band 9
B85: =B82+1 -> 60 | C85: Tariff name | G85: =INDEX('Default tariff names PR14'!$B$2:$S$62, MATCH($C84, 'Default tariff names PR14'!$A$2:$A$62, 0),MATCH($O$8, 'Default tariff names PR14'!$B$1:$X$1, 0) ) -> Special agreement 1 metered | I85: =IF(G85="Not used at PR14",O85,G85) -> Special agreement 1 metered | M85: =IF(OR(I85=G85, I85="Not used from 2017", G85 = "Not used at PR14" ), 0, "Invalid input") -> 0 | O85: =IF(G85="Not used at PR14",Lists!$D$4,G85) -> Special agreement 1 metered
B86: =B85+1 -> 61 | C86: Tariff categorisation | G86: =INDEX(Categorisation!$B$4:$S$63, MATCH($C84, Categorisation!$A$4:$A$63, 0), MATCH($O$8, Categorisation!$B$3:$S$3, 0) ) -> Water - special agreement | I86: =IF(I85 = G85, G86, "Not applicable" ) -> Water - special agreement | M86: =IF(OR(I85="Insert new tariff name",I85="Not used from 2017"),IF(I86="Not applicable",0,"Invalid input"),IF(I86="Not applicable","Select category",0)) -> 0 | O86: =Lists!$D$2 -> Not used from 2017
B87: 62 | C87: Number of customers | D87: CR609M01_R006 | E87: number | F87: 0 | G87: =INDEX(F_Inputs!$B:$J,MATCH($D87,F_Inputs!$B:$B,0),MATCH(G$5,F_Inputs!$B$2:$J$2,0)) -> 1 | H87: =INDEX(F_Inputs!$B:$J,MATCH($D87,F_Inputs!$B:$B,0),MATCH(H$5,F_Inputs!$B$2:$J$2,0)) -> 1 | I87: =IF(I85=O86,0,INDEX(F_Inputs!$B:$J,MATCH($D87,F_Inputs!$B:$B,0),MATCH(I$5,F_Inputs!$B$2:$J$2,0))) -> 1 | J87: =IF(I85=O86,0,INDEX(F_Inputs!$B:$J,MATCH($D87,F_Inputs!$B:$B,0),MATCH(J$5,F_Inputs!$B$2:$J$2,0))) -> 1 | K87: =IF(I85=O86,0,INDEX(F_Inputs!$B:$J,MATCH($D87,F_Inputs!$B:$B,0),MATCH(K$5,F_Inputs!$B$2:$J$2,0))) -> 1 | M87: =IF(OR(I85=Lists!$D$4,I85=Lists!$D$2), IF(AND(I87=0,J87=0,K87=0),0,"Non zero input"),IF(AND(I87>0,J87>0,K87>0),0,"Zero input")) -> 0
B88: 63 | C88: Net margin | D88: R5E00009_A001 | E88: % | F88: 2 | G88: =INDEX(F_Inputs!$B:$J, MATCH($D88, F_Inputs!$B:$B, 0), MATCH(G$5, F_Inputs!$B$2:$J$2, 0) ) -> 0.035 | H88: =INDEX(F_Inputs!$B:$J, MATCH($D88, F_Inputs!$B:$B, 0), MATCH(H$5, F_Inputs!$B$2:$J$2, 0) ) -> 0.03 | I88: =IF(I85=O86,0,INDEX(F_Inputs!$B:$J,MATCH($D88,F_Inputs!$B:$B,0),MATCH(I$5,F_Inputs!$B$2:$J$2,0))) -> 0.025 | J88: =IF(I85=O86,0,INDEX(F_Inputs!$B:$J,MATCH($D88,F_Inputs!$B:$B,0),MATCH(J$5,F_Inputs!$B$2:$J$2,0))) -> 0.02 | K88: =IF(I85=O86,0,INDEX(F_Inputs!$B:$J,MATCH($D88,F_Inputs!$B:$B,0),MATCH(K$5,F_Inputs!$B$2:$J$2,0))) -> 0.02 | M88: =IF(OR(I85=Lists!$D$4,I85=Lists!$D$2), IF(AND(I88=0,J88=0,K88=0),0,"Non zero input"),IF(AND(I88>0,J88>0,K88>0),0,"Zero input")) -> 0
B89: 64 | C89: Retail cost per customer | D89: CR609C01_R006 | E89: £ | F89: 2 | G89: =INDEX(F_Inputs!$B:$J, MATCH($D89, F_Inputs!$B:$B, 0), MATCH(G$5, F_Inputs!$B$2:$J$2, 0) ) -> 3609.601546 | H89: =INDEX(F_Inputs!$B:$J, MATCH($D89, F_Inputs!$B:$B, 0), MATCH(H$5, F_Inputs!$B$2:$J$2, 0) ) -> 3587.08388 | I89: =IF(I85=O86,0,INDEX(F_Inputs!$B:$J,MATCH($D89,F_Inputs!$B:$B,0),MATCH(I$5,F_Inputs!$B$2:$J$2,0))) -> 3567.116036 | J89: =IF(I85=O86,0,INDEX(F_Inputs!$B:$J,MATCH($D89,F_Inputs!$B:$B,0),MATCH(J$5,F_Inputs!$B$2:$J$2,0))) -> 3542.374337 | K89: =IF(I85=O86,0,INDEX(F_Inputs!$B:$J,MATCH($D89,F_Inputs!$B:$B,0),MATCH(K$5,F_Inputs!$B$2:$J$2,0))) -> 3516.740866 | M89: =IF(OR(I85=Lists!$D$4,I85=Lists!$D$2), IF(AND(I89=0,J89=0,K89=0),0,"Non zero input"),IF(AND(I89>0,J89>0,K89>0),0,"Zero input")) -> 0
B90: =B89+1 -> 65 | C90: Allocated wholesale charge at FD (Nominal price base) | D90: Calculation | E90: £m | F90: 3 | G90: =VLOOKUP($C84,'PR14 FD Calculations'!$D$460:$M$520,6,FALSE) -> 0.4770334193 | H90: =VLOOKUP($C84,'PR14 FD Calculations'!$D$460:$M$520,7,FALSE) -> 0.5077143374 | I90: =VLOOKUP($C84,'PR14 FD Calculations'!$D$460:$M$520,8,FALSE) -> 0.5302843389 | J90: =VLOOKUP($C84,'PR14 FD Calculations'!$D$460:$M$520,9,FALSE) -> 0.557742658 | K90: =VLOOKUP($C84,'PR14 FD Calculations'!$D$460:$M$520,10,FALSE) -> 0.5932249046
B91: 66 | C91: Allocated wholesale charge at PR16 (Nominal price base) | D91: Calculation / Input | E91: £m | F91: 3 | G91: =VLOOKUP($C84,'PR14 FD Calculations'!$D$460:$M$520,6,FALSE) -> 0.4770334193 | H91: =VLOOKUP($C84,'PR14 FD Calculations'!$D$460:$M$520,7,FALSE) -> 0.5077143374 | I91: =IF( I85 = O86, 0, VLOOKUP( $C84, 'PR14 FD Calculations'!$D$460:$M$520, 8, FALSE ) ) -> 0.5302843389 | J91: =IF( I85 = O86, 0, VLOOKUP( $C84, 'PR14 FD Calculations'!$D$460:$M$520, 9, FALSE ) ) -> 0.557742658 | K91: =IF( I85 = O86, 0, VLOOKUP( $C84, 'PR14 FD Calculations'!$D$460:$M$520, 10, FALSE ) ) -> 0.5932249046 | M91: =IF(OR(I85=Lists!$D$4,I85=Lists!$D$2), IF(AND(I91=0,J91=0,K91=0),0,"Non zero input"),IF(AND(I91>0,J91>0,K91>0),0,"Zero input")) -> 0
B93: K | C93: Tariff Band 10
B94: =B91+1 -> 67 | C94: Tariff name | G94: =INDEX('Default tariff names PR14'!$B$2:$S$62, MATCH($C93, 'Default tariff names PR14'!$A$2:$A$62, 0),MATCH($O$8, 'Default tariff names PR14'!$B$1:$X$1, 0) ) -> Special agreement 2 metered | I94: =IF(G94="Not used at PR14",O94,G94) -> Special agreement 2 metered | M94: =IF(OR(I94=G94, I94="Not used from 2017", G94 = "Not used at PR14" ), 0, "Invalid input") -> 0 | O94: =IF(G94="Not used at PR14",Lists!$D$4,G94) -> Special agreement 2 metered
B95: =B94+1 -> 68 | C95: Tariff categorisation | G95: =INDEX(Categorisation!$B$4:$S$63, MATCH($C93, Categorisation!$A$4:$A$63, 0), MATCH($O$8, Categorisation!$B$3:$S$3, 0) ) -> Water - special agreement | I95: =IF(I94 = G94, G95, "Not applicable" ) -> Water - special agreement | M95: =IF(OR(I94="Insert new tariff name",I94="Not used from 2017"),IF(I95="Not applicable",0,"Invalid input"),IF(I95="Not applicable","Select category",0)) -> 0 | O95: =Lists!$D$2 -> Not used from 2017
B96: 69 | C96: Number of customers | D96: CR610M01_R006 | E96: number | F96: 0 | G96: =INDEX(F_Inputs!$B:$J,MATCH($D96,F_Inputs!$B:$B,0),MATCH(G$5,F_Inputs!$B$2:$J$2,0)) -> 1 | H96: =INDEX(F_Inputs!$B:$J,MATCH($D96,F_Inputs!$B:$B,0),MATCH(H$5,F_Inputs!$B$2:$J$2,0)) -> 1 | I96: =IF(I94=O95,0,INDEX(F_Inputs!$B:$J,MATCH($D96,F_Inputs!$B:$B,0),MATCH(I$5,F_Inputs!$B$2:$J$2,0))) -> 1 | J96: =IF(I94=O95,0,INDEX(F_Inputs!$B:$J,MATCH($D96,F_Inputs!$B:$B,0),MATCH(J$5,F_Inputs!$B$2:$J$2,0))) -> 1 | K96: =IF(I94=O95,0,INDEX(F_Inputs!$B:$J,MATCH($D96,F_Inputs!$B:$B,0),MATCH(K$5,F_Inputs!$B$2:$J$2,0))) -> 1 | M96: =IF(OR(I94=Lists!$D$4,I94=Lists!$D$2), IF(AND(I96=0,J96=0,K96=0),0,"Non zero input"),IF(AND(I96>0,J96>0,K96>0),0,"Zero input")) -> 0
B97: 70 | C97: Net margin | D97: R5E00010_A001 | E97: % | F97: 2 | G97: =INDEX(F_Inputs!$B:$J, MATCH($D97, F_Inputs!$B:$B, 0), MATCH(G$5, F_Inputs!$B$2:$J$2, 0) ) -> 0.02270838559 | H97: =INDEX(F_Inputs!$B:$J, MATCH($D97, F_Inputs!$B:$B, 0), MATCH(H$5, F_Inputs!$B$2:$J$2, 0) ) -> 0.02384688226 | I97: =IF(I94=O95,0,INDEX(F_Inputs!$B:$J,MATCH($D97,F_Inputs!$B:$B,0),MATCH(I$5,F_Inputs!$B$2:$J$2,0))) -> 0.025 | J97: =IF(I94=O95,0,INDEX(F_Inputs!$B:$J,MATCH($D97,F_Inputs!$B:$B,0),MATCH(J$5,F_Inputs!$B$2:$J$2,0))) -> 0.02612907758 | K97: =IF(I94=O95,0,INDEX(F_Inputs!$B:$J,MATCH($D97,F_Inputs!$B:$B,0),MATCH(K$5,F_Inputs!$B$2:$J$2,0))) -> 0.02613673318 | M97: =IF(OR(I94=Lists!$D$4,I94=Lists!$D$2), IF(AND(I97=0,J97=0,K97=0),0,"Non zero input"),IF(AND(I97>0,J97>0,K97>0),0,"Zero input")) -> 0
B98: 71 | C98: Retail cost per customer | D98: CR610C01_R006 | E98: £ | F98: 2 | G98: =INDEX(F_Inputs!$B:$J, MATCH($D98, F_Inputs!$B:$B, 0), MATCH(G$5, F_Inputs!$B$2:$J$2, 0) ) -> 50.23640858 | H98: =INDEX(F_Inputs!$B:$J, MATCH($D98, F_Inputs!$B:$B, 0), MATCH(H$5, F_Inputs!$B$2:$J$2, 0) ) -> 50.44120428 | I98: =IF(I94=O95,0,INDEX(F_Inputs!$B:$J,MATCH($D98,F_Inputs!$B:$B,0),MATCH(I$5,F_Inputs!$B$2:$J$2,0))) -> 50.66323798 | J98: =IF(I94=O95,0,INDEX(F_Inputs!$B:$J,MATCH($D98,F_Inputs!$B:$B,0),MATCH(J$5,F_Inputs!$B$2:$J$2,0))) -> 50.73356625 | K98: =IF(I94=O95,0,INDEX(F_Inputs!$B:$J,MATCH($D98,F_Inputs!$B:$B,0),MATCH(K$5,F_Inputs!$B$2:$J$2,0))) -> 50.71175202 | M98: =IF(OR(I94=Lists!$D$4,I94=Lists!$D$2), IF(AND(I98=0,J98=0,K98=0),0,"Non zero input"),IF(AND(I98>0,J98>0,K98>0),0,"Zero input")) -> 0
B99: =B98+1 -> 72 | C99: Allocated wholesale charge at FD (Nominal price base) | D99: Calculation | E99: £m | F99: 3 | G99: =VLOOKUP($C93,'PR14 FD Calculations'!$D$460:$M$520,6,FALSE) -> 0.007035542219 | H99: =VLOOKUP($C93,'PR14 FD Calculations'!$D$460:$M$520,7,FALSE) -> 0.007488040694 | I99: =VLOOKUP($C93,'PR14 FD Calculations'!$D$460:$M$520,8,FALSE) -> 0.007820915063 | J99: =VLOOKUP($C93,'PR14 FD Calculations'!$D$460:$M$520,9,FALSE) -> 0.008225884937 | K99: =VLOOKUP($C93,'PR14 FD Calculations'!$D$460:$M$520,10,FALSE) -> 0.008749195953
B100: 73 | C100: Allocated wholesale charge at PR16 (Nominal price base) | D100: Calculation / Input | E100: £m | F100: 3 | G100: =VLOOKUP($C93,'PR14 FD Calculations'!$D$460:$M$520,6,FALSE) -> 0.007035542219 | H100: =VLOOKUP($C93,'PR14 FD Calculations'!$D$460:$M$520,7,FALSE) -> 0.007488040694 | I100: =IF( I94 = O95, 0, VLOOKUP( $C93, 'PR14 FD Calculations'!$D$460:$M$520, 8, FALSE ) ) -> 0.007820915063 | J100: =IF( I94 = O95, 0, VLOOKUP( $C93, 'PR14 FD Calculations'!$D$460:$M$520, 9, FALSE ) ) -> 0.008225884937 | K100: =IF( I94 = O95, 0, VLOOKUP( $C93, 'PR14 FD Calculations'!$D$460:$M$520, 10, FALSE ) ) -> 0.008749195953 | M100: =IF(OR(I94=Lists!$D$4,I94=Lists!$D$2), IF(AND(I100=0,J100=0,K100=0),0,"Non zero input"),IF(AND(I100>0,J100>0,K100>0),0,"Zero input")) -> 0
B102: L | C102: Tariff Band 11
B103: =B100+1 -> 74 | C103: Tariff name | G103: =INDEX('Default tariff names PR14'!$B$2:$S$62, MATCH($C102, 'Default tariff names PR14'!$A$2:$A$62, 0),MATCH($O$8, 'Default tariff names PR14'!$B$1:$X$1, 0) ) -> Not used at PR14 | I103: =IF(G103="Not used at PR14",O103,G103) -> Insert new tariff name | M103: =IF(OR(I103=G103, I103="Not used from 2017", G103 = "Not used at PR14" ), 0, "Invalid input") -> 0 | O103: =IF(G103="Not used at PR14",Lists!$D$4,G103) -> Insert new tariff name
B104: =B103+1 -> 75 | C104: Tariff categorisation | G104: =INDEX(Categorisation!$B$4:$S$63, MATCH($C102, Categorisation!$A$4:$A$63, 0), MATCH($O$8, Categorisation!$B$3:$S$3, 0) ) -> Not applicable | I104: =IF(I103 = G103, G104, "Not applicable" ) -> Not applicable | M104: =IF(OR(I103="Insert new tariff name",I103="Not used from 2017"),IF(I104="Not applicable",0,"Invalid input"),IF(I104="Not applicable","Select category",0)) -> 0 | O104: =Lists!$D$2 -> Not used from 2017
B105: 76 | C105: Number of customers | D105: CR611M01_R006 | E105: number | F105: 0 | G105: =INDEX(F_Inputs!$B:$J,MATCH($D105,F_Inputs!$B:$B,0),MATCH(G$5,F_Inputs!$B$2:$J$2,0)) -> 0 | H105: =INDEX(F_Inputs!$B:$J,MATCH($D105,F_Inputs!$B:$B,0),MATCH(H$5,F_Inputs!$B$2:$J$2,0)) -> 0 | I105: =IF(I103=O104,0,INDEX(F_Inputs!$B:$J,MATCH($D105,F_Inputs!$B:$B,0),MATCH(I$5,F_Inputs!$B$2:$J$2,0))) -> 0 | J105: =IF(I103=O104,0,INDEX(F_Inputs!$B:$J,MATCH($D105,F_Inputs!$B:$B,0),MATCH(J$5,F_Inputs!$B$2:$J$2,0))) -> 0 | K105: =IF(I103=O104,0,INDEX(F_Inputs!$B:$J,MATCH($D105,F_Inputs!$B:$B,0),MATCH(K$5,F_Inputs!$B$2:$J$2,0))) -> 0 | M105: =IF(OR(I103=Lists!$D$4,I103=Lists!$D$2), IF(AND(I105=0,J105=0,K105=0),0,"Non zero input"),IF(AND(I105>0,J105>0,K105>0),0,"Zero input")) -> 0
B106: 77 | C106: Net margin | D106: R5E00011_A001 | E106: % | F106: 2 | G106: =INDEX(F_Inputs!$B:$J, MATCH($D106, F_Inputs!$B:$B, 0), MATCH(G$5, F_Inputs!$B$2:$J$2, 0) ) -> 0 | H106: =INDEX(F_Inputs!$B:$J, MATCH($D106, F_Inputs!$B:$B, 0), MATCH(H$5, F_Inputs!$B$2:$J$2, 0) ) -> 0 | I106: =IF(I103=O104,0,INDEX(F_Inputs!$B:$J,MATCH($D106,F_Inputs!$B:$B,0),MATCH(I$5,F_Inputs!$B$2:$J$2,0))) -> 0 | J106: =IF(I103=O104,0,INDEX(F_Inputs!$B:$J,MATCH($D106,F_Inputs!$B:$B,0),MATCH(J$5,F_Inputs!$B$2:$J$2,0))) -> 0 | K106: =IF(I103=O104,0,INDEX(F_Inputs!$B:$J,MATCH($D106,F_Inputs!$B:$B,0),MATCH(K$5,F_Inputs!$B$2:$J$2,0))) -> 0 | M106: =IF(OR(I103=Lists!$D$4,I103=Lists!$D$2), IF(AND(I106=0,J106=0,K106=0),0,"Non zero input"),IF(AND(I106>0,J106>0,K106>0),0,"Zero input")) -> 0
B107: 78 | C107: Retail cost per customer | D107: CR611C01_R006 | E107: £ | F107: 2 | G107: =INDEX(F_Inputs!$B:$J, MATCH($D107, F_Inputs!$B:$B, 0), MATCH(G$5, F_Inputs!$B$2:$J$2, 0) ) -> 0 | H107: =INDEX(F_Inputs!$B:$J, MATCH($D107, F_Inputs!$B:$B, 0), MATCH(H$5, F_Inputs!$B$2:$J$2, 0) ) -> 0 | I107: =IF(I103=O104,0,INDEX(F_Inputs!$B:$J,MATCH($D107,F_Inputs!$B:$B,0),MATCH(I$5,F_Inputs!$B$2:$J$2,0))) -> 0 | J107: =IF(I103=O104,0,INDEX(F_Inputs!$B:$J,MATCH($D107,F_Inputs!$B:$B,0),MATCH(J$5,F_Inputs!$B$2:$J$2,0))) -> 0 | K107: =IF(I103=O104,0,INDEX(F_Inputs!$B:$J,MATCH($D107,F_Inputs!$B:$B,0),MATCH(K$5,F_Inputs!$B$2:$J$2,0))) -> 0 | M107: =IF(OR(I103=Lists!$D$4,I103=Lists!$D$2), IF(AND(I107=0,J107=0,K107=0),0,"Non zero input"),IF(AND(I107>0,J107>0,K107>0),0,"Zero input")) -> 0
B108: =B107+1 -> 79 | C108: Allocated wholesale charge at FD (Nominal price base) | D108: Calculation | E108: £m | F108: 3 | G108: =VLOOKUP($C102,'PR14 FD Calculations'!$D$460:$M$520,6,FALSE) -> 0 | H108: =VLOOKUP($C102,'PR14 FD Calculations'!$D$460:$M$520,7,FALSE) -> 0 | I108: =VLOOKUP($C102,'PR14 FD Calculations'!$D$460:$M$520,8,FALSE) -> 0 | J108: =VLOOKUP($C102,'PR14 FD Calculations'!$D$460:$M$520,9,FALSE) -> 0 | K108: =VLOOKUP($C102,'PR14 FD Calculations'!$D$460:$M$520,10,FALSE) -> 0
B109: 80 | C109: Allocated wholesale charge at PR16 (Nominal price base) | D109: Calculation / Input | E109: £m | F109: 3 | G109: =VLOOKUP($C102,'PR14 FD Calculations'!$D$460:$M$520,6,FALSE) -> 0 | H109: =VLOOKUP($C102,'PR14 FD Calculations'!$D$460:$M$520,7,FALSE) -> 0 | I109: =IF( I103 = O104, 0, VLOOKUP( $C102, 'PR14 FD Calculations'!$D$460:$M$520, 8, FALSE ) ) -> 0 | J109: =IF( I103 = O104, 0, VLOOKUP( $C102, 'PR14 FD Calculations'!$D$460:$M$520, 9, FALSE ) ) -> 0 | K109: =IF( I103 = O104, 0, VLOOKUP( $C102, 'PR14 FD Calculations'!$D$460:$M$520, 10, FALSE ) ) -> 0 | M109: =IF(OR(I103=Lists!$D$4,I103=Lists!$D$2), IF(AND(I109=0,J109=0,K109=0),0,"Non zero input"),IF(AND(I109>0,J109>0,K109>0),0,"Zero input")) -> 0
B111: M | C111: Tariff Band 12
B112: =B109+1 -> 81 | C112: Tariff name | G112: =INDEX('Default tariff names PR14'!$B$2:$S$62, MATCH($C111, 'Default tariff names PR14'!$A$2:$A$62, 0),MATCH($O$8, 'Default tariff names PR14'!$B$1:$X$1, 0) ) -> Not used at PR14 | I112: =IF(G112="Not used at PR14",O112,G112) -> Insert new tariff name | M112: =IF(OR(I112=G112, I112="Not used from 2017", G112 = "Not used at PR14" ), 0, "Invalid input") -> 0 | O112: =IF(G112="Not used at PR14",Lists!$D$4,G112) -> Insert new tariff name
B113: =B112+1 -> 82 | C113: Tariff categorisation | G113: =INDEX(Categorisation!$B$4:$S$63, MATCH($C111, Categorisation!$A$4:$A$63, 0), MATCH($O$8, Categorisation!$B$3:$S$3, 0) ) -> Not applicable | I113: =IF(I112 = G112, G113, "Not applicable" ) -> Not applicable | M113: =IF(OR(I112="Insert new tariff name",I112="Not used from 2017"),IF(I113="Not applicable",0,"Invalid input"),IF(I113="Not applicable","Select category",0)) -> 0 | O113: =Lists!$D$2 -> Not used from 2017
B114: 83 | C114: Number of customers | D114: CR612M01_R006 | E114: number | F114: 0 | G114: =INDEX(F_Inputs!$B:$J,MATCH($D114,F_Inputs!$B:$B,0),MATCH(G$5,F_Inputs!$B$2:$J$2,0)) -> 0 | H114: =INDEX(F_Inputs!$B:$J,MATCH($D114,F_Inputs!$B:$B,0),MATCH(H$5,F_Inputs!$B$2:$J$2,0)) -> 0 | I114: =IF(I112=O113,0,INDEX(F_Inputs!$B:$J,MATCH($D114,F_Inputs!$B:$B,0),MATCH(I$5,F_Inputs!$B$2:$J$2,0))) -> 0 | J114: =IF(I112=O113,0,INDEX(F_Inputs!$B:$J,MATCH($D114,F_Inputs!$B:$B,0),MATCH(J$5,F_Inputs!$B$2:$J$2,0))) -> 0 | K114: =IF(I112=O113,0,INDEX(F_Inputs!$B:$J,MATCH($D114,F_Inputs!$B:$B,0),MATCH(K$5,F_Inputs!$B$2:$J$2,0))) -> 0 | M114: =IF(OR(I112=Lists!$D$4,I112=Lists!$D$2), IF(AND(I114=0,J114=0,K114=0),0,"Non zero input"),IF(AND(I114>0,J114>0,K114>0),0,"Zero input")) -> 0
B115: 84 | C115: Net margin | D115: R5E00012_A001 | E115: % | F115: 2 | G115: =INDEX(F_Inputs!$B:$J, MATCH($D115, F_Inputs!$B:$B, 0), MATCH(G$5, F_Inputs!$B$2:$J$2, 0) ) -> 0 | H115: =INDEX(F_Inputs!$B:$J, MATCH($D115, F_Inputs!$B:$B, 0), MATCH(H$5, F_Inputs!$B$2:$J$2, 0) ) -> 0 | I115: =IF(I112=O113,0,INDEX(F_Inputs!$B:$J,MATCH($D115,F_Inputs!$B:$B,0),MATCH(I$5,F_Inputs!$B$2:$J$2,0))) -> 0 | J115: =IF(I112=O113,0,INDEX(F_Inputs!$B:$J,MATCH($D115,F_Inputs!$B:$B,0),MATCH(J$5,F_Inputs!$B$2:$J$2,0))) -> 0 | K115: =IF(I112=O113,0,INDEX(F_Inputs!$B:$J,MATCH($D115,F_Inputs!$B:$B,0),MATCH(K$5,F_Inputs!$B$2:$J$2,0))) -> 0 | M115: =IF(OR(I112=Lists!$D$4,I112=Lists!$D$2), IF(AND(I115=0,J115=0,K115=0),0,"Non zero input"),IF(AND(I115>0,J115>0,K115>0),0,"Zero input")) -> 0
B116: 85 | C116: Retail cost per customer | D116: CR612C01_R006 | E116: £ | F116: 2 | G116: =INDEX(F_Inputs!$B:$J, MATCH($D116, F_Inputs!$B:$B, 0), MATCH(G$5, F_Inputs!$B$2:$J$2, 0) ) -> 0 | H116: =INDEX(F_Inputs!$B:$J, MATCH($D116, F_Inputs!$B:$B, 0), MATCH(H$5, F_Inputs!$B$2:$J$2, 0) ) -> 0 | I116: =IF(I112=O113,0,INDEX(F_Inputs!$B:$J,MATCH($D116,F_Inputs!$B:$B,0),MATCH(I$5,F_Inputs!$B$2:$J$2,0))) -> 0 | J116: =IF(I112=O113,0,INDEX(F_Inputs!$B:$J,MATCH($D116,F_Inputs!$B:$B,0),MATCH(J$5,F_Inputs!$B$2:$J$2,0))) -> 0 | K116: =IF(I112=O113,0,INDEX(F_Inputs!$B:$J,MATCH($D116,F_Inputs!$B:$B,0),MATCH(K$5,F_Inputs!$B$2:$J$2,0))) -> 0 | M116: =IF(OR(I112=Lists!$D$4,I112=Lists!$D$2), IF(AND(I116=0,J116=0,K116=0),0,"Non zero input"),IF(AND(I116>0,J116>0,K116>0),0,"Zero input")) -> 0
B117: =B116+1 -> 86 | C117: Allocated wholesale charge at FD (Nominal price base) | D117: Calculation | E117: £m | F117: 3 | G117: =VLOOKUP($C111,'PR14 FD Calculations'!$D$460:$M$520,6,FALSE) -> 0 | H117: =VLOOKUP($C111,'PR14 FD Calculations'!$D$460:$M$520,7,FALSE) -> 0 | I117: =VLOOKUP($C111,'PR14 FD Calculations'!$D$460:$M$520,8,FALSE) -> 0 | J117: =VLOOKUP($C111,'PR14 FD Calculations'!$D$460:$M$520,9,FALSE) -> 0 | K117: =VLOOKUP($C111,'PR14 FD Calculations'!$D$460:$M$520,10,FALSE) -> 0
B118: 87 | C118: Allocated wholesale charge at PR16 (Nominal price base) | D118: Calculation / Input | E118: £m | F118: 3 | G118: =VLOOKUP($C111,'PR14 FD Calculations'!$D$460:$M$520,6,FALSE) -> 0 | H118: =VLOOKUP($C111,'PR14 FD Calculations'!$D$460:$M$520,7,FALSE) -> 0 | I118: =IF( I112 = O113, 0, VLOOKUP( $C111, 'PR14 FD Calculations'!$D$460:$M$520, 8, FALSE ) ) -> 0 | J118: =IF( I112 = O113, 0, VLOOKUP( $C111, 'PR14 FD Calculations'!$D$460:$M$520, 9, FALSE ) ) -> 0 | K118: =IF( I112 = O113, 0, VLOOKUP( $C111, 'PR14 FD Calculations'!$D$460:$M$520, 10, FALSE ) ) -> 0 | M118: =IF(OR(I112=Lists!$D$4,I112=Lists!$D$2), IF(AND(I118=0,J118=0,K118=0),0,"Non zero input"),IF(AND(I118>0,J118>0,K118>0),0,"Zero input")) -> 0
B120: N | C120: Tariff Band 13
B121: =B118+1 -> 88 | C121: Tariff name | G121: =INDEX('Default tariff names PR14'!$B$2:$S$62, MATCH($C120, 'Default tariff names PR14'!$A$2:$A$62, 0),MATCH($O$8, 'Default tariff names PR14'!$B$1:$X$1, 0) ) -> Not used at PR14 | I121: =IF(G121="Not used at PR14",O121,G121) -> Insert new tariff name | M121: =IF(OR(I121=G121, I121="Not used from 2017", G121 = "Not used at PR14" ), 0, "Invalid input") -> 0 | O121: =IF(G121="Not used at PR14",Lists!$D$4,G121) -> Insert new tariff name
B122: =B121+1 -> 89 | C122: Tariff categorisation | G122: =INDEX(Categorisation!$B$4:$S$63, MATCH($C120, Categorisation!$A$4:$A$63, 0), MATCH($O$8, Categorisation!$B$3:$S$3, 0) ) -> Not applicable | I122: =IF(I121 = G121, G122, "Not applicable" ) -> Not applicable | M122: =IF(OR(I121="Insert new tariff name",I121="Not used from 2017"),IF(I122="Not applicable",0,"Invalid input"),IF(I122="Not applicable","Select category",0)) -> 0 | O122: =Lists!$D$2 -> Not used from 2017
B123: 90 | C123: Number of customers | D123: CR613M01_R006 | E123: number | F123: 0 | G123: =INDEX(F_Inputs!$B:$J,MATCH($D123,F_Inputs!$B:$B,0),MATCH(G$5,F_Inputs!$B$2:$J$2,0)) -> 0 | H123: =INDEX(F_Inputs!$B:$J,MATCH($D123,F_Inputs!$B:$B,0),MATCH(H$5,F_Inputs!$B$2:$J$2,0)) -> 0 | I123: =IF(I121=O122,0,INDEX(F_Inputs!$B:$J,MATCH($D123,F_Inputs!$B:$B,0),MATCH(I$5,F_Inputs!$B$2:$J$2,0))) -> 0 | J123: =IF(I121=O122,0,INDEX(F_Inputs!$B:$J,MATCH($D123,F_Inputs!$B:$B,0),MATCH(J$5,F_Inputs!$B$2:$J$2,0))) -> 0 | K123: =IF(I121=O122,0,INDEX(F_Inputs!$B:$J,MATCH($D123,F_Inputs!$B:$B,0),MATCH(K$5,F_Inputs!$B$2:$J$2,0))) -> 0 | M123: =IF(OR(I121=Lists!$D$4,I121=Lists!$D$2), IF(AND(I123=0,J123=0,K123=0),0,"Non zero input"),IF(AND(I123>0,J123>0,K123>0),0,"Zero input")) -> 0
B124: 91 | C124: Net margin | D124: R5E00013_A001 | E124: % | F124: 2 | G124: =INDEX(F_Inputs!$B:$J, MATCH($D124, F_Inputs!$B:$B, 0), MATCH(G$5, F_Inputs!$B$2:$J$2, 0) ) -> 0 | H124: =INDEX(F_Inputs!$B:$J, MATCH($D124, F_Inputs!$B:$B, 0), MATCH(H$5, F_Inputs!$B$2:$J$2, 0) ) -> 0 | I124: =IF(I121=O122,0,INDEX(F_Inputs!$B:$J,MATCH($D124,F_Inputs!$B:$B,0),MATCH(I$5,F_Inputs!$B$2:$J$2,0))) -> 0 | J124: =IF(I121=O122,0,INDEX(F_Inputs!$B:$J,MATCH($D124,F_Inputs!$B:$B,0),MATCH(J$5,F_Inputs!$B$2:$J$2,0))) -> 0 | K124: =IF(I121=O122,0,INDEX(F_Inputs!$B:$J,MATCH($D124,F_Inputs!$B:$B,0),MATCH(K$5,F_Inputs!$B$2:$J$2,0))) -> 0 | M124: =IF(OR(I121=Lists!$D$4,I121=Lists!$D$2), IF(AND(I124=0,J124=0,K124=0),0,"Non zero input"),IF(AND(I124>0,J124>0,K124>0),0,"Zero input")) -> 0
B125: 92 | C125: Retail cost per customer | D125: CR613C01_R006 | E125: £ | F125: 2 | G125: =INDEX(F_Inputs!$B:$J, MATCH($D125, F_Inputs!$B:$B, 0), MATCH(G$5, F_Inputs!$B$2:$J$2, 0) ) -> 0 | H125: =INDEX(F_Inputs!$B:$J, MATCH($D125, F_Inputs!$B:$B, 0), MATCH(H$5, F_Inputs!$B$2:$J$2, 0) ) -> 0 | I125: =IF(I121=O122,0,INDEX(F_Inputs!$B:$J,MATCH($D125,F_Inputs!$B:$B,0),MATCH(I$5,F_Inputs!$B$2:$J$2,0))) -> 0 | J125: =IF(I121=O122,0,INDEX(F_Inputs!$B:$J,MATCH($D125,F_Inputs!$B:$B,0),MATCH(J$5,F_Inputs!$B$2:$J$2,0))) -> 0 | K125: =IF(I121=O122,0,INDEX(F_Inputs!$B:$J,MATCH($D125,F_Inputs!$B:$B,0),MATCH(K$5,F_Inputs!$B$2:$J$2,0))) -> 0 | M125: =IF(OR(I121=Lists!$D$4,I121=Lists!$D$2), IF(AND(I125=0,J125=0,K125=0),0,"Non zero input"),IF(AND(I125>0,J125>0,K125>0),0,"Zero input")) -> 0
B126: =B125+1 -> 93 | C126: Allocated wholesale charge at FD (Nominal price base) | D126: Calculation | E126: £m | F126: 3 | G126: =VLOOKUP($C120,'PR14 FD Calculations'!$D$460:$M$520,6,FALSE) -> 0 | H126: =VLOOKUP($C120,'PR14 FD Calculations'!$D$460:$M$520,7,FALSE) -> 0 | I126: =VLOOKUP($C120,'PR14 FD Calculations'!$D$460:$M$520,8,FALSE) -> 0 | J126: =VLOOKUP($C120,'PR14 FD Calculations'!$D$460:$M$520,9,FALSE) -> 0 | K126: =VLOOKUP($C120,'PR14 FD Calculations'!$D$460:$M$520,10,FALSE) -> 0
B127: 94 | C127: Allocated wholesale charge at PR16 (Nominal price base) | D127: Calculation / Input | E127: £m | F127: 3 | G127: =VLOOKUP($C120,'PR14 FD Calculations'!$D$460:$M$520,6,FALSE) -> 0 | H127: =VLOOKUP($C120,'PR14 FD Calculations'!$D$460:$M$520,7,FALSE) -> 0 | I127: =IF( I121 = O122, 0, VLOOKUP( $C120, 'PR14 FD Calculations'!$D$460:$M$520, 8, FALSE ) ) -> 0 | J127: =IF( I121 = O122, 0, VLOOKUP( $C120, 'PR14 FD Calculations'!$D$460:$M$520, 9, FALSE ) ) -> 0 | K127: =IF( I121 = O122, 0, VLOOKUP( $C120, 'PR14 FD Calculations'!$D$460:$M$520, 10, FALSE ) ) -> 0 | M127: =IF(OR(I121=Lists!$D$4,I121=Lists!$D$2), IF(AND(I127=0,J127=0,K127=0),0,"Non zero input"),IF(AND(I127>0,J127>0,K127>0),0,"Zero input")) -> 0
B129: O | C129: Tariff Band 14
B130: =B127+1 -> 95 | C130: Tariff name | G130: =INDEX('Default tariff names PR14'!$B$2:$S$62, MATCH($C129, 'Default tariff names PR14'!$A$2:$A$62, 0),MATCH($O$8, 'Default tariff names PR14'!$B$1:$X$1, 0) ) -> Not used at PR14 | I130: =IF(G130="Not used at PR14",O130,G130) -> Insert new tariff name | M130: =IF(OR(I130=G130, I130="Not used from 2017", G130 = "Not used at PR14" ), 0, "Invalid input") -> 0 | O130: =IF(G130="Not used at PR14",Lists!$D$4,G130) -> Insert new tariff name
B131: =B130+1 -> 96 | C131: Tariff categorisation | G131: =INDEX(Categorisation!$B$4:$S$63, MATCH($C129, Categorisation!$A$4:$A$63, 0), MATCH($O$8, Categorisation!$B$3:$S$3, 0) ) -> Not applicable | I131: =IF(I130 = G130, G131, "Not applicable" ) -> Not applicable | M131: =IF(OR(I130="Insert new tariff name",I130="Not used from 2017"),IF(I131="Not applicable",0,"Invalid input"),IF(I131="Not applicable","Select category",0)) -> 0 | O131: =Lists!$D$2 -> Not used from 2017
B132: 97 | C132: Number of customers | D132: CR614M01_R006 | E132: number | F132: 0 | G132: =INDEX(F_Inputs!$B:$J,MATCH($D132,F_Inputs!$B:$B,0),MATCH(G$5,F_Inputs!$B$2:$J$2,0)) -> 0 | H132: =INDEX(F_Inputs!$B:$J,MATCH($D132,F_Inputs!$B:$B,0),MATCH(H$5,F_Inputs!$B$2:$J$2,0)) -> 0 | I132: =IF(I130=O131,0,INDEX(F_Inputs!$B:$J,MATCH($D132,F_Inputs!$B:$B,0),MATCH(I$5,F_Inputs!$B$2:$J$2,0))) -> 0 | J132: =IF(I130=O131,0,INDEX(F_Inputs!$B:$J,MATCH($D132,F_Inputs!$B:$B,0),MATCH(J$5,F_Inputs!$B$2:$J$2,0))) -> 0 | K132: =IF(I130=O131,0,INDEX(F_Inputs!$B:$J,MATCH($D132,F_Inputs!$B:$B,0),MATCH(K$5,F_Inputs!$B$2:$J$2,0))) -> 0 | M132: =IF(OR(I130=Lists!$D$4,I130=Lists!$D$2), IF(AND(I132=0,J132=0,K132=0),0,"Non zero input"),IF(AND(I132>0,J132>0,K132>0),0,"Zero input")) -> 0
B133: 98 | C133: Net margin | D133: R5E00014_A001 | E133: % | F133: 2 | G133: =INDEX(F_Inputs!$B:$J, MATCH($D133, F_Inputs!$B:$B, 0), MATCH(G$5, F_Inputs!$B$2:$J$2, 0) ) -> 0 | H133: =INDEX(F_Inputs!$B:$J, MATCH($D133, F_Inputs!$B:$B, 0), MATCH(H$5, F_Inputs!$B$2:$J$2, 0) ) -> 0 | I133: =IF(I130=O131,0,INDEX(F_Inputs!$B:$J,MATCH($D133,F_Inputs!$B:$B,0),MATCH(I$5,F_Inputs!$B$2:$J$2,0))) -> 0 | J133: =IF(I130=O131,0,INDEX(F_Inputs!$B:$J,MATCH($D133,F_Inputs!$B:$B,0),MATCH(J$5,F_Inputs!$B$2:$J$2,0))) -> 0 | K133: =IF(I130=O131,0,INDEX(F_Inputs!$B:$J,MATCH($D133,F_Inputs!$B:$B,0),MATCH(K$5,F_Inputs!$B$2:$J$2,0))) -> 0 | M133: =IF(OR(I130=Lists!$D$4,I130=Lists!$D$2), IF(AND(I133=0,J133=0,K133=0),0,"Non zero input"),IF(AND(I133>0,J133>0,K133>0),0,"Zero input")) -> 0
B134: 99 | C134: Retail cost per customer | D134: CR614C01_R006 | E134: £ | F134: 2 | G134: =INDEX(F_Inputs!$B:$J, MATCH($D134, F_Inputs!$B:$B, 0), MATCH(G$5, F_Inputs!$B$2:$J$2, 0) ) -> 0 | H134: =INDEX(F_Inputs!$B:$J, MATCH($D134, F_Inputs!$B:$B, 0), MATCH(H$5, F_Inputs!$B$2:$J$2, 0) ) -> 0 | I134: =IF(I130=O131,0,INDEX(F_Inputs!$B:$J,MATCH($D134,F_Inputs!$B:$B,0),MATCH(I$5,F_Inputs!$B$2:$J$2,0))) -> 0 | J134: =IF(I130=O131,0,INDEX(F_Inputs!$B:$J,MATCH($D134,F_Inputs!$B:$B,0),MATCH(J$5,F_Inputs!$B$2:$J$2,0))) -> 0 | K134: =IF(I130=O131,0,INDEX(F_Inputs!$B:$J,MATCH($D134,F_Inputs!$B:$B,0),MATCH(K$5,F_Inputs!$B$2:$J$2,0))) -> 0 | M134: =IF(OR(I130=Lists!$D$4,I130=Lists!$D$2), IF(AND(I134=0,J134=0,K134=0),0,"Non zero input"),IF(AND(I134>0,J134>0,K134>0),0,"Zero input")) -> 0
B135: =B134+1 -> 100 | C135: Allocated wholesale charge at FD (Nominal price base) | D135: Calculation | E135: £m | F135: 3 | G135: =VLOOKUP($C129,'PR14 FD Calculations'!$D$460:$M$520,6,FALSE) -> 0 | H135: =VLOOKUP($C129,'PR14 FD Calculations'!$D$460:$M$520,7,FALSE) -> 0 | I135: =VLOOKUP($C129,'PR14 FD Calculations'!$D$460:$M$520,8,FALSE) -> 0 | J135: =VLOOKUP($C129,'PR14 FD Calculations'!$D$460:$M$520,9,FALSE) -> 0 | K135: =VLOOKUP($C129,'PR14 FD Calculations'!$D$460:$M$520,10,FALSE) -> 0
B136: 101 | C136: Allocated wholesale charge at PR16 (Nominal price base) | D136: Calculation / Input | E136: £m | F136: 3 | G136: =VLOOKUP($C129,'PR14 FD Calculations'!$D$460:$M$520,6,FALSE) -> 0 | H136: =VLOOKUP($C129,'PR14 FD Calculations'!$D$460:$M$520,7,FALSE) -> 0 | I136: =IF( I130 = O131, 0, VLOOKUP( $C129, 'PR14 FD Calculations'!$D$460:$M$520, 8, FALSE ) ) -> 0 | J136: =IF( I130 = O131, 0, VLOOKUP( $C129, 'PR14 FD Calculations'!$D$460:$M$520, 9, FALSE ) ) -> 0 | K136: =IF( I130 = O131, 0, VLOOKUP( $C129, 'PR14 FD Calculations'!$D$460:$M$520, 10, FALSE ) ) -> 0 | M136: =IF(OR(I130=Lists!$D$4,I130=Lists!$D$2), IF(AND(I136=0,J136=0,K136=0),0,"Non zero input"),IF(AND(I136>0,J136>0,K136>0),0,"Zero input")) -> 0
B138: P | C138: Tariff Band 15
B139: =B136+1 -> 102 | C139: Tariff name | G139: =INDEX('Default tariff names PR14'!$B$2:$S$62, MATCH($C138, 'Default tariff names PR14'!$A$2:$A$62, 0),MATCH($O$8, 'Default tariff names PR14'!$B$1:$X$1, 0) ) -> Not used at PR14 | I139: =IF(G139="Not used at PR14",O139,G139) -> Insert new tariff name | M139: =IF(OR(I139=G139, I139="Not used from 2017", G139 = "Not used at PR14" ), 0, "Invalid input") -> 0 | O139: =IF(G139="Not used at PR14",Lists!$D$4,G139) -> Insert new tariff name
B140: =B139+1 -> 103 | C140: Tariff categorisation | G140: =INDEX(Categorisation!$B$4:$S$63, MATCH($C138, Categorisation!$A$4:$A$63, 0), MATCH($O$8, Categorisation!$B$3:$S$3, 0) ) -> Not applicable | I140: =IF(I139 = G139, G140, "Not applicable" ) -> Not applicable | M140: =IF(OR(I139="Insert new tariff name",I139="Not used from 2017"),IF(I140="Not applicable",0,"Invalid input"),IF(I140="Not applicable","Select category",0)) -> 0 | O140: =Lists!$D$2 -> Not used from 2017
B141: 104 | C141: Number of customers | D141: CR615M01_R006 | E141: number | F141: 0 | G141: =INDEX(F_Inputs!$B:$J,MATCH($D141,F_Inputs!$B:$B,0),MATCH(G$5,F_Inputs!$B$2:$J$2,0)) -> 0 | H141: =INDEX(F_Inputs!$B:$J,MATCH($D141,F_Inputs!$B:$B,0),MATCH(H$5,F_Inputs!$B$2:$J$2,0)) -> 0 | I141: =IF(I139=O140,0,INDEX(F_Inputs!$B:$J,MATCH($D141,F_Inputs!$B:$B,0),MATCH(I$5,F_Inputs!$B$2:$J$2,0))) -> 0 | J141: =IF(I139=O140,0,INDEX(F_Inputs!$B:$J,MATCH($D141,F_Inputs!$B:$B,0),MATCH(J$5,F_Inputs!$B$2:$J$2,0))) -> 0 | K141: =IF(I139=O140,0,INDEX(F_Inputs!$B:$J,MATCH($D141,F_Inputs!$B:$B,0),MATCH(K$5,F_Inputs!$B$2:$J$2,0))) -> 0 | M141: =IF(OR(I139=Lists!$D$4,I139=Lists!$D$2), IF(AND(I141=0,J141=0,K141=0),0,"Non zero input"),IF(AND(I141>0,J141>0,K141>0),0,"Zero input")) -> 0
B142: 105 | C142: Net margin | D142: R5E00015_A001 | E142: % | F142: 2 | G142: =INDEX(F_Inputs!$B:$J, MATCH($D142, F_Inputs!$B:$B, 0), MATCH(G$5, F_Inputs!$B$2:$J$2, 0) ) -> 0 | H142: =INDEX(F_Inputs!$B:$J, MATCH($D142, F_Inputs!$B:$B, 0), MATCH(H$5, F_Inputs!$B$2:$J$2, 0) ) -> 0 | I142: =IF(I139=O140,0,INDEX(F_Inputs!$B:$J,MATCH($D142,F_Inputs!$B:$B,0),MATCH(I$5,F_Inputs!$B$2:$J$2,0))) -> 0 | J142: =IF(I139=O140,0,INDEX(F_Inputs!$B:$J,MATCH($D142,F_Inputs!$B:$B,0),MATCH(J$5,F_Inputs!$B$2:$J$2,0))) -> 0 | K142: =IF(I139=O140,0,INDEX(F_Inputs!$B:$J,MATCH($D142,F_Inputs!$B:$B,0),MATCH(K$5,F_Inputs!$B$2:$J$2,0))) -> 0 | M142: =IF(OR(I139=Lists!$D$4,I139=Lists!$D$2), IF(AND(I142=0,J142=0,K142=0),0,"Non zero input"),IF(AND(I142>0,J142>0,K142>0),0,"Zero input")) -> 0
B143: 106 | C143: Retail cost per customer | D143: CR615C01_R006 | E143: £ | F143: 2 | G143: =INDEX(F_Inputs!$B:$J, MATCH($D143, F_Inputs!$B:$B, 0), MATCH(G$5, F_Inputs!$B$2:$J$2, 0) ) -> 0 | H143: =INDEX(F_Inputs!$B:$J, MATCH($D143, F_Inputs!$B:$B, 0), MATCH(H$5, F_Inputs!$B$2:$J$2, 0) ) -> 0 | I143: =IF(I139=O140,0,INDEX(F_Inputs!$B:$J,MATCH($D143,F_Inputs!$B:$B,0),MATCH(I$5,F_Inputs!$B$2:$J$2,0))) -> 0 | J143: =IF(I139=O140,0,INDEX(F_Inputs!$B:$J,MATCH($D143,F_Inputs!$B:$B,0),MATCH(J$5,F_Inputs!$B$2:$J$2,0))) -> 0 | K143: =IF(I139=O140,0,INDEX(F_Inputs!$B:$J,MATCH($D143,F_Inputs!$B:$B,0),MATCH(K$5,F_Inputs!$B$2:$J$2,0))) -> 0 | M143: =IF(OR(I139=Lists!$D$4,I139=Lists!$D$2), IF(AND(I143=0,J143=0,K143=0),0,"Non zero input"),IF(AND(I143>0,J143>0,K143>0),0,"Zero input")) -> 0
B144: =B143+1 -> 107 | C144: Allocated wholesale charge at FD (Nominal price base) | D144: Calculation | E144: £m | F144: 3 | G144: =VLOOKUP($C138,'PR14 FD Calculations'!$D$460:$M$520,6,FALSE) -> 0 | H144: =VLOOKUP($C138,'PR14 FD Calculations'!$D$460:$M$520,7,FALSE) -> 0 | I144: =VLOOKUP($C138,'PR14 FD Calculations'!$D$460:$M$520,8,FALSE) -> 0 | J144: =VLOOKUP($C138,'PR14 FD Calculations'!$D$460:$M$520,9,FALSE) -> 0 | K144: =VLOOKUP($C138,'PR14 FD Calculations'!$D$460:$M$520,10,FALSE) -> 0
B145: 108 | C145: Allocated wholesale charge at PR16 (Nominal price base) | D145: Calculation / Input | E145: £m | F145: 3 | G145: =VLOOKUP($C138,'PR14 FD Calculations'!$D$460:$M$520,6,FALSE) -> 0 | H145: =VLOOKUP($C138,'PR14 FD Calculations'!$D$460:$M$520,7,FALSE) -> 0 | I145: =IF( I139 = O140, 0, VLOOKUP( $C138, 'PR14 FD Calculations'!$D$460:$M$520, 8, FALSE ) ) -> 0 | J145: =IF( I139 = O140, 0, VLOOKUP( $C138, 'PR14 FD Calculations'!$D$460:$M$520, 9, FALSE ) ) -> 0 | K145: =IF( I139 = O140, 0, VLOOKUP( $C138, 'PR14 FD Calculations'!$D$460:$M$520, 10, FALSE ) ) -> 0 | M145: =IF(OR(I139=Lists!$D$4,I139=Lists!$D$2), IF(AND(I145=0,J145=0,K145=0),0,"Non zero input"),IF(AND(I145>0,J145>0,K145>0),0,"Zero input")) -> 0
B147: Q | C147: Tariff Band 16
B148: =B145+1 -> 109 | C148: Tariff name | G148: =INDEX('Default tariff names PR14'!$B$2:$S$62, MATCH($C147, 'Default tariff names PR14'!$A$2:$A$62, 0),MATCH($O$8, 'Default tariff names PR14'!$B$1:$X$1, 0) ) -> Not used at PR14 | I148: =IF(G148="Not used at PR14",O148,G148) -> Insert new tariff name | M148: =IF(OR(I148=G148, I148="Not used from 2017", G148 = "Not used at PR14" ), 0, "Invalid input") -> 0 | O148: =IF(G148="Not used at PR14",Lists!$D$4,G148) -> Insert new tariff name
B149: =B148+1 -> 110 | C149: Tariff categorisation | G149: =INDEX(Categorisation!$B$4:$S$63, MATCH($C147, Categorisation!$A$4:$A$63, 0), MATCH($O$8, Categorisation!$B$3:$S$3, 0) ) -> Not applicable | I149: =IF(I148 = G148, G149, "Not applicable" ) -> Not applicable | M149: =IF(OR(I148="Insert new tariff name",I148="Not used from 2017"),IF(I149="Not applicable",0,"Invalid input"),IF(I149="Not applicable","Select category",0)) -> 0 | O149: =Lists!$D$2 -> Not used from 2017
B150: 111 | C150: Number of customers | D150: CR616M01_R006 | E150: number | F150: 0 | G150: =INDEX(F_Inputs!$B:$J,MATCH($D150,F_Inputs!$B:$B,0),MATCH(G$5,F_Inputs!$B$2:$J$2,0)) -> 0 | H150: =INDEX(F_Inputs!$B:$J,MATCH($D150,F_Inputs!$B:$B,0),MATCH(H$5,F_Inputs!$B$2:$J$2,0)) -> 0 | I150: =IF(I148=O149,0,INDEX(F_Inputs!$B:$J,MATCH($D150,F_Inputs!$B:$B,0),MATCH(I$5,F_Inputs!$B$2:$J$2,0))) -> 0 | J150: =IF(I148=O149,0,INDEX(F_Inputs!$B:$J,MATCH($D150,F_Inputs!$B:$B,0),MATCH(J$5,F_Inputs!$B$2:$J$2,0))) -> 0 | K150: =IF(I148=O149,0,INDEX(F_Inputs!$B:$J,MATCH($D150,F_Inputs!$B:$B,0),MATCH(K$5,F_Inputs!$B$2:$J$2,0))) -> 0 | M150: =IF(OR(I148=Lists!$D$4,I148=Lists!$D$2), IF(AND(I150=0,J150=0,K150=0),0,"Non zero input"),IF(AND(I150>0,J150>0,K150>0),0,"Zero input")) -> 0
B151: 112 | C151: Net margin | D151: R5E00016_A001 | E151: % | F151: 2 | G151: =INDEX(F_Inputs!$B:$J, MATCH($D151, F_Inputs!$B:$B, 0), MATCH(G$5, F_Inputs!$B$2:$J$2, 0) ) -> 0 | H151: =INDEX(F_Inputs!$B:$J, MATCH($D151, F_Inputs!$B:$B, 0), MATCH(H$5, F_Inputs!$B$2:$J$2, 0) ) -> 0 | I151: =IF(I148=O149,0,INDEX(F_Inputs!$B:$J,MATCH($D151,F_Inputs!$B:$B,0),MATCH(I$5,F_Inputs!$B$2:$J$2,0))) -> 0 | J151: =IF(I148=O149,0,INDEX(F_Inputs!$B:$J,MATCH($D151,F_Inputs!$B:$B,0),MATCH(J$5,F_Inputs!$B$2:$J$2,0))) -> 0 | K151: =IF(I148=O149,0,INDEX(F_Inputs!$B:$J,MATCH($D151,F_Inputs!$B:$B,0),MATCH(K$5,F_Inputs!$B$2:$J$2,0))) -> 0 | M151: =IF(OR(I148=Lists!$D$4,I148=Lists!$D$2), IF(AND(I151=0,J151=0,K151=0),0,"Non zero input"),IF(AND(I151>0,J151>0,K151>0),0,"Zero input")) -> 0
B152: 113 | C152: Retail cost per customer | D152: CR616C01_R006 | E152: £ | F152: 2 | G152: =INDEX(F_Inputs!$B:$J, MATCH($D152, F_Inputs!$B:$B, 0), MATCH(G$5, F_Inputs!$B$2:$J$2, 0) ) -> 0 | H152: =INDEX(F_Inputs!$B:$J, MATCH($D152, F_Inputs!$B:$B, 0), MATCH(H$5, F_Inputs!$B$2:$J$2, 0) ) -> 0 | I152: =IF(I148=O149,0,INDEX(F_Inputs!$B:$J,MATCH($D152,F_Inputs!$B:$B,0),MATCH(I$5,F_Inputs!$B$2:$J$2,0))) -> 0 | J152: =IF(I148=O149,0,INDEX(F_Inputs!$B:$J,MATCH($D152,F_Inputs!$B:$B,0),MATCH(J$5,F_Inputs!$B$2:$J$2,0))) -> 0 | K152: =IF(I148=O149,0,INDEX(F_Inputs!$B:$J,MATCH($D152,F_Inputs!$B:$B,0),MATCH(K$5,F_Inputs!$B$2:$J$2,0))) -> 0 | M152: =IF(OR(I148=Lists!$D$4,I148=Lists!$D$2), IF(AND(I152=0,J152=0,K152=0),0,"Non zero input"),IF(AND(I152>0,J152>0,K152>0),0,"Zero input")) -> 0
B153: =B152+1 -> 114 | C153: Allocated wholesale charge at FD (Nominal price base) | D153: Calculation | E153: £m | F153: 3 | G153: =VLOOKUP($C147,'PR14 FD Calculations'!$D$460:$M$520,6,FALSE) -> 0 | H153: =VLOOKUP($C147,'PR14 FD Calculations'!$D$460:$M$520,7,FALSE) -> 0 | I153: =VLOOKUP($C147,'PR14 FD Calculations'!$D$460:$M$520,8,FALSE) -> 0 | J153: =VLOOKUP($C147,'PR14 FD Calculations'!$D$460:$M$520,9,FALSE) -> 0 | K153: =VLOOKUP($C147,'PR14 FD Calculations'!$D$460:$M$520,10,FALSE) -> 0
B154: 115 | C154: Allocated wholesale charge at PR16 (Nominal price base) | D154: Calculation / Input | E154: £m | F154: 3 | G154: =VLOOKUP($C147,'PR14 FD Calculations'!$D$460:$M$520,6,FALSE) -> 0 | H154: =VLOOKUP($C147,'PR14 FD Calculations'!$D$460:$M$520,7,FALSE) -> 0 | I154: =IF( I148 = O149, 0, VLOOKUP( $C147, 'PR14 FD Calculations'!$D$460:$M$520, 8, FALSE ) ) -> 0 | J154: =IF( I148 = O149, 0, VLOOKUP( $C147, 'PR14 FD Calculations'!$D$460:$M$520, 9, FALSE ) ) -> 0 | K154: =IF( I148 = O149, 0, VLOOKUP( $C147, 'PR14 FD Calculations'!$D$460:$M$520, 10, FALSE ) ) -> 0 | M154: =IF(OR(I148=Lists!$D$4,I148=Lists!$D$2), IF(AND(I154=0,J154=0,K154=0),0,"Non zero input"),IF(AND(I154>0,J154>0,K154>0),0,"Zero input")) -> 0
B156: R | C156: Tariff Band 17
B157: =B154+1 -> 116 | C157: Tariff name | G157: =INDEX('Default tariff names PR14'!$B$2:$S$62, MATCH($C156, 'Default tariff names PR14'!$A$2:$A$62, 0),MATCH($O$8, 'Default tariff names PR14'!$B$1:$X$1, 0) ) -> Not used at PR14 | I157: =IF(G157="Not used at PR14",O157,G157) -> Insert new tariff name | M157: =IF(OR(I157=G157, I157="Not used from 2017", G157 = "Not used at PR14" ), 0, "Invalid input") -> 0 | O157: =IF(G157="Not used at PR14",Lists!$D$4,G157) -> Insert new tariff name
B158: =B157+1 -> 117 | C158: Tariff categorisation | G158: =INDEX(Categorisation!$B$4:$S$63, MATCH($C156, Categorisation!$A$4:$A$63, 0), MATCH($O$8, Categorisation!$B$3:$S$3, 0) ) -> Not applicable | I158: =IF(I157 = G157, G158, "Not applicable" ) -> Not applicable | M158: =IF(OR(I157="Insert new tariff name",I157="Not used from 2017"),IF(I158="Not applicable",0,"Invalid input"),IF(I158="Not applicable","Select category",0)) -> 0 | O158: =Lists!$D$2 -> Not used from 2017
B159: 118 | C159: Number of customers | D159: CR617M01_R006 | E159: number | F159: 0 | G159: =INDEX(F_Inputs!$B:$J,MATCH($D159,F_Inputs!$B:$B,0),MATCH(G$5,F_Inputs!$B$2:$J$2,0)) -> 0 | H159: =INDEX(F_Inputs!$B:$J,MATCH($D159,F_Inputs!$B:$B,0),MATCH(H$5,F_Inputs!$B$2:$J$2,0)) -> 0 | I159: =IF(I157=O158,0,INDEX(F_Inputs!$B:$J,MATCH($D159,F_Inputs!$B:$B,0),MATCH(I$5,F_Inputs!$B$2:$J$2,0))) -> 0 | J159: =IF(I157=O158,0,INDEX(F_Inputs!$B:$J,MATCH($D159,F_Inputs!$B:$B,0),MATCH(J$5,F_Inputs!$B$2:$J$2,0))) -> 0 | K159: =IF(I157=O158,0,INDEX(F_Inputs!$B:$J,MATCH($D159,F_Inputs!$B:$B,0),MATCH(K$5,F_Inputs!$B$2:$J$2,0))) -> 0 | M159: =IF(OR(I157=Lists!$D$4,I157=Lists!$D$2), IF(AND(I159=0,J159=0,K159=0),0,"Non zero input"),IF(AND(I159>0,J159>0,K159>0),0,"Zero input")) -> 0
B160: 119 | C160: Net margin | D160: R5E00017_A001 | E160: % | F160: 2 | G160: =INDEX(F_Inputs!$B:$J, MATCH($D160, F_Inputs!$B:$B, 0), MATCH(G$5, F_Inputs!$B$2:$J$2, 0) ) -> 0 | H160: =INDEX(F_Inputs!$B:$J, MATCH($D160, F_Inputs!$B:$B, 0), MATCH(H$5, F_Inputs!$B$2:$J$2, 0) ) -> 0 | I160: =IF(I157=O158,0,INDEX(F_Inputs!$B:$J,MATCH($D160,F_Inputs!$B:$B,0),MATCH(I$5,F_Inputs!$B$2:$J$2,0))) -> 0 | J160: =IF(I157=O158,0,INDEX(F_Inputs!$B:$J,MATCH($D160,F_Inputs!$B:$B,0),MATCH(J$5,F_Inputs!$B$2:$J$2,0))) -> 0 | K160: =IF(I157=O158,0,INDEX(F_Inputs!$B:$J,MATCH($D160,F_Inputs!$B:$B,0),MATCH(K$5,F_Inputs!$B$2:$J$2,0))) -> 0 | M160: =IF(OR(I157=Lists!$D$4,I157=Lists!$D$2), IF(AND(I160=0,J160=0,K160=0),0,"Non zero input"),IF(AND(I160>0,J160>0,K160>0),0,"Zero input")) -> 0
B161: =B160+1 -> 120 | C161: Retail cost per customer | D161: CR617C01_R006 | E161: £ | F161: 2 | G161: =INDEX(F_Inputs!$B:$J, MATCH($D161, F_Inputs!$B:$B, 0), MATCH(G$5, F_Inputs!$B$2:$J$2, 0) ) -> 0 | H161: =INDEX(F_Inputs!$B:$J, MATCH($D161, F_Inputs!$B:$B, 0), MATCH(H$5, F_Inputs!$B$2:$J$2, 0) ) -> 0 | I161: =IF(I157=O158,0,INDEX(F_Inputs!$B:$J,MATCH($D161,F_Inputs!$B:$B,0),MATCH(I$5,F_Inputs!$B$2:$J$2,0))) -> 0 | J161: =IF(I157=O158,0,INDEX(F_Inputs!$B:$J,MATCH($D161,F_Inputs!$B:$B,0),MATCH(J$5,F_Inputs!$B$2:$J$2,0))) -> 0 | K161: =IF(I157=O158,0,INDEX(F_Inputs!$B:$J,MATCH($D161,F_Inputs!$B:$B,0),MATCH(K$5,F_Inputs!$B$2:$J$2,0))) -> 0 | M161: =IF(OR(I157=Lists!$D$4,I157=Lists!$D$2), IF(AND(I161=0,J161=0,K161=0),0,"Non zero input"),IF(AND(I161>0,J161>0,K161>0),0,"Zero input")) -> 0
B162: =B161+1 -> 121 | C162: Allocated wholesale charge at FD (Nominal price base) | D162: Calculation | E162: £m | F162: 3 | G162: =VLOOKUP($C156,'PR14 FD Calculations'!$D$460:$M$520,6,FALSE) -> 0 | H162: =VLOOKUP($C156,'PR14 FD Calculations'!$D$460:$M$520,7,FALSE) -> 0 | I162: =VLOOKUP($C156,'PR14 FD Calculations'!$D$460:$M$520,8,FALSE) -> 0 | J162: =VLOOKUP($C156,'PR14 FD Calculations'!$D$460:$M$520,9,FALSE) -> 0 | K162: =VLOOKUP($C156,'PR14 FD Calculations'!$D$460:$M$520,10,FALSE) -> 0
B163: 122 | C163: Allocated wholesale charge at PR16 (Nominal price base) | D163: Calculation / Input | E163: £m | F163: 3 | G163: =VLOOKUP($C156,'PR14 FD Calculations'!$D$460:$M$520,6,FALSE) -> 0 | H163: =VLOOKUP($C156,'PR14 FD Calculations'!$D$460:$M$520,7,FALSE) -> 0 | I163: =IF( I157 = O158, 0, VLOOKUP( $C156, 'PR14 FD Calculations'!$D$460:$M$520, 8, FALSE ) ) -> 0 | J163: =IF( I157 = O158, 0, VLOOKUP( $C156, 'PR14 FD Calculations'!$D$460:$M$520, 9, FALSE ) ) -> 0 | K163: =IF( I157 = O158, 0, VLOOKUP( $C156, 'PR14 FD Calculations'!$D$460:$M$520, 10, FALSE ) ) -> 0 | M163: =IF(OR(I157=Lists!$D$4,I157=Lists!$D$2), IF(AND(I163=0,J163=0,K163=0),0,"Non zero input"),IF(AND(I163>0,J163>0,K163>0),0,"Zero input")) -> 0
B165: S | C165: Tariff Band 18
B166: =B163+1 -> 123 | C166: Tariff name | G166: =INDEX('Default tariff names PR14'!$B$2:$S$62, MATCH($C165, 'Default tariff names PR14'!$A$2:$A$62, 0),MATCH($O$8, 'Default tariff names PR14'!$B$1:$X$1, 0) ) -> Not used at PR14 | I166: =IF(G166="Not used at PR14",O166,G166) -> Insert new tariff name | M166: =IF(OR(I166=G166, I166="Not used from 2017", G166 = "Not used at PR14" ), 0, "Invalid input") -> 0 | O166: =IF(G166="Not used at PR14",Lists!$D$4,G166) -> Insert new tariff name
B167: =B166+1 -> 124 | C167: Tariff categorisation | G167: =INDEX(Categorisation!$B$4:$S$63, MATCH($C165, Categorisation!$A$4:$A$63, 0), MATCH($O$8, Categorisation!$B$3:$S$3, 0) ) -> Not applicable | I167: =IF(I166 = G166, G167, "Not applicable" ) -> Not applicable | M167: =IF(OR(I166="Insert new tariff name",I166="Not used from 2017"),IF(I167="Not applicable",0,"Invalid input"),IF(I167="Not applicable","Select category",0)) -> 0 | O167: =Lists!$D$2 -> Not used from 2017
B168: 125 | C168: Number of customers | D168: CR618M01_R006 | E168: number | F168: 0 | G168: =INDEX(F_Inputs!$B:$J,MATCH($D168,F_Inputs!$B:$B,0),MATCH(G$5,F_Inputs!$B$2:$J$2,0)) -> 0 | H168: =INDEX(F_Inputs!$B:$J,MATCH($D168,F_Inputs!$B:$B,0),MATCH(H$5,F_Inputs!$B$2:$J$2,0)) -> 0 | I168: =IF(I166=O167,0,INDEX(F_Inputs!$B:$J,MATCH($D168,F_Inputs!$B:$B,0),MATCH(I$5,F_Inputs!$B$2:$J$2,0))) -> 0 | J168: =IF(I166=O167,0,INDEX(F_Inputs!$B:$J,MATCH($D168,F_Inputs!$B:$B,0),MATCH(J$5,F_Inputs!$B$2:$J$2,0))) -> 0 | K168: =IF(I166=O167,0,INDEX(F_Inputs!$B:$J,MATCH($D168,F_Inputs!$B:$B,0),MATCH(K$5,F_Inputs!$B$2:$J$2,0))) -> 0 | M168: =IF(OR(I166=Lists!$D$4,I166=Lists!$D$2), IF(AND(I168=0,J168=0,K168=0),0,"Non zero input"),IF(AND(I168>0,J168>0,K168>0),0,"Zero input")) -> 0
B169: 126 | C169: Net margin | D169: R5E00018_A001 | E169: % | F169: 2 | G169: =INDEX(F_Inputs!$B:$J, MATCH($D169, F_Inputs!$B:$B, 0), MATCH(G$5, F_Inputs!$B$2:$J$2, 0) ) -> 0 | H169: =INDEX(F_Inputs!$B:$J, MATCH($D169, F_Inputs!$B:$B, 0), MATCH(H$5, F_Inputs!$B$2:$J$2, 0) ) -> 0 | I169: =IF(I166=O167,0,INDEX(F_Inputs!$B:$J,MATCH($D169,F_Inputs!$B:$B,0),MATCH(I$5,F_Inputs!$B$2:$J$2,0))) -> 0 | J169: =IF(I166=O167,0,INDEX(F_Inputs!$B:$J,MATCH($D169,F_Inputs!$B:$B,0),MATCH(J$5,F_Inputs!$B$2:$J$2,0))) -> 0 | K169: =IF(I166=O167,0,INDEX(F_Inputs!$B:$J,MATCH($D169,F_Inputs!$B:$B,0),MATCH(K$5,F_Inputs!$B$2:$J$2,0))) -> 0 | M169: =IF(OR(I166=Lists!$D$4,I166=Lists!$D$2), IF(AND(I169=0,J169=0,K169=0),0,"Non zero input"),IF(AND(I169>0,J169>0,K169>0),0,"Zero input")) -> 0
B170: 127 | C170: Retail cost per customer | D170: CR618C01_R006 | E170: £ | F170: 2 | G170: =INDEX(F_Inputs!$B:$J, MATCH($D170, F_Inputs!$B:$B, 0), MATCH(G$5, F_Inputs!$B$2:$J$2, 0) ) -> 0 | H170: =INDEX(F_Inputs!$B:$J, MATCH($D170, F_Inputs!$B:$B, 0), MATCH(H$5, F_Inputs!$B$2:$J$2, 0) ) -> 0 | I170: =IF(I166=O167,0,INDEX(F_Inputs!$B:$J,MATCH($D170,F_Inputs!$B:$B,0),MATCH(I$5,F_Inputs!$B$2:$J$2,0))) -> 0 | J170: =IF(I166=O167,0,INDEX(F_Inputs!$B:$J,MATCH($D170,F_Inputs!$B:$B,0),MATCH(J$5,F_Inputs!$B$2:$J$2,0))) -> 0 | K170: =IF(I166=O167,0,INDEX(F_Inputs!$B:$J,MATCH($D170,F_Inputs!$B:$B,0),MATCH(K$5,F_Inputs!$B$2:$J$2,0))) -> 0 | M170: =IF(OR(I166=Lists!$D$4,I166=Lists!$D$2), IF(AND(I170=0,J170=0,K170=0),0,"Non zero input"),IF(AND(I170>0,J170>0,K170>0),0,"Zero input")) -> 0
B171: =B170+1 -> 128 | C171: Allocated wholesale charge at FD (Nominal price base) | D171: Calculation | E171: £m | F171: 3 | G171: =VLOOKUP($C165,'PR14 FD Calculations'!$D$460:$M$520,6,FALSE) -> 0 | H171: =VLOOKUP($C165,'PR14 FD Calculations'!$D$460:$M$520,7,FALSE) -> 0 | I171: =VLOOKUP($C165,'PR14 FD Calculations'!$D$460:$M$520,8,FALSE) -> 0 | J171: =VLOOKUP($C165,'PR14 FD Calculations'!$D$460:$M$520,9,FALSE) -> 0 | K171: =VLOOKUP($C165,'PR14 FD Calculations'!$D$460:$M$520,10,FALSE) -> 0
B172: 129 | C172: Allocated wholesale charge at PR16 (Nominal price base) | D172: Calculation / Input | E172: £m | F172: 3 | G172: =VLOOKUP($C165,'PR14 FD Calculations'!$D$460:$M$520,6,FALSE) -> 0 | H172: =VLOOKUP($C165,'PR14 FD Calculations'!$D$460:$M$520,7,FALSE) -> 0 | I172: =IF( I166 = O167, 0, VLOOKUP( $C165, 'PR14 FD Calculations'!$D$460:$M$520, 8, FALSE ) ) -> 0 | J172: =IF( I166 = O167, 0, VLOOKUP( $C165, 'PR14 FD Calculations'!$D$460:$M$520, 9, FALSE ) ) -> 0 | K172: =IF( I166 = O167, 0, VLOOKUP( $C165, 'PR14 FD Calculations'!$D$460:$M$520, 10, FALSE ) ) -> 0 | M172: =IF(OR(I166=Lists!$D$4,I166=Lists!$D$2), IF(AND(I172=0,J172=0,K172=0),0,"Non zero input"),IF(AND(I172>0,J172>0,K172>0),0,"Zero input")) -> 0
B174: T | C174: Tariff Band 19
B175: =B172+1 -> 130 | C175: Tariff name | G175: =INDEX('Default tariff names PR14'!$B$2:$S$62, MATCH($C174, 'Default tariff names PR14'!$A$2:$A$62, 0),MATCH($O$8, 'Default tariff names PR14'!$B$1:$X$1, 0) ) -> Not used at PR14 | I175: =IF(G175="Not used at PR14",O175,G175) -> Insert new tariff name | M175: =IF(OR(I175=G175, I175="Not used from 2017", G175 = "Not used at PR14" ), 0, "Invalid input") -> 0 | O175: =IF(G175="Not used at PR14",Lists!$D$4,G175) -> Insert new tariff name
B176: =B175+1 -> 131 | C176: Tariff categorisation | G176: =INDEX(Categorisation!$B$4:$S$63, MATCH($C174, Categorisation!$A$4:$A$63, 0), MATCH($O$8, Categorisation!$B$3:$S$3, 0) ) -> Not applicable | I176: =IF(I175 = G175, G176, "Not applicable" ) -> Not applicable | M176: =IF(OR(I175="Insert new tariff name",I175="Not used from 2017"),IF(I176="Not applicable",0,"Invalid input"),IF(I176="Not applicable","Select category",0)) -> 0 | O176: =Lists!$D$2 -> Not used from 2017
B177: 132 | C177: Number of customers | D177: CR619M01_R006 | E177: number | F177: 0 | G177: =INDEX(F_Inputs!$B:$J,MATCH($D177,F_Inputs!$B:$B,0),MATCH(G$5,F_Inputs!$B$2:$J$2,0)) -> 0 | H177: =INDEX(F_Inputs!$B:$J,MATCH($D177,F_Inputs!$B:$B,0),MATCH(H$5,F_Inputs!$B$2:$J$2,0)) -> 0 | I177: =IF(I175=O176,0,INDEX(F_Inputs!$B:$J,MATCH($D177,F_Inputs!$B:$B,0),MATCH(I$5,F_Inputs!$B$2:$J$2,0))) -> 0 | J177: =IF(I175=O176,0,INDEX(F_Inputs!$B:$J,MATCH($D177,F_Inputs!$B:$B,0),MATCH(J$5,F_Inputs!$B$2:$J$2,0))) -> 0 | K177: =IF(I175=O176,0,INDEX(F_Inputs!$B:$J,MATCH($D177,F_Inputs!$B:$B,0),MATCH(K$5,F_Inputs!$B$2:$J$2,0))) -> 0 | M177: =IF(OR(I175=Lists!$D$4,I175=Lists!$D$2), IF(AND(I177=0,J177=0,K177=0),0,"Non zero input"),IF(AND(I177>0,J177>0,K177>0),0,"Zero input")) -> 0
B178: 133 | C178: Net margin | D178: R5E00019_A001 | E178: % | F178: 2 | G178: =INDEX(F_Inputs!$B:$J, MATCH($D178, F_Inputs!$B:$B, 0), MATCH(G$5, F_Inputs!$B$2:$J$2, 0) ) -> 0 | H178: =INDEX(F_Inputs!$B:$J, MATCH($D178, F_Inputs!$B:$B, 0), MATCH(H$5, F_Inputs!$B$2:$J$2, 0) ) -> 0 | I178: =IF(I175=O176,0,INDEX(F_Inputs!$B:$J,MATCH($D178,F_Inputs!$B:$B,0),MATCH(I$5,F_Inputs!$B$2:$J$2,0))) -> 0 | J178: =IF(I175=O176,0,INDEX(F_Inputs!$B:$J,MATCH($D178,F_Inputs!$B:$B,0),MATCH(J$5,F_Inputs!$B$2:$J$2,0))) -> 0 | K178: =IF(I175=O176,0,INDEX(F_Inputs!$B:$J,MATCH($D178,F_Inputs!$B:$B,0),MATCH(K$5,F_Inputs!$B$2:$J$2,0))) -> 0 | M178: =IF(OR(I175=Lists!$D$4,I175=Lists!$D$2), IF(AND(I178=0,J178=0,K178=0),0,"Non zero input"),IF(AND(I178>0,J178>0,K178>0),0,"Zero input")) -> 0
B179: 134 | C179: Retail cost per customer | D179: CR619C01_R006 | E179: £ | F179: 2 | G179: =INDEX(F_Inputs!$B:$J, MATCH($D179, F_Inputs!$B:$B, 0), MATCH(G$5, F_Inputs!$B$2:$J$2, 0) ) -> 0 | H179: =INDEX(F_Inputs!$B:$J, MATCH($D179, F_Inputs!$B:$B, 0), MATCH(H$5, F_Inputs!$B$2:$J$2, 0) ) -> 0 | I179: =IF(I175=O176,0,INDEX(F_Inputs!$B:$J,MATCH($D179,F_Inputs!$B:$B,0),MATCH(I$5,F_Inputs!$B$2:$J$2,0))) -> 0 | J179: =IF(I175=O176,0,INDEX(F_Inputs!$B:$J,MATCH($D179,F_Inputs!$B:$B,0),MATCH(J$5,F_Inputs!$B$2:$J$2,0))) -> 0 | K179: =IF(I175=O176,0,INDEX(F_Inputs!$B:$J,MATCH($D179,F_Inputs!$B:$B,0),MATCH(K$5,F_Inputs!$B$2:$J$2,0))) -> 0 | M179: =IF(OR(I175=Lists!$D$4,I175=Lists!$D$2), IF(AND(I179=0,J179=0,K179=0),0,"Non zero input"),IF(AND(I179>0,J179>0,K179>0),0,"Zero input")) -> 0
B180: =B179+1 -> 135 | C180: Allocated wholesale charge at FD (Nominal price base) | D180: Calculation | E180: £m | F180: 3 | G180: =VLOOKUP($C174,'PR14 FD Calculations'!$D$460:$M$520,6,FALSE) -> 0 | H180: =VLOOKUP($C174,'PR14 FD Calculations'!$D$460:$M$520,7,FALSE) -> 0 | I180: =VLOOKUP($C174,'PR14 FD Calculations'!$D$460:$M$520,8,FALSE) -> 0 | J180: =VLOOKUP($C174,'PR14 FD Calculations'!$D$460:$M$520,9,FALSE) -> 0 | K180: =VLOOKUP($C174,'PR14 FD Calculations'!$D$460:$M$520,10,FALSE) -> 0
B181: 136 | C181: Allocated wholesale charge at PR16 (Nominal price base) | D181: Calculation / Input | E181: £m | F181: 3 | G181: =VLOOKUP($C174,'PR14 FD Calculations'!$D$460:$M$520,6,FALSE) -> 0 | H181: =VLOOKUP($C174,'PR14 FD Calculations'!$D$460:$M$520,7,FALSE) -> 0 | I181: =IF( I175 = O176, 0, VLOOKUP( $C174, 'PR14 FD Calculations'!$D$460:$M$520, 8, FALSE ) ) -> 0 | J181: =IF( I175 = O176, 0, VLOOKUP( $C174, 'PR14 FD Calculations'!$D$460:$M$520, 9, FALSE ) ) -> 0 | K181: =IF( I175 = O176, 0, VLOOKUP( $C174, 'PR14 FD Calculations'!$D$460:$M$520, 10, FALSE ) ) -> 0 | M181: =IF(OR(I175=Lists!$D$4,I175=Lists!$D$2), IF(AND(I181=0,J181=0,K181=0),0,"Non zero input"),IF(AND(I181>0,J181>0,K181>0),0,"Zero input")) -> 0
B183: U | C183: Tariff Band 20
B184: =B181+1 -> 137 | C184: Tariff name | G184: =INDEX('Default tariff names PR14'!$B$2:$S$62, MATCH($C183, 'Default tariff names PR14'!$A$2:$A$62, 0),MATCH($O$8, 'Default tariff names PR14'!$B$1:$X$1, 0) ) -> Not used at PR14 | I184: =IF(G184="Not used at PR14",O184,G184) -> Insert new tariff name | M184: =IF(OR(I184=G184, I184="Not used from 2017", G184 = "Not used at PR14" ), 0, "Invalid input") -> 0 | O184: =IF(G184="Not used at PR14",Lists!$D$4,G184) -> Insert new tariff name
B185: =B184+1 -> 138 | C185: Tariff categorisation | G185: =INDEX(Categorisation!$B$4:$S$63, MATCH($C183, Categorisation!$A$4:$A$63, 0), MATCH($O$8, Categorisation!$B$3:$S$3, 0) ) -> Not applicable | I185: =IF(I184 = G184, G185, "Not applicable" ) -> Not applicable | M185: =IF(OR(I184="Insert new tariff name",I184="Not used from 2017"),IF(I185="Not applicable",0,"Invalid input"),IF(I185="Not applicable","Select category",0)) -> 0 | O185: =Lists!$D$2 -> Not used from 2017
B186: 139 | C186: Number of customers | D186: CR620M01_R006 | E186: number | F186: 0 | G186: =INDEX(F_Inputs!$B:$J,MATCH($D186,F_Inputs!$B:$B,0),MATCH(G$5,F_Inputs!$B$2:$J$2,0)) -> 0 | H186: =INDEX(F_Inputs!$B:$J,MATCH($D186,F_Inputs!$B:$B,0),MATCH(H$5,F_Inputs!$B$2:$J$2,0)) -> 0 | I186: =IF(I184=O185,0,INDEX(F_Inputs!$B:$J,MATCH($D186,F_Inputs!$B:$B,0),MATCH(I$5,F_Inputs!$B$2:$J$2,0))) -> 0 | J186: =IF(I184=O185,0,INDEX(F_Inputs!$B:$J,MATCH($D186,F_Inputs!$B:$B,0),MATCH(J$5,F_Inputs!$B$2:$J$2,0))) -> 0 | K186: =IF(I184=O185,0,INDEX(F_Inputs!$B:$J,MATCH($D186,F_Inputs!$B:$B,0),MATCH(K$5,F_Inputs!$B$2:$J$2,0))) -> 0 | M186: =IF(OR(I184=Lists!$D$4,I184=Lists!$D$2), IF(AND(I186=0,J186=0,K186=0),0,"Non zero input"),IF(AND(I186>0,J186>0,K186>0),0,"Zero input")) -> 0
B187: 140 | C187: Net margin | D187: R5E00020_A001 | E187: % | F187: 2 | G187: =INDEX(F_Inputs!$B:$J, MATCH($D187, F_Inputs!$B:$B, 0), MATCH(G$5, F_Inputs!$B$2:$J$2, 0) ) -> 0 | H187: =INDEX(F_Inputs!$B:$J, MATCH($D187, F_Inputs!$B:$B, 0), MATCH(H$5, F_Inputs!$B$2:$J$2, 0) ) -> 0 | I187: =IF(I184=O185,0,INDEX(F_Inputs!$B:$J,MATCH($D187,F_Inputs!$B:$B,0),MATCH(I$5,F_Inputs!$B$2:$J$2,0))) -> 0 | J187: =IF(I184=O185,0,INDEX(F_Inputs!$B:$J,MATCH($D187,F_Inputs!$B:$B,0),MATCH(J$5,F_Inputs!$B$2:$J$2,0))) -> 0 | K187: =IF(I184=O185,0,INDEX(F_Inputs!$B:$J,MATCH($D187,F_Inputs!$B:$B,0),MATCH(K$5,F_Inputs!$B$2:$J$2,0))) -> 0 | M187: =IF(OR(I184=Lists!$D$4,I184=Lists!$D$2), IF(AND(I187=0,J187=0,K187=0),0,"Non zero input"),IF(AND(I187>0,J187>0,K187>0),0,"Zero input")) -> 0
B188: 141 | C188: Retail cost per customer | D188: CR620C01_R006 | E188: £ | F188: 2 | G188: =INDEX(F_Inputs!$B:$J, MATCH($D188, F_Inputs!$B:$B, 0), MATCH(G$5, F_Inputs!$B$2:$J$2, 0) ) -> 0 | H188: =INDEX(F_Inputs!$B:$J, MATCH($D188, F_Inputs!$B:$B, 0), MATCH(H$5, F_Inputs!$B$2:$J$2, 0) ) -> 0 | I188: =IF(I184=O185,0,INDEX(F_Inputs!$B:$J,MATCH($D188,F_Inputs!$B:$B,0),MATCH(I$5,F_Inputs!$B$2:$J$2,0))) -> 0 | J188: =IF(I184=O185,0,INDEX(F_Inputs!$B:$J,MATCH($D188,F_Inputs!$B:$B,0),MATCH(J$5,F_Inputs!$B$2:$J$2,0))) -> 0 | K188: =IF(I184=O185,0,INDEX(F_Inputs!$B:$J,MATCH($D188,F_Inputs!$B:$B,0),MATCH(K$5,F_Inputs!$B$2:$J$2,0))) -> 0 | M188: =IF(OR(I184=Lists!$D$4,I184=Lists!$D$2), IF(AND(I188=0,J188=0,K188=0),0,"Non zero input"),IF(AND(I188>0,J188>0,K188>0),0,"Zero input")) -> 0
B189: =B188+1 -> 142 | C189: Allocated wholesale charge at FD (Nominal price base) | D189: Calculation | E189: £m | F189: 3 | G189: =VLOOKUP($C183,'PR14 FD Calculations'!$D$460:$M$520,6,FALSE) -> 0 | H189: =VLOOKUP($C183,'PR14 FD Calculations'!$D$460:$M$520,7,FALSE) -> 0 | I189: =VLOOKUP($C183,'PR14 FD Calculations'!$D$460:$M$520,8,FALSE) -> 0 | J189: =VLOOKUP($C183,'PR14 FD Calculations'!$D$460:$M$520,9,FALSE) -> 0 | K189: =VLOOKUP($C183,'PR14 FD Calculations'!$D$460:$M$520,10,FALSE) -> 0
B190: 143 | C190: Allocated wholesale charge at PR16 (Nominal price base) | D190: Calculation / Input | E190: £m | F190: 3 | G190: =VLOOKUP($C183,'PR14 FD Calculations'!$D$460:$M$520,6,FALSE) -> 0 | H190: =VLOOKUP($C183,'PR14 FD Calculations'!$D$460:$M$520,7,FALSE) -> 0 | I190: =IF( I184 = O185, 0, VLOOKUP( $C183, 'PR14 FD Calculations'!$D$460:$M$520, 8, FALSE ) ) -> 0 | J190: =IF( I184 = O185, 0, VLOOKUP( $C183, 'PR14 FD Calculations'!$D$460:$M$520, 9, FALSE ) ) -> 0 | K190: =IF( I184 = O185, 0, VLOOKUP( $C183, 'PR14 FD Calculations'!$D$460:$M$520, 10, FALSE ) ) -> 0 | M190: =IF(OR(I184=Lists!$D$4,I184=Lists!$D$2), IF(AND(I190=0,J190=0,K190=0),0,"Non zero input"),IF(AND(I190>0,J190>0,K190>0),0,"Zero input")) -> 0
B192: V | C192: Tariff Band 21
B193: =B190+1 -> 144 | C193: Tariff name | G193: =INDEX('Default tariff names PR14'!$B$2:$S$62, MATCH($C192, 'Default tariff names PR14'!$A$2:$A$62, 0),MATCH($O$8, 'Default tariff names PR14'!$B$1:$X$1, 0) ) -> Not used at PR14 | I193: =IF(G193="Not used at PR14",O193,G193) -> Insert new tariff name | M193: =IF(OR(I193=G193, I193="Not used from 2017", G193 = "Not used at PR14" ), 0, "Invalid input") -> 0 | O193: =IF(G193="Not used at PR14",Lists!$D$4,G193) -> Insert new tariff name
B194: =B193+1 -> 145 | C194: Tariff categorisation | G194: =INDEX(Categorisation!$B$4:$S$63, MATCH($C192, Categorisation!$A$4:$A$63, 0), MATCH($O$8, Categorisation!$B$3:$S$3, 0) ) -> Not applicable | I194: =IF(I193 = G193, G194, "Not applicable" ) -> Not applicable | M194: =IF(OR(I193="Insert new tariff name",I193="Not used from 2017"),IF(I194="Not applicable",0,"Invalid input"),IF(I194="Not applicable","Select category",0)) -> 0 | O194: =Lists!$D$2 -> Not used from 2017
B195: 146 | C195: Number of customers | D195: CR621M01_R006 | E195: number | F195: 0 | G195: =INDEX(F_Inputs!$B:$J,MATCH($D195,F_Inputs!$B:$B,0),MATCH(G$5,F_Inputs!$B$2:$J$2,0)) -> 0 | H195: =INDEX(F_Inputs!$B:$J,MATCH($D195,F_Inputs!$B:$B,0),MATCH(H$5,F_Inputs!$B$2:$J$2,0)) -> 0 | I195: =IF(I193=O194,0,INDEX(F_Inputs!$B:$J,MATCH($D195,F_Inputs!$B:$B,0),MATCH(I$5,F_Inputs!$B$2:$J$2,0))) -> 0 | J195: =IF(I193=O194,0,INDEX(F_Inputs!$B:$J,MATCH($D195,F_Inputs!$B:$B,0),MATCH(J$5,F_Inputs!$B$2:$J$2,0))) -> 0 | K195: =IF(I193=O194,0,INDEX(F_Inputs!$B:$J,MATCH($D195,F_Inputs!$B:$B,0),MATCH(K$5,F_Inputs!$B$2:$J$2,0))) -> 0 | M195: =IF(OR(I193=Lists!$D$4,I193=Lists!$D$2), IF(AND(I195=0,J195=0,K195=0),0,"Non zero input"),IF(AND(I195>0,J195>0,K195>0),0,"Zero input")) -> 0
B196: 147 | C196: Net margin | D196: R5E00021_A001 | E196: % | F196: 2 | G196: =INDEX(F_Inputs!$B:$J, MATCH($D196, F_Inputs!$B:$B, 0), MATCH(G$5, F_Inputs!$B$2:$J$2, 0) ) -> 0 | H196: =INDEX(F_Inputs!$B:$J, MATCH($D196, F_Inputs!$B:$B, 0), MATCH(H$5, F_Inputs!$B$2:$J$2, 0) ) -> 0 | I196: =IF(I193=O194,0,INDEX(F_Inputs!$B:$J,MATCH($D196,F_Inputs!$B:$B,0),MATCH(I$5,F_Inputs!$B$2:$J$2,0))) -> 0 | J196: =IF(I193=O194,0,INDEX(F_Inputs!$B:$J,MATCH($D196,F_Inputs!$B:$B,0),MATCH(J$5,F_Inputs!$B$2:$J$2,0))) -> 0 | K196: =IF(I193=O194,0,INDEX(F_Inputs!$B:$J,MATCH($D196,F_Inputs!$B:$B,0),MATCH(K$5,F_Inputs!$B$2:$J$2,0))) -> 0 | M196: =IF(OR(I193=Lists!$D$4,I193=Lists!$D$2), IF(AND(I196=0,J196=0,K196=0),0,"Non zero input"),IF(AND(I196>0,J196>0,K196>0),0,"Zero input")) -> 0
B197: 148 | C197: Retail cost per customer | D197: CR621C01_R006 | E197: £ | F197: 2 | G197: =INDEX(F_Inputs!$B:$J, MATCH($D197, F_Inputs!$B:$B, 0), MATCH(G$5, F_Inputs!$B$2:$J$2, 0) ) -> 0 | H197: =INDEX(F_Inputs!$B:$J, MATCH($D197, F_Inputs!$B:$B, 0), MATCH(H$5, F_Inputs!$B$2:$J$2, 0) ) -> 0 | I197: =IF(I193=O194,0,INDEX(F_Inputs!$B:$J,MATCH($D197,F_Inputs!$B:$B,0),MATCH(I$5,F_Inputs!$B$2:$J$2,0))) -> 0 | J197: =IF(I193=O194,0,INDEX(F_Inputs!$B:$J,MATCH($D197,F_Inputs!$B:$B,0),MATCH(J$5,F_Inputs!$B$2:$J$2,0))) -> 0 | K197: =IF(I193=O194,0,INDEX(F_Inputs!$B:$J,MATCH($D197,F_Inputs!$B:$B,0),MATCH(K$5,F_Inputs!$B$2:$J$2,0))) -> 0 | M197: =IF(OR(I193=Lists!$D$4,I193=Lists!$D$2), IF(AND(I197=0,J197=0,K197=0),0,"Non zero input"),IF(AND(I197>0,J197>0,K197>0),0,"Zero input")) -> 0
B198: =B197+1 -> 149 | C198: Allocated wholesale charge at FD (Nominal price base) | D198: Calculation | E198: £m | F198: 3 | G198: =VLOOKUP($C192,'PR14 FD Calculations'!$D$460:$M$520,6,FALSE) -> 0 | H198: =VLOOKUP($C192,'PR14 FD Calculations'!$D$460:$M$520,7,FALSE) -> 0 | I198: =VLOOKUP($C192,'PR14 FD Calculations'!$D$460:$M$520,8,FALSE) -> 0 | J198: =VLOOKUP($C192,'PR14 FD Calculations'!$D$460:$M$520,9,FALSE) -> 0 | K198: =VLOOKUP($C192,'PR14 FD Calculations'!$D$460:$M$520,10,FALSE) -> 0
B199: 150 | C199: Allocated wholesale charge at PR16 (Nominal price base) | D199: Calculation / Input | E199: £m | F199: 3 | G199: =VLOOKUP($C192,'PR14 FD Calculations'!$D$460:$M$520,6,FALSE) -> 0 | H199: =VLOOKUP($C192,'PR14 FD Calculations'!$D$460:$M$520,7,FALSE) -> 0 | I199: =IF( I193 = O194, 0, VLOOKUP( $C192, 'PR14 FD Calculations'!$D$460:$M$520, 8, FALSE ) ) -> 0 | J199: =IF( I193 = O194, 0, VLOOKUP( $C192, 'PR14 FD Calculations'!$D$460:$M$520, 9, FALSE ) ) -> 0 | K199: =IF( I193 = O194, 0, VLOOKUP( $C192, 'PR14 FD Calculations'!$D$460:$M$520, 10, FALSE ) ) -> 0 | M199: =IF(OR(I193=Lists!$D$4,I193=Lists!$D$2), IF(AND(I199=0,J199=0,K199=0),0,"Non zero input"),IF(AND(I199>0,J199>0,K199>0),0,"Zero input")) -> 0
B201: W | C201: Tariff Band 22
B202: =B199+1 -> 151 | C202: Tariff name | G202: =INDEX('Default tariff names PR14'!$B$2:$S$62, MATCH($C201, 'Default tariff names PR14'!$A$2:$A$62, 0),MATCH($O$8, 'Default tariff names PR14'!$B$1:$X$1, 0) ) -> Not used at PR14 | I202: =IF(G202="Not used at PR14",O202,G202) -> Insert new tariff name | M202: =IF(OR(I202=G202, I202="Not used from 2017", G202 = "Not used at PR14" ), 0, "Invalid input") -> 0 | O202: =IF(G202="Not used at PR14",Lists!$D$4,G202) -> Insert new tariff name
B203: =B202+1 -> 152 | C203: Tariff categorisation | G203: =INDEX(Categorisation!$B$4:$S$63, MATCH($C201, Categorisation!$A$4:$A$63, 0), MATCH($O$8, Categorisation!$B$3:$S$3, 0) ) -> Not applicable | I203: =IF(I202 = G202, G203, "Not applicable" ) -> Not applicable | M203: =IF(OR(I202="Insert new tariff name",I202="Not used from 2017"),IF(I203="Not applicable",0,"Invalid input"),IF(I203="Not applicable","Select category",0)) -> 0 | O203: =Lists!$D$2 -> Not used from 2017
B204: 153 | C204: Number of customers | D204: CR622M01_R006 | E204: number | F204: 0 | G204: =INDEX(F_Inputs!$B:$J,MATCH($D204,F_Inputs!$B:$B,0),MATCH(G$5,F_Inputs!$B$2:$J$2,0)) -> 0 | H204: =INDEX(F_Inputs!$B:$J,MATCH($D204,F_Inputs!$B:$B,0),MATCH(H$5,F_Inputs!$B$2:$J$2,0)) -> 0 | I204: =IF(I202=O203,0,INDEX(F_Inputs!$B:$J,MATCH($D204,F_Inputs!$B:$B,0),MATCH(I$5,F_Inputs!$B$2:$J$2,0))) -> 0 | J204: =IF(I202=O203,0,INDEX(F_Inputs!$B:$J,MATCH($D204,F_Inputs!$B:$B,0),MATCH(J$5,F_Inputs!$B$2:$J$2,0))) -> 0 | K204: =IF(I202=O203,0,INDEX(F_Inputs!$B:$J,MATCH($D204,F_Inputs!$B:$B,0),MATCH(K$5,F_Inputs!$B$2:$J$2,0))) -> 0 | M204: =IF(OR(I202=Lists!$D$4,I202=Lists!$D$2), IF(AND(I204=0,J204=0,K204=0),0,"Non zero input"),IF(AND(I204>0,J204>0,K204>0),0,"Zero input")) -> 0
B205: 154 | C205: Net margin | D205: R5E00022_A001 | E205: % | F205: 2 | G205: =INDEX(F_Inputs!$B:$J, MATCH($D205, F_Inputs!$B:$B, 0), MATCH(G$5, F_Inputs!$B$2:$J$2, 0) ) -> 0 | H205: =INDEX(F_Inputs!$B:$J, MATCH($D205, F_Inputs!$B:$B, 0), MATCH(H$5, F_Inputs!$B$2:$J$2, 0) ) -> 0 | I205: =IF(I202=O203,0,INDEX(F_Inputs!$B:$J,MATCH($D205,F_Inputs!$B:$B,0),MATCH(I$5,F_Inputs!$B$2:$J$2,0))) -> 0 | J205: =IF(I202=O203,0,INDEX(F_Inputs!$B:$J,MATCH($D205,F_Inputs!$B:$B,0),MATCH(J$5,F_Inputs!$B$2:$J$2,0))) -> 0 | K205: =IF(I202=O203,0,INDEX(F_Inputs!$B:$J,MATCH($D205,F_Inputs!$B:$B,0),MATCH(K$5,F_Inputs!$B$2:$J$2,0))) -> 0 | M205: =IF(OR(I202=Lists!$D$4,I202=Lists!$D$2), IF(AND(I205=0,J205=0,K205=0),0,"Non zero input"),IF(AND(I205>0,J205>0,K205>0),0,"Zero input")) -> 0
B206: 155 | C206: Retail cost per customer | D206: CR622C01_R006 | E206: £ | F206: 2 | G206: =INDEX(F_Inputs!$B:$J, MATCH($D206, F_Inputs!$B:$B, 0), MATCH(G$5, F_Inputs!$B$2:$J$2, 0) ) -> 0 | H206: =INDEX(F_Inputs!$B:$J, MATCH($D206, F_Inputs!$B:$B, 0), MATCH(H$5, F_Inputs!$B$2:$J$2, 0) ) -> 0 | I206: =IF(I202=O203,0,INDEX(F_Inputs!$B:$J,MATCH($D206,F_Inputs!$B:$B,0),MATCH(I$5,F_Inputs!$B$2:$J$2,0))) -> 0 | J206: =IF(I202=O203,0,INDEX(F_Inputs!$B:$J,MATCH($D206,F_Inputs!$B:$B,0),MATCH(J$5,F_Inputs!$B$2:$J$2,0))) -> 0 | K206: =IF(I202=O203,0,INDEX(F_Inputs!$B:$J,MATCH($D206,F_Inputs!$B:$B,0),MATCH(K$5,F_Inputs!$B$2:$J$2,0))) -> 0 | M206: =IF(OR(I202=Lists!$D$4,I202=Lists!$D$2), IF(AND(I206=0,J206=0,K206=0),0,"Non zero input"),IF(AND(I206>0,J206>0,K206>0),0,"Zero input")) -> 0
B207: =B206+1 -> 156 | C207: Allocated wholesale charge at FD (Nominal price base) | D207: Calculation | E207: £m | F207: 3 | G207: =VLOOKUP($C201,'PR14 FD Calculations'!$D$460:$M$520,6,FALSE) -> 0 | H207: =VLOOKUP($C201,'PR14 FD Calculations'!$D$460:$M$520,7,FALSE) -> 0 | I207: =VLOOKUP($C201,'PR14 FD Calculations'!$D$460:$M$520,8,FALSE) -> 0 | J207: =VLOOKUP($C201,'PR14 FD Calculations'!$D$460:$M$520,9,FALSE) -> 0 | K207: =VLOOKUP($C201,'PR14 FD Calculations'!$D$460:$M$520,10,FALSE) -> 0
B208: 157 | C208: Allocated wholesale charge at PR16 (Nominal price base) | D208: Calculation / Input | E208: £m | F208: 3 | G208: =VLOOKUP($C201,'PR14 FD Calculations'!$D$460:$M$520,6,FALSE) -> 0 | H208: =VLOOKUP($C201,'PR14 FD Calculations'!$D$460:$M$520,7,FALSE) -> 0 | I208: =IF( I202 = O203, 0, VLOOKUP( $C201, 'PR14 FD Calculations'!$D$460:$M$520, 8, FALSE ) ) -> 0 | J208: =IF( I202 = O203, 0, VLOOKUP( $C201, 'PR14 FD Calculations'!$D$460:$M$520, 9, FALSE ) ) -> 0 | K208: =IF( I202 = O203, 0, VLOOKUP( $C201, 'PR14 FD Calculations'!$D$460:$M$520, 10, FALSE ) ) -> 0 | M208: =IF(OR(I202=Lists!$D$4,I202=Lists!$D$2), IF(AND(I208=0,J208=0,K208=0),0,"Non zero input"),IF(AND(I208>0,J208>0,K208>0),0,"Zero input")) -> 0
B210: X | C210: Tariff Band 23
B211: =B208+1 -> 158 | C211: Tariff name | G211: =INDEX('Default tariff names PR14'!$B$2:$S$62, MATCH($C210, 'Default tariff names PR14'!$A$2:$A$62, 0),MATCH($O$8, 'Default tariff names PR14'!$B$1:$X$1, 0) ) -> Not used at PR14 | I211: =IF(G211="Not used at PR14",O211,G211) -> Insert new tariff name | M211: =IF(OR(I211=G211, I211="Not used from 2017", G211 = "Not used at PR14" ), 0, "Invalid input") -> 0 | O211: =IF(G211="Not used at PR14",Lists!$D$4,G211) -> Insert new tariff name
B212: =B211+1 -> 159 | C212: Tariff categorisation | G212: =INDEX(Categorisation!$B$4:$S$63, MATCH($C210, Categorisation!$A$4:$A$63, 0), MATCH($O$8, Categorisation!$B$3:$S$3, 0) ) -> Not applicable | I212: =IF(I211 = G211, G212, "Not applicable" ) -> Not applicable | M212: =IF(OR(I211="Insert new tariff name",I211="Not used from 2017"),IF(I212="Not applicable",0,"Invalid input"),IF(I212="Not applicable","Select category",0)) -> 0 | O212: =Lists!$D$2 -> Not used from 2017
B213: 160 | C213: Number of customers | D213: CR623M01_R006 | E213: number | F213: 0 | G213: =INDEX(F_Inputs!$B:$J,MATCH($D213,F_Inputs!$B:$B,0),MATCH(G$5,F_Inputs!$B$2:$J$2,0)) -> 0 | H213: =INDEX(F_Inputs!$B:$J,MATCH($D213,F_Inputs!$B:$B,0),MATCH(H$5,F_Inputs!$B$2:$J$2,0)) -> 0 | I213: =IF(I211=O212,0,INDEX(F_Inputs!$B:$J,MATCH($D213,F_Inputs!$B:$B,0),MATCH(I$5,F_Inputs!$B$2:$J$2,0))) -> 0 | J213: =IF(I211=O212,0,INDEX(F_Inputs!$B:$J,MATCH($D213,F_Inputs!$B:$B,0),MATCH(J$5,F_Inputs!$B$2:$J$2,0))) -> 0 | K213: =IF(I211=O212,0,INDEX(F_Inputs!$B:$J,MATCH($D213,F_Inputs!$B:$B,0),MATCH(K$5,F_Inputs!$B$2:$J$2,0))) -> 0 | M213: =IF(OR(I211=Lists!$D$4,I211=Lists!$D$2), IF(AND(I213=0,J213=0,K213=0),0,"Non zero input"),IF(AND(I213>0,J213>0,K213>0),0,"Zero input")) -> 0
B214: 161 | C214: Net margin | D214: R5E00023_A001 | E214: % | F214: 2 | G214: =INDEX(F_Inputs!$B:$J, MATCH($D214, F_Inputs!$B:$B, 0), MATCH(G$5, F_Inputs!$B$2:$J$2, 0) ) -> 0 | H214: =INDEX(F_Inputs!$B:$J, MATCH($D214, F_Inputs!$B:$B, 0), MATCH(H$5, F_Inputs!$B$2:$J$2, 0) ) -> 0 | I214: =IF(I211=O212,0,INDEX(F_Inputs!$B:$J,MATCH($D214,F_Inputs!$B:$B,0),MATCH(I$5,F_Inputs!$B$2:$J$2,0))) -> 0 | J214: =IF(I211=O212,0,INDEX(F_Inputs!$B:$J,MATCH($D214,F_Inputs!$B:$B,0),MATCH(J$5,F_Inputs!$B$2:$J$2,0))) -> 0 | K214: =IF(I211=O212,0,INDEX(F_Inputs!$B:$J,MATCH($D214,F_Inputs!$B:$B,0),MATCH(K$5,F_Inputs!$B$2:$J$2,0))) -> 0 | M214: =IF(OR(I211=Lists!$D$4,I211=Lists!$D$2), IF(AND(I214=0,J214=0,K214=0),0,"Non zero input"),IF(AND(I214>0,J214>0,K214>0),0,"Zero input")) -> 0
B215: 162 | C215: Retail cost per customer | D215: CR623C01_R006 | E215: £ | F215: 2 | G215: =INDEX(F_Inputs!$B:$J, MATCH($D215, F_Inputs!$B:$B, 0), MATCH(G$5, F_Inputs!$B$2:$J$2, 0) ) -> 0 | H215: =INDEX(F_Inputs!$B:$J, MATCH($D215, F_Inputs!$B:$B, 0), MATCH(H$5, F_Inputs!$B$2:$J$2, 0) ) -> 0 | I215: =IF(I211=O212,0,INDEX(F_Inputs!$B:$J,MATCH($D215,F_Inputs!$B:$B,0),MATCH(I$5,F_Inputs!$B$2:$J$2,0))) -> 0 | J215: =IF(I211=O212,0,INDEX(F_Inputs!$B:$J,MATCH($D215,F_Inputs!$B:$B,0),MATCH(J$5,F_Inputs!$B$2:$J$2,0))) -> 0 | K215: =IF(I211=O212,0,INDEX(F_Inputs!$B:$J,MATCH($D215,F_Inputs!$B:$B,0),MATCH(K$5,F_Inputs!$B$2:$J$2,0))) -> 0 | M215: =IF(OR(I211=Lists!$D$4,I211=Lists!$D$2), IF(AND(I215=0,J215=0,K215=0),0,"Non zero input"),IF(AND(I215>0,J215>0,K215>0),0,"Zero input")) -> 0
B216: =B215+1 -> 163 | C216: Allocated wholesale charge at FD (Nominal price base) | D216: Calculation | E216: £m | F216: 3 | G216: =VLOOKUP($C210,'PR14 FD Calculations'!$D$460:$M$520,6,FALSE) -> 0 | H216: =VLOOKUP($C210,'PR14 FD Calculations'!$D$460:$M$520,7,FALSE) -> 0 | I216: =VLOOKUP($C210,'PR14 FD Calculations'!$D$460:$M$520,8,FALSE) -> 0 | J216: =VLOOKUP($C210,'PR14 FD Calculations'!$D$460:$M$520,9,FALSE) -> 0 | K216: =VLOOKUP($C210,'PR14 FD Calculations'!$D$460:$M$520,10,FALSE) -> 0
B217: 164 | C217: Allocated wholesale charge at PR16 (Nominal price base) | D217: Calculation / Input | E217: £m | F217: 3 | G217: =VLOOKUP($C210,'PR14 FD Calculations'!$D$460:$M$520,6,FALSE) -> 0 | H217: =VLOOKUP($C210,'PR14 FD Calculations'!$D$460:$M$520,7,FALSE) -> 0 | I217: =IF( I211 = O212, 0, VLOOKUP( $C210, 'PR14 FD Calculations'!$D$460:$M$520, 8, FALSE ) ) -> 0 | J217: =IF( I211 = O212, 0, VLOOKUP( $C210, 'PR14 FD Calculations'!$D$460:$M$520, 9, FALSE ) ) -> 0 | K217: =IF( I211 = O212, 0, VLOOKUP( $C210, 'PR14 FD Calculations'!$D$460:$M$520, 10, FALSE ) ) -> 0 | M217: =IF(OR(I211=Lists!$D$4,I211=Lists!$D$2), IF(AND(I217=0,J217=0,K217=0),0,"Non zero input"),IF(AND(I217>0,J217>0,K217>0),0,"Zero input")) -> 0
B219: Y | C219: Tariff Band 24
B220: =B217+1 -> 165 | C220: Tariff name | G220: =INDEX('Default tariff names PR14'!$B$2:$S$62, MATCH($C219, 'Default tariff names PR14'!$A$2:$A$62, 0),MATCH($O$8, 'Default tariff names PR14'!$B$1:$X$1, 0) ) -> Not used at PR14 | I220: =IF(G220="Not used at PR14",O220,G220) -> Insert new tariff name | M220: =IF(OR(I220=G220, I220="Not used from 2017", G220 = "Not used at PR14" ), 0, "Invalid input") -> 0 | O220: =IF(G220="Not used at PR14",Lists!$D$4,G220) -> Insert new tariff name
B221: =B220+1 -> 166 | C221: Tariff categorisation | G221: =INDEX(Categorisation!$B$4:$S$63, MATCH($C219, Categorisation!$A$4:$A$63, 0), MATCH($O$8, Categorisation!$B$3:$S$3, 0) ) -> Not applicable | I221: =IF(I220 = G220, G221, "Not applicable" ) -> Not applicable | M221: =IF(OR(I220="Insert new tariff name",I220="Not used from 2017"),IF(I221="Not applicable",0,"Invalid input"),IF(I221="Not applicable","Select category",0)) -> 0 | O221: =Lists!$D$2 -> Not used from 2017
B222: 167 | C222: Number of customers | D222: CR624M01_R006 | E222: number | F222: 0 | G222: =INDEX(F_Inputs!$B:$J,MATCH($D222,F_Inputs!$B:$B,0),MATCH(G$5,F_Inputs!$B$2:$J$2,0)) -> 0 | H222: =INDEX(F_Inputs!$B:$J,MATCH($D222,F_Inputs!$B:$B,0),MATCH(H$5,F_Inputs!$B$2:$J$2,0)) -> 0 | I222: =IF(I220=O221,0,INDEX(F_Inputs!$B:$J,MATCH($D222,F_Inputs!$B:$B,0),MATCH(I$5,F_Inputs!$B$2:$J$2,0))) -> 0 | J222: =IF(I220=O221,0,INDEX(F_Inputs!$B:$J,MATCH($D222,F_Inputs!$B:$B,0),MATCH(J$5,F_Inputs!$B$2:$J$2,0))) -> 0 | K222: =IF(I220=O221,0,INDEX(F_Inputs!$B:$J,MATCH($D222,F_Inputs!$B:$B,0),MATCH(K$5,F_Inputs!$B$2:$J$2,0))) -> 0 | M222: =IF(OR(I220=Lists!$D$4,I220=Lists!$D$2), IF(AND(I222=0,J222=0,K222=0),0,"Non zero input"),IF(AND(I222>0,J222>0,K222>0),0,"Zero input")) -> 0
B223: 168 | C223: Net margin | D223: R5E00024_A001 | E223: % | F223: 2 | G223: =INDEX(F_Inputs!$B:$J, MATCH($D223, F_Inputs!$B:$B, 0), MATCH(G$5, F_Inputs!$B$2:$J$2, 0) ) -> 0 | H223: =INDEX(F_Inputs!$B:$J, MATCH($D223, F_Inputs!$B:$B, 0), MATCH(H$5, F_Inputs!$B$2:$J$2, 0) ) -> 0 | I223: =IF(I220=O221,0,INDEX(F_Inputs!$B:$J,MATCH($D223,F_Inputs!$B:$B,0),MATCH(I$5,F_Inputs!$B$2:$J$2,0))) -> 0 | J223: =IF(I220=O221,0,INDEX(F_Inputs!$B:$J,MATCH($D223,F_Inputs!$B:$B,0),MATCH(J$5,F_Inputs!$B$2:$J$2,0))) -> 0 | K223: =IF(I220=O221,0,INDEX(F_Inputs!$B:$J,MATCH($D223,F_Inputs!$B:$B,0),MATCH(K$5,F_Inputs!$B$2:$J$2,0))) -> 0 | M223: =IF(OR(I220=Lists!$D$4,I220=Lists!$D$2), IF(AND(I223=0,J223=0,K223=0),0,"Non zero input"),IF(AND(I223>0,J223>0,K223>0),0,"Zero input")) -> 0
B224: 169 | C224: Retail cost per customer | D224: CR624C01_R006 | E224: £ | F224: 2 | G224: =INDEX(F_Inputs!$B:$J, MATCH($D224, F_Inputs!$B:$B, 0), MATCH(G$5, F_Inputs!$B$2:$J$2, 0) ) -> 0 | H224: =INDEX(F_Inputs!$B:$J, MATCH($D224, F_Inputs!$B:$B, 0), MATCH(H$5, F_Inputs!$B$2:$J$2, 0) ) -> 0 | I224: =IF(I220=O221,0,INDEX(F_Inputs!$B:$J,MATCH($D224,F_Inputs!$B:$B,0),MATCH(I$5,F_Inputs!$B$2:$J$2,0))) -> 0 | J224: =IF(I220=O221,0,INDEX(F_Inputs!$B:$J,MATCH($D224,F_Inputs!$B:$B,0),MATCH(J$5,F_Inputs!$B$2:$J$2,0))) -> 0 | K224: =IF(I220=O221,0,INDEX(F_Inputs!$B:$J,MATCH($D224,F_Inputs!$B:$B,0),MATCH(K$5,F_Inputs!$B$2:$J$2,0))) -> 0 | M224: =IF(OR(I220=Lists!$D$4,I220=Lists!$D$2), IF(AND(I224=0,J224=0,K224=0),0,"Non zero input"),IF(AND(I224>0,J224>0,K224>0),0,"Zero input")) -> 0
B225: =B224+1 -> 170 | C225: Allocated wholesale charge at FD (Nominal price base) | D225: Calculation | E225: £m | F225: 3 | G225: =VLOOKUP($C219,'PR14 FD Calculations'!$D$460:$M$520,6,FALSE) -> 0 | H225: =VLOOKUP($C219,'PR14 FD Calculations'!$D$460:$M$520,7,FALSE) -> 0 | I225: =VLOOKUP($C219,'PR14 FD Calculations'!$D$460:$M$520,8,FALSE) -> 0 | J225: =VLOOKUP($C219,'PR14 FD Calculations'!$D$460:$M$520,9,FALSE) -> 0 | K225: =VLOOKUP($C219,'PR14 FD Calculations'!$D$460:$M$520,10,FALSE) -> 0
B226: 171 | C226: Allocated wholesale charge at PR16 (Nominal price base) | D226: Calculation / Input | E226: £m | F226: 3 | G226: =VLOOKUP($C219,'PR14 FD Calculations'!$D$460:$M$520,6,FALSE) -> 0 | H226: =VLOOKUP($C219,'PR14 FD Calculations'!$D$460:$M$520,7,FALSE) -> 0 | I226: =IF( I220 = O221, 0, VLOOKUP( $C219, 'PR14 FD Calculations'!$D$460:$M$520, 8, FALSE ) ) -> 0 | J226: =IF( I220 = O221, 0, VLOOKUP( $C219, 'PR14 FD Calculations'!$D$460:$M$520, 9, FALSE ) ) -> 0 | K226: =IF( I220 = O221, 0, VLOOKUP( $C219, 'PR14 FD Calculations'!$D$460:$M$520, 10, FALSE ) ) -> 0 | M226: =IF(OR(I220=Lists!$D$4,I220=Lists!$D$2), IF(AND(I226=0,J226=0,K226=0),0,"Non zero input"),IF(AND(I226>0,J226>0,K226>0),0,"Zero input")) -> 0
B228: Z | C228: Tariff Band 25
... 306 more rows

Sheet Calculations ->

Sheet PR14 FD Calculations
A1: PR14 FD Calculations | M1: =Lists!E29 -> Sutton & East Surrey Water
A3: Line description | E3: Constant | F3: Item reference | G3: Units | H3: DPs | I3: 2015-16 | J3: 2016-17 | K3: 2017-18 | L3: 2018-19 | M3: 2019-20
A5: NUMBER OF TARIFF BANDS UTILISED
C6: Tariff band descriptions
D7: Tariff Band 1 | E7: ='R4a PR14'!G$13 -> Northern area unmeasured | F7: ='R4a PR14'!D$13 -> 0 | G7: ='R4a PR14'!E$13 -> 0 | H7: ='R4a PR14'!F$13 -> 0
D8: Tariff Band 2 | E8: ='R4a PR14'!G$22 -> Northern area standard user metered | F8: ='R4a PR14'!D$22 -> 0 | G8: ='R4a PR14'!E$22 -> 0 | H8: ='R4a PR14'!F$22 -> 0
D9: Tariff Band 3 | E9: ='R4a PR14'!G$31 -> Northern area mid user metered | F9: ='R4a PR14'!D$31 -> 0 | G9: ='R4a PR14'!E$31 -> 0 | H9: ='R4a PR14'!F$31 -> 0
D10: Tariff Band 4 | E10: ='R4a PR14'!G$40 -> Northern area high user metered | F10: ='R4a PR14'!D$40 -> 0 | G10: ='R4a PR14'!E$40 -> 0 | H10: ='R4a PR14'!F$40 -> 0
D11: Tariff Band 5 | E11: ='R4a PR14'!G$49 -> Southern area unmeasured | F11: ='R4a PR14'!D$49 -> 0 | G11: ='R4a PR14'!E$49 -> 0 | H11: ='R4a PR14'!F$49 -> 0
D12: Tariff Band 6 | E12: ='R4a PR14'!G$58 -> Southern area standard user metered | F12: ='R4a PR14'!D$58 -> 0 | G12: ='R4a PR14'!E$58 -> 0 | H12: ='R4a PR14'!F$58 -> 0
D13: Tariff Band 7 | E13: ='R4a PR14'!G$67 -> Southern area mid user metered | F13: ='R4a PR14'!D$67 -> 0 | G13: ='R4a PR14'!E$67 -> 0 | H13: ='R4a PR14'!F$67 -> 0
D14: Tariff Band 8 | E14: ='R4a PR14'!G$76 -> Southern area high user metered | F14: ='R4a PR14'!D$76 -> 0 | G14: ='R4a PR14'!E$76 -> 0 | H14: ='R4a PR14'!F$76 -> 0
D15: Tariff Band 9 | E15: ='R4a PR14'!G$85 -> Special agreement 1 metered | F15: ='R4a PR14'!D$85 -> 0 | G15: ='R4a PR14'!E$85 -> 0 | H15: ='R4a PR14'!F$85 -> 0
D16: Tariff Band 10 | E16: ='R4a PR14'!G$94 -> Special agreement 2 metered | F16: ='R4a PR14'!D$94 -> 0 | G16: ='R4a PR14'!E$94 -> 0 | H16: ='R4a PR14'!F$94 -> 0
D17: Tariff Band 11 | E17: ='R4a PR14'!G$103 -> Not used at PR14 | F17: ='R4a PR14'!D$103 -> 0 | G17: ='R4a PR14'!E$103 -> 0 | H17: ='R4a PR14'!F$103 -> 0
D18: Tariff Band 12 | E18: ='R4a PR14'!G$112 -> Not used at PR14 | F18: ='R4a PR14'!D$112 -> 0 | G18: ='R4a PR14'!E$112 -> 0 | H18: ='R4a PR14'!F$112 -> 0
D19: Tariff Band 13 | E19: ='R4a PR14'!G$121 -> Not used at PR14 | F19: ='R4a PR14'!D$121 -> 0 | G19: ='R4a PR14'!E$121 -> 0 | H19: ='R4a PR14'!F$121 -> 0
D20: Tariff Band 14 | E20: ='R4a PR14'!G$130 -> Not used at PR14 | F20: ='R4a PR14'!D$130 -> 0 | G20: ='R4a PR14'!E$130 -> 0 | H20: ='R4a PR14'!F$130 -> 0
D21: Tariff Band 15 | E21: ='R4a PR14'!G$139 -> Not used at PR14 | F21: ='R4a PR14'!D$139 -> 0 | G21: ='R4a PR14'!E$139 -> 0 | H21: ='R4a PR14'!F$139 -> 0
D22: Tariff Band 16 | E22: ='R4a PR14'!G$148 -> Not used at PR14 | F22: ='R4a PR14'!D$148 -> 0 | G22: ='R4a PR14'!E$148 -> 0 | H22: ='R4a PR14'!F$148 -> 0
D23: Tariff Band 17 | E23: ='R4a PR14'!G$157 -> Not used at PR14 | F23: ='R4a PR14'!D$157 -> 0 | G23: ='R4a PR14'!E$157 -> 0 | H23: ='R4a PR14'!F$157 -> 0
D24: Tariff Band 18 | E24: ='R4a PR14'!G$166 -> Not used at PR14 | F24: ='R4a PR14'!D$166 -> 0 | G24: ='R4a PR14'!E$166 -> 0 | H24: ='R4a PR14'!F$166 -> 0
D25: Tariff Band 19 | E25: ='R4a PR14'!G$175 -> Not used at PR14 | F25: ='R4a PR14'!D$175 -> 0 | G25: ='R4a PR14'!E$175 -> 0 | H25: ='R4a PR14'!F$175 -> 0
D26: Tariff Band 20 | E26: ='R4a PR14'!G$184 -> Not used at PR14 | F26: ='R4a PR14'!D$184 -> 0 | G26: ='R4a PR14'!E$184 -> 0 | H26: ='R4a PR14'!F$184 -> 0
D27: Tariff Band 21 | E27: ='R4a PR14'!G$193 -> Not used at PR14 | F27: ='R4a PR14'!D$193 -> 0 | G27: ='R4a PR14'!E$193 -> 0 | H27: ='R4a PR14'!F$193 -> 0
D28: Tariff Band 22 | E28: ='R4a PR14'!G$202 -> Not used at PR14 | F28: ='R4a PR14'!D$202 -> 0 | G28: ='R4a PR14'!E$202 -> 0 | H28: ='R4a PR14'!F$202 -> 0
D29: Tariff Band 23 | E29: ='R4a PR14'!G$211 -> Not used at PR14 | F29: ='R4a PR14'!D$211 -> 0 | G29: ='R4a PR14'!E$211 -> 0 | H29: ='R4a PR14'!F$211 -> 0
D30: Tariff Band 24 | E30: ='R4a PR14'!G$220 -> Not used at PR14 | F30: ='R4a PR14'!D$220 -> 0 | G30: ='R4a PR14'!E$220 -> 0 | H30: ='R4a PR14'!F$220 -> 0
D31: Tariff Band 25 | E31: ='R4a PR14'!G$229 -> Not used at PR14 | F31: ='R4a PR14'!D$229 -> 0 | G31: ='R4a PR14'!E$229 -> 0 | H31: ='R4a PR14'!F$229 -> 0
D32: Tariff Band 26 | E32: ='R4a PR14'!G$238 -> Not used at PR14 | F32: ='R4a PR14'!D$238 -> 0 | G32: ='R4a PR14'!E$238 -> 0 | H32: ='R4a PR14'!F$238 -> 0
D33: Tariff Band 27 | E33: ='R4a PR14'!G$247 -> Not used at PR14 | F33: ='R4a PR14'!D$247 -> 0 | G33: ='R4a PR14'!E$247 -> 0 | H33: ='R4a PR14'!F$247 -> 0
D34: Tariff Band 28 | E34: ='R4a PR14'!G$256 -> Not used at PR14 | F34: ='R4a PR14'!D$256 -> 0 | G34: ='R4a PR14'!E$256 -> 0 | H34: ='R4a PR14'!F$256 -> 0
D35: Tariff Band 29 | E35: ='R4a PR14'!G$265 -> Not used at PR14 | F35: ='R4a PR14'!D$265 -> 0 | G35: ='R4a PR14'!E$265 -> 0 | H35: ='R4a PR14'!F$265 -> 0
D36: Tariff Band 30 | E36: ='R4a PR14'!G$274 -> Not used at PR14 | F36: ='R4a PR14'!D$274 -> 0 | G36: ='R4a PR14'!E$274 -> 0 | H36: ='R4a PR14'!F$274 -> 0
D37: Tariff Band 31 | E37: ='R4a PR14'!G$283 -> Not used at PR14 | F37: ='R4a PR14'!D$283 -> 0 | G37: ='R4a PR14'!E$283 -> 0 | H37: ='R4a PR14'!F$283 -> 0
D38: Tariff Band 32 | E38: ='R4a PR14'!G$292 -> Not used at PR14 | F38: ='R4a PR14'!D$292 -> 0 | G38: ='R4a PR14'!E$292 -> 0 | H38: ='R4a PR14'!F$292 -> 0
D39: Tariff Band 33 | E39: ='R4a PR14'!G$301 -> Not used at PR14 | F39: ='R4a PR14'!D$301 -> 0 | G39: ='R4a PR14'!E$301 -> 0 | H39: ='R4a PR14'!F$301 -> 0
D40: Tariff Band 34 | E40: ='R4a PR14'!G$310 -> Not used at PR14 | F40: ='R4a PR14'!D$310 -> 0 | G40: ='R4a PR14'!E$310 -> 0 | H40: ='R4a PR14'!F$310 -> 0
D41: Tariff Band 35 | E41: ='R4a PR14'!G$319 -> Not used at PR14 | F41: ='R4a PR14'!D$319 -> 0 | G41: ='R4a PR14'!E$319 -> 0 | H41: ='R4a PR14'!F$319 -> 0
D42: Tariff Band 36 | E42: ='R4a PR14'!G$328 -> Not used at PR14 | F42: ='R4a PR14'!D$328 -> 0 | G42: ='R4a PR14'!E$328 -> 0 | H42: ='R4a PR14'!F$328 -> 0
D43: Tariff Band 37 | E43: ='R4a PR14'!G$337 -> Not used at PR14 | F43: ='R4a PR14'!D$337 -> 0 | G43: ='R4a PR14'!E$337 -> 0 | H43: ='R4a PR14'!F$337 -> 0
D44: Tariff Band 38 | E44: ='R4a PR14'!G$346 -> Not used at PR14 | F44: ='R4a PR14'!D$346 -> 0 | G44: ='R4a PR14'!E$346 -> 0 | H44: ='R4a PR14'!F$346 -> 0
D45: Tariff Band 39 | E45: ='R4a PR14'!G$355 -> Not used at PR14 | F45: ='R4a PR14'!D$355 -> 0 | G45: ='R4a PR14'!E$355 -> 0 | H45: ='R4a PR14'!F$355 -> 0
D46: Tariff Band 40 | E46: ='R4a PR14'!G$364 -> Not used at PR14 | F46: ='R4a PR14'!D$364 -> 0 | G46: ='R4a PR14'!E$364 -> 0 | H46: ='R4a PR14'!F$364 -> 0
D47: Tariff Band 41 | E47: ='R4a PR14'!G$373 -> Not used at PR14 | F47: ='R4a PR14'!D$373 -> 0 | G47: ='R4a PR14'!E$373 -> 0 | H47: ='R4a PR14'!F$373 -> 0
D48: Tariff Band 42 | E48: ='R4a PR14'!G$382 -> Not used at PR14 | F48: ='R4a PR14'!D$382 -> 0 | G48: ='R4a PR14'!E$382 -> 0 | H48: ='R4a PR14'!F$382 -> 0
D49: Tariff Band 43 | E49: ='R4a PR14'!G$391 -> Not used at PR14 | F49: ='R4a PR14'!D$391 -> 0 | G49: ='R4a PR14'!E$391 -> 0 | H49: ='R4a PR14'!F$391 -> 0
D50: Tariff Band 44 | E50: ='R4a PR14'!G$400 -> Not used at PR14 | F50: ='R4a PR14'!D$400 -> 0 | G50: ='R4a PR14'!E$400 -> 0 | H50: ='R4a PR14'!F$400 -> 0
D51: Tariff Band 45 | E51: ='R4a PR14'!G$409 -> Not used at PR14 | F51: ='R4a PR14'!D$409 -> 0 | G51: ='R4a PR14'!E$409 -> 0 | H51: ='R4a PR14'!F$409 -> 0
D52: Tariff Band 46 | E52: ='R4a PR14'!G$418 -> Not used at PR14 | F52: ='R4a PR14'!D$418 -> 0 | G52: ='R4a PR14'!E$418 -> 0 | H52: ='R4a PR14'!F$418 -> 0
D53: Tariff Band 47 | E53: ='R4a PR14'!G$427 -> Not used at PR14 | F53: ='R4a PR14'!D$427 -> 0 | G53: ='R4a PR14'!E$427 -> 0 | H53: ='R4a PR14'!F$427 -> 0
D54: Tariff Band 48 | E54: ='R4a PR14'!G$436 -> Not used at PR14 | F54: ='R4a PR14'!D$436 -> 0 | G54: ='R4a PR14'!E$436 -> 0 | H54: ='R4a PR14'!F$436 -> 0
D55: Tariff Band 49 | E55: ='R4a PR14'!G$445 -> Not used at PR14 | F55: ='R4a PR14'!D$445 -> 0 | G55: ='R4a PR14'!E$445 -> 0 | H55: ='R4a PR14'!F$445 -> 0
D56: Tariff Band 50 | E56: ='R4a PR14'!G$454 -> Not used at PR14 | F56: ='R4a PR14'!D$454 -> 0 | G56: ='R4a PR14'!E$454 -> 0 | H56: ='R4a PR14'!F$454 -> 0
D57: Tariff Band 51 | E57: ='R4a PR14'!G$463 -> Not used at PR14 | F57: ='R4a PR14'!D$463 -> 0 | G57: ='R4a PR14'!E$463 -> 0 | H57: ='R4a PR14'!F$463 -> 0
D58: Tariff Band 52 | E58: ='R4a PR14'!G$472 -> Not used at PR14 | F58: ='R4a PR14'!D$472 -> 0 | G58: ='R4a PR14'!E$472 -> 0 | H58: ='R4a PR14'!F$472 -> 0
D59: Tariff Band 53 | E59: ='R4a PR14'!G$481 -> Not used at PR14 | F59: ='R4a PR14'!D$481 -> 0 | G59: ='R4a PR14'!E$481 -> 0 | H59: ='R4a PR14'!F$481 -> 0
D60: Tariff Band 54 | E60: ='R4a PR14'!G$490 -> Not used at PR14 | F60: ='R4a PR14'!D$490 -> 0 | G60: ='R4a PR14'!E$490 -> 0 | H60: ='R4a PR14'!F$490 -> 0
D61: Tariff Band 55 | E61: ='R4a PR14'!G$499 -> Not used at PR14 | F61: ='R4a PR14'!D$499 -> 0 | G61: ='R4a PR14'!E$499 -> 0 | H61: ='R4a PR14'!F$499 -> 0
D62: Tariff Band 56 | E62: ='R4a PR14'!G$508 -> Not used at PR14 | F62: ='R4a PR14'!D$508 -> 0 | G62: ='R4a PR14'!E$508 -> 0 | H62: ='R4a PR14'!F$508 -> 0
D63: Tariff Band 57 | E63: ='R4a PR14'!G$517 -> Not used at PR14 | F63: ='R4a PR14'!D$517 -> 0 | G63: ='R4a PR14'!E$517 -> 0 | H63: ='R4a PR14'!F$517 -> 0
D64: Tariff Band 58 | E64: ='R4a PR14'!G$526 -> Not used at PR14 | F64: ='R4a PR14'!D$526 -> 0 | G64: ='R4a PR14'!E$526 -> 0 | H64: ='R4a PR14'!F$526 -> 0
D65: Tariff Band 59 | E65: ='R4a PR14'!G$535 -> Not used at PR14 | F65: ='R4a PR14'!D$535 -> 0 | G65: ='R4a PR14'!E$535 -> 0 | H65: ='R4a PR14'!F$535 -> 0
D66: Tariff Band 60 | E66: ='R4a PR14'!G$544 -> Not used at PR14 | F66: ='R4a PR14'!D$544 -> 0 | G66: ='R4a PR14'!E$544 -> 0 | H66: ='R4a PR14'!F$544 -> 0
D67: Number of tariff bands | G67: number | H67: 0 | I67: =60 - COUNTIF( $E$7:$E$66, "Not used at PR14") -> 10 | J67: =60 - COUNTIF( $E$7:$E$66, "Not used at PR14") -> 10 | K67: =60 - COUNTIF( $E$7:$E$66, "Not used at PR14") -> 10 | L67: =60 - COUNTIF( $E$7:$E$66, "Not used at PR14") -> 10 | M67: =60 - COUNTIF( $E$7:$E$66, "Not used at PR14") -> 10
A69: NUMBER OF CUSTOMERS
C70: Number of customers
D71: Tariff Band 1 | F71: ='R4a PR14'!D$15 -> CR601M01_R006 | G71: ='R4a PR14'!E$15 -> number | H71: ='R4a PR14'!F$15 -> 0 | I71: ='R4a PR14'!G$15 -> 921.0258481 | J71: ='R4a PR14'!H$15 -> 921.0258481 | K71: ='R4a PR14'!I$15 -> 921.0258481 | L71: ='R4a PR14'!J$15 -> 921.0258481 | M71: ='R4a PR14'!K$15 -> 921.0258481
D72: Tariff Band 2 | F72: ='R4a PR14'!D$24 -> CR602M01_R006 | G72: ='R4a PR14'!E$24 -> number | H72: ='R4a PR14'!F$24 -> 0 | I72: ='R4a PR14'!G$24 -> 4722.215064 | J72: ='R4a PR14'!H$24 -> 4722.215064 | K72: ='R4a PR14'!I$24 -> 4722.215064 | L72: ='R4a PR14'!J$24 -> 4722.215064 | M72: ='R4a PR14'!K$24 -> 4722.215064
D73: Tariff Band 3 | F73: ='R4a PR14'!D$33 -> CR603M01_R006 | G73: ='R4a PR14'!E$33 -> number | H73: ='R4a PR14'!F$33 -> 0 | I73: ='R4a PR14'!G$33 -> 21 | J73: ='R4a PR14'!H$33 -> 21 | K73: ='R4a PR14'!I$33 -> 21 | L73: ='R4a PR14'!J$33 -> 21 | M73: ='R4a PR14'!K$33 -> 21
D74: Tariff Band 4 | F74: ='R4a PR14'!D$42 -> CR604M01_R006 | G74: ='R4a PR14'!E$42 -> number | H74: ='R4a PR14'!F$42 -> 0 | I74: ='R4a PR14'!G$42 -> 1 | J74: ='R4a PR14'!H$42 -> 1 | K74: ='R4a PR14'!I$42 -> 1 | L74: ='R4a PR14'!J$42 -> 1 | M74: ='R4a PR14'!K$42 -> 1
D75: Tariff Band 5 | F75: ='R4a PR14'!D$51 -> CR605M01_R006 | G75: ='R4a PR14'!E$51 -> number | H75: ='R4a PR14'!F$51 -> 0 | I75: ='R4a PR14'!G$51 -> 989.9741519 | J75: ='R4a PR14'!H$51 -> 989.9741519 | K75: ='R4a PR14'!I$51 -> 989.9741519 | L75: ='R4a PR14'!J$51 -> 989.9741519 | M75: ='R4a PR14'!K$51 -> 989.9741519
D76: Tariff Band 6 | F76: ='R4a PR14'!D$60 -> CR606M01_R006 | G76: ='R4a PR14'!E$60 -> number | H76: ='R4a PR14'!F$60 -> 0 | I76: ='R4a PR14'!G$60 -> 8604.784936 | J76: ='R4a PR14'!H$60 -> 8604.784936 | K76: ='R4a PR14'!I$60 -> 8604.784936 | L76: ='R4a PR14'!J$60 -> 8604.784936 | M76: ='R4a PR14'!K$60 -> 8604.784936
D77: Tariff Band 7 | F77: ='R4a PR14'!D$69 -> CR607M01_R006 | G77: ='R4a PR14'!E$69 -> number | H77: ='R4a PR14'!F$69 -> 0 | I77: ='R4a PR14'!G$69 -> 34 | J77: ='R4a PR14'!H$69 -> 34 | K77: ='R4a PR14'!I$69 -> 34 | L77: ='R4a PR14'!J$69 -> 34 | M77: ='R4a PR14'!K$69 -> 34
D78: Tariff Band 8 | F78: ='R4a PR14'!D$78 -> CR608M01_R006 | G78: ='R4a PR14'!E$78 -> number | H78: ='R4a PR14'!F$78 -> 0 | I78: ='R4a PR14'!G$78 -> 3 | J78: ='R4a PR14'!H$78 -> 3 | K78: ='R4a PR14'!I$78 -> 3 | L78: ='R4a PR14'!J$78 -> 3 | M78: ='R4a PR14'!K$78 -> 3
D79: Tariff Band 9 | F79: ='R4a PR14'!D$87 -> CR609M01_R006 | G79: ='R4a PR14'!E$87 -> number | H79: ='R4a PR14'!F$87 -> 0 | I79: ='R4a PR14'!G$87 -> 1 | J79: ='R4a PR14'!H$87 -> 1 | K79: ='R4a PR14'!I$87 -> 1 | L79: ='R4a PR14'!J$87 -> 1 | M79: ='R4a PR14'!K$87 -> 1
D80: Tariff Band 10 | F80: ='R4a PR14'!D$96 -> CR610M01_R006 | G80: ='R4a PR14'!E$96 -> number | H80: ='R4a PR14'!F$96 -> 0 | I80: ='R4a PR14'!G$96 -> 1 | J80: ='R4a PR14'!H$96 -> 1 | K80: ='R4a PR14'!I$96 -> 1 | L80: ='R4a PR14'!J$96 -> 1 | M80: ='R4a PR14'!K$96 -> 1
D81: Tariff Band 11 | F81: ='R4a PR14'!D$105 -> CR611M01_R006 | G81: ='R4a PR14'!E$105 -> number | H81: ='R4a PR14'!F$105 -> 0 | I81: ='R4a PR14'!G$105 -> 0 | J81: ='R4a PR14'!H$105 -> 0 | K81: ='R4a PR14'!I$105 -> 0 | L81: ='R4a PR14'!J$105 -> 0 | M81: ='R4a PR14'!K$105 -> 0
D82: Tariff Band 12 | F82: ='R4a PR14'!D$114 -> CR612M01_R006 | G82: ='R4a PR14'!E$114 -> number | H82: ='R4a PR14'!F$114 -> 0 | I82: ='R4a PR14'!G$114 -> 0 | J82: ='R4a PR14'!H$114 -> 0 | K82: ='R4a PR14'!I$114 -> 0 | L82: ='R4a PR14'!J$114 -> 0 | M82: ='R4a PR14'!K$114 -> 0
D83: Tariff Band 13 | F83: ='R4a PR14'!D$123 -> CR613M01_R006 | G83: ='R4a PR14'!E$123 -> number | H83: ='R4a PR14'!F$123 -> 0 | I83: ='R4a PR14'!G$123 -> 0 | J83: ='R4a PR14'!H$123 -> 0 | K83: ='R4a PR14'!I$123 -> 0 | L83: ='R4a PR14'!J$123 -> 0 | M83: ='R4a PR14'!K$123 -> 0
D84: Tariff Band 14 | F84: ='R4a PR14'!D$132 -> CR614M01_R006 | G84: ='R4a PR14'!E$132 -> number | H84: ='R4a PR14'!F$132 -> 0 | I84: ='R4a PR14'!G$132 -> 0 | J84: ='R4a PR14'!H$132 -> 0 | K84: ='R4a PR14'!I$132 -> 0 | L84: ='R4a PR14'!J$132 -> 0 | M84: ='R4a PR14'!K$132 -> 0
D85: Tariff Band 15 | F85: ='R4a PR14'!D$141 -> CR615M01_R006 | G85: ='R4a PR14'!E$141 -> number | H85: ='R4a PR14'!F$141 -> 0 | I85: ='R4a PR14'!G$141 -> 0 | J85: ='R4a PR14'!H$141 -> 0 | K85: ='R4a PR14'!I$141 -> 0 | L85: ='R4a PR14'!J$141 -> 0 | M85: ='R4a PR14'!K$141 -> 0
D86: Tariff Band 16 | F86: ='R4a PR14'!D$150 -> CR616M01_R006 | G86: ='R4a PR14'!E$150 -> number | H86: ='R4a PR14'!F$150 -> 0 | I86: ='R4a PR14'!G$150 -> 0 | J86: ='R4a PR14'!H$150 -> 0 | K86: ='R4a PR14'!I$150 -> 0 | L86: ='R4a PR14'!J$150 -> 0 | M86: ='R4a PR14'!K$150 -> 0
D87: Tariff Band 17 | F87: ='R4a PR14'!D$159 -> CR617M01_R006 | G87: ='R4a PR14'!E$159 -> number | H87: ='R4a PR14'!F$159 -> 0 | I87: ='R4a PR14'!G$159 -> 0 | J87: ='R4a PR14'!H$159 -> 0 | K87: ='R4a PR14'!I$159 -> 0 | L87: ='R4a PR14'!J$159 -> 0 | M87: ='R4a PR14'!K$159 -> 0
D88: Tariff Band 18 | F88: ='R4a PR14'!D$168 -> CR618M01_R006 | G88: ='R4a PR14'!E$168 -> number | H88: ='R4a PR14'!F$168 -> 0 | I88: ='R4a PR14'!G$168 -> 0 | J88: ='R4a PR14'!H$168 -> 0 | K88: ='R4a PR14'!I$168 -> 0 | L88: ='R4a PR14'!J$168 -> 0 | M88: ='R4a PR14'!K$168 -> 0
D89: Tariff Band 19 | F89: ='R4a PR14'!D$177 -> CR619M01_R006 | G89: ='R4a PR14'!E$177 -> number | H89: ='R4a PR14'!F$177 -> 0 | I89: ='R4a PR14'!G$177 -> 0 | J89: ='R4a PR14'!H$177 -> 0 | K89: ='R4a PR14'!I$177 -> 0 | L89: ='R4a PR14'!J$177 -> 0 | M89: ='R4a PR14'!K$177 -> 0
D90: Tariff Band 20 | F90: ='R4a PR14'!D$186 -> CR620M01_R006 | G90: ='R4a PR14'!E$186 -> number | H90: ='R4a PR14'!F$186 -> 0 | I90: ='R4a PR14'!G$186 -> 0 | J90: ='R4a PR14'!H$186 -> 0 | K90: ='R4a PR14'!I$186 -> 0 | L90: ='R4a PR14'!J$186 -> 0 | M90: ='R4a PR14'!K$186 -> 0
D91: Tariff Band 21 | F91: ='R4a PR14'!D$195 -> CR621M01_R006 | G91: ='R4a PR14'!E$195 -> number | H91: ='R4a PR14'!F$195 -> 0 | I91: ='R4a PR14'!G$195 -> 0 | J91: ='R4a PR14'!H$195 -> 0 | K91: ='R4a PR14'!I$195 -> 0 | L91: ='R4a PR14'!J$195 -> 0 | M91: ='R4a PR14'!K$195 -> 0
D92: Tariff Band 22 | F92: ='R4a PR14'!D$204 -> CR622M01_R006 | G92: ='R4a PR14'!E$204 -> number | H92: ='R4a PR14'!F$204 -> 0 | I92: ='R4a PR14'!G$204 -> 0 | J92: ='R4a PR14'!H$204 -> 0 | K92: ='R4a PR14'!I$204 -> 0 | L92: ='R4a PR14'!J$204 -> 0 | M92: ='R4a PR14'!K$204 -> 0
D93: Tariff Band 23 | F93: ='R4a PR14'!D$213 -> CR623M01_R006 | G93: ='R4a PR14'!E$213 -> number | H93: ='R4a PR14'!F$213 -> 0 | I93: ='R4a PR14'!G$213 -> 0 | J93: ='R4a PR14'!H$213 -> 0 | K93: ='R4a PR14'!I$213 -> 0 | L93: ='R4a PR14'!J$213 -> 0 | M93: ='R4a PR14'!K$213 -> 0
D94: Tariff Band 24 | F94: ='R4a PR14'!D$222 -> CR624M01_R006 | G94: ='R4a PR14'!E$222 -> number | H94: ='R4a PR14'!F$222 -> 0 | I94: ='R4a PR14'!G$222 -> 0 | J94: ='R4a PR14'!H$222 -> 0 | K94: ='R4a PR14'!I$222 -> 0 | L94: ='R4a PR14'!J$222 -> 0 | M94: ='R4a PR14'!K$222 -> 0
D95: Tariff Band 25 | F95: ='R4a PR14'!D$231 -> CR625M01_R006 | G95: ='R4a PR14'!E$231 -> number | H95: ='R4a PR14'!F$231 -> 0 | I95: ='R4a PR14'!G$231 -> 0 | J95: ='R4a PR14'!H$231 -> 0 | K95: ='R4a PR14'!I$231 -> 0 | L95: ='R4a PR14'!J$231 -> 0 | M95: ='R4a PR14'!K$231 -> 0
D96: Tariff Band 26 | F96: ='R4a PR14'!D$240 -> CR626M01_R006 | G96: ='R4a PR14'!E$240 -> number | H96: ='R4a PR14'!F$240 -> 0 | I96: ='R4a PR14'!G$240 -> 0 | J96: ='R4a PR14'!H$240 -> 0 | K96: ='R4a PR14'!I$240 -> 0 | L96: ='R4a PR14'!J$240 -> 0 | M96: ='R4a PR14'!K$240 -> 0
D97: Tariff Band 27 | F97: ='R4a PR14'!D$249 -> CR627M01_R006 | G97: ='R4a PR14'!E$249 -> number | H97: ='R4a PR14'!F$249 -> 0 | I97: ='R4a PR14'!G$249 -> 0 | J97: ='R4a PR14'!H$249 -> 0 | K97: ='R4a PR14'!I$249 -> 0 | L97: ='R4a PR14'!J$249 -> 0 | M97: ='R4a PR14'!K$249 -> 0
D98: Tariff Band 28 | F98: ='R4a PR14'!D$258 -> CR628M01_R006 | G98: ='R4a PR14'!E$258 -> number | H98: ='R4a PR14'!F$258 -> 0 | I98: ='R4a PR14'!G$258 -> 0 | J98: ='R4a PR14'!H$258 -> 0 | K98: ='R4a PR14'!I$258 -> 0 | L98: ='R4a PR14'!J$258 -> 0 | M98: ='R4a PR14'!K$258 -> 0
D99: Tariff Band 29 | F99: ='R4a PR14'!D$267 -> CR629M01_R006 | G99: ='R4a PR14'!E$267 -> number | H99: ='R4a PR14'!F$267 -> 0 | I99: ='R4a PR14'!G$267 -> 0 | J99: ='R4a PR14'!H$267 -> 0 | K99: ='R4a PR14'!I$267 -> 0 | L99: ='R4a PR14'!J$267 -> 0 | M99: ='R4a PR14'!K$267 -> 0
D100: Tariff Band 30 | F100: ='R4a PR14'!D$276 -> CR630M01_R006 | G100: ='R4a PR14'!E$276 -> number | H100: ='R4a PR14'!F$276 -> 0 | I100: ='R4a PR14'!G$276 -> 0 | J100: ='R4a PR14'!H$276 -> 0 | K100: ='R4a PR14'!I$276 -> 0 | L100: ='R4a PR14'!J$276 -> 0 | M100: ='R4a PR14'!K$276 -> 0
D101: Tariff Band 31 | F101: ='R4a PR14'!D$285 -> CR631M01_R006 | G101: ='R4a PR14'!E$285 -> number | H101: ='R4a PR14'!F$285 -> 0 | I101: ='R4a PR14'!G$285 -> 0 | J101: ='R4a PR14'!H$285 -> 0 | K101: ='R4a PR14'!I$285 -> 0 | L101: ='R4a PR14'!J$285 -> 0 | M101: ='R4a PR14'!K$285 -> 0
D102: Tariff Band 32 | F102: ='R4a PR14'!D$294 -> CR632M01_R006 | G102: ='R4a PR14'!E$294 -> number | H102: ='R4a PR14'!F$294 -> 0 | I102: ='R4a PR14'!G$294 -> 0 | J102: ='R4a PR14'!H$294 -> 0 | K102: ='R4a PR14'!I$294 -> 0 | L102: ='R4a PR14'!J$294 -> 0 | M102: ='R4a PR14'!K$294 -> 0
D103: Tariff Band 33 | F103: ='R4a PR14'!D$303 -> CR633M01_R006 | G103: ='R4a PR14'!E$303 -> number | H103: ='R4a PR14'!F$303 -> 0 | I103: ='R4a PR14'!G$303 -> 0 | J103: ='R4a PR14'!H$303 -> 0 | K103: ='R4a PR14'!I$303 -> 0 | L103: ='R4a PR14'!J$303 -> 0 | M103: ='R4a PR14'!K$303 -> 0
D104: Tariff Band 34 | F104: ='R4a PR14'!D$312 -> CR634M01_R006 | G104: ='R4a PR14'!E$312 -> number | H104: ='R4a PR14'!F$312 -> 0 | I104: ='R4a PR14'!G$312 -> 0 | J104: ='R4a PR14'!H$312 -> 0 | K104: ='R4a PR14'!I$312 -> 0 | L104: ='R4a PR14'!J$312 -> 0 | M104: ='R4a PR14'!K$312 -> 0
D105: Tariff Band 35 | F105: ='R4a PR14'!D$321 -> CR635M01_R006 | G105: ='R4a PR14'!E$321 -> number | H105: ='R4a PR14'!F$321 -> 0 | I105: ='R4a PR14'!G$321 -> 0 | J105: ='R4a PR14'!H$321 -> 0 | K105: ='R4a PR14'!I$321 -> 0 | L105: ='R4a PR14'!J$321 -> 0 | M105: ='R4a PR14'!K$321 -> 0
D106: Tariff Band 36 | F106: ='R4a PR14'!D$330 -> CR636M01_R006 | G106: ='R4a PR14'!E$330 -> number | H106: ='R4a PR14'!F$330 -> 0 | I106: ='R4a PR14'!G$330 -> 0 | J106: ='R4a PR14'!H$330 -> 0 | K106: ='R4a PR14'!I$330 -> 0 | L106: ='R4a PR14'!J$330 -> 0 | M106: ='R4a PR14'!K$330 -> 0
D107: Tariff Band 37 | F107: ='R4a PR14'!D$339 -> CR637M01_R006 | G107: ='R4a PR14'!E$339 -> number | H107: ='R4a PR14'!F$339 -> 0 | I107: ='R4a PR14'!G$339 -> 0 | J107: ='R4a PR14'!H$339 -> 0 | K107: ='R4a PR14'!I$339 -> 0 | L107: ='R4a PR14'!J$339 -> 0 | M107: ='R4a PR14'!K$339 -> 0
D108: Tariff Band 38 | F108: ='R4a PR14'!D$348 -> CR638M01_R006 | G108: ='R4a PR14'!E$348 -> number | H108: ='R4a PR14'!F$348 -> 0 | I108: ='R4a PR14'!G$348 -> 0 | J108: ='R4a PR14'!H$348 -> 0 | K108: ='R4a PR14'!I$348 -> 0 | L108: ='R4a PR14'!J$348 -> 0 | M108: ='R4a PR14'!K$348 -> 0
D109: Tariff Band 39 | F109: ='R4a PR14'!D$357 -> CR639M01_R006 | G109: ='R4a PR14'!E$357 -> number | H109: ='R4a PR14'!F$357 -> 0 | I109: ='R4a PR14'!G$357 -> 0 | J109: ='R4a PR14'!H$357 -> 0 | K109: ='R4a PR14'!I$357 -> 0 | L109: ='R4a PR14'!J$357 -> 0 | M109: ='R4a PR14'!K$357 -> 0
D110: Tariff Band 40 | F110: ='R4a PR14'!D$366 -> CR640M01_R006 | G110: ='R4a PR14'!E$366 -> number | H110: ='R4a PR14'!F$366 -> 0 | I110: ='R4a PR14'!G$366 -> 0 | J110: ='R4a PR14'!H$366 -> 0 | K110: ='R4a PR14'!I$366 -> 0 | L110: ='R4a PR14'!J$366 -> 0 | M110: ='R4a PR14'!K$366 -> 0
D111: Tariff Band 41 | F111: ='R4a PR14'!D$375 -> CR641M01_R006 | G111: ='R4a PR14'!E$375 -> number | H111: ='R4a PR14'!F$375 -> 0 | I111: ='R4a PR14'!G$375 -> 0 | J111: ='R4a PR14'!H$375 -> 0 | K111: ='R4a PR14'!I$375 -> 0 | L111: ='R4a PR14'!J$375 -> 0 | M111: ='R4a PR14'!K$375 -> 0
D112: Tariff Band 42 | F112: ='R4a PR14'!D$384 -> CR642M01_R006 | G112: ='R4a PR14'!E$384 -> number | H112: ='R4a PR14'!F$384 -> 0 | I112: ='R4a PR14'!G$384 -> 0 | J112: ='R4a PR14'!H$384 -> 0 | K112: ='R4a PR14'!I$384 -> 0 | L112: ='R4a PR14'!J$384 -> 0 | M112: ='R4a PR14'!K$384 -> 0
D113: Tariff Band 43 | F113: ='R4a PR14'!D$393 -> CR643M01_R006 | G113: ='R4a PR14'!E$393 -> number | H113: ='R4a PR14'!F$393 -> 0 | I113: ='R4a PR14'!G$393 -> 0 | J113: ='R4a PR14'!H$393 -> 0 | K113: ='R4a PR14'!I$393 -> 0 | L113: ='R4a PR14'!J$393 -> 0 | M113: ='R4a PR14'!K$393 -> 0
D114: Tariff Band 44 | F114: ='R4a PR14'!D$402 -> CR644M01_R006 | G114: ='R4a PR14'!E$402 -> number | H114: ='R4a PR14'!F$402 -> 0 | I114: ='R4a PR14'!G$402 -> 0 | J114: ='R4a PR14'!H$402 -> 0 | K114: ='R4a PR14'!I$402 -> 0 | L114: ='R4a PR14'!J$402 -> 0 | M114: ='R4a PR14'!K$402 -> 0
D115: Tariff Band 45 | F115: ='R4a PR14'!D$411 -> CR645M01_R006 | G115: ='R4a PR14'!E$411 -> number | H115: ='R4a PR14'!F$411 -> 0 | I115: ='R4a PR14'!G$411 -> 0 | J115: ='R4a PR14'!H$411 -> 0 | K115: ='R4a PR14'!I$411 -> 0 | L115: ='R4a PR14'!J$411 -> 0 | M115: ='R4a PR14'!K$411 -> 0
D116: Tariff Band 46 | F116: ='R4a PR14'!D$420 -> CR646M01_R006 | G116: ='R4a PR14'!E$420 -> number | H116: ='R4a PR14'!F$420 -> 0 | I116: ='R4a PR14'!G$420 -> 0 | J116: ='R4a PR14'!H$420 -> 0 | K116: ='R4a PR14'!I$420 -> 0 | L116: ='R4a PR14'!J$420 -> 0 | M116: ='R4a PR14'!K$420 -> 0
D117: Tariff Band 47 | F117: ='R4a PR14'!D$429 -> CR647M01_R006 | G117: ='R4a PR14'!E$429 -> number | H117: ='R4a PR14'!F$429 -> 0 | I117: ='R4a PR14'!G$429 -> 0 | J117: ='R4a PR14'!H$429 -> 0 | K117: ='R4a PR14'!I$429 -> 0 | L117: ='R4a PR14'!J$429 -> 0 | M117: ='R4a PR14'!K$429 -> 0
D118: Tariff Band 48 | F118: ='R4a PR14'!D$438 -> CR648M01_R006 | G118: ='R4a PR14'!E$438 -> number | H118: ='R4a PR14'!F$438 -> 0 | I118: ='R4a PR14'!G$438 -> 0 | J118: ='R4a PR14'!H$438 -> 0 | K118: ='R4a PR14'!I$438 -> 0 | L118: ='R4a PR14'!J$438 -> 0 | M118: ='R4a PR14'!K$438 -> 0
D119: Tariff Band 49 | F119: ='R4a PR14'!D$447 -> CR649M01_R006 | G119: ='R4a PR14'!E$447 -> number | H119: ='R4a PR14'!F$447 -> 0 | I119: ='R4a PR14'!G$447 -> 0 | J119: ='R4a PR14'!H$447 -> 0 | K119: ='R4a PR14'!I$447 -> 0 | L119: ='R4a PR14'!J$447 -> 0 | M119: ='R4a PR14'!K$447 -> 0
D120: Tariff Band 50 | F120: ='R4a PR14'!D$456 -> CR650M01_R006 | G120: ='R4a PR14'!E$456 -> number | H120: ='R4a PR14'!F$456 -> 0 | I120: ='R4a PR14'!G$456 -> 0 | J120: ='R4a PR14'!H$456 -> 0 | K120: ='R4a PR14'!I$456 -> 0 | L120: ='R4a PR14'!J$456 -> 0 | M120: ='R4a PR14'!K$456 -> 0
D121: Tariff Band 51 | F121: ='R4a PR14'!D$465 -> CR651M01_R006 | G121: ='R4a PR14'!E$465 -> number | H121: ='R4a PR14'!F$465 -> 0 | I121: ='R4a PR14'!G$465 -> 0 | J121: ='R4a PR14'!H$465 -> 0 | K121: ='R4a PR14'!I$465 -> 0 | L121: ='R4a PR14'!J$465 -> 0 | M121: ='R4a PR14'!K$465 -> 0
D122: Tariff Band 52 | F122: ='R4a PR14'!D$474 -> CR652M01_R006 | G122: ='R4a PR14'!E$474 -> number | H122: ='R4a PR14'!F$474 -> 0 | I122: ='R4a PR14'!G$474 -> 0 | J122: ='R4a PR14'!H$474 -> 0 | K122: ='R4a PR14'!I$474 -> 0 | L122: ='R4a PR14'!J$474 -> 0 | M122: ='R4a PR14'!K$474 -> 0
D123: Tariff Band 53 | F123: ='R4a PR14'!D$483 -> CR653M01_R006 | G123: ='R4a PR14'!E$483 -> number | H123: ='R4a PR14'!F$483 -> 0 | I123: ='R4a PR14'!G$483 -> 0 | J123: ='R4a PR14'!H$483 -> 0 | K123: ='R4a PR14'!I$483 -> 0 | L123: ='R4a PR14'!J$483 -> 0 | M123: ='R4a PR14'!K$483 -> 0
D124: Tariff Band 54 | F124: ='R4a PR14'!D$492 -> CR654M01_R006 | G124: ='R4a PR14'!E$492 -> number | H124: ='R4a PR14'!F$492 -> 0 | I124: ='R4a PR14'!G$492 -> 0 | J124: ='R4a PR14'!H$492 -> 0 | K124: ='R4a PR14'!I$492 -> 0 | L124: ='R4a PR14'!J$492 -> 0 | M124: ='R4a PR14'!K$492 -> 0
D125: Tariff Band 55 | F125: ='R4a PR14'!D$501 -> CR655M01_R006 | G125: ='R4a PR14'!E$501 -> number | H125: ='R4a PR14'!F$501 -> 0 | I125: ='R4a PR14'!G$501 -> 0 | J125: ='R4a PR14'!H$501 -> 0 | K125: ='R4a PR14'!I$501 -> 0 | L125: ='R4a PR14'!J$501 -> 0 | M125: ='R4a PR14'!K$501 -> 0
D126: Tariff Band 56 | F126: ='R4a PR14'!D$510 -> CR656M01_R006 | G126: ='R4a PR14'!E$510 -> number | H126: ='R4a PR14'!F$510 -> 0 | I126: ='R4a PR14'!G$510 -> 0 | J126: ='R4a PR14'!H$510 -> 0 | K126: ='R4a PR14'!I$510 -> 0 | L126: ='R4a PR14'!J$510 -> 0 | M126: ='R4a PR14'!K$510 -> 0
D127: Tariff Band 57 | F127: ='R4a PR14'!D$519 -> CR657M01_R006 | G127: ='R4a PR14'!E$519 -> number | H127: ='R4a PR14'!F$519 -> 0 | I127: ='R4a PR14'!G$519 -> 0 | J127: ='R4a PR14'!H$519 -> 0 | K127: ='R4a PR14'!I$519 -> 0 | L127: ='R4a PR14'!J$519 -> 0 | M127: ='R4a PR14'!K$519 -> 0
D128: Tariff Band 58 | F128: ='R4a PR14'!D$528 -> CR658M01_R006 | G128: ='R4a PR14'!E$528 -> number | H128: ='R4a PR14'!F$528 -> 0 | I128: ='R4a PR14'!G$528 -> 0 | J128: ='R4a PR14'!H$528 -> 0 | K128: ='R4a PR14'!I$528 -> 0 | L128: ='R4a PR14'!J$528 -> 0 | M128: ='R4a PR14'!K$528 -> 0
D129: Tariff Band 59 | F129: ='R4a PR14'!D$537 -> CR659M01_R006 | G129: ='R4a PR14'!E$537 -> number | H129: ='R4a PR14'!F$537 -> 0 | I129: ='R4a PR14'!G$537 -> 0 | J129: ='R4a PR14'!H$537 -> 0 | K129: ='R4a PR14'!I$537 -> 0 | L129: ='R4a PR14'!J$537 -> 0 | M129: ='R4a PR14'!K$537 -> 0
D130: Tariff Band 60 | F130: ='R4a PR14'!D$546 -> CR660M01_R006 | G130: ='R4a PR14'!E$546 -> number | H130: ='R4a PR14'!F$546 -> 0 | I130: ='R4a PR14'!G$546 -> 0 | J130: ='R4a PR14'!H$546 -> 0 | K130: ='R4a PR14'!I$546 -> 0 | L130: ='R4a PR14'!J$546 -> 0 | M130: ='R4a PR14'!K$546 -> 0
D131: Number of customers | G131: number | H131: 0 | I131: =SUM(I71:I130) -> 15299 | J131: =SUM(J71:J130) -> 15299 | K131: =SUM(K71:K130) -> 15299 | L131: =SUM(L71:L130) -> 15299 | M131: =SUM(M71:M130) -> 15299
A133: PROJECTED RETAIL COSTS AT FD
C134: Number of customers
D135: Tariff Band 1 | F135: ='R4a PR14'!D$15 -> CR601M01_R006 | G135: ='R4a PR14'!E$15 -> number | H135: ='R4a PR14'!F$15 -> 0 | I135: ='R4a PR14'!G$15 -> 921.0258481 | J135: ='R4a PR14'!H$15 -> 921.0258481 | K135: ='R4a PR14'!I$15 -> 921.0258481 | L135: ='R4a PR14'!J$15 -> 921.0258481 | M135: ='R4a PR14'!K$15 -> 921.0258481
D136: Tariff Band 2 | F136: ='R4a PR14'!D$24 -> CR602M01_R006 | G136: ='R4a PR14'!E$24 -> number | H136: ='R4a PR14'!F$24 -> 0 | I136: ='R4a PR14'!G$24 -> 4722.215064 | J136: ='R4a PR14'!H$24 -> 4722.215064 | K136: ='R4a PR14'!I$24 -> 4722.215064 | L136: ='R4a PR14'!J$24 -> 4722.215064 | M136: ='R4a PR14'!K$24 -> 4722.215064
D137: Tariff Band 3 | F137: ='R4a PR14'!D$33 -> CR603M01_R006 | G137: ='R4a PR14'!E$33 -> number | H137: ='R4a PR14'!F$33 -> 0 | I137: ='R4a PR14'!G$33 -> 21 | J137: ='R4a PR14'!H$33 -> 21 | K137: ='R4a PR14'!I$33 -> 21 | L137: ='R4a PR14'!J$33 -> 21 | M137: ='R4a PR14'!K$33 -> 21
D138: Tariff Band 4 | F138: ='R4a PR14'!D$42 -> CR604M01_R006 | G138: ='R4a PR14'!E$42 -> number | H138: ='R4a PR14'!F$42 -> 0 | I138: ='R4a PR14'!G$42 -> 1 | J138: ='R4a PR14'!H$42 -> 1 | K138: ='R4a PR14'!I$42 -> 1 | L138: ='R4a PR14'!J$42 -> 1 | M138: ='R4a PR14'!K$42 -> 1
D139: Tariff Band 5 | F139: ='R4a PR14'!D$51 -> CR605M01_R006 | G139: ='R4a PR14'!E$51 -> number | H139: ='R4a PR14'!F$51 -> 0 | I139: ='R4a PR14'!G$51 -> 989.9741519 | J139: ='R4a PR14'!H$51 -> 989.9741519 | K139: ='R4a PR14'!I$51 -> 989.9741519 | L139: ='R4a PR14'!J$51 -> 989.9741519 | M139: ='R4a PR14'!K$51 -> 989.9741519
D140: Tariff Band 6 | F140: ='R4a PR14'!D$60 -> CR606M01_R006 | G140: ='R4a PR14'!E$60 -> number | H140: ='R4a PR14'!F$60 -> 0 | I140: ='R4a PR14'!G$60 -> 8604.784936 | J140: ='R4a PR14'!H$60 -> 8604.784936 | K140: ='R4a PR14'!I$60 -> 8604.784936 | L140: ='R4a PR14'!J$60 -> 8604.784936 | M140: ='R4a PR14'!K$60 -> 8604.784936
D141: Tariff Band 7 | F141: ='R4a PR14'!D$69 -> CR607M01_R006 | G141: ='R4a PR14'!E$69 -> number | H141: ='R4a PR14'!F$69 -> 0 | I141: ='R4a PR14'!G$69 -> 34 | J141: ='R4a PR14'!H$69 -> 34 | K141: ='R4a PR14'!I$69 -> 34 | L141: ='R4a PR14'!J$69 -> 34 | M141: ='R4a PR14'!K$69 -> 34
D142: Tariff Band 8 | F142: ='R4a PR14'!D$78 -> CR608M01_R006 | G142: ='R4a PR14'!E$78 -> number | H142: ='R4a PR14'!F$78 -> 0 | I142: ='R4a PR14'!G$78 -> 3 | J142: ='R4a PR14'!H$78 -> 3 | K142: ='R4a PR14'!I$78 -> 3 | L142: ='R4a PR14'!J$78 -> 3 | M142: ='R4a PR14'!K$78 -> 3
D143: Tariff Band 9 | F143: ='R4a PR14'!D$87 -> CR609M01_R006 | G143: ='R4a PR14'!E$87 -> number | H143: ='R4a PR14'!F$87 -> 0 | I143: ='R4a PR14'!G$87 -> 1 | J143: ='R4a PR14'!H$87 -> 1 | K143: ='R4a PR14'!I$87 -> 1 | L143: ='R4a PR14'!J$87 -> 1 | M143: ='R4a PR14'!K$87 -> 1
D144: Tariff Band 10 | F144: ='R4a PR14'!D$96 -> CR610M01_R006 | G144: ='R4a PR14'!E$96 -> number | H144: ='R4a PR14'!F$96 -> 0 | I144: ='R4a PR14'!G$96 -> 1 | J144: ='R4a PR14'!H$96 -> 1 | K144: ='R4a PR14'!I$96 -> 1 | L144: ='R4a PR14'!J$96 -> 1 | M144: ='R4a PR14'!K$96 -> 1
D145: Tariff Band 11 | F145: ='R4a PR14'!D$105 -> CR611M01_R006 | G145: ='R4a PR14'!E$105 -> number | H145: ='R4a PR14'!F$105 -> 0 | I145: ='R4a PR14'!G$105 -> 0 | J145: ='R4a PR14'!H$105 -> 0 | K145: ='R4a PR14'!I$105 -> 0 | L145: ='R4a PR14'!J$105 -> 0 | M145: ='R4a PR14'!K$105 -> 0
D146: Tariff Band 12 | F146: ='R4a PR14'!D$114 -> CR612M01_R006 | G146: ='R4a PR14'!E$114 -> number | H146: ='R4a PR14'!F$114 -> 0 | I146: ='R4a PR14'!G$114 -> 0 | J146: ='R4a PR14'!H$114 -> 0 | K146: ='R4a PR14'!I$114 -> 0 | L146: ='R4a PR14'!J$114 -> 0 | M146: ='R4a PR14'!K$114 -> 0
D147: Tariff Band 13 | F147: ='R4a PR14'!D$123 -> CR613M01_R006 | G147: ='R4a PR14'!E$123 -> number | H147: ='R4a PR14'!F$123 -> 0 | I147: ='R4a PR14'!G$123 -> 0 | J147: ='R4a PR14'!H$123 -> 0 | K147: ='R4a PR14'!I$123 -> 0 | L147: ='R4a PR14'!J$123 -> 0 | M147: ='R4a PR14'!K$123 -> 0
D148: Tariff Band 14 | F148: ='R4a PR14'!D$132 -> CR614M01_R006 | G148: ='R4a PR14'!E$132 -> number | H148: ='R4a PR14'!F$132 -> 0 | I148: ='R4a PR14'!G$132 -> 0 | J148: ='R4a PR14'!H$132 -> 0 | K148: ='R4a PR14'!I$132 -> 0 | L148: ='R4a PR14'!J$132 -> 0 | M148: ='R4a PR14'!K$132 -> 0
D149: Tariff Band 15 | F149: ='R4a PR14'!D$141 -> CR615M01_R006 | G149: ='R4a PR14'!E$141 -> number | H149: ='R4a PR14'!F$141 -> 0 | I149: ='R4a PR14'!G$141 -> 0 | J149: ='R4a PR14'!H$141 -> 0 | K149: ='R4a PR14'!I$141 -> 0 | L149: ='R4a PR14'!J$141 -> 0 | M149: ='R4a PR14'!K$141 -> 0
D150: Tariff Band 16 | F150: ='R4a PR14'!D$150 -> CR616M01_R006 | G150: ='R4a PR14'!E$150 -> number | H150: ='R4a PR14'!F$150 -> 0 | I150: ='R4a PR14'!G$150 -> 0 | J150: ='R4a PR14'!H$150 -> 0 | K150: ='R4a PR14'!I$150 -> 0 | L150: ='R4a PR14'!J$150 -> 0 | M150: ='R4a PR14'!K$150 -> 0
D151: Tariff Band 17 | F151: ='R4a PR14'!D$159 -> CR617M01_R006 | G151: ='R4a PR14'!E$159 -> number | H151: ='R4a PR14'!F$159 -> 0 | I151: ='R4a PR14'!G$159 -> 0 | J151: ='R4a PR14'!H$159 -> 0 | K151: ='R4a PR14'!I$159 -> 0 | L151: ='R4a PR14'!J$159 -> 0 | M151: ='R4a PR14'!K$159 -> 0
D152: Tariff Band 18 | F152: ='R4a PR14'!D$168 -> CR618M01_R006 | G152: ='R4a PR14'!E$168 -> number | H152: ='R4a PR14'!F$168 -> 0 | I152: ='R4a PR14'!G$168 -> 0 | J152: ='R4a PR14'!H$168 -> 0 | K152: ='R4a PR14'!I$168 -> 0 | L152: ='R4a PR14'!J$168 -> 0 | M152: ='R4a PR14'!K$168 -> 0
D153: Tariff Band 19 | F153: ='R4a PR14'!D$177 -> CR619M01_R006 | G153: ='R4a PR14'!E$177 -> number | H153: ='R4a PR14'!F$177 -> 0 | I153: ='R4a PR14'!G$177 -> 0 | J153: ='R4a PR14'!H$177 -> 0 | K153: ='R4a PR14'!I$177 -> 0 | L153: ='R4a PR14'!J$177 -> 0 | M153: ='R4a PR14'!K$177 -> 0
D154: Tariff Band 20 | F154: ='R4a PR14'!D$186 -> CR620M01_R006 | G154: ='R4a PR14'!E$186 -> number | H154: ='R4a PR14'!F$186 -> 0 | I154: ='R4a PR14'!G$186 -> 0 | J154: ='R4a PR14'!H$186 -> 0 | K154: ='R4a PR14'!I$186 -> 0 | L154: ='R4a PR14'!J$186 -> 0 | M154: ='R4a PR14'!K$186 -> 0
D155: Tariff Band 21 | F155: ='R4a PR14'!D$195 -> CR621M01_R006 | G155: ='R4a PR14'!E$195 -> number | H155: ='R4a PR14'!F$195 -> 0 | I155: ='R4a PR14'!G$195 -> 0 | J155: ='R4a PR14'!H$195 -> 0 | K155: ='R4a PR14'!I$195 -> 0 | L155: ='R4a PR14'!J$195 -> 0 | M155: ='R4a PR14'!K$195 -> 0
D156: Tariff Band 22 | F156: ='R4a PR14'!D$204 -> CR622M01_R006 | G156: ='R4a PR14'!E$204 -> number | H156: ='R4a PR14'!F$204 -> 0 | I156: ='R4a PR14'!G$204 -> 0 | J156: ='R4a PR14'!H$204 -> 0 | K156: ='R4a PR14'!I$204 -> 0 | L156: ='R4a PR14'!J$204 -> 0 | M156: ='R4a PR14'!K$204 -> 0
D157: Tariff Band 23 | F157: ='R4a PR14'!D$213 -> CR623M01_R006 | G157: ='R4a PR14'!E$213 -> number | H157: ='R4a PR14'!F$213 -> 0 | I157: ='R4a PR14'!G$213 -> 0 | J157: ='R4a PR14'!H$213 -> 0 | K157: ='R4a PR14'!I$213 -> 0 | L157: ='R4a PR14'!J$213 -> 0 | M157: ='R4a PR14'!K$213 -> 0
D158: Tariff Band 24 | F158: ='R4a PR14'!D$222 -> CR624M01_R006 | G158: ='R4a PR14'!E$222 -> number | H158: ='R4a PR14'!F$222 -> 0 | I158: ='R4a PR14'!G$222 -> 0 | J158: ='R4a PR14'!H$222 -> 0 | K158: ='R4a PR14'!I$222 -> 0 | L158: ='R4a PR14'!J$222 -> 0 | M158: ='R4a PR14'!K$222 -> 0
D159: Tariff Band 25 | F159: ='R4a PR14'!D$231 -> CR625M01_R006 | G159: ='R4a PR14'!E$231 -> number | H159: ='R4a PR14'!F$231 -> 0 | I159: ='R4a PR14'!G$231 -> 0 | J159: ='R4a PR14'!H$231 -> 0 | K159: ='R4a PR14'!I$231 -> 0 | L159: ='R4a PR14'!J$231 -> 0 | M159: ='R4a PR14'!K$231 -> 0
D160: Tariff Band 26 | F160: ='R4a PR14'!D$240 -> CR626M01_R006 | G160: ='R4a PR14'!E$240 -> number | H160: ='R4a PR14'!F$240 -> 0 | I160: ='R4a PR14'!G$240 -> 0 | J160: ='R4a PR14'!H$240 -> 0 | K160: ='R4a PR14'!I$240 -> 0 | L160: ='R4a PR14'!J$240 -> 0 | M160: ='R4a PR14'!K$240 -> 0
D161: Tariff Band 27 | F161: ='R4a PR14'!D$249 -> CR627M01_R006 | G161: ='R4a PR14'!E$249 -> number | H161: ='R4a PR14'!F$249 -> 0 | I161: ='R4a PR14'!G$249 -> 0 | J161: ='R4a PR14'!H$249 -> 0 | K161: ='R4a PR14'!I$249 -> 0 | L161: ='R4a PR14'!J$249 -> 0 | M161: ='R4a PR14'!K$249 -> 0
D162: Tariff Band 28 | F162: ='R4a PR14'!D$258 -> CR628M01_R006 | G162: ='R4a PR14'!E$258 -> number | H162: ='R4a PR14'!F$258 -> 0 | I162: ='R4a PR14'!G$258 -> 0 | J162: ='R4a PR14'!H$258 -> 0 | K162: ='R4a PR14'!I$258 -> 0 | L162: ='R4a PR14'!J$258 -> 0 | M162: ='R4a PR14'!K$258 -> 0
D163: Tariff Band 29 | F163: ='R4a PR14'!D$267 -> CR629M01_R006 | G163: ='R4a PR14'!E$267 -> number | H163: ='R4a PR14'!F$267 -> 0 | I163: ='R4a PR14'!G$267 -> 0 | J163: ='R4a PR14'!H$267 -> 0 | K163: ='R4a PR14'!I$267 -> 0 | L163: ='R4a PR14'!J$267 -> 0 | M163: ='R4a PR14'!K$267 -> 0
D164: Tariff Band 30 | F164: ='R4a PR14'!D$276 -> CR630M01_R006 | G164: ='R4a PR14'!E$276 -> number | H164: ='R4a PR14'!F$276 -> 0 | I164: ='R4a PR14'!G$276 -> 0 | J164: ='R4a PR14'!H$276 -> 0 | K164: ='R4a PR14'!I$276 -> 0 | L164: ='R4a PR14'!J$276 -> 0 | M164: ='R4a PR14'!K$276 -> 0
D165: Tariff Band 31 | F165: ='R4a PR14'!D$285 -> CR631M01_R006 | G165: ='R4a PR14'!E$285 -> number | H165: ='R4a PR14'!F$285 -> 0 | I165: ='R4a PR14'!G$285 -> 0 | J165: ='R4a PR14'!H$285 -> 0 | K165: ='R4a PR14'!I$285 -> 0 | L165: ='R4a PR14'!J$285 -> 0 | M165: ='R4a PR14'!K$285 -> 0
D166: Tariff Band 32 | F166: ='R4a PR14'!D$294 -> CR632M01_R006 | G166: ='R4a PR14'!E$294 -> number | H166: ='R4a PR14'!F$294 -> 0 | I166: ='R4a PR14'!G$294 -> 0 | J166: ='R4a PR14'!H$294 -> 0 | K166: ='R4a PR14'!I$294 -> 0 | L166: ='R4a PR14'!J$294 -> 0 | M166: ='R4a PR14'!K$294 -> 0
D167: Tariff Band 33 | F167: ='R4a PR14'!D$303 -> CR633M01_R006 | G167: ='R4a PR14'!E$303 -> number | H167: ='R4a PR14'!F$303 -> 0 | I167: ='R4a PR14'!G$303 -> 0 | J167: ='R4a PR14'!H$303 -> 0 | K167: ='R4a PR14'!I$303 -> 0 | L167: ='R4a PR14'!J$303 -> 0 | M167: ='R4a PR14'!K$303 -> 0
D168: Tariff Band 34 | F168: ='R4a PR14'!D$312 -> CR634M01_R006 | G168: ='R4a PR14'!E$312 -> number | H168: ='R4a PR14'!F$312 -> 0 | I168: ='R4a PR14'!G$312 -> 0 | J168: ='R4a PR14'!H$312 -> 0 | K168: ='R4a PR14'!I$312 -> 0 | L168: ='R4a PR14'!J$312 -> 0 | M168: ='R4a PR14'!K$312 -> 0
D169: Tariff Band 35 | F169: ='R4a PR14'!D$321 -> CR635M01_R006 | G169: ='R4a PR14'!E$321 -> number | H169: ='R4a PR14'!F$321 -> 0 | I169: ='R4a PR14'!G$321 -> 0 | J169: ='R4a PR14'!H$321 -> 0 | K169: ='R4a PR14'!I$321 -> 0 | L169: ='R4a PR14'!J$321 -> 0 | M169: ='R4a PR14'!K$321 -> 0
D170: Tariff Band 36 | F170: ='R4a PR14'!D$330 -> CR636M01_R006 | G170: ='R4a PR14'!E$330 -> number | H170: ='R4a PR14'!F$330 -> 0 | I170: ='R4a PR14'!G$330 -> 0 | J170: ='R4a PR14'!H$330 -> 0 | K170: ='R4a PR14'!I$330 -> 0 | L170: ='R4a PR14'!J$330 -> 0 | M170: ='R4a PR14'!K$330 -> 0
D171: Tariff Band 37 | F171: ='R4a PR14'!D$339 -> CR637M01_R006 | G171: ='R4a PR14'!E$339 -> number | H171: ='R4a PR14'!F$339 -> 0 | I171: ='R4a PR14'!G$339 -> 0 | J171: ='R4a PR14'!H$339 -> 0 | K171: ='R4a PR14'!I$339 -> 0 | L171: ='R4a PR14'!J$339 -> 0 | M171: ='R4a PR14'!K$339 -> 0
D172: Tariff Band 38 | F172: ='R4a PR14'!D$348 -> CR638M01_R006 | G172: ='R4a PR14'!E$348 -> number | H172: ='R4a PR14'!F$348 -> 0 | I172: ='R4a PR14'!G$348 -> 0 | J172: ='R4a PR14'!H$348 -> 0 | K172: ='R4a PR14'!I$348 -> 0 | L172: ='R4a PR14'!J$348 -> 0 | M172: ='R4a PR14'!K$348 -> 0
D173: Tariff Band 39 | F173: ='R4a PR14'!D$357 -> CR639M01_R006 | G173: ='R4a PR14'!E$357 -> number | H173: ='R4a PR14'!F$357 -> 0 | I173: ='R4a PR14'!G$357 -> 0 | J173: ='R4a PR14'!H$357 -> 0 | K173: ='R4a PR14'!I$357 -> 0 | L173: ='R4a PR14'!J$357 -> 0 | M173: ='R4a PR14'!K$357 -> 0
D174: Tariff Band 40 | F174: ='R4a PR14'!D$366 -> CR640M01_R006 | G174: ='R4a PR14'!E$366 -> number | H174: ='R4a PR14'!F$366 -> 0 | I174: ='R4a PR14'!G$366 -> 0 | J174: ='R4a PR14'!H$366 -> 0 | K174: ='R4a PR14'!I$366 -> 0 | L174: ='R4a PR14'!J$366 -> 0 | M174: ='R4a PR14'!K$366 -> 0
D175: Tariff Band 41 | F175: ='R4a PR14'!D$375 -> CR641M01_R006 | G175: ='R4a PR14'!E$375 -> number | H175: ='R4a PR14'!F$375 -> 0 | I175: ='R4a PR14'!G$375 -> 0 | J175: ='R4a PR14'!H$375 -> 0 | K175: ='R4a PR14'!I$375 -> 0 | L175: ='R4a PR14'!J$375 -> 0 | M175: ='R4a PR14'!K$375 -> 0
D176: Tariff Band 42 | F176: ='R4a PR14'!D$384 -> CR642M01_R006 | G176: ='R4a PR14'!E$384 -> number | H176: ='R4a PR14'!F$384 -> 0 | I176: ='R4a PR14'!G$384 -> 0 | J176: ='R4a PR14'!H$384 -> 0 | K176: ='R4a PR14'!I$384 -> 0 | L176: ='R4a PR14'!J$384 -> 0 | M176: ='R4a PR14'!K$384 -> 0
D177: Tariff Band 43 | F177: ='R4a PR14'!D$393 -> CR643M01_R006 | G177: ='R4a PR14'!E$393 -> number | H177: ='R4a PR14'!F$393 -> 0 | I177: ='R4a PR14'!G$393 -> 0 | J177: ='R4a PR14'!H$393 -> 0 | K177: ='R4a PR14'!I$393 -> 0 | L177: ='R4a PR14'!J$393 -> 0 | M177: ='R4a PR14'!K$393 -> 0
D178: Tariff Band 44 | F178: ='R4a PR14'!D$402 -> CR644M01_R006 | G178: ='R4a PR14'!E$402 -> number | H178: ='R4a PR14'!F$402 -> 0 | I178: ='R4a PR14'!G$402 -> 0 | J178: ='R4a PR14'!H$402 -> 0 | K178: ='R4a PR14'!I$402 -> 0 | L178: ='R4a PR14'!J$402 -> 0 | M178: ='R4a PR14'!K$402 -> 0
D179: Tariff Band 45 | F179: ='R4a PR14'!D$411 -> CR645M01_R006 | G179: ='R4a PR14'!E$411 -> number | H179: ='R4a PR14'!F$411 -> 0 | I179: ='R4a PR14'!G$411 -> 0 | J179: ='R4a PR14'!H$411 -> 0 | K179: ='R4a PR14'!I$411 -> 0 | L179: ='R4a PR14'!J$411 -> 0 | M179: ='R4a PR14'!K$411 -> 0
D180: Tariff Band 46 | F180: ='R4a PR14'!D$420 -> CR646M01_R006 | G180: ='R4a PR14'!E$420 -> number | H180: ='R4a PR14'!F$420 -> 0 | I180: ='R4a PR14'!G$420 -> 0 | J180: ='R4a PR14'!H$420 -> 0 | K180: ='R4a PR14'!I$420 -> 0 | L180: ='R4a PR14'!J$420 -> 0 | M180: ='R4a PR14'!K$420 -> 0
D181: Tariff Band 47 | F181: ='R4a PR14'!D$429 -> CR647M01_R006 | G181: ='R4a PR14'!E$429 -> number | H181: ='R4a PR14'!F$429 -> 0 | I181: ='R4a PR14'!G$429 -> 0 | J181: ='R4a PR14'!H$429 -> 0 | K181: ='R4a PR14'!I$429 -> 0 | L181: ='R4a PR14'!J$429 -> 0 | M181: ='R4a PR14'!K$429 -> 0
D182: Tariff Band 48 | F182: ='R4a PR14'!D$438 -> CR648M01_R006 | G182: ='R4a PR14'!E$438 -> number | H182: ='R4a PR14'!F$438 -> 0 | I182: ='R4a PR14'!G$438 -> 0 | J182: ='R4a PR14'!H$438 -> 0 | K182: ='R4a PR14'!I$438 -> 0 | L182: ='R4a PR14'!J$438 -> 0 | M182: ='R4a PR14'!K$438 -> 0
D183: Tariff Band 49 | F183: ='R4a PR14'!D$447 -> CR649M01_R006 | G183: ='R4a PR14'!E$447 -> number | H183: ='R4a PR14'!F$447 -> 0 | I183: ='R4a PR14'!G$447 -> 0 | J183: ='R4a PR14'!H$447 -> 0 | K183: ='R4a PR14'!I$447 -> 0 | L183: ='R4a PR14'!J$447 -> 0 | M183: ='R4a PR14'!K$447 -> 0
D184: Tariff Band 50 | F184: ='R4a PR14'!D$456 -> CR650M01_R006 | G184: ='R4a PR14'!E$456 -> number | H184: ='R4a PR14'!F$456 -> 0 | I184: ='R4a PR14'!G$456 -> 0 | J184: ='R4a PR14'!H$456 -> 0 | K184: ='R4a PR14'!I$456 -> 0 | L184: ='R4a PR14'!J$456 -> 0 | M184: ='R4a PR14'!K$456 -> 0
D185: Tariff Band 51 | F185: ='R4a PR14'!D$465 -> CR651M01_R006 | G185: ='R4a PR14'!E$465 -> number | H185: ='R4a PR14'!F$465 -> 0 | I185: ='R4a PR14'!G$465 -> 0 | J185: ='R4a PR14'!H$465 -> 0 | K185: ='R4a PR14'!I$465 -> 0 | L185: ='R4a PR14'!J$465 -> 0 | M185: ='R4a PR14'!K$465 -> 0
D186: Tariff Band 52 | F186: ='R4a PR14'!D$474 -> CR652M01_R006 | G186: ='R4a PR14'!E$474 -> number | H186: ='R4a PR14'!F$474 -> 0 | I186: ='R4a PR14'!G$474 -> 0 | J186: ='R4a PR14'!H$474 -> 0 | K186: ='R4a PR14'!I$474 -> 0 | L186: ='R4a PR14'!J$474 -> 0 | M186: ='R4a PR14'!K$474 -> 0
D187: Tariff Band 53 | F187: ='R4a PR14'!D$483 -> CR653M01_R006 | G187: ='R4a PR14'!E$483 -> number | H187: ='R4a PR14'!F$483 -> 0 | I187: ='R4a PR14'!G$483 -> 0 | J187: ='R4a PR14'!H$483 -> 0 | K187: ='R4a PR14'!I$483 -> 0 | L187: ='R4a PR14'!J$483 -> 0 | M187: ='R4a PR14'!K$483 -> 0
D188: Tariff Band 54 | F188: ='R4a PR14'!D$492 -> CR654M01_R006 | G188: ='R4a PR14'!E$492 -> number | H188: ='R4a PR14'!F$492 -> 0 | I188: ='R4a PR14'!G$492 -> 0 | J188: ='R4a PR14'!H$492 -> 0 | K188: ='R4a PR14'!I$492 -> 0 | L188: ='R4a PR14'!J$492 -> 0 | M188: ='R4a PR14'!K$492 -> 0
D189: Tariff Band 55 | F189: ='R4a PR14'!D$501 -> CR655M01_R006 | G189: ='R4a PR14'!E$501 -> number | H189: ='R4a PR14'!F$501 -> 0 | I189: ='R4a PR14'!G$501 -> 0 | J189: ='R4a PR14'!H$501 -> 0 | K189: ='R4a PR14'!I$501 -> 0 | L189: ='R4a PR14'!J$501 -> 0 | M189: ='R4a PR14'!K$501 -> 0
D190: Tariff Band 56 | F190: ='R4a PR14'!D$510 -> CR656M01_R006 | G190: ='R4a PR14'!E$510 -> number | H190: ='R4a PR14'!F$510 -> 0 | I190: ='R4a PR14'!G$510 -> 0 | J190: ='R4a PR14'!H$510 -> 0 | K190: ='R4a PR14'!I$510 -> 0 | L190: ='R4a PR14'!J$510 -> 0 | M190: ='R4a PR14'!K$510 -> 0
D191: Tariff Band 57 | F191: ='R4a PR14'!D$519 -> CR657M01_R006 | G191: ='R4a PR14'!E$519 -> number | H191: ='R4a PR14'!F$519 -> 0 | I191: ='R4a PR14'!G$519 -> 0 | J191: ='R4a PR14'!H$519 -> 0 | K191: ='R4a PR14'!I$519 -> 0 | L191: ='R4a PR14'!J$519 -> 0 | M191: ='R4a PR14'!K$519 -> 0
D192: Tariff Band 58 | F192: ='R4a PR14'!D$528 -> CR658M01_R006 | G192: ='R4a PR14'!E$528 -> number | H192: ='R4a PR14'!F$528 -> 0 | I192: ='R4a PR14'!G$528 -> 0 | J192: ='R4a PR14'!H$528 -> 0 | K192: ='R4a PR14'!I$528 -> 0 | L192: ='R4a PR14'!J$528 -> 0 | M192: ='R4a PR14'!K$528 -> 0
D193: Tariff Band 59 | F193: ='R4a PR14'!D$537 -> CR659M01_R006 | G193: ='R4a PR14'!E$537 -> number | H193: ='R4a PR14'!F$537 -> 0 | I193: ='R4a PR14'!G$537 -> 0 | J193: ='R4a PR14'!H$537 -> 0 | K193: ='R4a PR14'!I$537 -> 0 | L193: ='R4a PR14'!J$537 -> 0 | M193: ='R4a PR14'!K$537 -> 0
D194: Tariff Band 60 | F194: ='R4a PR14'!D$546 -> CR660M01_R006 | G194: ='R4a PR14'!E$546 -> number | H194: ='R4a PR14'!F$546 -> 0 | I194: ='R4a PR14'!G$546 -> 0 | J194: ='R4a PR14'!H$546 -> 0 | K194: ='R4a PR14'!I$546 -> 0 | L194: ='R4a PR14'!J$546 -> 0 | M194: ='R4a PR14'!K$546 -> 0
C196: Retail cost per customer
D197: Tariff Band 1 | F197: ='R4a PR14'!D$17 -> CR601C01_R006 | G197: ='R4a PR14'!E$17 -> £ | H197: ='R4a PR14'!F$17 -> 2 | I197: ='R4a PR14'!G$17 -> 16.75503715 | J197: ='R4a PR14'!H$17 -> 17.17357298 | K197: ='R4a PR14'!I$17 -> 17.58552392 | L197: ='R4a PR14'!J$17 -> 17.89364185 | M197: ='R4a PR14'!K$17 -> 18.11274335
D198: Tariff Band 2 | F198: ='R4a PR14'!D$26 -> CR602C01_R006 | G198: ='R4a PR14'!E$26 -> £ | H198: ='R4a PR14'!F$26 -> 2 | I198: ='R4a PR14'!G$26 -> 31.72960609 | J198: ='R4a PR14'!H$26 -> 32.05266524 | K198: ='R4a PR14'!I$26 -> 32.37979012 | L198: ='R4a PR14'!J$26 -> 32.58361764 | M198: ='R4a PR14'!K$26 -> 32.69504536
D199: Tariff Band 3 | F199: ='R4a PR14'!D$35 -> CR603C01_R006 | G199: ='R4a PR14'!E$35 -> £ | H199: ='R4a PR14'!F$35 -> 2 | I199: ='R4a PR14'!G$35 -> 537.6788151 | J199: ='R4a PR14'!H$35 -> 534.7430756 | K199: ='R4a PR14'!I$35 -> 532.1724158 | L199: ='R4a PR14'!J$35 -> 528.8259518 | M199: ='R4a PR14'!K$35 -> 525.2781113
D200: Tariff Band 4 | F200: ='R4a PR14'!D$44 -> CR604C01_R006 | G200: ='R4a PR14'!E$44 -> £ | H200: ='R4a PR14'!F$44 -> 2 | I200: ='R4a PR14'!G$44 -> 613.5479166 | J200: ='R4a PR14'!H$44 -> 610.1566148 | K200: ='R4a PR14'!I$44 -> 607.1833622 | L200: ='R4a PR14'!J$44 -> 603.3312885 | M200: ='R4a PR14'!K$44 -> 599.2561258
D201: Tariff Band 5 | F201: ='R4a PR14'!D$53 -> CR605C01_R006 | G201: ='R4a PR14'!E$53 -> £ | H201: ='R4a PR14'!F$53 -> 2 | I201: ='R4a PR14'!G$53 -> 16.75503715 | J201: ='R4a PR14'!H$53 -> 17.17357298 | K201: ='R4a PR14'!I$53 -> 17.58552392 | L201: ='R4a PR14'!J$53 -> 17.89364185 | M201: ='R4a PR14'!K$53 -> 18.11274335
D202: Tariff Band 6 | F202: ='R4a PR14'!D$62 -> CR606C01_R006 | G202: ='R4a PR14'!E$62 -> £ | H202: ='R4a PR14'!F$62 -> 2 | I202: ='R4a PR14'!G$62 -> 31.72960609 | J202: ='R4a PR14'!H$62 -> 32.05266524 | K202: ='R4a PR14'!I$62 -> 32.37979012 | L202: ='R4a PR14'!J$62 -> 32.58361764 | M202: ='R4a PR14'!K$62 -> 32.69504536
D203: Tariff Band 7 | F203: ='R4a PR14'!D$71 -> CR607C01_R006 | G203: ='R4a PR14'!E$71 -> £ | H203: ='R4a PR14'!F$71 -> 2 | I203: ='R4a PR14'!G$71 -> 537.6788151 | J203: ='R4a PR14'!H$71 -> 534.7430756 | K203: ='R4a PR14'!I$71 -> 532.1724158 | L203: ='R4a PR14'!J$71 -> 528.8259518 | M203: ='R4a PR14'!K$71 -> 525.2781113
D204: Tariff Band 8 | F204: ='R4a PR14'!D$80 -> CR608C01_R006 | G204: ='R4a PR14'!E$80 -> £ | H204: ='R4a PR14'!F$80 -> 2 | I204: ='R4a PR14'!G$80 -> 613.5479166 | J204: ='R4a PR14'!H$80 -> 610.1566148 | K204: ='R4a PR14'!I$80 -> 607.1833622 | L204: ='R4a PR14'!J$80 -> 603.3312885 | M204: ='R4a PR14'!K$80 -> 599.2561258
D205: Tariff Band 9 | F205: ='R4a PR14'!D$89 -> CR609C01_R006 | G205: ='R4a PR14'!E$89 -> £ | H205: ='R4a PR14'!F$89 -> 2 | I205: ='R4a PR14'!G$89 -> 3609.601546 | J205: ='R4a PR14'!H$89 -> 3587.08388 | K205: ='R4a PR14'!I$89 -> 3567.116036 | L205: ='R4a PR14'!J$89 -> 3542.374337 | M205: ='R4a PR14'!K$89 -> 3516.740866
... 554 more rows

Sheet PR16 Calculations
A1: PR16 Calculations | M1: =Lists!E29 -> Sutton & East Surrey Water
A3: Line description | E3: Constant | F3: Item reference | G3: Units | H3: DPs | I3: 2015-16 | J3: 2016-17 | K3: 2017-18 | L3: 2018-19 | M3: 2019-20
A5: NUMBER OF TARIFF BANDS UTILISED
C6: Tariff band descriptions
D7: Tariff Band 1 | E7: ='R4a PR16'!G$13 -> Northern area unmeasured | F7: ='R4a PR16'!D$13 -> 0 | G7: ='R4a PR16'!E$13 -> 0 | H7: ='R4a PR16'!F$13 -> 0 | K7: ='R4a PR16'!I$13 -> Northern area unmeasured
D8: Tariff Band 2 | E8: ='R4a PR16'!G$22 -> Northern area standard user metered | F8: ='R4a PR16'!D$22 -> 0 | G8: ='R4a PR16'!E$22 -> 0 | H8: ='R4a PR16'!F$22 -> 0 | K8: ='R4a PR16'!I$22 -> Northern area standard user metered
D9: Tariff Band 3 | E9: ='R4a PR16'!G$31 -> Northern area mid user metered | F9: ='R4a PR16'!D$31 -> 0 | G9: ='R4a PR16'!E$31 -> 0 | H9: ='R4a PR16'!F$31 -> 0 | K9: ='R4a PR16'!I$31 -> Northern area mid user metered
D10: Tariff Band 4 | E10: ='R4a PR16'!G$40 -> Northern area high user metered | F10: ='R4a PR16'!D$40 -> 0 | G10: ='R4a PR16'!E$40 -> 0 | H10: ='R4a PR16'!F$40 -> 0 | K10: ='R4a PR16'!I$40 -> Northern area high user metered
D11: Tariff Band 5 | E11: ='R4a PR16'!G$49 -> Southern area unmeasured | F11: ='R4a PR16'!D$49 -> 0 | G11: ='R4a PR16'!E$49 -> 0 | H11: ='R4a PR16'!F$49 -> 0 | K11: ='R4a PR16'!I$49 -> Southern area unmeasured
D12: Tariff Band 6 | E12: ='R4a PR16'!G$58 -> Southern area standard user metered | F12: ='R4a PR16'!D$58 -> 0 | G12: ='R4a PR16'!E$58 -> 0 | H12: ='R4a PR16'!F$58 -> 0 | K12: ='R4a PR16'!I$58 -> Southern area standard user metered
D13: Tariff Band 7 | E13: ='R4a PR16'!G$67 -> Southern area mid user metered | F13: ='R4a PR16'!D$67 -> 0 | G13: ='R4a PR16'!E$67 -> 0 | H13: ='R4a PR16'!F$67 -> 0 | K13: ='R4a PR16'!I$67 -> Southern area mid user metered
D14: Tariff Band 8 | E14: ='R4a PR16'!G$76 -> Southern area high user metered | F14: ='R4a PR16'!D$76 -> 0 | G14: ='R4a PR16'!E$76 -> 0 | H14: ='R4a PR16'!F$76 -> 0 | K14: ='R4a PR16'!I$76 -> Southern area high user metered
D15: Tariff Band 9 | E15: ='R4a PR16'!G$85 -> Special agreement 1 metered | F15: ='R4a PR16'!D$85 -> 0 | G15: ='R4a PR16'!E$85 -> 0 | H15: ='R4a PR16'!F$85 -> 0 | K15: ='R4a PR16'!I$85 -> Special agreement 1 metered
D16: Tariff Band 10 | E16: ='R4a PR16'!G$94 -> Special agreement 2 metered | F16: ='R4a PR16'!D$94 -> 0 | G16: ='R4a PR16'!E$94 -> 0 | H16: ='R4a PR16'!F$94 -> 0 | K16: ='R4a PR16'!I$94 -> Special agreement 2 metered
D17: Tariff Band 11 | E17: ='R4a PR16'!G$103 -> Not used at PR14 | F17: ='R4a PR16'!D$103 -> 0 | G17: ='R4a PR16'!E$103 -> 0 | H17: ='R4a PR16'!F$103 -> 0 | K17: ='R4a PR16'!I$103 -> Insert new tariff name
D18: Tariff Band 12 | E18: ='R4a PR16'!G$112 -> Not used at PR14 | F18: ='R4a PR16'!D$112 -> 0 | G18: ='R4a PR16'!E$112 -> 0 | H18: ='R4a PR16'!F$112 -> 0 | K18: ='R4a PR16'!I$112 -> Insert new tariff name
D19: Tariff Band 13 | E19: ='R4a PR16'!G$121 -> Not used at PR14 | F19: ='R4a PR16'!D$121 -> 0 | G19: ='R4a PR16'!E$121 -> 0 | H19: ='R4a PR16'!F$121 -> 0 | K19: ='R4a PR16'!I$121 -> Insert new tariff name
D20: Tariff Band 14 | E20: ='R4a PR16'!G$130 -> Not used at PR14 | F20: ='R4a PR16'!D$130 -> 0 | G20: ='R4a PR16'!E$130 -> 0 | H20: ='R4a PR16'!F$130 -> 0 | K20: ='R4a PR16'!I$130 -> Insert new tariff name
D21: Tariff Band 15 | E21: ='R4a PR16'!G$139 -> Not used at PR14 | F21: ='R4a PR16'!D$139 -> 0 | G21: ='R4a PR16'!E$139 -> 0 | H21: ='R4a PR16'!F$139 -> 0 | K21: ='R4a PR16'!I$139 -> Insert new tariff name
D22: Tariff Band 16 | E22: ='R4a PR16'!G$148 -> Not used at PR14 | F22: ='R4a PR16'!D$148 -> 0 | G22: ='R4a PR16'!E$148 -> 0 | H22: ='R4a PR16'!F$148 -> 0 | K22: ='R4a PR16'!I$148 -> Insert new tariff name
D23: Tariff Band 17 | E23: ='R4a PR16'!G$157 -> Not used at PR14 | F23: ='R4a PR16'!D$157 -> 0 | G23: ='R4a PR16'!E$157 -> 0 | H23: ='R4a PR16'!F$157 -> 0 | K23: ='R4a PR16'!I$157 -> Insert new tariff name
D24: Tariff Band 18 | E24: ='R4a PR16'!G$166 -> Not used at PR14 | F24: ='R4a PR16'!D$166 -> 0 | G24: ='R4a PR16'!E$166 -> 0 | H24: ='R4a PR16'!F$166 -> 0 | K24: ='R4a PR16'!I$166 -> Insert new tariff name
D25: Tariff Band 19 | E25: ='R4a PR16'!G$175 -> Not used at PR14 | F25: ='R4a PR16'!D$175 -> 0 | G25: ='R4a PR16'!E$175 -> 0 | H25: ='R4a PR16'!F$175 -> 0 | K25: ='R4a PR16'!I$175 -> Insert new tariff name
D26: Tariff Band 20 | E26: ='R4a PR16'!G$184 -> Not used at PR14 | F26: ='R4a PR16'!D$184 -> 0 | G26: ='R4a PR16'!E$184 -> 0 | H26: ='R4a PR16'!F$184 -> 0 | K26: ='R4a PR16'!I$184 -> Insert new tariff name
D27: Tariff Band 21 | E27: ='R4a PR16'!G$193 -> Not used at PR14 | F27: ='R4a PR16'!D$193 -> 0 | G27: ='R4a PR16'!E$193 -> 0 | H27: ='R4a PR16'!F$193 -> 0 | K27: ='R4a PR16'!I$193 -> Insert new tariff name
D28: Tariff Band 22 | E28: ='R4a PR16'!G$202 -> Not used at PR14 | F28: ='R4a PR16'!D$202 -> 0 | G28: ='R4a PR16'!E$202 -> 0 | H28: ='R4a PR16'!F$202 -> 0 | K28: ='R4a PR16'!I$202 -> Insert new tariff name
D29: Tariff Band 23 | E29: ='R4a PR16'!G$211 -> Not used at PR14 | F29: ='R4a PR16'!D$211 -> 0 | G29: ='R4a PR16'!E$211 -> 0 | H29: ='R4a PR16'!F$211 -> 0 | K29: ='R4a PR16'!I$211 -> Insert new tariff name
D30: Tariff Band 24 | E30: ='R4a PR16'!G$220 -> Not used at PR14 | F30: ='R4a PR16'!D$220 -> 0 | G30: ='R4a PR16'!E$220 -> 0 | H30: ='R4a PR16'!F$220 -> 0 | K30: ='R4a PR16'!I$220 -> Insert new tariff name
D31: Tariff Band 25 | E31: ='R4a PR16'!G$229 -> Not used at PR14 | F31: ='R4a PR16'!D$229 -> 0 | G31: ='R4a PR16'!E$229 -> 0 | H31: ='R4a PR16'!F$229 -> 0 | K31: ='R4a PR16'!I$229 -> Insert new tariff name
D32: Tariff Band 26 | E32: ='R4a PR16'!G$238 -> Not used at PR14 | F32: ='R4a PR16'!D$238 -> 0 | G32: ='R4a PR16'!E$238 -> 0 | H32: ='R4a PR16'!F$238 -> 0 | K32: ='R4a PR16'!I$238 -> Insert new tariff name
D33: Tariff Band 27 | E33: ='R4a PR16'!G$247 -> Not used at PR14 | F33: ='R4a PR16'!D$247 -> 0 | G33: ='R4a PR16'!E$247 -> 0 | H33: ='R4a PR16'!F$247 -> 0 | K33: ='R4a PR16'!I$247 -> Insert new tariff name
D34: Tariff Band 28 | E34: ='R4a PR16'!G$256 -> Not used at PR14 | F34: ='R4a PR16'!D$256 -> 0 | G34: ='R4a PR16'!E$256 -> 0 | H34: ='R4a PR16'!F$256 -> 0 | K34: ='R4a PR16'!I$256 -> Insert new tariff name
D35: Tariff Band 29 | E35: ='R4a PR16'!G$265 -> Not used at PR14 | F35: ='R4a PR16'!D$265 -> 0 | G35: ='R4a PR16'!E$265 -> 0 | H35: ='R4a PR16'!F$265 -> 0 | K35: ='R4a PR16'!I$265 -> Insert new tariff name
D36: Tariff Band 30 | E36: ='R4a PR16'!G$274 -> Not used at PR14 | F36: ='R4a PR16'!D$274 -> 0 | G36: ='R4a PR16'!E$274 -> 0 | H36: ='R4a PR16'!F$274 -> 0 | K36: ='R4a PR16'!I$274 -> Insert new tariff name
D37: Tariff Band 31 | E37: ='R4a PR16'!G$283 -> Not used at PR14 | F37: ='R4a PR16'!D$283 -> 0 | G37: ='R4a PR16'!E$283 -> 0 | H37: ='R4a PR16'!F$283 -> 0 | K37: ='R4a PR16'!I$283 -> Insert new tariff name
D38: Tariff Band 32 | E38: ='R4a PR16'!G$292 -> Not used at PR14 | F38: ='R4a PR16'!D$292 -> 0 | G38: ='R4a PR16'!E$292 -> 0 | H38: ='R4a PR16'!F$292 -> 0 | K38: ='R4a PR16'!I$292 -> Insert new tariff name
D39: Tariff Band 33 | E39: ='R4a PR16'!G$301 -> Not used at PR14 | F39: ='R4a PR16'!D$301 -> 0 | G39: ='R4a PR16'!E$301 -> 0 | H39: ='R4a PR16'!F$301 -> 0 | K39: ='R4a PR16'!I$301 -> Insert new tariff name
D40: Tariff Band 34 | E40: ='R4a PR16'!G$310 -> Not used at PR14 | F40: ='R4a PR16'!D$310 -> 0 | G40: ='R4a PR16'!E$310 -> 0 | H40: ='R4a PR16'!F$310 -> 0 | K40: ='R4a PR16'!I$310 -> Insert new tariff name
D41: Tariff Band 35 | E41: ='R4a PR16'!G$319 -> Not used at PR14 | F41: ='R4a PR16'!D$319 -> 0 | G41: ='R4a PR16'!E$319 -> 0 | H41: ='R4a PR16'!F$319 -> 0 | K41: ='R4a PR16'!I$319 -> Insert new tariff name
D42: Tariff Band 36 | E42: ='R4a PR16'!G$328 -> Not used at PR14 | F42: ='R4a PR16'!D$328 -> 0 | G42: ='R4a PR16'!E$328 -> 0 | H42: ='R4a PR16'!F$328 -> 0 | K42: ='R4a PR16'!I$328 -> Insert new tariff name
D43: Tariff Band 37 | E43: ='R4a PR16'!G$337 -> Not used at PR14 | F43: ='R4a PR16'!D$337 -> 0 | G43: ='R4a PR16'!E$337 -> 0 | H43: ='R4a PR16'!F$337 -> 0 | K43: ='R4a PR16'!I$337 -> Insert new tariff name
D44: Tariff Band 38 | E44: ='R4a PR16'!G$346 -> Not used at PR14 | F44: ='R4a PR16'!D$346 -> 0 | G44: ='R4a PR16'!E$346 -> 0 | H44: ='R4a PR16'!F$346 -> 0 | K44: ='R4a PR16'!I$346 -> Insert new tariff name
D45: Tariff Band 39 | E45: ='R4a PR16'!G$355 -> Not used at PR14 | F45: ='R4a PR16'!D$355 -> 0 | G45: ='R4a PR16'!E$355 -> 0 | H45: ='R4a PR16'!F$355 -> 0 | K45: ='R4a PR16'!I$355 -> Insert new tariff name
D46: Tariff Band 40 | E46: ='R4a PR16'!G$364 -> Not used at PR14 | F46: ='R4a PR16'!D$364 -> 0 | G46: ='R4a PR16'!E$364 -> 0 | H46: ='R4a PR16'!F$364 -> 0 | K46: ='R4a PR16'!I$364 -> Insert new tariff name
D47: Tariff Band 41 | E47: ='R4a PR16'!G$373 -> Not used at PR14 | F47: ='R4a PR16'!D$373 -> 0 | G47: ='R4a PR16'!E$373 -> 0 | H47: ='R4a PR16'!F$373 -> 0 | K47: ='R4a PR16'!I$373 -> Insert new tariff name
D48: Tariff Band 42 | E48: ='R4a PR16'!G$382 -> Not used at PR14 | F48: ='R4a PR16'!D$382 -> 0 | G48: ='R4a PR16'!E$382 -> 0 | H48: ='R4a PR16'!F$382 -> 0 | K48: ='R4a PR16'!I$382 -> Insert new tariff name
D49: Tariff Band 43 | E49: ='R4a PR16'!G$391 -> Not used at PR14 | F49: ='R4a PR16'!D$391 -> 0 | G49: ='R4a PR16'!E$391 -> 0 | H49: ='R4a PR16'!F$391 -> 0 | K49: ='R4a PR16'!I$391 -> Insert new tariff name
D50: Tariff Band 44 | E50: ='R4a PR16'!G$400 -> Not used at PR14 | F50: ='R4a PR16'!D$400 -> 0 | G50: ='R4a PR16'!E$400 -> 0 | H50: ='R4a PR16'!F$400 -> 0 | K50: ='R4a PR16'!I$400 -> Insert new tariff name
D51: Tariff Band 45 | E51: ='R4a PR16'!G$409 -> Not used at PR14 | F51: ='R4a PR16'!D$409 -> 0 | G51: ='R4a PR16'!E$409 -> 0 | H51: ='R4a PR16'!F$409 -> 0 | K51: ='R4a PR16'!I$409 -> Insert new tariff name
D52: Tariff Band 46 | E52: ='R4a PR16'!G$418 -> Not used at PR14 | F52: ='R4a PR16'!D$418 -> 0 | G52: ='R4a PR16'!E$418 -> 0 | H52: ='R4a PR16'!F$418 -> 0 | K52: ='R4a PR16'!I$418 -> Insert new tariff name
D53: Tariff Band 47 | E53: ='R4a PR16'!G$427 -> Not used at PR14 | F53: ='R4a PR16'!D$427 -> 0 | G53: ='R4a PR16'!E$427 -> 0 | H53: ='R4a PR16'!F$427 -> 0 | K53: ='R4a PR16'!I$427 -> Insert new tariff name
D54: Tariff Band 48 | E54: ='R4a PR16'!G$436 -> Not used at PR14 | F54: ='R4a PR16'!D$436 -> 0 | G54: ='R4a PR16'!E$436 -> 0 | H54: ='R4a PR16'!F$436 -> 0 | K54: ='R4a PR16'!I$436 -> Insert new tariff name
D55: Tariff Band 49 | E55: ='R4a PR16'!G$445 -> Not used at PR14 | F55: ='R4a PR16'!D$445 -> 0 | G55: ='R4a PR16'!E$445 -> 0 | H55: ='R4a PR16'!F$445 -> 0 | K55: ='R4a PR16'!I$445 -> Insert new tariff name
D56: Tariff Band 50 | E56: ='R4a PR16'!G$454 -> Not used at PR14 | F56: ='R4a PR16'!D$454 -> 0 | G56: ='R4a PR16'!E$454 -> 0 | H56: ='R4a PR16'!F$454 -> 0 | K56: ='R4a PR16'!I$454 -> Insert new tariff name
D57: Tariff Band 51 | E57: ='R4a PR16'!G$463 -> Not used at PR14 | F57: ='R4a PR16'!D$463 -> 0 | G57: ='R4a PR16'!E$463 -> 0 | H57: ='R4a PR16'!F$463 -> 0 | K57: ='R4a PR16'!I$463 -> Insert new tariff name
D58: Tariff Band 52 | E58: ='R4a PR16'!G$472 -> Not used at PR14 | F58: ='R4a PR16'!D$472 -> 0 | G58: ='R4a PR16'!E$472 -> 0 | H58: ='R4a PR16'!F$472 -> 0 | K58: ='R4a PR16'!I$472 -> Insert new tariff name
D59: Tariff Band 53 | E59: ='R4a PR16'!G$481 -> Not used at PR14 | F59: ='R4a PR16'!D$481 -> 0 | G59: ='R4a PR16'!E$481 -> 0 | H59: ='R4a PR16'!F$481 -> 0 | K59: ='R4a PR16'!I$481 -> Insert new tariff name
D60: Tariff Band 54 | E60: ='R4a PR16'!G$490 -> Not used at PR14 | F60: ='R4a PR16'!D$490 -> 0 | G60: ='R4a PR16'!E$490 -> 0 | H60: ='R4a PR16'!F$490 -> 0 | K60: ='R4a PR16'!I$490 -> Insert new tariff name
D61: Tariff Band 55 | E61: ='R4a PR16'!G$499 -> Not used at PR14 | F61: ='R4a PR16'!D$499 -> 0 | G61: ='R4a PR16'!E$499 -> 0 | H61: ='R4a PR16'!F$499 -> 0 | K61: ='R4a PR16'!I$499 -> Insert new tariff name
D62: Tariff Band 56 | E62: ='R4a PR16'!G$508 -> Not used at PR14 | F62: ='R4a PR16'!D$508 -> 0 | G62: ='R4a PR16'!E$508 -> 0 | H62: ='R4a PR16'!F$508 -> 0 | K62: ='R4a PR16'!I$508 -> Insert new tariff name
D63: Tariff Band 57 | E63: ='R4a PR16'!G$517 -> Not used at PR14 | F63: ='R4a PR16'!D$517 -> 0 | G63: ='R4a PR16'!E$517 -> 0 | H63: ='R4a PR16'!F$517 -> 0 | K63: ='R4a PR16'!I$517 -> Insert new tariff name
D64: Tariff Band 58 | E64: ='R4a PR16'!G$526 -> Not used at PR14 | F64: ='R4a PR16'!D$526 -> 0 | G64: ='R4a PR16'!E$526 -> 0 | H64: ='R4a PR16'!F$526 -> 0 | K64: ='R4a PR16'!I$526 -> Insert new tariff name
D65: Tariff Band 59 | E65: ='R4a PR16'!G$535 -> Not used at PR14 | F65: ='R4a PR16'!D$535 -> 0 | G65: ='R4a PR16'!E$535 -> 0 | H65: ='R4a PR16'!F$535 -> 0 | K65: ='R4a PR16'!I$535 -> Insert new tariff name
D66: Tariff Band 60 | E66: ='R4a PR16'!G$544 -> Not used at PR14 | F66: ='R4a PR16'!D$544 -> 0 | G66: ='R4a PR16'!E$544 -> 0 | H66: ='R4a PR16'!F$544 -> 0 | K66: ='R4a PR16'!I$544 -> Insert new tariff name
D67: Number of tariff bands | G67: number | H67: 0 | I67: =60 - COUNTIF( $E$7:$E$66, "Not used at PR14") -> 10 | J67: =60 - COUNTIF( $E$7:$E$66, "Not used at PR14") -> 10 | K67: =60 - COUNTIF( $K$7:$K$66, "Not used from 2017") - COUNTIF( $K$7:$K$66, "Insert new tariff name") -> 10 | L67: =60 - COUNTIF( $K$7:$K$66, "Not used from 2017") - COUNTIF( $K$7:$K$66, "Insert new tariff name") -> 10 | M67: 10
A69: NUMBER OF CUSTOMERS
C70: Number of customers
D71: Tariff Band 1 | F71: ='R4a PR16'!D$15 -> CR601M01_R006 | G71: ='R4a PR16'!E$15 -> number | H71: ='R4a PR16'!F$15 -> 0 | I71: ='R4a PR16'!G$15 -> 921.0258481 | J71: ='R4a PR16'!H$15 -> 921.0258481 | K71: ='R4a PR16'!I$15 -> 921.0258481 | L71: ='R4a PR16'!J$15 -> 921.0258481 | M71: ='R4a PR16'!K$15 -> 921.0258481
D72: Tariff Band 2 | F72: ='R4a PR16'!D$24 -> CR602M01_R006 | G72: ='R4a PR16'!E$24 -> number | H72: ='R4a PR16'!F$24 -> 0 | I72: ='R4a PR16'!G$24 -> 4722.215064 | J72: ='R4a PR16'!H$24 -> 4722.215064 | K72: ='R4a PR16'!I$24 -> 4722.215064 | L72: ='R4a PR16'!J$24 -> 4722.215064 | M72: ='R4a PR16'!K$24 -> 4722.215064
D73: Tariff Band 3 | F73: ='R4a PR16'!D$33 -> CR603M01_R006 | G73: ='R4a PR16'!E$33 -> number | H73: ='R4a PR16'!F$33 -> 0 | I73: ='R4a PR16'!G$33 -> 21 | J73: ='R4a PR16'!H$33 -> 21 | K73: ='R4a PR16'!I$33 -> 21 | L73: ='R4a PR16'!J$33 -> 21 | M73: ='R4a PR16'!K$33 -> 21
D74: Tariff Band 4 | F74: ='R4a PR16'!D$42 -> CR604M01_R006 | G74: ='R4a PR16'!E$42 -> number | H74: ='R4a PR16'!F$42 -> 0 | I74: ='R4a PR16'!G$42 -> 1 | J74: ='R4a PR16'!H$42 -> 1 | K74: ='R4a PR16'!I$42 -> 1 | L74: ='R4a PR16'!J$42 -> 1 | M74: ='R4a PR16'!K$42 -> 1
D75: Tariff Band 5 | F75: ='R4a PR16'!D$51 -> CR605M01_R006 | G75: ='R4a PR16'!E$51 -> number | H75: ='R4a PR16'!F$51 -> 0 | I75: ='R4a PR16'!G$51 -> 989.9741519 | J75: ='R4a PR16'!H$51 -> 989.9741519 | K75: ='R4a PR16'!I$51 -> 989.9741519 | L75: ='R4a PR16'!J$51 -> 989.9741519 | M75: ='R4a PR16'!K$51 -> 989.9741519
D76: Tariff Band 6 | F76: ='R4a PR16'!D$60 -> CR606M01_R006 | G76: ='R4a PR16'!E$60 -> number | H76: ='R4a PR16'!F$60 -> 0 | I76: ='R4a PR16'!G$60 -> 8604.784936 | J76: ='R4a PR16'!H$60 -> 8604.784936 | K76: ='R4a PR16'!I$60 -> 8604.784936 | L76: ='R4a PR16'!J$60 -> 8604.784936 | M76: ='R4a PR16'!K$60 -> 8604.784936
D77: Tariff Band 7 | F77: ='R4a PR16'!D$69 -> CR607M01_R006 | G77: ='R4a PR16'!E$69 -> number | H77: ='R4a PR16'!F$69 -> 0 | I77: ='R4a PR16'!G$69 -> 34 | J77: ='R4a PR16'!H$69 -> 34 | K77: ='R4a PR16'!I$69 -> 34 | L77: ='R4a PR16'!J$69 -> 34 | M77: ='R4a PR16'!K$69 -> 34
D78: Tariff Band 8 | F78: ='R4a PR16'!D$78 -> CR608M01_R006 | G78: ='R4a PR16'!E$78 -> number | H78: ='R4a PR16'!F$78 -> 0 | I78: ='R4a PR16'!G$78 -> 3 | J78: ='R4a PR16'!H$78 -> 3 | K78: ='R4a PR16'!I$78 -> 3 | L78: ='R4a PR16'!J$78 -> 3 | M78: ='R4a PR16'!K$78 -> 3
D79: Tariff Band 9 | F79: ='R4a PR16'!D$87 -> CR609M01_R006 | G79: ='R4a PR16'!E$87 -> number | H79: ='R4a PR16'!F$87 -> 0 | I79: ='R4a PR16'!G$87 -> 1 | J79: ='R4a PR16'!H$87 -> 1 | K79: ='R4a PR16'!I$87 -> 1 | L79: ='R4a PR16'!J$87 -> 1 | M79: ='R4a PR16'!K$87 -> 1
D80: Tariff Band 10 | F80: ='R4a PR16'!D$96 -> CR610M01_R006 | G80: ='R4a PR16'!E$96 -> number | H80: ='R4a PR16'!F$96 -> 0 | I80: ='R4a PR16'!G$96 -> 1 | J80: ='R4a PR16'!H$96 -> 1 | K80: ='R4a PR16'!I$96 -> 1 | L80: ='R4a PR16'!J$96 -> 1 | M80: ='R4a PR16'!K$96 -> 1
D81: Tariff Band 11 | F81: ='R4a PR16'!D$105 -> CR611M01_R006 | G81: ='R4a PR16'!E$105 -> number | H81: ='R4a PR16'!F$105 -> 0 | I81: ='R4a PR16'!G$105 -> 0 | J81: ='R4a PR16'!H$105 -> 0 | K81: ='R4a PR16'!I$105 -> 0 | L81: ='R4a PR16'!J$105 -> 0 | M81: ='R4a PR16'!K$105 -> 0
D82: Tariff Band 12 | F82: ='R4a PR16'!D$114 -> CR612M01_R006 | G82: ='R4a PR16'!E$114 -> number | H82: ='R4a PR16'!F$114 -> 0 | I82: ='R4a PR16'!G$114 -> 0 | J82: ='R4a PR16'!H$114 -> 0 | K82: ='R4a PR16'!I$114 -> 0 | L82: ='R4a PR16'!J$114 -> 0 | M82: ='R4a PR16'!K$114 -> 0
D83: Tariff Band 13 | F83: ='R4a PR16'!D$123 -> CR613M01_R006 | G83: ='R4a PR16'!E$123 -> number | H83: ='R4a PR16'!F$123 -> 0 | I83: ='R4a PR16'!G$123 -> 0 | J83: ='R4a PR16'!H$123 -> 0 | K83: ='R4a PR16'!I$123 -> 0 | L83: ='R4a PR16'!J$123 -> 0 | M83: ='R4a PR16'!K$123 -> 0
D84: Tariff Band 14 | F84: ='R4a PR16'!D$132 -> CR614M01_R006 | G84: ='R4a PR16'!E$132 -> number | H84: ='R4a PR16'!F$132 -> 0 | I84: ='R4a PR16'!G$132 -> 0 | J84: ='R4a PR16'!H$132 -> 0 | K84: ='R4a PR16'!I$132 -> 0 | L84: ='R4a PR16'!J$132 -> 0 | M84: ='R4a PR16'!K$132 -> 0
D85: Tariff Band 15 | F85: ='R4a PR16'!D$141 -> CR615M01_R006 | G85: ='R4a PR16'!E$141 -> number | H85: ='R4a PR16'!F$141 -> 0 | I85: ='R4a PR16'!G$141 -> 0 | J85: ='R4a PR16'!H$141 -> 0 | K85: ='R4a PR16'!I$141 -> 0 | L85: ='R4a PR16'!J$141 -> 0 | M85: ='R4a PR16'!K$141 -> 0
D86: Tariff Band 16 | F86: ='R4a PR16'!D$150 -> CR616M01_R006 | G86: ='R4a PR16'!E$150 -> number | H86: ='R4a PR16'!F$150 -> 0 | I86: ='R4a PR16'!G$150 -> 0 | J86: ='R4a PR16'!H$150 -> 0 | K86: ='R4a PR16'!I$150 -> 0 | L86: ='R4a PR16'!J$150 -> 0 | M86: ='R4a PR16'!K$150 -> 0
D87: Tariff Band 17 | F87: ='R4a PR16'!D$159 -> CR617M01_R006 | G87: ='R4a PR16'!E$159 -> number | H87: ='R4a PR16'!F$159 -> 0 | I87: ='R4a PR16'!G$159 -> 0 | J87: ='R4a PR16'!H$159 -> 0 | K87: ='R4a PR16'!I$159 -> 0 | L87: ='R4a PR16'!J$159 -> 0 | M87: ='R4a PR16'!K$159 -> 0
D88: Tariff Band 18 | F88: ='R4a PR16'!D$168 -> CR618M01_R006 | G88: ='R4a PR16'!E$168 -> number | H88: ='R4a PR16'!F$168 -> 0 | I88: ='R4a PR16'!G$168 -> 0 | J88: ='R4a PR16'!H$168 -> 0 | K88: ='R4a PR16'!I$168 -> 0 | L88: ='R4a PR16'!J$168 -> 0 | M88: ='R4a PR16'!K$168 -> 0
D89: Tariff Band 19 | F89: ='R4a PR16'!D$177 -> CR619M01_R006 | G89: ='R4a PR16'!E$177 -> number | H89: ='R4a PR16'!F$177 -> 0 | I89: ='R4a PR16'!G$177 -> 0 | J89: ='R4a PR16'!H$177 -> 0 | K89: ='R4a PR16'!I$177 -> 0 | L89: ='R4a PR16'!J$177 -> 0 | M89: ='R4a PR16'!K$177 -> 0
D90: Tariff Band 20 | F90: ='R4a PR16'!D$186 -> CR620M01_R006 | G90: ='R4a PR16'!E$186 -> number | H90: ='R4a PR16'!F$186 -> 0 | I90: ='R4a PR16'!G$186 -> 0 | J90: ='R4a PR16'!H$186 -> 0 | K90: ='R4a PR16'!I$186 -> 0 | L90: ='R4a PR16'!J$186 -> 0 | M90: ='R4a PR16'!K$186 -> 0
D91: Tariff Band 21 | F91: ='R4a PR16'!D$195 -> CR621M01_R006 | G91: ='R4a PR16'!E$195 -> number | H91: ='R4a PR16'!F$195 -> 0 | I91: ='R4a PR16'!G$195 -> 0 | J91: ='R4a PR16'!H$195 -> 0 | K91: ='R4a PR16'!I$195 -> 0 | L91: ='R4a PR16'!J$195 -> 0 | M91: ='R4a PR16'!K$195 -> 0
D92: Tariff Band 22 | F92: ='R4a PR16'!D$204 -> CR622M01_R006 | G92: ='R4a PR16'!E$204 -> number | H92: ='R4a PR16'!F$204 -> 0 | I92: ='R4a PR16'!G$204 -> 0 | J92: ='R4a PR16'!H$204 -> 0 | K92: ='R4a PR16'!I$204 -> 0 | L92: ='R4a PR16'!J$204 -> 0 | M92: ='R4a PR16'!K$204 -> 0
D93: Tariff Band 23 | F93: ='R4a PR16'!D$213 -> CR623M01_R006 | G93: ='R4a PR16'!E$213 -> number | H93: ='R4a PR16'!F$213 -> 0 | I93: ='R4a PR16'!G$213 -> 0 | J93: ='R4a PR16'!H$213 -> 0 | K93: ='R4a PR16'!I$213 -> 0 | L93: ='R4a PR16'!J$213 -> 0 | M93: ='R4a PR16'!K$213 -> 0
D94: Tariff Band 24 | F94: ='R4a PR16'!D$222 -> CR624M01_R006 | G94: ='R4a PR16'!E$222 -> number | H94: ='R4a PR16'!F$222 -> 0 | I94: ='R4a PR16'!G$222 -> 0 | J94: ='R4a PR16'!H$222 -> 0 | K94: ='R4a PR16'!I$222 -> 0 | L94: ='R4a PR16'!J$222 -> 0 | M94: ='R4a PR16'!K$222 -> 0
D95: Tariff Band 25 | F95: ='R4a PR16'!D$231 -> CR625M01_R006 | G95: ='R4a PR16'!E$231 -> number | H95: ='R4a PR16'!F$231 -> 0 | I95: ='R4a PR16'!G$231 -> 0 | J95: ='R4a PR16'!H$231 -> 0 | K95: ='R4a PR16'!I$231 -> 0 | L95: ='R4a PR16'!J$231 -> 0 | M95: ='R4a PR16'!K$231 -> 0
D96: Tariff Band 26 | F96: ='R4a PR16'!D$240 -> CR626M01_R006 | G96: ='R4a PR16'!E$240 -> number | H96: ='R4a PR16'!F$240 -> 0 | I96: ='R4a PR16'!G$240 -> 0 | J96: ='R4a PR16'!H$240 -> 0 | K96: ='R4a PR16'!I$240 -> 0 | L96: ='R4a PR16'!J$240 -> 0 | M96: ='R4a PR16'!K$240 -> 0
D97: Tariff Band 27 | F97: ='R4a PR16'!D$249 -> CR627M01_R006 | G97: ='R4a PR16'!E$249 -> number | H97: ='R4a PR16'!F$249 -> 0 | I97: ='R4a PR16'!G$249 -> 0 | J97: ='R4a PR16'!H$249 -> 0 | K97: ='R4a PR16'!I$249 -> 0 | L97: ='R4a PR16'!J$249 -> 0 | M97: ='R4a PR16'!K$249 -> 0
D98: Tariff Band 28 | F98: ='R4a PR16'!D$258 -> CR628M01_R006 | G98: ='R4a PR16'!E$258 -> number | H98: ='R4a PR16'!F$258 -> 0 | I98: ='R4a PR16'!G$258 -> 0 | J98: ='R4a PR16'!H$258 -> 0 | K98: ='R4a PR16'!I$258 -> 0 | L98: ='R4a PR16'!J$258 -> 0 | M98: ='R4a PR16'!K$258 -> 0
D99: Tariff Band 29 | F99: ='R4a PR16'!D$267 -> CR629M01_R006 | G99: ='R4a PR16'!E$267 -> number | H99: ='R4a PR16'!F$267 -> 0 | I99: ='R4a PR16'!G$267 -> 0 | J99: ='R4a PR16'!H$267 -> 0 | K99: ='R4a PR16'!I$267 -> 0 | L99: ='R4a PR16'!J$267 -> 0 | M99: ='R4a PR16'!K$267 -> 0
D100: Tariff Band 30 | F100: ='R4a PR16'!D$276 -> CR630M01_R006 | G100: ='R4a PR16'!E$276 -> number | H100: ='R4a PR16'!F$276 -> 0 | I100: ='R4a PR16'!G$276 -> 0 | J100: ='R4a PR16'!H$276 -> 0 | K100: ='R4a PR16'!I$276 -> 0 | L100: ='R4a PR16'!J$276 -> 0 | M100: ='R4a PR16'!K$276 -> 0
D101: Tariff Band 31 | F101: ='R4a PR16'!D$285 -> CR631M01_R006 | G101: ='R4a PR16'!E$285 -> number | H101: ='R4a PR16'!F$285 -> 0 | I101: ='R4a PR16'!G$285 -> 0 | J101: ='R4a PR16'!H$285 -> 0 | K101: ='R4a PR16'!I$285 -> 0 | L101: ='R4a PR16'!J$285 -> 0 | M101: ='R4a PR16'!K$285 -> 0
D102: Tariff Band 32 | F102: ='R4a PR16'!D$294 -> CR632M01_R006 | G102: ='R4a PR16'!E$294 -> number | H102: ='R4a PR16'!F$294 -> 0 | I102: ='R4a PR16'!G$294 -> 0 | J102: ='R4a PR16'!H$294 -> 0 | K102: ='R4a PR16'!I$294 -> 0 | L102: ='R4a PR16'!J$294 -> 0 | M102: ='R4a PR16'!K$294 -> 0
D103: Tariff Band 33 | F103: ='R4a PR16'!D$303 -> CR633M01_R006 | G103: ='R4a PR16'!E$303 -> number | H103: ='R4a PR16'!F$303 -> 0 | I103: ='R4a PR16'!G$303 -> 0 | J103: ='R4a PR16'!H$303 -> 0 | K103: ='R4a PR16'!I$303 -> 0 | L103: ='R4a PR16'!J$303 -> 0 | M103: ='R4a PR16'!K$303 -> 0
D104: Tariff Band 34 | F104: ='R4a PR16'!D$312 -> CR634M01_R006 | G104: ='R4a PR16'!E$312 -> number | H104: ='R4a PR16'!F$312 -> 0 | I104: ='R4a PR16'!G$312 -> 0 | J104: ='R4a PR16'!H$312 -> 0 | K104: ='R4a PR16'!I$312 -> 0 | L104: ='R4a PR16'!J$312 -> 0 | M104: ='R4a PR16'!K$312 -> 0
D105: Tariff Band 35 | F105: ='R4a PR16'!D$321 -> CR635M01_R006 | G105: ='R4a PR16'!E$321 -> number | H105: ='R4a PR16'!F$321 -> 0 | I105: ='R4a PR16'!G$321 -> 0 | J105: ='R4a PR16'!H$321 -> 0 | K105: ='R4a PR16'!I$321 -> 0 | L105: ='R4a PR16'!J$321 -> 0 | M105: ='R4a PR16'!K$321 -> 0
D106: Tariff Band 36 | F106: ='R4a PR16'!D$330 -> CR636M01_R006 | G106: ='R4a PR16'!E$330 -> number | H106: ='R4a PR16'!F$330 -> 0 | I106: ='R4a PR16'!G$330 -> 0 | J106: ='R4a PR16'!H$330 -> 0 | K106: ='R4a PR16'!I$330 -> 0 | L106: ='R4a PR16'!J$330 -> 0 | M106: ='R4a PR16'!K$330 -> 0
D107: Tariff Band 37 | F107: ='R4a PR16'!D$339 -> CR637M01_R006 | G107: ='R4a PR16'!E$339 -> number | H107: ='R4a PR16'!F$339 -> 0 | I107: ='R4a PR16'!G$339 -> 0 | J107: ='R4a PR16'!H$339 -> 0 | K107: ='R4a PR16'!I$339 -> 0 | L107: ='R4a PR16'!J$339 -> 0 | M107: ='R4a PR16'!K$339 -> 0
D108: Tariff Band 38 | F108: ='R4a PR16'!D$348 -> CR638M01_R006 | G108: ='R4a PR16'!E$348 -> number | H108: ='R4a PR16'!F$348 -> 0 | I108: ='R4a PR16'!G$348 -> 0 | J108: ='R4a PR16'!H$348 -> 0 | K108: ='R4a PR16'!I$348 -> 0 | L108: ='R4a PR16'!J$348 -> 0 | M108: ='R4a PR16'!K$348 -> 0
D109: Tariff Band 39 | F109: ='R4a PR16'!D$357 -> CR639M01_R006 | G109: ='R4a PR16'!E$357 -> number | H109: ='R4a PR16'!F$357 -> 0 | I109: ='R4a PR16'!G$357 -> 0 | J109: ='R4a PR16'!H$357 -> 0 | K109: ='R4a PR16'!I$357 -> 0 | L109: ='R4a PR16'!J$357 -> 0 | M109: ='R4a PR16'!K$357 -> 0
D110: Tariff Band 40 | F110: ='R4a PR16'!D$366 -> CR640M01_R006 | G110: ='R4a PR16'!E$366 -> number | H110: ='R4a PR16'!F$366 -> 0 | I110: ='R4a PR16'!G$366 -> 0 | J110: ='R4a PR16'!H$366 -> 0 | K110: ='R4a PR16'!I$366 -> 0 | L110: ='R4a PR16'!J$366 -> 0 | M110: ='R4a PR16'!K$366 -> 0
D111: Tariff Band 41 | F111: ='R4a PR16'!D$375 -> CR641M01_R006 | G111: ='R4a PR16'!E$375 -> number | H111: ='R4a PR16'!F$375 -> 0 | I111: ='R4a PR16'!G$375 -> 0 | J111: ='R4a PR16'!H$375 -> 0 | K111: ='R4a PR16'!I$375 -> 0 | L111: ='R4a PR16'!J$375 -> 0 | M111: ='R4a PR16'!K$375 -> 0
D112: Tariff Band 42 | F112: ='R4a PR16'!D$384 -> CR642M01_R006 | G112: ='R4a PR16'!E$384 -> number | H112: ='R4a PR16'!F$384 -> 0 | I112: ='R4a PR16'!G$384 -> 0 | J112: ='R4a PR16'!H$384 -> 0 | K112: ='R4a PR16'!I$384 -> 0 | L112: ='R4a PR16'!J$384 -> 0 | M112: ='R4a PR16'!K$384 -> 0
D113: Tariff Band 43 | F113: ='R4a PR16'!D$393 -> CR643M01_R006 | G113: ='R4a PR16'!E$393 -> number | H113: ='R4a PR16'!F$393 -> 0 | I113: ='R4a PR16'!G$393 -> 0 | J113: ='R4a PR16'!H$393 -> 0 | K113: ='R4a PR16'!I$393 -> 0 | L113: ='R4a PR16'!J$393 -> 0 | M113: ='R4a PR16'!K$393 -> 0
D114: Tariff Band 44 | F114: ='R4a PR16'!D$402 -> CR644M01_R006 | G114: ='R4a PR16'!E$402 -> number | H114: ='R4a PR16'!F$402 -> 0 | I114: ='R4a PR16'!G$402 -> 0 | J114: ='R4a PR16'!H$402 -> 0 | K114: ='R4a PR16'!I$402 -> 0 | L114: ='R4a PR16'!J$402 -> 0 | M114: ='R4a PR16'!K$402 -> 0
D115: Tariff Band 45 | F115: ='R4a PR16'!D$411 -> CR645M01_R006 | G115: ='R4a PR16'!E$411 -> number | H115: ='R4a PR16'!F$411 -> 0 | I115: ='R4a PR16'!G$411 -> 0 | J115: ='R4a PR16'!H$411 -> 0 | K115: ='R4a PR16'!I$411 -> 0 | L115: ='R4a PR16'!J$411 -> 0 | M115: ='R4a PR16'!K$411 -> 0
D116: Tariff Band 46 | F116: ='R4a PR16'!D$420 -> CR646M01_R006 | G116: ='R4a PR16'!E$420 -> number | H116: ='R4a PR16'!F$420 -> 0 | I116: ='R4a PR16'!G$420 -> 0 | J116: ='R4a PR16'!H$420 -> 0 | K116: ='R4a PR16'!I$420 -> 0 | L116: ='R4a PR16'!J$420 -> 0 | M116: ='R4a PR16'!K$420 -> 0
D117: Tariff Band 47 | F117: ='R4a PR16'!D$429 -> CR647M01_R006 | G117: ='R4a PR16'!E$429 -> number | H117: ='R4a PR16'!F$429 -> 0 | I117: ='R4a PR16'!G$429 -> 0 | J117: ='R4a PR16'!H$429 -> 0 | K117: ='R4a PR16'!I$429 -> 0 | L117: ='R4a PR16'!J$429 -> 0 | M117: ='R4a PR16'!K$429 -> 0
D118: Tariff Band 48 | F118: ='R4a PR16'!D$438 -> CR648M01_R006 | G118: ='R4a PR16'!E$438 -> number | H118: ='R4a PR16'!F$438 -> 0 | I118: ='R4a PR16'!G$438 -> 0 | J118: ='R4a PR16'!H$438 -> 0 | K118: ='R4a PR16'!I$438 -> 0 | L118: ='R4a PR16'!J$438 -> 0 | M118: ='R4a PR16'!K$438 -> 0
D119: Tariff Band 49 | F119: ='R4a PR16'!D$447 -> CR649M01_R006 | G119: ='R4a PR16'!E$447 -> number | H119: ='R4a PR16'!F$447 -> 0 | I119: ='R4a PR16'!G$447 -> 0 | J119: ='R4a PR16'!H$447 -> 0 | K119: ='R4a PR16'!I$447 -> 0 | L119: ='R4a PR16'!J$447 -> 0 | M119: ='R4a PR16'!K$447 -> 0
D120: Tariff Band 50 | F120: ='R4a PR16'!D$456 -> CR650M01_R006 | G120: ='R4a PR16'!E$456 -> number | H120: ='R4a PR16'!F$456 -> 0 | I120: ='R4a PR16'!G$456 -> 0 | J120: ='R4a PR16'!H$456 -> 0 | K120: ='R4a PR16'!I$456 -> 0 | L120: ='R4a PR16'!J$456 -> 0 | M120: ='R4a PR16'!K$456 -> 0
D121: Tariff Band 51 | F121: ='R4a PR16'!D$465 -> CR651M01_R006 | G121: ='R4a PR16'!E$465 -> number | H121: ='R4a PR16'!F$465 -> 0 | I121: ='R4a PR16'!G$465 -> 0 | J121: ='R4a PR16'!H$465 -> 0 | K121: ='R4a PR16'!I$465 -> 0 | L121: ='R4a PR16'!J$465 -> 0 | M121: ='R4a PR16'!K$465 -> 0
D122: Tariff Band 52 | F122: ='R4a PR16'!D$474 -> CR652M01_R006 | G122: ='R4a PR16'!E$474 -> number | H122: ='R4a PR16'!F$474 -> 0 | I122: ='R4a PR16'!G$474 -> 0 | J122: ='R4a PR16'!H$474 -> 0 | K122: ='R4a PR16'!I$474 -> 0 | L122: ='R4a PR16'!J$474 -> 0 | M122: ='R4a PR16'!K$474 -> 0
D123: Tariff Band 53 | F123: ='R4a PR16'!D$483 -> CR653M01_R006 | G123: ='R4a PR16'!E$483 -> number | H123: ='R4a PR16'!F$483 -> 0 | I123: ='R4a PR16'!G$483 -> 0 | J123: ='R4a PR16'!H$483 -> 0 | K123: ='R4a PR16'!I$483 -> 0 | L123: ='R4a PR16'!J$483 -> 0 | M123: ='R4a PR16'!K$483 -> 0
D124: Tariff Band 54 | F124: ='R4a PR16'!D$492 -> CR654M01_R006 | G124: ='R4a PR16'!E$492 -> number | H124: ='R4a PR16'!F$492 -> 0 | I124: ='R4a PR16'!G$492 -> 0 | J124: ='R4a PR16'!H$492 -> 0 | K124: ='R4a PR16'!I$492 -> 0 | L124: ='R4a PR16'!J$492 -> 0 | M124: ='R4a PR16'!K$492 -> 0
D125: Tariff Band 55 | F125: ='R4a PR16'!D$501 -> CR655M01_R006 | G125: ='R4a PR16'!E$501 -> number | H125: ='R4a PR16'!F$501 -> 0 | I125: ='R4a PR16'!G$501 -> 0 | J125: ='R4a PR16'!H$501 -> 0 | K125: ='R4a PR16'!I$501 -> 0 | L125: ='R4a PR16'!J$501 -> 0 | M125: ='R4a PR16'!K$501 -> 0
D126: Tariff Band 56 | F126: ='R4a PR16'!D$510 -> CR656M01_R006 | G126: ='R4a PR16'!E$510 -> number | H126: ='R4a PR16'!F$510 -> 0 | I126: ='R4a PR16'!G$510 -> 0 | J126: ='R4a PR16'!H$510 -> 0 | K126: ='R4a PR16'!I$510 -> 0 | L126: ='R4a PR16'!J$510 -> 0 | M126: ='R4a PR16'!K$510 -> 0
D127: Tariff Band 57 | F127: ='R4a PR16'!D$519 -> CR657M01_R006 | G127: ='R4a PR16'!E$519 -> number | H127: ='R4a PR16'!F$519 -> 0 | I127: ='R4a PR16'!G$519 -> 0 | J127: ='R4a PR16'!H$519 -> 0 | K127: ='R4a PR16'!I$519 -> 0 | L127: ='R4a PR16'!J$519 -> 0 | M127: ='R4a PR16'!K$519 -> 0
D128: Tariff Band 58 | F128: ='R4a PR16'!D$528 -> CR658M01_R006 | G128: ='R4a PR16'!E$528 -> number | H128: ='R4a PR16'!F$528 -> 0 | I128: ='R4a PR16'!G$528 -> 0 | J128: ='R4a PR16'!H$528 -> 0 | K128: ='R4a PR16'!I$528 -> 0 | L128: ='R4a PR16'!J$528 -> 0 | M128: ='R4a PR16'!K$528 -> 0
D129: Tariff Band 59 | F129: ='R4a PR16'!D$537 -> CR659M01_R006 | G129: ='R4a PR16'!E$537 -> number | H129: ='R4a PR16'!F$537 -> 0 | I129: ='R4a PR16'!G$537 -> 0 | J129: ='R4a PR16'!H$537 -> 0 | K129: ='R4a PR16'!I$537 -> 0 | L129: ='R4a PR16'!J$537 -> 0 | M129: ='R4a PR16'!K$537 -> 0
D130: Tariff Band 60 | F130: ='R4a PR16'!D$546 -> CR660M01_R006 | G130: ='R4a PR16'!E$546 -> number | H130: ='R4a PR16'!F$546 -> 0 | I130: ='R4a PR16'!G$546 -> 0 | J130: ='R4a PR16'!H$546 -> 0 | K130: ='R4a PR16'!I$546 -> 0 | L130: ='R4a PR16'!J$546 -> 0 | M130: ='R4a PR16'!K$546 -> 0
D131: Number of customers | G131: number | H131: 0 | I131: =SUM(I71:I130) -> 15299 | J131: =SUM(J71:J130) -> 15299 | K131: 15299 | L131: 15299 | M131: 15299
A133: PROJECTED RETAIL COSTS
C134: Number of customers
D135: Tariff Band 1 | F135: ='R4a PR16'!D$15 -> CR601M01_R006 | G135: ='R4a PR16'!E$15 -> number | H135: ='R4a PR16'!F$15 -> 0 | I135: ='R4a PR16'!G$15 -> 921.0258481 | J135: ='R4a PR16'!H$15 -> 921.0258481 | K135: ='R4a PR16'!I$15 -> 921.0258481 | L135: ='R4a PR16'!J$15 -> 921.0258481 | M135: ='R4a PR16'!K$15 -> 921.0258481
D136: Tariff Band 2 | F136: ='R4a PR16'!D$24 -> CR602M01_R006 | G136: ='R4a PR16'!E$24 -> number | H136: ='R4a PR16'!F$24 -> 0 | I136: ='R4a PR16'!G$24 -> 4722.215064 | J136: ='R4a PR16'!H$24 -> 4722.215064 | K136: ='R4a PR16'!I$24 -> 4722.215064 | L136: ='R4a PR16'!J$24 -> 4722.215064 | M136: ='R4a PR16'!K$24 -> 4722.215064
D137: Tariff Band 3 | F137: ='R4a PR16'!D$33 -> CR603M01_R006 | G137: ='R4a PR16'!E$33 -> number | H137: ='R4a PR16'!F$33 -> 0 | I137: ='R4a PR16'!G$33 -> 21 | J137: ='R4a PR16'!H$33 -> 21 | K137: ='R4a PR16'!I$33 -> 21 | L137: ='R4a PR16'!J$33 -> 21 | M137: ='R4a PR16'!K$33 -> 21
D138: Tariff Band 4 | F138: ='R4a PR16'!D$42 -> CR604M01_R006 | G138: ='R4a PR16'!E$42 -> number | H138: ='R4a PR16'!F$42 -> 0 | I138: ='R4a PR16'!G$42 -> 1 | J138: ='R4a PR16'!H$42 -> 1 | K138: ='R4a PR16'!I$42 -> 1 | L138: ='R4a PR16'!J$42 -> 1 | M138: ='R4a PR16'!K$42 -> 1
D139: Tariff Band 5 | F139: ='R4a PR16'!D$51 -> CR605M01_R006 | G139: ='R4a PR16'!E$51 -> number | H139: ='R4a PR16'!F$51 -> 0 | I139: ='R4a PR16'!G$51 -> 989.9741519 | J139: ='R4a PR16'!H$51 -> 989.9741519 | K139: ='R4a PR16'!I$51 -> 989.9741519 | L139: ='R4a PR16'!J$51 -> 989.9741519 | M139: ='R4a PR16'!K$51 -> 989.9741519
D140: Tariff Band 6 | F140: ='R4a PR16'!D$60 -> CR606M01_R006 | G140: ='R4a PR16'!E$60 -> number | H140: ='R4a PR16'!F$60 -> 0 | I140: ='R4a PR16'!G$60 -> 8604.784936 | J140: ='R4a PR16'!H$60 -> 8604.784936 | K140: ='R4a PR16'!I$60 -> 8604.784936 | L140: ='R4a PR16'!J$60 -> 8604.784936 | M140: ='R4a PR16'!K$60 -> 8604.784936
D141: Tariff Band 7 | F141: ='R4a PR16'!D$69 -> CR607M01_R006 | G141: ='R4a PR16'!E$69 -> number | H141: ='R4a PR16'!F$69 -> 0 | I141: ='R4a PR16'!G$69 -> 34 | J141: ='R4a PR16'!H$69 -> 34 | K141: ='R4a PR16'!I$69 -> 34 | L141: ='R4a PR16'!J$69 -> 34 | M141: ='R4a PR16'!K$69 -> 34
D142: Tariff Band 8 | F142: ='R4a PR16'!D$78 -> CR608M01_R006 | G142: ='R4a PR16'!E$78 -> number | H142: ='R4a PR16'!F$78 -> 0 | I142: ='R4a PR16'!G$78 -> 3 | J142: ='R4a PR16'!H$78 -> 3 | K142: ='R4a PR16'!I$78 -> 3 | L142: ='R4a PR16'!J$78 -> 3 | M142: ='R4a PR16'!K$78 -> 3
D143: Tariff Band 9 | F143: ='R4a PR16'!D$87 -> CR609M01_R006 | G143: ='R4a PR16'!E$87 -> number | H143: ='R4a PR16'!F$87 -> 0 | I143: ='R4a PR16'!G$87 -> 1 | J143: ='R4a PR16'!H$87 -> 1 | K143: ='R4a PR16'!I$87 -> 1 | L143: ='R4a PR16'!J$87 -> 1 | M143: ='R4a PR16'!K$87 -> 1
D144: Tariff Band 10 | F144: ='R4a PR16'!D$96 -> CR610M01_R006 | G144: ='R4a PR16'!E$96 -> number | H144: ='R4a PR16'!F$96 -> 0 | I144: ='R4a PR16'!G$96 -> 1 | J144: ='R4a PR16'!H$96 -> 1 | K144: ='R4a PR16'!I$96 -> 1 | L144: ='R4a PR16'!J$96 -> 1 | M144: ='R4a PR16'!K$96 -> 1
D145: Tariff Band 11 | F145: ='R4a PR16'!D$105 -> CR611M01_R006 | G145: ='R4a PR16'!E$105 -> number | H145: ='R4a PR16'!F$105 -> 0 | I145: ='R4a PR16'!G$105 -> 0 | J145: ='R4a PR16'!H$105 -> 0 | K145: ='R4a PR16'!I$105 -> 0 | L145: ='R4a PR16'!J$105 -> 0 | M145: ='R4a PR16'!K$105 -> 0
